Workbook

Sheet Instructions-App Completion
A1: I. INSTRUCTIONS - SECTION 1: INSTRUCTIONS
B4: I | C4: Instructions
C6: A | D6: Overview
D7: The Electronic California Tax Credit Allocation Committee (TCAC) Application was designed to enhance consistency of information, increase efficiency in the application process, and reduce the amount of paperwork required for a TCAC tax credit application. All applicants are required to submit the application, current year TCAC attachment forms, and all supporting documentation in electronic format. Only the signed applicant statement may be submitted in hardcopy format; for all other application materials, no paper documentation will be accepted. TCAC will accept a signed applicant statement (pages 1-3 of the Application sheet) in either hardcopy format or PDF. All other application materials must be submitted in electronic format. Instructions for a complete electronic submission are found under Instructions-Electronic Submit. We encourage you to provide suggestions based on your experiences in preparing the application. In that way, TCAC can build upon and improve the process of completing a tax credit application.
D19: Mail the application materials to TCAC at: 915 Capitol Mall, Room 485, Sacramento, CA 95814. Enclose a $2,000 application filing fee in the form of a check (for scattered site projects in differing jurisdictions, an extra $1000 application filing fee is required per additional local review). If the local review agency(ies) has agreed to waive their $1,000 portion of the fee, enclose written confirmation from the local review agency(ies). Refer to the TCAC website for more complete filing instructions:
E25: https://www.treasurer.ca.gov/ctcac/2019/submitals/competitive.asp
E26: http://www.treasurer.ca.gov/ctcac/2019/lra/index.asp
D28: Please contact Diane.SooHoo@treasurer.ca.gov if you find any errors in the electronic application. For general application questions, please contact the regional analyst.
E30: http://www.treasurer.ca.gov/ctcac/assignments.asp
E31: http://www.treasurer.ca.gov/ctcac/contacts.asp
C33: B | D33: Application General Information
D34: 1) | E34: Instructions for preparing the electronic version
E35: a) | F35: Many of the required calculations in the application are automatically performed by the spreadsheet program.
F37: (i) | G37: Use this spreadsheet with Microsoft Excel 97 or above.
E38: b) | F38: Applicants must submit the application on a flash drive.
F39: (i) | G39: TCAC cannot accept applications submitted via e-mail.
F40: (ii) | G40: It is recommended that a back-up copy of the application be created for future use.
E41: c) | F41: DO NOT UNPROTECT OR UNLOCK CELLS in the spreadsheet. TCAC will verify formulas and data and will scan for viruses upon receipt. Any tampering may result in disqualification of the application.
D45: 2) | E45: Submission Requirements
E46: a) | F46: Applicants must submit the following:
F47: (i) | G47: TWO ELECTRONIC VERSIONS OF THE APPLICATION IN THE FORM OF A USB FLASH DRIVE TO TCAC. THE APPLICATION MUST BE SIGNED.
F50: (ii) | G50: ONE COPY OF THE ORIGINAL APPLICATION, ATTACHMENTS AND "TCAC LRA EVALUATION FORM" WITH INSTRUCTIONS (HARD COPY OR ELECTRONIC) TO THE LOCAL REVIEWING AGENCY.
D54: 3) | E54: General Instructions
E55: The electronic version is partitioned into the following categories:
E56: a) | F56: Instructions
F57: (i) | G57: This section provides overall guidance for the preparation of the electronic version. Each Attachment to the application contains detailed, specific instructions for that particular attachment.
F60: (ii) | G60: The electronic version is prepared using an Excel format. The application is divided into separate worksheets. To access a desired section of the application, simply click on the worksheet tab.
E63: b) | F63: Application
F64: (i) | G64: The application was designed to eliminate as many of the calculations as possible using the information provided by the applicant.
F66: (ii) | G66: All highlighted areas must be completed by the applicant. You may scroll through the highlighted cells by clicking the Tab button on your keyboard.
G68: Certain areas, when selected, will only allow the applicant to respond to the
G69: choices provided in the "pull-down" menu for that item.
F70: (iii) | G70: All applicable cells must be completed by the applicant
G71: a. | H71: For those numbered amounts that are not applicable, insert a "0" (zero).
G72: b. | H72: For any question response areas, if not applicable, select "N/A".
E73: c) | F73: Sources and Uses Budget
G74: The applicant must complete the yellow cells. Permanent Lenders are automatically pulled from a previous section for up to 12 lenders. Be sure each funding source total at the bottom of the sheet corresponds to the loan totals under Permanent Lenders.
E77: d) | F77: Basis and Credits
G78: The applicant must only complete any Ineligible Basis items and the applicable tax credit factors that apply to the project as evidenced by the syndication letter (please refer to the checklist for Attachment 16).
E81: e) | F81: Points System
G82: The applicant should click on each highlighted item, selecting either the automatic "pull-down" option or entering appropriate amounts.
E84: f) | F84: Service Amenities Budget
G85: The applicant must complete the yellow cells. This section is completed as part of the requirements listed under Attachment 24.
E87: g) | F87: Final Tie Breaker Self-Score
G88: In this section, the applicant must calculate a final tie breaker self-score. A portion of the calculations in this sheet are pulled from other areas of the application. The applicant must complete the yellow cells. The Final Tie Breaker Self-Score sheet includes written guidance.
E92: h) | F92: 15 Year Pro Forma
G93: This sheet is linked to the income and expense section of the Application sheet. Complete all applicable items, making any necessary changes. The worksheet may be adjusted to meet project specifications, but the overall formatting and formulas should not be changed.
E97: i) | F97: Checklist Items
G98: Following the checklist items in sequence with the completion of the electronic application is encouraged to help prevent omitting any required documentation.
E100: j) | F100: Applicant Notes
G101: A blank sheet has been included for any supplemental information the applicant wishes to provide.
E103: k) | F103: Post Award Project Cost Changes
G104: In this section, the applicant provides updated Sources and Uses Budget information over the course or the project development. Separate instructions exist for this section at the end of this Excel file.
E107: The remaining instructions pertain to each particular section of the application. Although many of the items may appear obvious, follow instructions provided in this section.
B110: II | C110: Application
C112: Section 1 | G112: Applicant Statement and Certification
D113: A | E113: Applicant Statement and Certification
E114: 1) | F114: Applicant Name
F115: Fill in the name of the general partner or the entity which is applying for; and receiving
F116: the requested tax credits.
E118: 2) | F118: Project Name
F119: Fill in the proposed name of the project.
E121: 3) | F121: Federal Credit Amount and State Credit Amount requested
F122: The annual federal credit amount and the total state credit amount will auto-populate after
F123: credits have been calculated in the Basis and Credits sheet.
E125: 4) | F125: Applicant Statement
F126: After carefully reading the applicant statement and certification the applicant must provide
F127: an originally signed applicant certification.
E129: 5) | F129: Local Jurisdiction
F130: Provide the name and contact information of the local jurisdiction's City Manager or equivalent.
C132: Section 2 | G132: General and Summary Information
D133: A | E133: Application Type
E134: Provide the requested information.
D136: B | E136: Project Information
E137: Provide the requested information.
D139: C | E139: Credit Amounts Requested
E140: The credit type, the annual federal credit amount and the total state credit amount will all be auto-populated after credits have been calculated in the Basis and Credits sheet.
D143: D | E143: Federal Minimum Set-Aside Election (IRC Section 42 (g)(1))
E144: Toggle the desired option: 20%/50%, 40%/60%, or 40%/60% Average Income
D146: E | E146: Housing Type Selection (TCAC Reg. Sections 10315(g) & 10325(g))
E147: 1) | F147: Toggle the selected housing type.
E148: 2) | F148: The applicant must select at least one housing type.
F149: a) | G149: If you selected Special Needs please list the percentage of Special Needs Units.
F150: b) | G150: If Special Needs portion is between 50% and 75%, specify other housing type construction standards to be met.
D153: F | E153: Geographic Area (TCAC Reg. Section 10315(h))
E154: Select the appropriate TCAC geographic area and provide requested information.
C156: Section 3 | G156: Applicant Information
D157: A | E157: Identify the applicant
E158: Answer the four questions using the toggle to select the correct response.
D160: B | E160: Applicant Contact Information
E161: Provide the current information for the applicant.
D163: C | E163: Legal status of the applicant
E164: Select the appropriate legal type for the applicant.
E165: If the legal status is "Other," provide a detailed statement as to the organization type.
D167: D | E167: General Partner(s) Information
E168: 1) | F168: List the name of the General Partner(s) or Principal Owner(s).
E169: 2) | F169: Enter the address and contact information of the General Partner(s) or Principal Owner(s).
E170: 3) | F170: Identify if each is either nonprofit or for profit entities.
D172: E | E172: General Partner(s) or Principal Owner(s) Type?
E173: This auto-populates from the previous section (D).
D175: F | E175: Status of Ownership Entity
E176: Toggle and select the appropriate ownership entity type.
E177: If not yet formed, enter the estimated formation date.
D179: G | E179: Contact Person During Application Process
E180: 1) | F180: Fill in the appropriate information for each section.
E181: 2) | F181: Identify the participatory role of the contact person.
C183: Section 4 | G183: Development Team Information
E184: Fill in all development team member information.
C186: Section 5 | G186: Project Information
D187: A | E187: Type of Credit Requested
E188: 1) | F188: Check applicable boxes.
F189: If proposing Rehabilitation, see minimum requirements in Reg. § 10326(g)(7).
E191: 2) | F191: Select "Yes" or "No" to answer if a New Construction project is proposing demolition.
F192: a) | G192: If "Yes", will relocation of existing tenants be involved?
D194: B | E194: Acquisition and Rehabilitation/Rehabilitation-only Projects (including Resyndication projects)
E195: Toggle to select the appropriate answers.
E196: Answer the questions regarding resyndication, if applicable.
D198: C | E198: Purchase Information
E199: Answer the questions as shown.
D201: D | E201: Project, Land, Building and Unit Information
E202: 1) | F202: Project Type
F203: a) | G203: Select housing type being proposed.
F204: b) | G204: If more than one housing type being proposed, list in space provided.
F205: c) | G205: Identify all buildings with and/or without an elevator.
D207: E | E207: Land
E208: Indicate parcel size and any irregularity.
D210: F | E210: Building Information
E211: 1) | F211: Indicate the total number of commercial, rental and community service buildings.
E212: 2) | F212: If Commercial Space, explain the use, size, location, purpose, and reasoning behind the use.
E213: 3) | F213: Indicate if buildings are on a contiguous site.
F214: a) | G214: If "No", indicate whether or not they meet the requirements of IRC Sec. 42(g)(7).
E215: 4) | F215: Indicate if any of the proposed buildings consist of four or fewer units.
F216: a) | G216: If "Yes", indicate if any of the proposed buildings of four or fewer units will be occupied by the
G217: owner (IRC 42 (i)(3)(C)).
D219: G | E219: Project Unit Number and Square Footage
E220: Fill in all highlighted lines. Totals will be auto-populated as the highlighted items are entered.
D222: H | E222: Tenant Population Data
E223: Answer the questions as shown.
C225: Section 6 | G225: Required Approvals and Development Timetable
E226: 1) | F226: Required Approvals Necessary to Begin Construction
F227: a) | G227: Fill in all highlighted lines. These should be consistent with Attachment 14: Verification of Zoning
G228: and Attachment 26: Approvals Necessary to Begin Construction.
E229: 2) | F229: Development Timetable
F230: a) | G230: Complete the highlighted line for the estimated timetable for the development and completion of
G231: the project.
B233: III | C233: Project Financing
C235: Section 1 | G235: Construction Financing
E236: 1) | F236: Provide the lender name, the percentage rate, the amortizing term, and the loan amount.
E237: 2) | F237: In corresponding order, list the required lender information.
C239: Section 2 | G239: Permanent Financing
E240: 1) | F240: Provide the lender name, the percentage rate, the amortizing term, the loan amount and the annual
F241: debt service amount.
E242: 2) | F242: In corresponding order, list the required lender information.
E243: 3) | F243: Amounts must be consistent with totals shown in the Sources and Uses Budget sheet.
E245: Tax-Exempt Bond Financing
E246: 1) | F246: Tax-Exempt Bond Financing
F247: a) | G247: If the project receives tax-exempt bond financing for more than 50% of the aggregate basis,
G248: enter "Yes"
E249: 2) | F249: CDLAC Allocation
F250: a) | G250: Indicate if a CDLAC allocation has been received.
G251: (i) | H251: Prior submission to CDLAC is a requirement before applying for tax credits.
F252: b) | G252: Enter date application was submitted and/or approved at CDLAC.
E253: 3) | F253: a) | G253: Enter estimated date of Bond Issuance.
F254: b) | G254: Enter percentage of aggregate basis financed by the bonds.
F255: c) | G255: Name of Bond Issuer will be auto-populated after it has been entered in the "Development Team
G256: Member" section.
E257: 3) | F257: Credit Enhancement Provider
F258: a) | G258: Provide the name, phone number and contact person of any entity providing credit
G259: enhancement and the type of enhancement provided.
C261: Section 3 | G261: Income Information
E262: 1) | F262: Income categories should begin with the placed-in-service date and year.
F263: List annual income
E264: 2) | F264: Income information must correlate to the 15-year pro forma.
F265: a) | G265: Utility allowances must be itemized and correlated with the appropriate utility allowance
G266: schedule.
F267: b) | G267: The Public Housing Authority (PHA) or the California Energy Commission (CEC) utility allowance
G268: listed in the attachments must be the same shown on this page.
D270: A | E270: Low Income Units
E271: 1) | F271: Complete the low-income section by completing the rows by unit type and affordability levels.
E272: 2) | F272: Columns (a)-(g) should be completed in ascending order (i.e. Studio, 1 bdrm, 2 bdrm, etc.)
E273: 3) | F273: Where different affordability levels exist for the same unit type, place this information in ascending
F274: order also (i.e. 1 bdrm @30%, 1 bdrm @35% etc.).
E275: 4) | F275: Columns (d), (f), (h) and the totals below will be auto-populated after highlighted cells are filled in.
D277: B | E277: Manager Unit(s)
E278: Fill in the appropriate information by unit type in ascending order similar to the low-income units
D280: C | E280: Market Rate Units
E281: Fill in the appropriate information by unit type in ascending order similar to the low-income units
E282: if applicable.
D284: D | E284: Rental Subsidy Income/Operating Subsidy
E285: Complete as appropriate. Amounts should be consistent and verifiable with information in the application
E286: and Checklist attachments.
D288: E | E288: Miscellaneous Income
E289: Complete as appropriate. Amounts should be verifiable from information in the application and/or
E290: Checklist attachments.
D292: F | E292: Monthly Resident Utility Allowance by Unit Size
E293: Complete the highlighted cells in the table. Totals will auto-populate as the highlighted cells are
E294: completed.
E295: Must match the Utility Allowances provided by the public housing authority (PHA) or
E296: the California Energy Commission California Utility Allowance Calculator (CUAC).
D298: G | E298: Annual Residential Operating Expenses
... 91 more rows

Sheet Instructions-Electronic Submit
A2: California Tax Credit Allocation Committee
A3: 2020 Attachments – Electronic Submission Guide
A5: Applicants must submit all of the application materials electronically on a USB flash drive. Electronic submissions have replaced the previous “hard-copy” binders in an effort to enhance consistency of information, increase efficiency, and minimize the amount of paperwork required for a TCAC application. TCAC will not accept submissions of application documents by email or over the internet.
A11: For Attachments 4-28, only Attachment 14 and Attachment 26 must be submitted as PDF versions of original hardcopies. All other attachments may be completed and submitted in their original electronic format utilizing electronic signatures. Attachments 14 and 26 require public agency signatures and cannot utilize e-signatures.
A16: When compiling the flash drive, order folders according to the Application Checklist. The Electronic Application MUST be an Excel file, be labeled with the project name, and specify “E-Application.” For the attachments, if the same document appears under more than one tab, please include the document in the first of the tabs. Please also include a one-page pdf document in the later tabs in place of the document itself, cross-referencing the tab under which the actual document is located. If a TAB is not applicable to the project, either remove the folder entirely or mark “- NA” in the folder name:
A22: Do not create multiple "NA" PDF sheets or folders within folders unnecessarily for non-applicable items.
A24: Please refer to the following visual as a guide:
A62: Under each folder, name each file according to the tab and the name of the document as described on the Application Checklist. All copies of documents must be legible with reasonably-sized font and, when applicable, clear signatures and dates. PDF’s should be searchable whenever possible.
A66: Please refer to the following visual as a guide:
A77: If you have questions, please contact your regional analyst at (916) 654-6340 or via email:
A78: Pub
A79: http://www.treasurer.ca.gov/ctcac/contacts.asp

Sheet Checklist Items
A2: 2020 APPLICATION CHECKLIST - 4% (TAX-EXEMPT BOND FINANCED PROJECTS) | I2: (select one)
A3: REQUESTING FEDERAL AND STATE CREDITS | I3: Need to Provide
I4: Provided
A5: SUBMIT ONE APPLICATION WITH ATTACHMENTS TO TCAC AND | I5: N/A
A6: ONE COPY OF THE APPLICATION AND ATTACHMENTS TO THE LOCAL REVIEWING AGENCY
A8: Please do not rely solely on this checklist when completing your application.
A9: Please verify that all requirements in the regulations have been met.
A11: TAB 1 Site Control and Land Cost
D13: Demonstrate Site Control (Part II - Application - Section 5 - C) and Land Cost (Sources and Uses Budget)
D15: Reg. §§ 10325(f)(2), 10322(h)(9), 10327(c)(6)
B17: Provided | D17: For applications with multiple or non-contiguous parcels, scattered sites, lot line adjustments, phased projects, or other complex land transactions, include a summary explanation of the site control and value(s).
B21: Provided | D21: A current title report (within 90 days of application) including a legal description.
B23: N/A | D23: For tribal trust land, a title status report (TSR) or an attorney's opinion regarding chain of title and current title status.
B26: Provided | D26: All applications must include evidence of the cost or value of land and improvements. Provide sales agreement, purchase contract, or escrow closing statement as applicable and required by TCAC Regulations. See Reg. §§10327(c)(6) and 10325(f)(2). Provide an appraisal if required by TCAC Regulation. See Reg. §§ 10325(c)(1)(C), 10325(c)(10), 10327(c)(6), and 10322(h)(9).
B32: N/A | D32: If the site or improvement acquisition involves a related party, the applicant shall disclose the relationship in the TCAC application.
B35: Provided | D35: Appraisals are required for: ● all rehabilitation applications except as noted in Reg. § 10322(h)(9)(A), ● all competitive applications except for new construction projects that are on tribal trust land or have submitted a third party purchase contract with, or evidence of a purchase from, an unrelated third party, ● all applications seeking tiebreaker credit for donated or leased land, ● all new construction applications involving a land sale from a related party. Note: Appraisals shall not include the value of favorable financing.
B44: Provided | D44: Note: For purposes of the above paragraph only, a purchase contract or sale with a related party shall be deemed to be a purchase contract or sale with an unrelated party if the applicant demonstrates that the related party is acting solely as a pass-through entity and the tax credit partnership is only paying the acquisition price from the last arms-length transaction, plus any applicable and reasonable carrying costs.
B50: Provided | D50: New construction appraisals. If an appraisal is required, provide an “as-is” appraisal with a date of value that is within 120 days before or after the execution of a purchase contract (or, for leased land, an executed development agreement negotiated between the land owner and the applicant or developer) or the transfer of ownership by all the parties, or within 1 year of the application date if the latest purchase contract was executed within that year, by an independent third party appraiser.
B56: N/A | D56: Rehabilitation appraisals. Except as noted in Reg. § 10322(h)(9)(A), an “as-is” appraisal prepared within 120 days before or after the execution of a purchase contract(or, for leased land, an executed development agreement negotiated between the land owner and the applicant or developer) or the transfer of ownership by all the parties, by an independent third party appraiser.
B62: N/A | D62: Projects with land donated by or leased from a public entity must submit an appraisal. Land value for a transaction involving an applicant related party must also be supported by an appraisal. Please review the most current TCAC guidance on scoring requirements for land and improvements prior to application submission.
B67: Provided | D67: Applicants must provide evidence that the property is within control of the application. May be evidenced by one of the options listed in Reg. § 10325(f)(2).
B70: N/A | D70: Projects with a lease. Provide an executed lease agreement or lease option for the length of time the project will be regulated under this program connecting the applicant and the owner of the subject property.
B74: N/A | D74: Projects with a disposition and development agreement (DDA). Provide an executed DDA connecting the applicant and the public agency.
B77: Provided | D77: Projects with a purchase agreement or option. Provide a valid, current, enforceable contingent purchase and sale agreement or option agreement connecting the applicant and the owner of the subject property.
B81: Provided | D81: Evidence that all extensions and other conditions necessary to keep the agreement current through the application filing deadline have been executed
A84: TAB 2 Financial Feasibility
D86: Financial Feasibility (Part III - Application - Sections 1-4; Part IV)
D87: Reg. §§ 10325(f)(5), 10326(g)(4), 10327(c), and 10322(h)(16)
B89: Provided | D89: Financing plan Include sufficient detail outlining construction and permanent financing structures. ● Projects with existing debt must document the remaining principal balances of existing loans, and indicate whether the debt will be repaid or transferred to the new partnership. Accrued interest must also be documented, and may be estimated as of the application date or as of the expected date of the permanent financing close. Reg. §10322(h)(16)
B96: N/A | D96: If the purchase price exceeds appraised value (overage): ● Provide an explanation of the higher purchase price. If not an arm's length transaction, must demonstrate that the seller is not benefiting from the higher purchase price. ● Application/Section 5C Purchase Information: input the overage amount of purchase price in excess of the appraised value. If any SOFT permanent financing is paying for the overage, input the amount. The SOFT permanent financing amount paying for the overage will be reduced from the Permanent Financing within the shortfall calculation section of the Basis and Credit tab. Sources and Uses Budget: bifurcate the purchase price and separately list the overage amount in Row 15 Excess Purchase Price Over Appraisal. Note that the overage amount may not be carried in basis. ● Basis and Credits: the Total Project Cost will be automatically reduced by the overage amount. For all other purposes, the project cost will include the overage amount. Reg. §10327(c)(6)
B110: N/A | D110: The Executive Director may approve a waiver to underwrite the project with a purchase price in excess of the appraised value where: (i) a local governmental entity is purchasing, or providing funds for the purchase of land for more than its appraised value in a designated revitalization area when the local governmental entity has determined that the higher cost is justified, or (ii) the purchase price does not exceed the sum of third party debt encumbering the property that will be assumed or paid off. Reg. §10327(c)(6)
B119: Provided | D119: TCAC developer fee limitations and deferral / equity contribution requirements: confirm project complies with the TCAC limits per Reg. Section 10327(c)(2)(B).
B122: Provided | D122: Developer fee limitations Provide a description of the limitations on developer fee required by any other funding source. Include any necessary explanation for how the Sources and Uses Budget's Total Developer Costs meet these requirements. Attach an excerpt of any funding source's written requirements (regulations, contracts, commitments, etc.) for developer fees.
B128: Provided | D128: Utility Allowance Estimates accompanied by: (i) a letter from the public housing authority, or (ii) an energy consumption model estimate calculated using the most recent version of the California Utility Allowance Calculator (CUAC) developed by the California Energy Commission (CEC): (a) for new construction or adaptive reuse, solar values must be determined from the CEC's Photovoltaic Calculator; (b) for existing residential buildings, solar values may determined from the CEC’s Photovoltaic Calculator or the Expected Performance Based Buydown (EPBB) calculator with monthly scalars to be determined by CTCAC. Indicate which components of the utility allowance schedule apply to the project. Reg. § 10322(h)(21)
B141: N/A | D141: Use of CUAC is limited to: (i) new construction projects, (ii) rehabilitation projects applying for tax credits for which the rehabilitation improves energy efficiency by at least 20%, as determined consistent with the requirements of Reg. §§ 10325(c)(5)(D) and (G), or installs solar generation that offsets 50% of tenant loads, as determined consistent with the requirements of Reg. § 10325(c)(5)(G), and (iii) existing tax credit projects with new photovoltaics installed through the Multifamily Affordable Solar Housing (MASH) program or a solar program administered by a municipal utility or joint powers authority, which offsets tenants’ electrical load. CUAC documentation must be signed by a qualified CABEC CEA. Must also include CUAC supporting documentation: (i) Weighted Averaging worksheet; or (ii) Adiabatic Surfaces worksheet Note: except for existing tax credit projects with active MASH program reservations dated prior to March 1, 2018, any decrease in tenant’s utility allowance that results from conversion to the CUAC shall not exceed $15 per month over any 12-month period. Reg. § 10322(h)(21)
D160: (https://www.treasurer.ca.gov/ctcac/cuac/index.asp)
B162: N/A | D162: Applicant Resources - If the applicant intends to finance part or all of the project from its own resources (other than deferred fees), provide audited certification of available resources. Reg. § 10327(c)(8)
B166: N/A | D166: 15 Year Pro Forma For projects with private conventional lender and equity partners using 2% gross income and 3% operating expense underwriting assumptions, provide evidence of the assumptions, if applicable. Reg. § 10327(g)(1)
B171: N/A | D171: For projects with commercial income Include a 15 year pro forma of all commercial revenue and expense projections using TCAC underwriting standards in Reg. §§ 10322(h)(23), 10325(f)(5), and 10327(g)(7).
A175: TAB 3 Set-Aside Designation
D177: Set-Aside Designation (Part II - Application - Section 2 - E)
D178: IRC § 42(g)(1); California Health and Safety Code §§ 50199.20, 50199.21
B180: N/A | D180: Verification of Rural set-aside application. Reg. § 10322(h)(31) All applicants within the Rural set-aside, including those applying under the RHS and Native American apportionments, must provide evidence that the proposed project site is located in an eligible rural area.
D184: http://www.treasurer.ca.gov/ctcac/2019/methodology.pdf
A186: TAB 4 Housing Type
D188: Housing Type -Additional Threshold Requirements
D189: (Part II - Application - Section 2 - F)
D190: Reg. §10322(h) and 10325(g)
D192: NOTE: Rehabilitation Scattered Site Projects with more than one housing type as permitted by TCAC Reg. § 10325(c)(3) are scored proportionally based on each site's score and the percentage of units at each site. These projects must provide an Attachment 4 for each housing type category. For Rehabilitation Scattered Site Projects with an equal percentage of units, the site with the largest number of bedrooms will determine the housing type goal. Reg. § 10315(g).
B199: N/A | D199: Large Family Projects
D200: Provide evidence of eligibility and include:
E201: ATTACHMENT 4(A): Applicant Large Family Eligibility Certification
D202: Reg. §§ 10325(g)(1)(A) through (I)
B204: N/A | D204: Senior Projects
D205: Provide evidence of eligibility and include:
E206: ATTACHMENT 4(B): Applicant Senior Eligibility Certification
D207: Reg. §§ 10325(g)(2)(A) through (J)
B209: Provided | D209: Special Needs Projects
D210: Provide evidence of eligibility and include:
E211: ATTACHMENT 4(C): Applicant Special Needs Eligibility Certification
D212: If less than 75% special needs units, the non-special needs units shall meet the large family or senior housing type requirements (complete relevant Attachment 4), or consist of either (i) at least 20% 1-bedroom units and 10% larger than 1-bedroom units as a percentage of Low Income Units or (ii) at least 90% SRO units as a percentage of Low Income Units.
D217: Reg. §§ 10325(g)(3)(A) through (L)
B219: N/A | D219: At-Risk Projects
D220: Provide evidence of eligibility and include:
E221: ATTACHMENT 4(D): Applicant At-Risk Eligibility Certification
D222: Reg. §§ 10325(g)(4)(A) & (B)
B224: N/A | D224: At-Risk Projects
D225: Provide evidence of eligibility and include:
E226: ATTACHMENT 4(E): Applicant SRO Eligibility Certification
D227: Reg. §§ 10325(g)(5)(A) through (J)
B229: N/A | D229: Mixed Housing Type
D230: An applicant proposing a project to include senior housing in combination with non-senior housing shall provide a third party legal opinion stating that the project complies with fair housing law. Reg. § 10322(h)(34).
B234: N/A | D234: Copy of approval letter from Executive Director granting any waivers or exemptions
A236: TAB 5 Applicant / Development Team
D238: Applicant / Development Team (Part II - Application - Section 3)
D239: Reg. § 10326(g)(5)
D241: Sponsor Characteristics
B242: Provided | D242: Organizational documents of the applicant entity and all general partners. Include an organizational chart explaining the relationships within the ownership entity, including principal names.
D246: If a partnership includes a general partner which will pursue a property tax exemption, this general partner's organizational documents must be included. "TBD" or "to be formed" general partner nonprofit entities are not sufficient if the project's 15 year pro forma does not include property tax expenses. Reg. §§ 10322(h)(3) & 10327(g)(2)
B252: N/A | D252: If not requesting General Partner Experience points under Tab 21, Provide evidence that a general partner meets the minimum scoring standards of Section 10325(c)(1)(A) and include a signed:
D255: ATTACHMENT 21: General Partner (G.P.) Experience
B257: Provided | D257: Legal status questionnaire
D258: Provide evidence of eligibility and include signed:
D259: ATTACHMENT 5: Legal Status Questionnaire
B261: Provided | D261: Identities of Interest/Related Parties Disclosure for applicant entity and all general partners. Reg. § 10322(h)(6)
A264: TAB 6 Development Team Information
D266: Development Team Information (Part II - Application - Section 4 - A)
D268: Project Participants
B269: N/A | D269: If additional contact information for project participants not identified in "Part II - Application - Section 4 - A" of this application is available, please provide here. Reg. § 10322(h)(5)
B273: Provided | D273: If not requesting Management Company Experience points under Tab 22, provide evidence that the property management company meets the minimum scoring standards of Section 10325(c)(1)(B) and include a signed:
D276: ATTACHMENT 22: Management Company Experience
A278: TAB 7 Acquisition and Rehabilitation Credit Applicants
D280: Acquisition and Rehabilitation Credit Applicants (Including Rehabilitation-Only Applicants)
D283: Acquisition (Part II - Application - Section 5 - B)
D284: Acquisition Credit Application. Reg. § 10322(h)(25)
B286: N/A | D286: Chain of title report (for tribal trust land, an attorney's opinion regarding chain of title can be substituted). Reg. § 10322(h)(25)(A)
B289: N/A | D289: An applicant statement that the acquisition is exempt from, or a third party tax attorney's opinion stating that the acquisition meets the requirements of IRC § 42(d)(2)(B)(ii) as to the 10-year placed-in-service rule. Reg. § 10322(h)(25)(B)
B293: N/A | D293: If 10-year rule waiver is necessary, letter from federal official stating that project qualifies under IRC § 42(d)(6). Reg. § 10322(h)(25)(C)
A296: TAB 8 Rehabilitation
D298: Rehabilitation (Part II - Application - Section 5 - B)
D299: Reg. § 10322(h)(26)
B301: N/A | D301: Appraisal. Reg. §§ 10322(h)(9) and (26)(A)
B303: N/A | D303: Applicant is forgoing the appraisal requirement and using an acquisition value equal to the sum of assumed third party debt encumbering the property. Provide a reasonable proration of land and improvement basis consistent with similar projects in the market area, including information for how this proration was determined, and by whom. Reg. §§ 10322(h)(9) and 10327(c)(6)
B309: N/A | D309: Evidence from the applicable third party(ies) of the total outstanding principal balances for the assumed debt. Reg. § 10322(h)(9)
B312: N/A | D312: Purchase contract (if not included in Tab 1). Reg. § 10322(h)(9)(A)(vi).
B314: N/A | D314: Capital Needs Assessment (CNA) or Qualified CNA if resyndication. The CNA / Qualified CNA must include a pre-rehabilitation 15-year reserve study. For resyndication projects, the pre-rehabilitation reserve study in the Qualified CNA must also clearly sets forth: (a) the capital needs of the project for the next 3 years (Short Term Work) and the projected costs thereof, AND (b) the capital needs of the project for the subsequent 12 years (Long Term Work) and the projected contributions to reserves that will be needed to accomplish that work. Note: for item (a) above, the pre-rehabilitation reserve study in the Qualified CNA must demonstrate a rehabilitation need of at least $5,000 per unit over the first three years (Short Term Work). The $5,000 Short Term Work requirement is exempt if: ● the Executive Director has waived the requirements of § 10320(b)(4), or ● the project has 10 years or less remaining on the CTCAC regulatory agreement. Reg. §§ 10322(h)(26)(B), 10302(ff), & 10325(f)(11)(C)
B330: N/A | D330: For rehabilitation projects proposing to exclude items listed in Reg. § 10325(f)(7) from the scope of the rehabilitation, a waiver is required. Waivers to § 10325(f)(7)(A)-(I) must be supported by the CNA. The Executive Director may approve a waiver to § 10325(f)(7)(J) for a new construction or rehabilitation project, provided that tenants will have equivalent access to management services. The Executive Director may approve a waiver to paragraph (K) for a rehabilitation project, provided that the applicant and architect demonstrate that full compliance would be impractical or an undue financial burden. Approval must be in advance of application deadline.
B339: N/A | D339: A detailed breakdown of the proposed rehabilitation work to be undertaken including the approximate percentage of units and/or percentage of the component/feature to be rehabilitated or replaced, and the approximate cost of each corresponding to the Structures and Site Work lines of the development budget of the application. Provide evidence of eligibility and include: ATTACHMENT 8: Rehabilitation Summary
D346: RESYNDICATION PROJECTS
D347: Reg. 10326(g)(8), 10327(g)(8), 10320(b), 10302(ff), 10322(k)
B349: N/A | D349: A copy of the recorded TCAC regulatory agreement.
B351: N/A | D351: If the existing regulatory agreement for the resyndication project contains a requirement to provide service amenities, even if that requirement has expired, the project shall provide a similar or greater level of services for a period of at lease 15 years under the new regulatory agreement. A project obtaining maximum TCAC/CDLAC points for services shall be deemed to have met this requirement. The Executive Director may alter the services amenities requirement if the project has exhibited cash flow of less than $20,000 for at least each of the last 3 years, has no hard debt and failed to break even in year-15 with services, or within the next 5 years will lose a rental or operating subsidy that was factored into the project's initial feasibility, provided that the service expenditures must be the maximum that project feasibility allows.
B362: N/A | D362: If eligible for hold harmless rents and the applicant is requesting to be underwritten at the hold harmless rents, provide documentation of the hold harmless rent limits (the project placed in service dates and the rent limits). Hold harmless rents may not exceed the elected federal set-aside current tax credit rent limits.
D367: For a 40%/60% federal set-aside election, may use the hold harmless rent limits only for units targeted and restricted in the new regulatory agreement below 60% AMI. For a 20%/50% federal set-aside election, may use the hold harmless rent limits only for units targeted and restricted in the new regulatory agreement below 50% AMI. For the 15 Year Pro Forma, the annual 2.5% underwriting increase to income will be delayed (see the rent adjuster delay calculation below).
D376: Rent adjuster delay period: the period of years the annual 2.5% underwriting increase to project income is delayed in the 15 Year Pro Forma. Temporary rent adjuster: the percentage used in place of the annual 2.5% underwriting increase to project income in the 15 Year Pro Forma. Calculation: 1. Determine the rent adjuster delay period: calculate the percentage difference between the hold harmless area median income limit and the current area median income limit. Divide the result by 2.5% and round to the nearest whole number (year). 2. Calculate the percentage Low Income Units targeted at 60% AMI (or 50% AMI, as applicable to a 20%/50% federal set-aside election). 3. Multiply the percentage from #2 above by 2.5%. This is the temporary rent adjuster, the gross rent multiplier to input in the application's 15 Year Pro Forma for the number of years calculated in #1. After that period, the standard 2.5% applies for the remainder of the 15 year period.
B395: N/A | D395: The unit rents in this application must maintain the rent and income targeting levels of the existing regulatory agreement, unless approved by the Executive Director.
B398: N/A | D398: Exisitng Reserves, provide information on the amount of the existing replacement reserves and the planned uses for these, including future reserve requirements. The applicant must use all funds in the project's replacement reserve accounts for rehabilitating the property to the benefit of its residents (an applicant may use existing reserves to reasonably meet minimum reserve account requirements).
B404: N/A | D404: Reserve Certification - Applicants must provide a reserve certification indicating that all unexpended funds in the project reserve funds associated with the project will remain with the project (Section 10327(c)(7)). Certification can be accessed from our website at:
D408: https://www.treasurer.ca.gov/ctcac/forms/reserve-certification.docx
B410: N/A | D410: Is the resyndication project currently subject to a Capital Needs Agreement related to a previous Transfer Event? If yes, the capital needs assessment (CNA) must clearly identify which Short Term Work items, if any, from the CNA conducted at the time of the previous Transfer Event remain uncompleted, and the estimated cost of completing these improvements. The applicant must provide the CNA preparer a copy of the original Qualified CNA to facilitate this requirement. The rehabilitation scope of work must address all uncompleted Short Term Work required by the Capital Needs Agreement. For a Subsequent Transfer Event concurrent with this application, the project permanent financing must include a seller carryback note or contribution or general partner equity contribution equal to the amount calculated as follows: 1. Subtract the acquisition cost at the time of the Initial Transfer Event from the new valuation (the “Increased Value”); 2. Subtract the aggregate annual replacement reserve contributions required under the standard TCAC replacement reserve requirements from the aggregate annual replacement reserve contributions required by the Capital Needs Agreement. This difference is then divided by the cap rate used in the appraisal associated with the resyndication (the “Reserve Requirement Value Differential”): (aggregate annual replacement reserve contributions required by the CNA - aggregate annual replacement reserve contributions required by TCAC) Cap Rate 3. The amount of the carryback/equity contribution shall be the amount of the Reserve Requirement Value Differential but not in excess of the Increased Value. In the event that assumed third-party secured debt on the property equals or exceeds the property’s value from the appraisal associated with the resyndication, no seller carryback or equity contribution is required.
B442: N/A | D442: All resyndication projects must complete the ownership transfer questionnaire at
D443: https://www.treasurer.ca.gov/ctcac/forms/transfer-event-questionnaire.pdf
D444: Include the questionnaire and any documents requested within the questions in Tab 8. Include documentation associated with the any exemption or waiver.
B448: N/A | D448: If the project has uncompleted Short Term Work required by an existing Capital Needs Agreement, OR the Transfer Event associated with the resyndication does not qualify for any exemption or waiver, the following apply:
B452: N/A | D452: A. Submit a Qualified Capital Needs Assessment (Qualified CNA). If a third-party lender is providing financing, the Qualified CNA must be commissioned by said third-party lender.
B455: N/A | D455: B. The rehabilitation scope of work must include all of the Short Term Work (3 years). To receive eligible basis for the costs of the Short Term Work, the applicant must demonstrate that the Short Term Work was funded by one of the following: (i) a credit from the seller equal to the costs of Short Term Work as shown in the purchase agreement, (ii) a reduction in the purchase price of the project as compared to the purchase price of the project had the project not been subject to the Transfer Event requirement, as shown by an appraisal that calculates the impact of the Short Term Work requirement on value, (iii) general partner equity contribution, and/or (iv) developer fee contributed to the project (a deferred developer fee does not qualify).
B459: N/A
B462: N/A
B466: N/A
B468: N/A
D470: An applicant may request a waiver or modification of the requirements under § 10320(b)(4) if the owner can demonstrate that the Transfer Event will not produce, prior to any distributions of New Project Equity to parties related to the sponsor, developer, limited partner(s) or general partner(s), sufficient Net Project Equity to fund all of any portion of the work contemplated by the Qualified CNA.
B476: N/A | D476: Documentation of any waivers of the requirements of § 10320(b).
A478: TAB 9 Current Tenant Information
D480: Current Tenant Information (Part II - Application - Section 5 - B)
D481: Reg. §§ 10322(h)(27), 10322(h)(28), and 1022(h)(29)
B483: N/A | D483: Provide income, rent and family size information for the current tenant population. Provide information about current tenant rent subsidies.
B486: N/A | D486: Detailed relocation plan along with a budget and identification of the funding source. (Include explanations of rent increases, phasing of rent increase, expected tenant displacement, changes to rent subsidies, etc.). Include an explanation of any potential tenant economic displacements due to rent increases exceeding 5%.
B491: N/A | D491: Evidence that the relocation plan has been submitted to the appropriate local agency.
B493: N/A | D493: Evidence that the relocation plan is consistent with the Uniform Relocation Assistance and Real Property Acquisition Policy Act, if applicable
B496: N/A | D496: Owner-occupied housing application
A498: TAB 10 Minimum Construction Standards
D500: The applicant statement includes a certification and guarantee that the minimum construction standards will be incorporated into the project. Review all construction requirements and the compliance and verification requirements listed in Attachment 10 and in Reg. §10325(f)(7). Reg. § 10326(g)(6)
B506: Provided | D506: New construction projects receiving points from CDLAC per Section 5230(k)(7) or (8) (for energy efficiency only): A Sustainable Building Method and Energy Efficiency Requirements Workbook and accompanying documentation, to be completed by a qualified energy analyst.
D511: Rehabilitation projects:
B512: N/A | D512: For rehabilitation projects completing LEED, Passive Housing Institute US, Passive House, Living Building Challenge, National Green Building Standard ICC / ASRAE - 700 silver or higher certification, or GreenPoint Rated program requirements, a Sustainable Building Method and Energy Efficiency Requirements Workbook is not required unless receiving points from CDLAC pursuant to Section 5230(k)(7) or (8).
B518: N/A | D518: Sustainable Building Method and Energy Efficiency Requirements Workbook and accompanying documentation, to be completed by a qualified energy analyst.
B521: N/A | D521: Rehabilitation project applicants may include the existing conditions of systems that were replaced pursuant to a public or regulated utility program or other governmental program that established existing conditions using a HERS Rater. For rehabilitation projects with these energy efficiency improvements completed within five years prior to the TCAC application deadline, include in the Workbook a description of the systems that were replaced. Clearly identify in the Workbook's Summary of Proposed Measures: (1) the conditions that existed prior to the program, (2) any currently existing conditions that will be improved as part of the proposed rehabilitation, (3) Include in the application the public, governmental or regulated utility program completion documentation.
B531: N/A | D531: A description of any plans for employing desk or security staff in lieu of on-site manager units in compliance with TCAC Reg. § 10325(f)(7)(J).
B534: N/A | D534: If a waiver has been granted under 10325(f)(7), provide TCAC waiver approval and the supporting documentation included in the original waiver request. Approval must be in advance of application deadline.
A538: TAB 11 Project Size Limitations
B540: LEAVE BLANK / NOT APPLICABLE
A542: TAB 12 Site and Project Information
D544: Site and Project Information (Part II - Application - Section 5 - D through G)
D545: Reg. § 10322(h)(8)
B547: Provided | D547: A narrative description of the current use of the subject property
B549: Provided | D549: A narrative description of all adjacent property land uses, surrounding neighborhood identification and proximity of services, including transportation.
D551: Reg. Sect.10322(h)(8)(B)
B553: Provided | D553: Labeled color photographs or color copies of photos of the subject property and all adjacent properties.
B556: Provided | D556: A layout of the subject property, including the location and dimensions of existing buildings, utilities, and other pertinent features.
B559: Provided | D559: A site or parcel map indicating the location of the subject property and showing exactly where the buildings comprising the Tax Credit Project will be situated. If subdivision is anticipated, the boundaries of the parcel for the proposed project must be clearly marked.
B563: N/A | D563: If a scattered site, provide a brief description of how the application meets the definition of Scattered Site Project. Reg. § 10302(ll).
B566: Provided | D566: A description of any unique features of the site, noting those that may increase project costs or require environmental mitigation.
B569: Provided | D569: Construction and design description
D570: Provide evidence of eligibility and include:
E571: ATTACHMENT 12: Construction and Design Description
D572: Include an explanation of any required demolition and off-site improvements, as well as a detailed cost breakdown of these expenses. Off-site improvement costs must be separated out into the following two categories: (1) project-specific costs qualifying under Reg. § 10325(c)(9)(A) and (2) all other off-site costs. For off-site costs permitted under Reg. § 10325(c)(9)(A) as well as for other off-site costs included in the project budget, include sufficient detail in the cost breakdown. Include a description of each off-site type and the corresponding cost. Each cost should also be identified as included or excluded from eligible basis. The grand total of the costs and basis must be consistent with the total shown in the Sources and Uses Budget.
B582: Provided | D582: Architectural drawings
D583: Preliminary drawings of the proposed project, including a site plan that identifies all areas or features proposed as project amenities (laundry, recreational, common space facilities, etc.), building elevations, and unit floor plans. Include square footages.
B587: Provided | D587: Certification from the architect that the development will comply with building codes, the physical building requirements of all applicable fair housing laws, and the TCAC minimum construction standards. A rehabilitation project without an architect may utilize the CNA entity.
A590: TAB 13 Market Analysis
D592: Market Analysis
D593: Reg. §§ 10322(h)(10) & 10325(f)(1)
B595: Provided | D595: Evidence of public housing waiting lists from the local housing authority
B597: Provided | D597: ● A Market Study in compliance with TCAC market study guidelines, OR ● If an acquisition/rehabilitation project meeting all of the criteria in Reg. § 10322(h)(10), may provide a streamlined written statement
B601: N/A | D601: Note: If a new construction hybrid 9% and 4% tax credit development, ● May combine information for both component projects into one market study; ● If not combining information into one market study, must reflect the other component project as a development in the planning or construction stages.
B606: Provided | D606: The market study has been reviewed by the applicant and meets TCAC market study guidelines.
B609: N/A | D609: Waiver approval of the market study value ratio requirement. Reg. § 10325(f)(1)
B612: Provided | D612: Market analyst’s resume
A615: TAB 14 Required Approvals
D617: Required Approvals (Part II - Application - Section 6)
D618: Reg. § 10326(g)(3)
B620: Provided | D620: Evidence of local approvals and zoning Provide evidence of eligibility per regulation guidelines and include signed: ATTACHMENT 14: Verification of Zoning
A624: TAB 15 Enforceable Financing Commitments
D626: Tax-Exempt Bond Financing Additional Information (Part III - Project Financing - Section 1 - B)
D628: Reg. §§ 10317(g)(3) and (4), and 10326(e)
B630: Provided | D630: Provide determination letter or letter requesting TCAC to determine the tax credits.
B632: Provided | D632: Verification provided by the bond issuer of the availability of the bond financing, the actual or estimated bond issuance date.
B635: Provided | D635: Third party tax professional's certification/letter of the actual or estimated percentage of aggregate basis (includes land) financed by the proceeds of tax exempt bonds.
B638: N/A | D638: Provide the name, phone number and contact person of any entity providing credit enhancement and the type of enhancement provided.
A641: TAB 16 Syndication
D643: Syndication (Part III - Project Financing - § 2 - A)
B645: Provided | D645: Terms of syndication agreement. Use TCAC template. Provide evidence of eligibility and include signed: ATTACHMENT 16: Terms of Syndication Agreement If requesting federal and state farmworker tax credits, include separate tax credit factors/credit pricing for federal and state credits in the agreement. Reg. § 10322(h)(19)
B652: N/A | D652: Third party tax credit factor certification, if credits are not to be syndicated. Reg. § 10322(h)(20)
B655: N/A | D655: Self-syndication projects, refer to Reg. § 10327(c)(9). See Basis and Credits Worksheet for minimum federal tax credit factor and state tax credit factor amounts.
B658: N/A | D658: Use of tax benefits, if credits are not to be syndicated. Reg. § 10322(h)(18)
A661: TAB 17 Evidence of Subsidies
D663: Evidence of Subsidies (Part III - Project Financing - Section 4)
D664: Reg. § 10322(h)(22)
B666: Provided | D666: Evidence and Description of Subsidies. Submit all requirements listed in § 10322(h)(22). Include the contract rent by bedroom size used in Final Tiebreaker calculation. For the anticipated subsidy income above the tax credit targeted (AMI) tenant rental income, include the mathematical derivation of the subsidy shown in the Application, Part III - Project Financing - § 3(D). The contract rent must be included in documentation from the subsidy provider.
B673: N/A | D673: OPTIONAL DOCUMENTATION: SUBSIDY LAYERING REVIEW
... 158 more rows

Sheet Application
A9: CALIFORNIA TAX CREDIT ALLOCATION COMMITTEE
A10: 2020 COMPETITIVE 4% FEDERAL AND STATE CREDIT APPLICATION
A11: FOR LOW-INCOME HOUSING TAX CREDITS
A12: April 17, 2020 Version
A13: II. APPLICATION - SECTION 1: APPLICANT STATEMENT AND CERTIFICATION
A16: APPLICANT: | H16: WCV MGP, LLC
A18: PROJECT NAME: | H18: West Carson Villas
A20: PLEASE INCLUDE APPLICATION FEE WITH APPLICATION SUBMISSION
A21: (CHECK ONLY)
A23: The undersigned applicant hereby makes application to the California Tax Credit Allocation Committee (“TCAC”)
A24: for a reservation of Federal, or Federal and State Low-Income Housing Tax Credits (“Credits”) in the amount(s) of:
M26: ='Basis & Credits '!AB55 -> 2011361 | R26: annual Federal Credits, and
M28: ='Basis & Credits '!AB74 -> 8070015 | R28: total State Credits
A30: for the purpose of providing low-income rental housing as herein described. I understand that Credit amount(s)
A31: preliminarily reserved for this project, if any, may be adjusted over time based upon changing project costs and
A32: financial feasibility analyses which TCAC is required to perform on at least three occasions.
A34: Election to sell ("certificate') state credits: | O34: No | Q34: By selecting "Yes" or "No" in the box immediately before, I hereby
A35: make an election to sell ("certificate") or not sell all or any portion of the state credit, as allowed pursuant to
A36: Revenue and Taxation Code Sections 12206(o), 17058(q), and 23610.5(r). I further certify that the applicant is a
A37: non-profit entity, and that the state credit price will not be less than eighty (80) cents per dollar of credit.
A38: I acknowledge that if I elect to sell ("certificate") all or any portion of the state credit, I may, only once, revoke
A39: an election to sell at any time before CTCAC issues the Form(s) 3521A for the project.
A41: I agree it is my responsibility to provide TCAC with the original complete application and the Local Reviewing Agency
A42: an exact copy of the application. I agree that I have included a letter from the local government and the appropriate
A43: Local Reviewing Agency of the jurisdiction in which the project is located identifying the agency designated as the
A44: Local Reviewing Agency for the Tax Credit Allocation Committee. I agree that it is also my responsibility to provide
A45: such other information as TCAC requests as necessary to evaluate my application. I represent that if a reservation
A46: or allocation of Credit is made as a result of this application, I will also furnish promptly such other supporting
A47: information and documents as may be requested. I understand that TCAC may verify information provided and
A48: analyze materials submitted as well as conduct its own investigation to evaluate the application. I recognize that I
A49: have an affirmative duty to inform TCAC when any information in the application or supplemental materials is no
A50: longer true and to supply TCAC with the latest and accurate information.
A52: I acknowledge that if I receive a reservation of Tax Credits, I will be required to submit requisite documentation at
A53: the following stages: for readiness to proceed requirements if applicable; and after the project is placed-in-services.
A55: I represent I have read Section 42 of the Internal Revenue Code (IRC) pertaining to Federal Tax Credits, and if
A56: applying for State Tax Credits, I represent I have also read California Health and Safety Code Sections 50199.4 et
A57: seq. and California Revenue and Taxation Code Sections 12206, 17058, and 23610.5 pertaining to the State Tax
A58: Credit program. I understand that the Federal and State Tax Credit programs are complex and involve long-term
A59: maintenance of housing for qualified low-income households. I acknowledge that TCAC has recommended that
A60: I seek advice from my own tax attorney or tax advisor.
A62: I represent that I have read and understand the requirements set forth in Regulation Section 10322(j) pertaining to
A63: re-applications for Credit.
A65: I certify that I have read and understand the provisions of Sections 10322(a) through (h). No additional documents in
A66: support of the basic thresholds or point selection categories shall be accepted from the applicant beyond the
A67: application filing deadline, unless the Executive Director, at his or her sole discretion, determines that the deficiency
A68: is a clear reproduction or application assembly error, or an obviously transposed number. In such cases, applicants
A69: shall be given up to five (5) business days from the date of receipt of staff notification, to submit said documents to
A70: complete the application. For threshold omissions other than reproduction or assembly errors, the Executive
A71: Director may request additional clarifying information from other government entities.
A73: I agree to hold TCAC, its members, officers, agents, and employees harmless from any matters arising out of or
A74: related to the Credit programs.
A76: I agree that TCAC will determine the Credit amount to comply with requirements of IRC Section 42 but that TCAC
A77: in no way warrants the feasibility or viability of the project to anyone for any purpose. I acknowledge that TCAC
A78: makes no representation regarding the effect of any tax Credit which may be allocated and makes no
A79: representation regarding the ability to claim any Credit which may be allocated.
A81: I acknowledge that all materials and requirements are subject to change by enactment of federal or state
A82: legislation or promulgation of regulations.
A84: In carrying out the development and operation of the project, I agree to comply with all applicable federal and state
A85: laws regarding unlawful discrimination and will abide by all Credit program requirements, rules, and regulations.
A87: I acknowledge that neither the Federal nor the State Tax Credit programs are entitlement programs and that my
A88: application will be evaluated based on the Credit statutes, regulations, and the Qualified Allocation Plan adopted
A89: by TCAC which identify the priorities and other standards which will be employed to evaluate applications.
A91: I acknowledge that a reservation of Federal or State Tax Credits does not guarantee that the project will qualify for
A92: Tax Credits. Both Federal law and the state law require that various requirements be met on an ongoing basis. I
A93: agree that compliance with these requirements is the responsibility of the applicant.
A95: I acknowledge that the information submitted to TCAC in this application or supplemental thereto may be subject
A96: to the Public Records Act or other disclosure. I understand that TCAC may make such information public.
A98: I acknowledge that if I obtain an allocation of Federal and/or State Tax Credits, I will be required to enter into a
A99: regulatory agreement which will contain, among other things, all the conditions under which the Credits were
A100: provided including the selection criteria delineated in this application.
A102: I declare under penalty of perjury that the information contained in the application, exhibits, attachments, and any
A103: further or supplemental documentation is true and correct to the best of my knowledge and belief. I certify and
A104: guarantee that each item identified in TCAC’s minimum construction standards will be incorporated into the design
A105: of the project, unless a waiver has been approved by TCAC. The project will at least maintain the installed energy
A106: efficiency and sustainability features' quality when replacing systems and materials. When requesting a threshold
A107: basis increase for a prevailing wage requirement, if the project is subject to state prevailing wages, I certify that
A108: contractors and subcontractors will comply with California Labor Code Section 1725.5. In an application proposing
A109: rehabilitation work, I certify that all necessary work identified in the Capital Needs Assessment,including the
A110: immediate needs listed in the report, will be performed (unless a waiver is granted) prior to the project's rehabilitation
A111: completion. I certify and guarantee that any tenant services proposed under TCAC Regulation Section 10325(c)(5)(B)
A112: will be available within 6 months of the project's placed in service date, will be of a regular and ongoing nature and
A113: provided to tenants for a period of at least 15 years, free of charge (except child care).
A115: I understand that any misrepresentation may result in cancellation of Tax Credit reservation, notification of the
A116: Internal Revenue Service and the Franchise Tax Board, and any other actions that TCAC is authorized to take
A117: pursuant to California Health and Safety Code Section 50199.22, issuance of fines pursuant to California Health and
A118: Safety Code Section 50199.10, negative points per Regulation Section 10325(c)(3) or under general authority of
A119: state law.
A121: I certify that I believe that the project can be completed within the development budget and the development
A122: timetable set forth (which timetable is in conformance with TCAC rules and regulations) and can be operated in
A123: the manner proposed within the operating budget set forth.
A125: I agree that TCAC is not responsible for actions taken by the applicant in reliance on a prospective Tax Credit
A126: reservation or allocation.
C128: Dated this | G128: 1st | I128: day of | L128: July | O128: , 2020 at
C130: Los Angeles | L130: , California.
X131: By:
Z132: (Original Signature)
Y134: Lois Starr
Z135: (Typed or printed name)
Y137: Acting Executive Director
Z138: (Title)
AK149: ,
D166: Local Jurisdiction: | O166: County of Los Angeles
D167: City Manager: | O167: Lynn Katano | AI167: * | BG167: (select one)
D168: Title: | O168: Manager, Housing Development Unit | BA168: ALAMEDA | BG168: Alameda
D169: Mailing Address: | O169: 700 West Main Street | BA169: ALPINE | BG169: Alpine
D170: City: | O170: Alhambra | BA170: AMADOR | BG170: Amador
D171: Zip Code: | O171: 91801 | BA171: BUTTE | BG171: Butte
D172: Phone Number: | O172: 626-586-1806 | V172: Ext. | BA172: CALAVERAS | BG172: Calaveras
D173: FAX Number: | BA173: COLUSA | BG173: Colusa
D174: E-mail: | O174: lynn.katano@lacda.org | BA174: CONTRA COSTA | BG174: Contra Costa
AW175: No | BA175: DEL NORTE | BG175: Del Norte
C176: * | D176: For City Manager, please refer to the following the website below: | AW176: Yes | BA176: EL DORADO | BG176: El Dorado
D177: http://www.treasurer.ca.gov/ctcac/2018/lra/contact.pdf | BA177: FRESNO | BG177: Fresno
BA178: GLENN | BG178: Glenn
A179: II. APPLICATION - SECTION 2: GENERAL AND SUMMARY INFORMATION | BA179: HUMBOLDT | BG179: Humboldt
BA180: IMPERIAL | BG180: Imperial
BA181: INYO | BG181: Inyo
A182: A. | C182: Application Type | BA182: KERN | BG182: Kern
D183: Application type: | J183: Preliminary Reservation | BA183: KINGS | BG183: Kings
D184: Prior application was submitted but not selected? | V184: Yes | BA184: LAKE | BG184: Lake
E185: If yes, enter application number: | Q185: TCAC # | T185: CA - | V185: 20 | X185: - | Y185: 905 | BA185: LASSEN | BG185: Lassen
BA186: LOS ANGELES | BG186: Los Angeles
D187: Has credit previously been awarded? | Q187: No | BA187: MADERA | BG187: Madera
D188: If re-applying and returning credit, enter the current application number: | AC188: TCAC # | AF188: CA - | AJ188: - | BA188: MARIN | BG188: Marin
BA189: MARIPOSA | BG189: Mariposa
D190: Is this project a Re-syndication of a current TCAC project? | X190: No | BA190: MENDOCINO | BG190: Mendocino
E191: If a Resyndication Project, complete the Resyndication Projects section below. | BA191: MERCED | BG191: Merced
BA192: MODOC | BG192: Modoc
D193: Project must be comprised of 100% tax credit eligible units to apply. | BA193: MONO | BG193: Mono
D194: Is the project is comprised of 100% tax credit eligible units excluding managers' units? | AH194: Yes | BA194: MONTEREY | BG194: Monterey
AM195: *Federal Only: | BA195: NAPA | BG195: Napa
A196: B. | C196: Project Information | AM196: Federal and State: | BA196: NEVADA | BG196: Nevada
D197: Project Name: | I197: =H18 -> West Carson Villas | BA197: ORANGE | BG197: Orange
D198: Site Address: | I198: 22801-22905 South Vermont Avenue | AP198: (select one) | BA198: PLACER | BG198: Placer
E199: If address is not established, enter detailed description (i.e. NW corner of 26th and Elm) | AP199: Large Family | BA199: PLUMAS | BG199: Plumas
AP200: Seniors | BA200: RIVERSIDE | BG200: Riverside
AP201: Special Needs | BA201: SACRAMENTO | BG201: Sacramento
D202: City: | I202: Torrance | Q202: County: | T202: Los Angeles | AP202: At-Risk | BA202: SAN BENITO | BG202: San Benito
D203: Zip Code: | I203: 90502 | O203: Census Tract: | T203: 5436.02 | AP203: SRO | BA203: SAN BERNARDINO | BG203: San Bernardino
D204: Assessor's Parcel Number(s): | N204: 7407-008-017, 7407-008-001 7407-008-016 | AP204: Non-Targeted | BA204: SAN DIEGO | BG204: San Diego
AP205: N/A | BA205: SAN FRANCISCO | BG205: San Francisco
D206: Project located in DDA: | X206: No | AA206: Year DDA: | AP206: Large Family | BA206: SAN JOAQUIN | BG206: San Joaquin
D207: Project is located in a Qualified Census Tract: | X207: No | AP207: Seniors | BA207: SAN LUIS OBISPO | BG207: San Luis Obispo
D208: §12206(c)(4) of Rev. and Tax Code for 95% eligible basis: | X208: No | AP208: At least 20% 1-bedroom units and 10% larger than 1-bedroom units | BA208: SAN MATEO | BG208: San Mateo
D209: Project is a Scattered Site Project. TCAC Reg. § 10302(ll): | X209: No | AP209: At least 90% SRO units | BA209: SANTA BARBARA | BG209: Santa Barbara
D210: Project is Rural as defined by TCAC Reg. § 10302(kk): | X210: No | BA210: SANTA CLARA | BG210: Santa Clara
AP211: (select one) | BA211: SANTA CRUZ | BG211: Santa Cruz
AP212: City of Los Angeles | BA212: SHASTA | BG212: Shasta
AP213: Balance of Los Angeles County | BA213: SIERRA | BG213: Sierra
AP214: Central Valley Region: Fresno, Kern, Kings, Madera, Merced, San Joaquin, Stanislaus, and Tulare Counties | BA214: SISKIYOU | BG214: Siskiyou
AP215: San Diego County | BA215: SOLANO | BG215: Solano
AP216: Inland Empire Region: San Bernardino, Riverside, and Imperial Counties | BA216: SONOMA | BG216: Sonoma
A217: C. | C217: Credit Amount Requested (If State Credit Request, Reg. Sects. 10317 & 10322(h)(33)) | AP217: East Bay Region: Alameda and Contra Costa Counties | BA217: STANISLAUS | BG217: Stanislaus
D218: Federal and State | P218: =M26 -> 2011361 | W218: =M28 -> 8070015 | AP218: Orange County | BA218: SUTTER | BG218: Sutter
P219: (federal) | W219: (state) | AP219: South and West Bay Region: San Mateo and Santa Clara Counties | BA219: TEHAMA | BG219: Tehama
AP220: Capital Region: El Dorado, Placer, Sacramento, Sutter, Yuba, and Yolo Counties | BA220: TRINITY | BG220: Trinity
A221: D. | C221: Federal Minimum Set-Aside Election (IRC Section 42(g)(1)) | AP221: Central Coast Region: Monterey, San Benito, San Luis Obispo, Santa Barbara, Santa Cruz, and Ventura Counties | BA221: TULARE | BG221: Tulare
D222: 40%/60% | AP222: Northern Region: Butte, Marin, Napa, Shasta, Solano, and Sonoma Counties | BA222: TUOLUMNE | BG222: Tuolumne
AP223: San Francisco County | BA223: VENTURA | BG223: Ventura
BA224: YOLO | BG224: Yolo
A225: E. | C225: Housing Type Selection (Reg. Sections 10315(h) & 10325(g)) | BA225: YUBA | BG225: Yuba
D226: Special Needs
E227: If Special Needs housing type, list the percentage of Special Needs Units: | AE227: 0.57
E228: If less than 75% special needs units, specify the standards the non-special needs units will meet: | AP228: (select one)
E229: At least 20% 1-bedroom units and 10% larger than 1-bedroom units | AP229: Corporation
AP230: General Partnership
A231: F. | C231: Geographic Area (Reg. Section 10315(h)) | AP231: Individual
D232: Please select the project's geographic area: | AP232: Joint Venture
D233: Balance of Los Angeles County | AP233: Limited Partnership
AP234: Local Government
D235: *Federal Congressional District: | O235: 43 | AP235: Nonprofit Organization
D236: *State Assembly District: | O236: 66 | AP236: Other
D237: *State Senate District: | O237: 35
D238: *Accurate information is essential; the following website is provided for reference:
D239: https://www.govtrack.us/congress/members/map | W239: http://findyourrep.legislature.ca.gov/ | AO239: for/non profit | AT239: =IF(AND(AND($M$261="for profit",$M$269="for profit",$M$277="nonprofit")),2,0) -> 0
AO240: for/non profit | AT240: =IF(AND(AND($M$261="for profit",$M$269="nonprofit",$M$277="for profit")),2,0) -> 0
A241: II. APPLICATION - SECTION 3: APPLICANT INFORMATION | AO241: for/non profit | AT241: =IF(AND(AND($M$261="nonprofit",$M$269="for profit",$M$277="for profit")),2,0) -> 0
AO242: for/non profit | AT242: =IF(AND(AND($M$261="for profit",$M$269="nonprofit",$M$277="(select one)")),2,0) -> 0
AO243: for/non profit | AT243: =IF(AND(AND($M$261="nonprofit",$M$269="for profit",$M$277="(select one)")),2,0) -> 0
A244: A. | C244: Applicant Contact Information
D245: Applicant Name: | M245: =H16 -> WCV MGP, LLC | AO245: for/non profit | AT245: =IF(AND(AND($M$261="nonprofit",$M$269="nonprofit",$M$277="for profit")),2,0) -> 0
D246: Street Address: | M246: 340 North Madison Avenue | AO246: for/non profit | AT246: =IF(AND(AND($M$261="nonprofit",$M$269="for profit",$M$277="nonprofit")),2,0) -> 0
D247: City: | M247: Los Angeles | V247: State: | W247: CA | Y247: Zip Code: | AC247: 90004 | AO247: for/non profit | AT247: =IF(AND(AND($M$261="for profit",$M$269="nonprofit",$M$277="nonprofit")),2,0) -> 0
D248: Contact Person: | M248: AJ Azara
D249: Phone: | M249: 323-644-2291 | S249: Ext.: | X249: Fax: | AO249: both nonprofits | AT249: =IF(AND(AND($M$261="nonprofit",$M$269="nonprofit",$M$277="(select one)")),1,0) -> 0
D250: Email: | M250: ajazara@pathventures.org | AO250: both nonprofits | AT250: =IF(AND(AND($M$261="nonprofit",$M$269="nonprofit",$M$277="nonprofit")),1,0) -> 0
A251: B. | C251: Legal Status of Applicant: | M251: Other | U251: Parent Company: | AO251: both nonprofits | AT251: =IF(AND(AND($M$261="nonprofit",$M$269="(select one)",$M$277="(select one)")),1,0) -> 1
D252: If Other, Specify: | M252: Limited Liability Company | AO252: both for-profit | AT252: =IF(AND(AND($M$261="for profit",$M$269="for profit",$M$277="(select one)")),3,0) -> 0
AO253: both for-profit | AT253: =IF(AND(AND($M$261="for profit",$M$269="for profit",$M$277="for profit")),3,0) -> 0
A254: C. | C254: General Partner(s) Information | AO254: both for-profit | AT254: =IF(AND(AND($M$261="for profit",$M$269="(select one)",$M$277="(select one)")),3,0) -> 0
C255: C(1) | D255: General Partner Name: | M255: WCV MGP, LLC | AF255: Managing GP
D256: Street Address: | M256: 340 North Madison Avenue | AT256: =SUM(AT239:AT254) -> 1
D257: City: | M257: Los Angeles | V257: State: | W257: CA | Y257: Zip Code: | AC257: 90004 | AT257: 1 | AU257: Nonprofit
D258: Contact Person: | M258: AJ Azara | AT258: 2 | AU258: Joint Venture | BB258: =VLOOKUP(AT256,AT257:AU259,2,FALSE) -> Nonprofit
D259: Phone: | M259: 323-644-2291 | S259: Ext.: | X259: Fax: | AN259: (select one) | AT259: 3 | AU259: For Profit
D260: Email: | M260: AJAzara@pathventures.org | AN260: currently exists
D261: Nonprofit/For Profit: | M261: Nonprofit | U261: Parent Company: | AN261: to be formed
C263: C(2) | D263: General Partner Name:* | AF263: (select one)
D264: Street Address:
D265: City: | V265: State: | Y265: Zip Code:
... 663 more rows

Sheet Sources and Uses Budget
A1: IV. SOURCES AND USES BUDGET - SECTION 1: SOURCES AND USES BUDGET | F1: Permanent Sources
B2: TOTAL PROJECT COST | C2: RES. COST | D2: COM'L. COST | E2: TAX CREDIT EQUITY | F2: =Application!B632&Application!C632 -> 1)Chase Bank-Permanent Loan | G2: =Application!B633&Application!C633 -> 2)LACDA | H2: =Application!B634&Application!C634 -> 3)Multifamily Housing Program (HCD) | I2: =Application!B635&Application!C635 -> 4)Deferred Developer Fee | J2: =Application!B636&Application!C636 -> 5)Capital Contribution-GP (Developer Fee) | K2: =Application!B637&Application!C637 -> 6)Capital Contribution-GP | L2: =Application!B638&Application!C638 -> 7)Local Fee Waiver | M2: =Application!B639&Application!C639 -> 8) | N2: =Application!B640&Application!C640 -> 9) | O2: =Application!B641&Application!C641 -> 10) | P2: =Application!B642&Application!C642 -> 11) | Q2: =Application!B643&Application!C643 -> 12) | R2: SUBTOTAL | S2: 30% PVC for New Const/Rehab | T2: 30% PVC for Acquisition
A3: LAND COST/ACQUISITION
A4: 1Land Cost or Value | B4: =SUM(C4+D4) -> 7420000 | C4: 7420000 | E4: =+C4-SUM(F4:Q4) -> 0 | F4: 7420000 | R4: =SUM(E4:Q4) -> 7420000
A5: 2Demolition | B5: =SUM(C5+D5) -> 168182 | C5: 168182 | E5: =+C5-SUM(F5:Q5) -> 0 | F5: 168182 | R5: =SUM(E5:Q5) -> 168182
A6: Legal | B6: =SUM(C6+D6) -> 22000 | C6: 22000 | E6: 0 | F6: 22000 | R6: =SUM(E6:Q6) -> 22000
A7: Land Lease Rent Prepayment | B7: =SUM(C7+D7) -> 0 | E7: 0 | R7: =SUM(E7:Q7) -> 0
A8: 1Total Land Cost or Value | B8: =SUM(C8:D8) -> 7610182 | C8: =SUM(C4:C7) -> 7610182 | D8: 0 | E8: 0 | F8: 7610182 | G8: 0 | H8: 0 | I8: 0 | J8: 0 | K8: 0 | L8: 0 | M8: 0 | N8: 0 | O8: 0 | Q8: 0 | R8: =SUM(R4:R7) -> 7610182
A9: Existing Improvements Cost or Value | B9: =SUM(C9+D9) -> 0 | E9: =+C9-SUM(F9:Q9) -> 0 | R9: =SUM(E9:Q9) -> 0
A10: 2Off-Site Improvements | B10: =SUM(C10+D10) -> 108300 | C10: =108300 -> 108300 | E10: =+C10-SUM(F10:Q10) -> 0 | F10: 108300 | R10: =SUM(E10:Q10) -> 108300 | S10: 108300
A11: Total Acquisition Cost | B11: =SUM(C11:D11) -> 108300 | C11: =SUM(C9:C10) -> 108300 | D11: 0 | E11: 0 | F11: 108300 | G11: 0 | H11: 0 | I11: 0 | J11: 0 | K11: 0 | L11: 0 | M11: 0 | N11: 0 | O11: 0 | Q11: 0 | R11: =SUM(R9:R10) -> 108300 | T11: =SUM(T9:T10) -> 0
A12: Total Land Cost / Acquisition Cost | B12: =SUM(B8+B11) -> 7718482 | C12: =SUM(C8+C11) -> 7718482 | D12: 0 | E12: 0 | F12: 7718482 | G12: 0 | H12: 0 | I12: 0 | J12: 0 | K12: 0 | L12: 0 | M12: 0 | N12: 0 | O12: 0 | Q12: 0 | R12: =SUM(R8+R11) -> 7718482
A13: Predevelopment Interest/Holding Cost | B13: =SUM(C13+D13) -> 1588487 | C13: =214985+1001700+371802 -> 1588487 | E13: =+C13-SUM(F13:Q13) -> 0 | F13: 1588487 | R13: =SUM(E13:Q13) -> 1588487 | S13: 371802
A14: Assumed, Accrued Interest on Existing Debt (Rehab/Acq) | B14: =SUM(C14+D14) -> 0 | E14: =+C14-SUM(F14:Q14) -> 0 | R14: =SUM(E14:Q14) -> 0
A15: Excess Purchase Price Over Appraisal | B15: =SUM(C15+D15) -> 0 | E15: 0 | R15: =SUM(E15:Q15) -> 0
A16: REHABILITATION
A17: Site Work | B17: =SUM(C17+D17) -> 0 | E17: 0 | R17: =SUM(E17:Q17) -> 0
A18: Structures | B18: 0 | R18: 0
A19: General Requirements | B19: 0 | R19: 0
A20: Contractor Overhead | B20: 0 | R20: 0
A21: Contractor Profit | B21: 0 | R21: 0
A22: Prevailing Wages | B22: 0 | R22: 0
A23: General Liability Insurance | B23: 0 | R23: 0
A24: Other: (Specify) | B24: 0 | R24: 0
A25: Total Rehabilitation Costs | B25: 0 | C25: =SUM(C17:C24) -> 0 | D25: 0 | E25: 0 | F25: 0 | G25: 0 | H25: 0 | I25: 0 | J25: 0 | K25: 0 | L25: 0 | M25: 0 | N25: 0 | O25: 0 | P25: 0 | Q25: 0 | R25: 0 | S25: =SUM(S17:S24) -> 0 | T25: 0
A26: Total Relocation Expenses | B26: =SUM(C26:D26) -> 0 | R26: =SUM(E26:Q26) -> 0
A27: NEW CONSTRUCTION
A28: Site Work | B28: =SUM(C28+D28) -> 385905 | C28: 385905 | E28: =+C28-SUM(F28:Q28) -> 0 | F28: 385905 | R28: 385905 | S28: 385905
A29: Structures | B29: 37009434 | C29: 37009434 | E29: 3009434 | G29: 14000000 | H29: 20000000 | R29: 37009434 | S29: 37009434
A30: General Requirements | B30: 3403964 | C30: 3403964 | E30: 3403964 | R30: 3403964 | S30: 3403964
A31: Contractor Overhead | B31: 1891091 | C31: 1891091 | E31: 1891091 | R31: 1891091 | S31: 1891091
A32: Contractor Profit | B32: 0 | E32: 0 | R32: 0
A33: Prevailing Wages | B33: 0 | E33: 0 | R33: 0
A34: General Liability Insurance | B34: 1074912 | C34: 1074912 | E34: 1074912 | R34: 1074912 | S34: 1074912
A35: Other: (Specify) | B35: 150000 | C35: 150000 | E35: 150000 | R35: 150000 | S35: 150000
A36: Total New Construction Costs | B36: 43915306 | C36: =SUM(C28:C35) -> 43915306 | D36: 0 | E36: 9529401 | F36: 385905 | G36: 14000000 | H36: 20000000 | I36: 0 | J36: 0 | K36: 0 | L36: 0 | M36: 0 | N36: 0 | O36: 0 | P36: 0 | Q36: 0 | R36: 43915306 | S36: 43915306 | T36: 0
A37: ARCHITECTURAL FEES
A38: Design | B38: =SUM(C38+D38) -> 1557450 | C38: =1797450-240000 -> 1557450 | E38: =+C38-SUM(F38:Q38) -> 538324 | F38: 1019126 | R38: =SUM(E38:Q38) -> 1557450 | S38: 1557450
A39: Supervision | B39: =SUM(C39+D39) -> 240000 | C39: 240000 | E39: 240000 | R39: =SUM(E39:Q39) -> 240000 | S39: 240000
A40: Total Architectural Costs | B40: =SUM(C40:D40) -> 1797450 | C40: =SUM(C37:C39) -> 1797450 | D40: =SUM(D37:D39) -> 0 | E40: =SUM(E38:E39) -> 778324 | F40: 1019126 | G40: 0 | H40: 0 | I40: 0 | J40: 0 | K40: 0 | L40: 0 | M40: 0 | N40: 0 | O40: 0 | P40: 0 | Q40: 0 | R40: =SUM(R38:R39) -> 1797450 | S40: 1797450 | T40: =SUM(T38:T39) -> 0
A41: Total Survey & Engineering | B41: =SUM(C41:D41) -> 517500 | C41: 517500 | E41: 517500 | R41: =SUM(E41:Q41) -> 517500 | S41: =R41 -> 517500
A42: CONSTRUCTION INTEREST & FEES
A43: Construction Loan Interest | B43: =SUM(C43+D43) -> 3344841 | C43: =3047092+297749 -> 3344841 | E43: 3344841 | R43: =SUM(E43:Q43) -> 3344841 | S43: 1809694
A44: Origination Fee | B44: 421840 | C44: 421840 | E44: 421840 | R44: 421840 | S44: 56125
A45: Credit Enhancement/Application Fee | B45: 0 | E45: 0 | R45: 0
A46: Bond Premium | B46: 0 | E46: 0 | R46: 0
A47: Cost of Issuance | B47: 261885 | C47: =105460*2+30000+15965+5000 -> 261885 | E47: 261885 | R47: 261885
A48: Title & Recording | B48: 80000 | C48: 80000 | E48: 80000 | R48: 80000 | S48: 80000
A49: Taxes | B49: 166500 | C49: 166500 | E49: 166500 | R49: 166500 | S49: 113921
A50: Insurance | B50: 290000 | C50: 290000 | E50: 290000 | R50: 290000 | S50: 290000
A51: Bond Counsel | B51: 55000 | C51: 55000 | E51: 55000 | R51: 55000 | S51: 0
A52: Lender Expenses | B52: 34500 | C52: 34500 | E52: 34500 | R52: 34500 | S52: 4590
A53: Total Construction Interest & Fees | B53: =SUM(C53:D53) -> 4654566 | C53: =SUM(C43:C52) -> 4654566 | D53: 0 | E53: 4654566 | F53: 0 | G53: 0 | H53: 0 | I53: 0 | J53: 0 | K53: 0 | L53: 0 | M53: 0 | N53: 0 | O53: 0 | P53: 0 | Q53: 0 | R53: 4654566 | S53: 2354330 | T53: 0
A54: PERMANENT FINANCING
A55: Loan Origination Fee | B55: =SUM(C55+D55) -> 74984 | C55: 74984 | E55: =+C55-SUM(F55:Q55) -> 74984 | R55: =SUM(E55:Q55) -> 74984
A56: Credit Enhancement/Application Fee | B56: 0 | E56: 0 | R56: 0
A57: Title & Recording | B57: 10000 | C57: 10000 | E57: 10000 | R57: 10000
A58: Taxes | B58: 0 | E58: 0 | R58: 0
A59: Insurance | B59: 0 | E59: 0 | R59: 0
A60: LACDA Compliance Monitoring | B60: 96100 | C60: 96100 | E60: 96100 | R60: 96100
A61: Lender Expenses | B61: 10000 | C61: 10000 | E61: 10000 | R61: 10000
A62: Total Permanent Financing Costs | B62: =SUM(C62:D62) -> 191084 | C62: =SUM(C55:C61) -> 191084 | D62: 0 | E62: 191084 | F62: 0 | G62: 0 | H62: 0 | I62: 0 | J62: 0 | K62: 0 | L62: 0 | M62: 0 | N62: 0 | O62: 0 | P62: 0 | Q62: 0 | R62: 191084
A63: Subtotals Forward | B63: =SUM(B8+B11+B13+B14+B15+B25+B26+B36+B40+B41+B53+B62) -> 60382875 | C63: 60382875 | D63: 0 | E63: 15670875 | F63: 10712000 | G63: 14000000 | H63: 20000000 | I63: 0 | J63: 0 | K63: 0 | L63: 0 | M63: 0 | N63: 0 | O63: 0 | P63: 0 | Q63: 0 | R63: 60382875 | S63: =SUM(S10+S13+S14+S15+S25+S26+S36+S40+S41+S53) -> 49064688 | T63: =SUM(T11+T13+T14+T15+T25+T26+T36+T40+T41+T53) -> 0
A64: LEGAL FEES
A65: Lender Legal Paid by Applicant | B65: =SUM(C65+D65) -> 93000 | C65: =78000+15000 -> 93000 | E65: =+C65-SUM(F65:Q65) -> 93000 | R65: =SUM(E65:Q65) -> 93000 | S65: 10378
A66: Borrower Legal | B66: =SUM(C66+D66) -> 100000 | C66: 100000 | E66: 100000 | R66: =SUM(E66:Q66) -> 100000 | S66: =R66 -> 100000
A67: Total Attorney Costs | B67: =SUM(C67:D67) -> 193000 | C67: =SUM(C64:C66) -> 193000 | D67: =SUM(D64:D66) -> 0 | E67: =SUM(E65:E66) -> 193000 | F67: 0 | G67: 0 | H67: 0 | I67: 0 | J67: 0 | K67: 0 | L67: 0 | M67: 0 | N67: 0 | O67: 0 | P67: 0 | Q67: 0 | R67: 193000 | S67: 110378 | T67: =SUM(T65:T66) -> 0
A68: RESERVES
A69: Rent Reserves | B69: =SUM(C69+D69) -> 0 | E69: =+C69-SUM(F69:Q69) -> 0 | R69: =SUM(E69:Q69) -> 0
A70: Capitalized Rent Reserves | B70: =SUM(C70+D70) -> 0 | E70: 0 | R70: =SUM(E70:Q70) -> 0
A71: Required Capitalized Replacement Reserve | B71: =SUM(C71+D71) -> 0 | E71: 0 | R71: =SUM(E71:Q71) -> 0
A72: 3-Month Operating Reserve | B72: =SUM(C72+D72) -> 441000 | C72: 441000 | E72: 441000 | R72: =SUM(E72:Q72) -> 441000
A73: Transition Reserve | B73: =SUM(C73+D73) -> 729653 | C73: 729653 | E73: 729653 | R73: =SUM(E73:Q73) -> 729653
A74: Total Reserve Costs | B74: =SUM(C74:D74) -> 1170653 | C74: =SUM(C69:C73) -> 1170653 | D74: 0 | E74: 1170653 | F74: 0 | G74: 0 | H74: 0 | I74: 0 | J74: 0 | K74: 0 | L74: 0 | M74: 0 | N74: 0 | O74: 0 | P74: 0 | Q74: 0 | R74: 1170653
A75: CONTINGENCY COSTS
A76: Construction Hard Cost Contingency | B76: =SUM(C76:D76) -> 3500908 | C76: 3500908 | E76: =+C76-SUM(F76:Q76) -> 3500908 | R76: =SUM(E76:Q76) -> 3500908 | S76: =R76 -> 3500908
A77: Soft Cost Contingency | B77: =SUM(C77:D77) -> 211347 | C77: =200547+10800 -> 211347 | E77: 211347 | R77: =SUM(E77:Q77) -> 211347 | S77: =R77 -> 211347
A78: Total Contingency Cost | B78: =SUM(C78:D78) -> 3712255 | C78: =SUM(C76:C77) -> 3712255 | D78: =SUM(D76:D77) -> 0 | E78: 3712255 | F78: 0 | G78: 0 | H78: 0 | I78: 0 | J78: 0 | K78: 0 | L78: 0 | M78: 0 | N78: 0 | O78: 0 | P78: 0 | Q78: 0 | R78: 3712255 | S78: 3712255 | T78: 0 | U78: 0 | V78: 0 | W78: 0 | X78: 0 | Y78: 0 | Z78: 0 | AA78: 0 | AB78: 0 | AC78: 0 | AD78: 0 | AE78: 0 | AF78: 0 | AG78: 0 | AH78: 0 | AI78: 0 | AJ78: 0 | AK78: 0 | AL78: 0 | AM78: 0 | AN78: 0 | AO78: 0 | AP78: 0 | AQ78: 0 | AR78: 0 | AS78: 0 | AT78: 0 | AU78: 0 | AV78: 0 | AW78: 0 | AX78: 0 | AY78: 0 | AZ78: 0 | BA78: 0 | BB78: 0 | BC78: 0 | BD78: 0 | BE78: 0 | BF78: 0 | BG78: 0 | BH78: 0 | BI78: 0 | BJ78: 0 | BK78: 0 | BL78: 0 | BM78: 0 | BN78: 0 | BO78: 0 | BP78: =SUM(BP76:BP77) -> 0 | BQ78: 0 | BR78: 0 | BS78: 0 | BT78: 0 | BU78: 0 | BV78: 0 | BW78: 0 | BX78: 0 | BY78: 0 | BZ78: 0 | CA78: 0 | CB78: 0 | CC78: 0 | CD78: 0 | CE78: 0 | CF78: 0 | CG78: 0 | CH78: 0 | CI78: 0 | CJ78: 0 | CK78: 0 | CL78: 0 | CM78: 0 | CN78: 0 | CO78: 0 | CP78: 0 | CQ78: 0 | CR78: 0 | CS78: 0 | CT78: 0 | CU78: 0 | CV78: 0 | CW78: 0 | CX78: 0 | CY78: 0 | CZ78: 0 | DA78: 0 | DB78: 0 | DC78: 0 | DD78: 0 | DE78: 0 | DF78: 0 | DG78: 0 | DH78: 0 | DI78: 0 | DJ78: 0 | DK78: 0 | DL78: 0 | DM78: 0 | DN78: 0 | DO78: 0 | DP78: 0 | DQ78: 0 | DR78: 0 | DS78: 0 | DT78: 0 | DU78: 0 | DV78: 0 | DW78: 0 | DX78: 0 | DY78: 0 | DZ78: 0 | EA78: 0 | EB78: =SUM(EB76:EB77) -> 0 | EC78: 0 | ED78: 0 | EE78: 0 | EF78: 0 | EG78: 0 | EH78: 0 | EI78: 0 | EJ78: 0 | EK78: 0 | EL78: 0 | EM78: 0 | EN78: 0 | EO78: 0 | EP78: 0 | EQ78: 0 | ER78: 0 | ES78: 0 | ET78: 0 | EU78: 0 | EV78: 0 | EW78: 0 | EX78: 0 | EY78: 0 | EZ78: 0 | FA78: 0 | FB78: 0 | FC78: 0 | FD78: 0 | FE78: 0 | FF78: 0 | FG78: 0 | FH78: 0 | FI78: 0 | FJ78: 0 | FK78: 0 | FL78: 0 | FM78: 0 | FN78: 0 | FO78: 0 | FP78: 0 | FQ78: 0 | FR78: 0 | FS78: 0 | FT78: 0 | FU78: 0 | FV78: 0 | FW78: 0 | FX78: 0 | FY78: 0 | FZ78: 0 | GA78: 0 | GB78: 0 | GC78: 0 | GD78: 0 | GE78: 0 | GF78: 0 | GG78: 0 | GH78: 0 | GI78: 0 | GJ78: 0 | GK78: 0 | GL78: 0 | GM78: 0 | GN78: =SUM(GN76:GN77) -> 0 | GO78: 0 | GP78: 0 | GQ78: 0 | GR78: 0 | GS78: 0 | GT78: 0 | GU78: 0 | GV78: 0 | GW78: 0 | GX78: 0 | GY78: 0 | GZ78: 0 | HA78: 0 | HB78: 0 | HC78: 0 | HD78: 0 | HE78: 0 | HF78: 0 | HG78: 0 | HH78: 0 | HI78: 0 | HJ78: 0 | HK78: 0 | HL78: 0 | HM78: 0 | HN78: 0 | HO78: 0 | HP78: 0 | HQ78: 0 | HR78: 0 | HS78: 0 | HT78: 0 | HU78: 0 | HV78: 0 | HW78: 0 | HX78: 0 | HY78: 0 | HZ78: 0 | IA78: 0 | IB78: 0 | IC78: 0 | ID78: 0 | IE78: 0 | IF78: 0 | IG78: 0 | IH78: 0 | II78: 0 | IJ78: 0 | IK78: 0 | IL78: 0 | IM78: 0 | IN78: 0 | IO78: 0 | IP78: 0 | IQ78: 0 | IR78: 0 | IS78: 0 | IT78: 0 | IU78: 0 | IV78: 0 | IW78: 0 | IX78: 0 | IY78: 0 | IZ78: =SUM(IZ76:IZ77) -> 0 | JA78: 0 | JB78: 0 | JC78: 0 | JD78: 0 | JE78: 0 | JF78: 0 | JG78: 0 | JH78: 0 | JI78: 0 | JJ78: 0 | JK78: 0 | JL78: 0 | JM78: 0 | JN78: 0 | JO78: 0 | JP78: 0 | JQ78: 0 | JR78: 0 | JS78: 0 | JT78: 0 | JU78: 0 | JV78: 0 | JW78: 0 | JX78: 0 | JY78: 0 | JZ78: 0 | KA78: 0 | KB78: 0 | KC78: 0 | KD78: 0 | KE78: 0 | KF78: 0 | KG78: 0 | KH78: 0 | KI78: 0 | KJ78: 0 | KK78: 0 | KL78: 0 | KM78: 0 | KN78: 0 | KO78: 0 | KP78: 0 | KQ78: 0 | KR78: 0 | KS78: 0 | KT78: 0 | KU78: 0 | KV78: 0 | KW78: 0 | KX78: 0 | KY78: 0 | KZ78: 0 | LA78: 0 | LB78: 0 | LC78: 0 | LD78: 0 | LE78: 0 | LF78: 0 | LG78: 0 | LH78: 0 | LI78: 0 | LJ78: 0 | LK78: 0 | LL78: =SUM(LL76:LL77) -> 0 | LM78: 0 | LN78: 0 | LO78: 0 | LP78: 0 | LQ78: 0 | LR78: 0 | LS78: 0 | LT78: 0 | LU78: 0 | LV78: 0 | LW78: 0 | LX78: 0 | LY78: 0 | LZ78: 0 | MA78: 0 | MB78: 0 | MC78: 0 | MD78: 0 | ME78: 0 | MF78: 0 | MG78: 0 | MH78: 0 | MI78: 0 | MJ78: 0 | MK78: 0 | ML78: 0 | MM78: 0 | MN78: 0 | MO78: 0 | MP78: 0 | MQ78: 0 | MR78: 0 | MS78: 0 | MT78: 0 | MU78: 0 | MV78: 0 | MW78: 0 | MX78: 0 | MY78: 0 | MZ78: 0 | NA78: 0 | NB78: 0 | NC78: 0 | ND78: 0 | NE78: 0 | NF78: 0 | NG78: 0 | NH78: 0 | NI78: 0 | NJ78: 0 | NK78: 0 | NL78: 0 | NM78: 0 | NN78: 0 | NO78: 0 | NP78: 0 | NQ78: 0 | NR78: 0 | NS78: 0 | NT78: 0 | NU78: 0 | NV78: 0 | NW78: 0 | NX78: =SUM(NX76:NX77) -> 0 | NY78: 0 | NZ78: 0 | OA78: 0 | OB78: 0 | OC78: 0 | OD78: 0 | OE78: 0 | OF78: 0 | OG78: 0 | OH78: 0 | OI78: 0 | OJ78: 0 | OK78: 0 | OL78: 0 | OM78: 0 | ON78: 0 | OO78: 0 | OP78: 0 | OQ78: 0 | OR78: 0 | OS78: 0 | OT78: 0 | OU78: 0 | OV78: 0 | OW78: 0 | OX78: 0 | OY78: 0 | OZ78: 0 | PA78: 0 | PB78: 0 | PC78: 0 | PD78: 0 | PE78: 0 | PF78: 0 | PG78: 0 | PH78: 0 | PI78: 0 | PJ78: 0 | PK78: 0 | PL78: 0 | PM78: 0 | PN78: 0 | PO78: 0 | PP78: 0 | PQ78: 0 | PR78: 0 | PS78: 0 | PT78: 0 | PU78: 0 | PV78: 0 | PW78: 0 | PX78: 0 | PY78: 0 | PZ78: 0 | QA78: 0 | QB78: 0 | QC78: 0 | QD78: 0 | QE78: 0 | QF78: 0 | QG78: 0 | QH78: 0 | QI78: 0 | QJ78: =SUM(QJ76:QJ77) -> 0 | QK78: 0 | QL78: 0 | QM78: 0 | QN78: 0 | QO78: 0 | QP78: 0 | QQ78: 0 | QR78: 0 | QS78: 0 | QT78: 0 | QU78: 0 | QV78: 0 | QW78: 0 | QX78: 0 | QY78: 0 | QZ78: 0 | RA78: 0 | RB78: 0 | RC78: 0 | RD78: 0 | RE78: 0 | RF78: 0 | RG78: 0 | RH78: 0 | RI78: 0 | RJ78: 0 | RK78: 0 | RL78: 0 | RM78: 0 | RN78: 0 | RO78: 0 | RP78: 0 | RQ78: 0 | RR78: 0 | RS78: 0 | RT78: 0 | RU78: 0 | RV78: 0 | RW78: 0 | RX78: 0 | RY78: 0 | RZ78: 0 | SA78: 0 | SB78: 0 | SC78: 0 | SD78: 0 | SE78: 0 | SF78: 0 | SG78: 0 | SH78: 0 | SI78: 0 | SJ78: 0 | SK78: 0 | SL78: 0 | SM78: 0 | SN78: 0 | SO78: 0 | SP78: 0 | SQ78: 0 | SR78: 0 | SS78: 0 | ST78: 0 | SU78: 0 | SV78: =SUM(SV76:SV77) -> 0 | SW78: 0 | SX78: 0 | SY78: 0 | SZ78: 0 | TA78: 0 | TB78: 0 | TC78: 0 | TD78: 0 | TE78: 0 | TF78: 0 | TG78: 0 | TH78: 0 | TI78: 0 | TJ78: 0 | TK78: 0 | TL78: 0 | TM78: 0 | TN78: 0 | TO78: 0 | TP78: 0 | TQ78: 0 | TR78: 0 | TS78: 0 | TT78: 0 | TU78: 0 | TV78: 0 | TW78: 0 | TX78: 0 | TY78: 0 | TZ78: 0 | UA78: 0 | UB78: 0 | UC78: 0 | UD78: 0 | UE78: 0 | UF78: 0 | UG78: 0 | UH78: 0 | UI78: 0 | UJ78: 0 | UK78: 0 | UL78: 0 | UM78: 0 | UN78: 0 | UO78: 0 | UP78: 0 | UQ78: 0 | UR78: 0 | US78: 0 | UT78: 0 | UU78: 0 | UV78: 0 | UW78: 0 | UX78: 0 | UY78: 0 | UZ78: 0 | VA78: 0 | VB78: 0 | VC78: 0 | VD78: 0 | VE78: 0 | VF78: 0 | VG78: 0 | VH78: =SUM(VH76:VH77) -> 0 | VI78: 0 | VJ78: 0 | VK78: 0 | VL78: 0 | VM78: 0 | VN78: 0 | VO78: 0 | VP78: 0 | VQ78: 0 | VR78: 0 | VS78: 0 | VT78: 0 | VU78: 0 | VV78: 0 | VW78: 0 | VX78: 0 | VY78: 0 | VZ78: 0 | WA78: 0 | WB78: 0 | WC78: 0 | WD78: 0 | WE78: 0 | WF78: 0 | WG78: 0 | WH78: 0 | WI78: 0 | WJ78: 0 | WK78: 0 | WL78: 0 | WM78: 0 | WN78: 0 | WO78: 0 | WP78: 0 | WQ78: 0 | WR78: 0 | WS78: 0 | WT78: 0 | WU78: 0 | WV78: 0 | WW78: 0 | WX78: 0 | WY78: 0 | WZ78: 0 | XA78: 0 | XB78: 0 | XC78: 0 | XD78: 0 | XE78: 0 | XF78: 0 | XG78: 0 | XH78: 0 | XI78: 0 | XJ78: 0 | XK78: 0 | XL78: 0 | XM78: 0 | XN78: 0 | XO78: 0 | XP78: 0 | XQ78: 0 | XR78: 0 | XS78: 0 | XT78: =SUM(XT76:XT77) -> 0 | XU78: 0 | XV78: 0 | XW78: 0 | XX78: 0 | XY78: 0 | XZ78: 0 | YA78: 0 | YB78: 0 | YC78: 0 | YD78: 0 | YE78: 0 | YF78: 0 | YG78: 0 | YH78: 0 | YI78: 0 | YJ78: 0 | YK78: 0 | YL78: 0 | YM78: 0 | YN78: 0 | YO78: 0 | YP78: 0 | YQ78: 0 | YR78: 0 | YS78: 0 | YT78: 0 | YU78: 0 | YV78: 0 | YW78: 0 | YX78: 0 | YY78: 0 | YZ78: 0 | ZA78: 0 | ZB78: 0 | ZC78: 0 | ZD78: 0 | ZE78: 0 | ZF78: 0 | ZG78: 0 | ZH78: 0 | ZI78: 0 | ZJ78: 0 | ZK78: 0 | ZL78: 0 | ZM78: 0 | ZN78: 0 | ZO78: 0 | ZP78: 0 | ZQ78: 0 | ZR78: 0 | ZS78: 0 | ZT78: 0 | ZU78: 0 | ZV78: 0 | ZW78: 0 | ZX78: 0 | ZY78: 0 | ZZ78: 0 | AAA78: 0 | AAB78: 0 | AAC78: 0 | AAD78: 0 | AAE78: 0 | AAF78: =SUM(AAF76:AAF77) -> 0 | AAG78: 0 | AAH78: 0 | AAI78: 0 | AAJ78: 0 | AAK78: 0 | AAL78: 0 | AAM78: 0 | AAN78: 0 | AAO78: 0 | AAP78: 0 | AAQ78: 0 | AAR78: 0 | AAS78: 0 | AAT78: 0 | AAU78: 0 | AAV78: 0 | AAW78: 0 | AAX78: 0 | AAY78: 0 | AAZ78: 0 | ABA78: 0 | ABB78: 0 | ABC78: 0 | ABD78: 0 | ABE78: 0 | ABF78: 0 | ABG78: 0 | ABH78: 0 | ABI78: 0 | ABJ78: 0 | ABK78: 0 | ABL78: 0 | ABM78: 0 | ABN78: 0 | ABO78: 0 | ABP78: 0 | ABQ78: 0 | ABR78: 0 | ABS78: 0 | ABT78: 0 | ABU78: 0 | ABV78: 0 | ABW78: 0 | ABX78: 0 | ABY78: 0 | ABZ78: 0 | ACA78: 0 | ACB78: 0 | ACC78: 0 | ACD78: 0 | ACE78: 0 | ACF78: 0 | ACG78: 0 | ACH78: 0 | ACI78: 0 | ACJ78: 0 | ACK78: 0 | ACL78: 0 | ACM78: 0 | ACN78: 0 | ACO78: 0 | ACP78: 0 | ACQ78: 0 | ACR78: =SUM(ACR76:ACR77) -> 0 | ACS78: 0 | ACT78: 0 | ACU78: 0 | ACV78: 0 | ACW78: 0 | ACX78: 0 | ACY78: 0 | ACZ78: 0 | ADA78: 0 | ADB78: 0 | ADC78: 0 | ADD78: 0 | ADE78: 0 | ADF78: 0 | ADG78: 0 | ADH78: 0 | ADI78: 0 | ADJ78: 0 | ADK78: 0 | ADL78: 0 | ADM78: 0 | ADN78: 0 | ADO78: 0 | ADP78: 0 | ADQ78: 0 | ADR78: 0 | ADS78: 0 | ADT78: 0 | ADU78: 0 | ADV78: 0 | ADW78: 0 | ADX78: 0 | ADY78: 0 | ADZ78: 0 | AEA78: 0 | AEB78: 0 | AEC78: 0 | AED78: 0 | AEE78: 0 | AEF78: 0 | AEG78: 0 | AEH78: 0 | AEI78: 0 | AEJ78: 0 | AEK78: 0 | AEL78: 0 | AEM78: 0 | AEN78: 0 | AEO78: 0 | AEP78: 0 | AEQ78: 0 | AER78: 0 | AES78: 0 | AET78: 0 | AEU78: 0 | AEV78: 0 | AEW78: 0 | AEX78: 0 | AEY78: 0 | AEZ78: 0 | AFA78: 0 | AFB78: 0 | AFC78: 0 | AFD78: =SUM(AFD76:AFD77) -> 0 | AFE78: 0 | AFF78: 0 | AFG78: 0 | AFH78: 0 | AFI78: 0 | AFJ78: 0 | AFK78: 0 | AFL78: 0 | AFM78: 0 | AFN78: 0 | AFO78: 0 | AFP78: 0 | AFQ78: 0 | AFR78: 0 | AFS78: 0 | AFT78: 0 | AFU78: 0 | AFV78: 0 | AFW78: 0 | AFX78: 0 | AFY78: 0 | AFZ78: 0 | AGA78: 0 | AGB78: 0 | AGC78: 0 | AGD78: 0 | AGE78: 0 | AGF78: 0 | AGG78: 0 | AGH78: 0 | AGI78: 0 | AGJ78: 0 | AGK78: 0 | AGL78: 0 | AGM78: 0 | AGN78: 0 | AGO78: 0 | AGP78: 0 | AGQ78: 0 | AGR78: 0 | AGS78: 0 | AGT78: 0 | AGU78: 0 | AGV78: 0 | AGW78: 0 | AGX78: 0 | AGY78: 0 | AGZ78: 0 | AHA78: 0 | AHB78: 0 | AHC78: 0 | AHD78: 0 | AHE78: 0 | AHF78: 0 | AHG78: 0 | AHH78: 0 | AHI78: 0 | AHJ78: 0 | AHK78: 0 | AHL78: 0 | AHM78: 0 | AHN78: 0 | AHO78: 0 | AHP78: =SUM(AHP76:AHP77) -> 0 | AHQ78: 0 | AHR78: 0 | AHS78: 0 | AHT78: 0 | AHU78: 0 | AHV78: 0 | AHW78: 0 | AHX78: 0 | AHY78: 0 | AHZ78: 0 | AIA78: 0 | AIB78: 0 | AIC78: 0 | AID78: 0 | AIE78: 0 | AIF78: 0 | AIG78: 0 | AIH78: 0 | AII78: 0 | AIJ78: 0 | AIK78: 0 | AIL78: 0 | AIM78: 0 | AIN78: 0 | AIO78: 0 | AIP78: 0 | AIQ78: 0 | AIR78: 0 | AIS78: 0 | AIT78: 0 | AIU78: 0 | AIV78: 0 | AIW78: 0 | AIX78: 0 | AIY78: 0 | AIZ78: 0 | AJA78: 0 | AJB78: 0 | AJC78: 0 | AJD78: 0 | AJE78: 0 | AJF78: 0 | AJG78: 0 | AJH78: 0 | AJI78: 0 | AJJ78: 0 | AJK78: 0 | AJL78: 0 | AJM78: 0 | AJN78: 0 | AJO78: 0 | AJP78: 0 | AJQ78: 0 | AJR78: 0 | AJS78: 0 | AJT78: 0 | AJU78: 0 | AJV78: 0 | AJW78: 0 | AJX78: 0 | AJY78: 0 | AJZ78: 0 | AKA78: 0 | AKB78: =SUM(AKB76:AKB77) -> 0 | AKC78: 0 | AKD78: 0 | AKE78: 0 | AKF78: 0 | AKG78: 0 | AKH78: 0 | AKI78: 0 | AKJ78: 0 | AKK78: 0 | AKL78: 0 | AKM78: 0 | AKN78: 0 | AKO78: 0 | AKP78: 0 | AKQ78: 0 | AKR78: 0 | AKS78: 0 | AKT78: 0 | AKU78: 0 | AKV78: 0 | AKW78: 0 | AKX78: 0 | AKY78: 0 | AKZ78: 0 | ALA78: 0 | ALB78: 0 | ALC78: 0 | ALD78: 0 | ALE78: 0 | ALF78: 0 | ALG78: 0 | ALH78: 0 | ALI78: 0 | ALJ78: 0 | ALK78: 0 | ALL78: 0 | ALM78: 0 | ALN78: 0 | ALO78: 0 | ALP78: 0 | ALQ78: 0 | ALR78: 0 | ALS78: 0 | ALT78: 0 | ALU78: 0 | ALV78: 0 | ALW78: 0 | ALX78: 0 | ALY78: 0 | ALZ78: 0 | AMA78: 0 | AMB78: 0 | AMC78: 0 | AMD78: 0 | AME78: 0 | AMF78: 0 | AMG78: 0 | AMH78: 0 | AMI78: 0 | AMJ78: 0 | AMK78: 0 | AML78: 0 | AMM78: 0 | AMN78: =SUM(AMN76:AMN77) -> 0 | AMO78: 0 | AMP78: 0 | AMQ78: 0 | AMR78: 0 | AMS78: 0 | AMT78: 0 | AMU78: 0 | AMV78: 0 | AMW78: 0 | AMX78: 0 | AMY78: 0 | AMZ78: 0 | ANA78: 0 | ANB78: 0 | ANC78: 0 | AND78: 0 | ANE78: 0 | ANF78: 0 | ANG78: 0 | ANH78: 0 | ANI78: 0 | ANJ78: 0 | ANK78: 0 | ANL78: 0 | ANM78: 0 | ANN78: 0 | ANO78: 0 | ANP78: 0 | ANQ78: 0 | ANR78: 0 | ANS78: 0 | ANT78: 0 | ANU78: 0 | ANV78: 0 | ANW78: 0 | ANX78: 0 | ANY78: 0 | ANZ78: 0 | AOA78: 0 | AOB78: 0 | AOC78: 0 | AOD78: 0 | AOE78: 0 | AOF78: 0 | AOG78: 0 | AOH78: 0 | AOI78: 0 | AOJ78: 0 | AOK78: 0 | AOL78: 0 | AOM78: 0 | AON78: 0 | AOO78: 0 | AOP78: 0 | AOQ78: 0 | AOR78: 0 | AOS78: 0 | AOT78: 0 | AOU78: 0 | AOV78: 0 | AOW78: 0 | AOX78: 0 | AOY78: 0 | AOZ78: =SUM(AOZ76:AOZ77) -> 0 | APA78: 0 | APB78: 0 | APC78: 0 | APD78: 0 | APE78: 0 | APF78: 0 | APG78: 0 | APH78: 0 | API78: 0 | APJ78: 0 | APK78: 0 | APL78: 0 | APM78: 0 | APN78: 0 | APO78: 0 | APP78: 0 | APQ78: 0 | APR78: 0 | APS78: 0 | APT78: 0 | APU78: 0 | APV78: 0 | APW78: 0 | APX78: 0 | APY78: 0 | APZ78: 0 | AQA78: 0 | AQB78: 0 | AQC78: 0 | AQD78: 0 | AQE78: 0 | AQF78: 0 | AQG78: 0 | AQH78: 0 | AQI78: 0 | AQJ78: 0 | AQK78: 0 | AQL78: 0 | AQM78: 0 | AQN78: 0 | AQO78: 0 | AQP78: 0 | AQQ78: 0 | AQR78: 0 | AQS78: 0 | AQT78: 0 | AQU78: 0 | AQV78: 0 | AQW78: 0 | AQX78: 0 | AQY78: 0 | AQZ78: 0 | ARA78: 0 | ARB78: 0 | ARC78: 0 | ARD78: 0 | ARE78: 0 | ARF78: 0 | ARG78: 0 | ARH78: 0 | ARI78: 0 | ARJ78: 0 | ARK78: 0 | ARL78: =SUM(ARL76:ARL77) -> 0 | ARM78: 0 | ARN78: 0 | ARO78: 0 | ARP78: 0 | ARQ78: 0 | ARR78: 0 | ARS78: 0 | ART78: 0 | ARU78: 0 | ARV78: 0 | ARW78: 0 | ARX78: 0 | ARY78: 0 | ARZ78: 0 | ASA78: 0 | ASB78: 0 | ASC78: 0 | ASD78: 0 | ASE78: 0 | ASF78: 0 | ASG78: 0 | ASH78: 0 | ASI78: 0 | ASJ78: 0 | ASK78: 0 | ASL78: 0 | ASM78: 0 | ASN78: 0 | ASO78: 0 | ASP78: 0 | ASQ78: 0 | ASR78: 0 | ASS78: 0 | AST78: 0 | ASU78: 0 | ASV78: 0 | ASW78: 0 | ASX78: 0 | ASY78: 0 | ASZ78: 0 | ATA78: 0 | ATB78: 0 | ATC78: 0 | ATD78: 0 | ATE78: 0 | ATF78: 0 | ATG78: 0 | ATH78: 0 | ATI78: 0 | ATJ78: 0 | ATK78: 0 | ATL78: 0 | ATM78: 0 | ATN78: 0 | ATO78: 0 | ATP78: 0 | ATQ78: 0 | ATR78: 0 | ATS78: 0 | ATT78: 0 | ATU78: 0 | ATV78: 0 | ATW78: 0 | ATX78: =SUM(ATX76:ATX77) -> 0 | ATY78: 0 | ATZ78: 0 | AUA78: 0 | AUB78: 0 | AUC78: 0 | AUD78: 0 | AUE78: 0 | AUF78: 0 | AUG78: 0 | AUH78: 0 | AUI78: 0 | AUJ78: 0 | AUK78: 0 | AUL78: 0 | AUM78: 0 | AUN78: 0 | AUO78: 0 | AUP78: 0 | AUQ78: 0 | AUR78: 0 | AUS78: 0 | AUT78: 0 | AUU78: 0 | AUV78: 0 | AUW78: 0 | AUX78: 0 | AUY78: 0 | AUZ78: 0 | AVA78: 0 | AVB78: 0 | AVC78: 0 | AVD78: 0 | AVE78: 0 | AVF78: 0 | AVG78: 0 | AVH78: 0 | AVI78: 0 | AVJ78: 0 | AVK78: 0 | AVL78: 0 | AVM78: 0 | AVN78: 0 | AVO78: 0 | AVP78: 0 | AVQ78: 0 | AVR78: 0 | AVS78: 0 | AVT78: 0 | AVU78: 0 | AVV78: 0 | AVW78: 0 | AVX78: 0 | AVY78: 0 | AVZ78: 0 | AWA78: 0 | AWB78: 0 | AWC78: 0 | AWD78: 0 | AWE78: 0 | AWF78: 0 | AWG78: 0 | AWH78: 0 | AWI78: 0 | AWJ78: =SUM(AWJ76:AWJ77) -> 0 | AWK78: 0 | AWL78: 0 | AWM78: 0 | AWN78: 0 | AWO78: 0 | AWP78: 0 | AWQ78: 0 | AWR78: 0 | AWS78: 0 | AWT78: 0 | AWU78: 0 | AWV78: 0 | AWW78: 0 | AWX78: 0 | AWY78: 0 | AWZ78: 0 | AXA78: 0 | AXB78: 0 | AXC78: 0 | AXD78: 0 | AXE78: 0 | AXF78: 0 | AXG78: 0 | AXH78: 0 | AXI78: 0 | AXJ78: 0 | AXK78: 0 | AXL78: 0 | AXM78: 0 | AXN78: 0 | AXO78: 0 | AXP78: 0 | AXQ78: 0 | AXR78: 0 | AXS78: 0 | AXT78: 0 | AXU78: 0 | AXV78: 0 | AXW78: 0 | AXX78: 0 | AXY78: 0 | AXZ78: 0 | AYA78: 0 | AYB78: 0 | AYC78: 0 | AYD78: 0 | AYE78: 0 | AYF78: 0 | AYG78: 0 | AYH78: 0 | AYI78: 0 | AYJ78: 0 | AYK78: 0 | AYL78: 0 | AYM78: 0 | AYN78: 0 | AYO78: 0 | AYP78: 0 | AYQ78: 0 | AYR78: 0 | AYS78: 0 | AYT78: 0 | AYU78: 0 | AYV78: =SUM(AYV76:AYV77) -> 0 | AYW78: 0 | AYX78: 0 | AYY78: 0 | AYZ78: 0 | AZA78: 0 | AZB78: 0 | AZC78: 0 | AZD78: 0 | AZE78: 0 | AZF78: 0 | AZG78: 0 | AZH78: 0 | AZI78: 0 | AZJ78: 0 | AZK78: 0 | AZL78: 0 | AZM78: 0 | AZN78: 0 | AZO78: 0 | AZP78: 0 | AZQ78: 0 | AZR78: 0 | AZS78: 0 | AZT78: 0 | AZU78: 0 | AZV78: 0 | AZW78: 0 | AZX78: 0 | AZY78: 0 | AZZ78: 0 | BAA78: 0 | BAB78: 0 | BAC78: 0 | BAD78: 0 | BAE78: 0 | BAF78: 0 | BAG78: 0 | BAH78: 0 | BAI78: 0 | BAJ78: 0 | BAK78: 0 | BAL78: 0 | BAM78: 0 | BAN78: 0 | BAO78: 0 | BAP78: 0 | BAQ78: 0 | BAR78: 0 | BAS78: 0 | BAT78: 0 | BAU78: 0 | BAV78: 0 | BAW78: 0 | BAX78: 0 | BAY78: 0 | BAZ78: 0 | BBA78: 0 | BBB78: 0 | BBC78: 0 | BBD78: 0 | BBE78: 0 | BBF78: 0 | BBG78: 0 | BBH78: =SUM(BBH76:BBH77) -> 0 | BBI78: 0 | BBJ78: 0 | BBK78: 0 | BBL78: 0 | BBM78: 0 | BBN78: 0 | BBO78: 0 | BBP78: 0 | BBQ78: 0 | BBR78: 0 | BBS78: 0 | BBT78: 0 | BBU78: 0 | BBV78: 0 | BBW78: 0 | BBX78: 0 | BBY78: 0 | BBZ78: 0 | BCA78: 0 | BCB78: 0 | BCC78: 0 | BCD78: 0 | BCE78: 0 | BCF78: 0 | BCG78: 0 | BCH78: 0 | BCI78: 0 | BCJ78: 0 | BCK78: 0 | BCL78: 0 | BCM78: 0 | BCN78: 0 | BCO78: 0 | BCP78: 0 | BCQ78: 0 | BCR78: 0 | BCS78: 0 | BCT78: 0 | BCU78: 0 | BCV78: 0 | BCW78: 0 | BCX78: 0 | BCY78: 0 | BCZ78: 0 | BDA78: 0 | BDB78: 0 | BDC78: 0 | BDD78: 0 | BDE78: 0 | BDF78: 0 | BDG78: 0 | BDH78: 0 | BDI78: 0 | BDJ78: 0 | BDK78: 0 | BDL78: 0 | BDM78: 0 | BDN78: 0 | BDO78: 0 | BDP78: 0 | BDQ78: 0 | BDR78: 0 | BDS78: 0 | BDT78: =SUM(BDT76:BDT77) -> 0 | BDU78: 0 | BDV78: 0 | BDW78: 0 | BDX78: 0 | BDY78: 0 | BDZ78: 0 | BEA78: 0 | BEB78: 0 | BEC78: 0 | BED78: 0 | BEE78: 0 | BEF78: 0 | BEG78: 0 | BEH78: 0 | BEI78: 0 | BEJ78: 0 | BEK78: 0 | BEL78: 0 | BEM78: 0 | BEN78: 0 | BEO78: 0 | BEP78: 0 | BEQ78: 0 | BER78: 0 | BES78: 0 | BET78: 0 | BEU78: 0 | BEV78: 0 | BEW78: 0 | BEX78: 0 | BEY78: 0 | BEZ78: 0 | BFA78: 0 | BFB78: 0 | BFC78: 0 | BFD78: 0 | BFE78: 0 | BFF78: 0 | BFG78: 0 | BFH78: 0 | BFI78: 0 | BFJ78: 0 | BFK78: 0 | BFL78: 0 | BFM78: 0 | BFN78: 0 | BFO78: 0 | BFP78: 0 | BFQ78: 0 | BFR78: 0 | BFS78: 0 | BFT78: 0 | BFU78: 0 | BFV78: 0 | BFW78: 0 | BFX78: 0 | BFY78: 0 | BFZ78: 0 | BGA78: 0 | BGB78: 0 | BGC78: 0 | BGD78: 0 | BGE78: 0 | BGF78: =SUM(BGF76:BGF77) -> 0 | BGG78: 0 | BGH78: 0 | BGI78: 0 | BGJ78: 0 | BGK78: 0 | BGL78: 0 | BGM78: 0 | BGN78: 0 | BGO78: 0 | BGP78: 0 | BGQ78: 0 | BGR78: 0 | BGS78: 0 | BGT78: 0 | BGU78: 0 | BGV78: 0 | BGW78: 0 | BGX78: 0 | BGY78: 0 | BGZ78: 0 | BHA78: 0 | BHB78: 0 | BHC78: 0 | BHD78: 0 | BHE78: 0 | BHF78: 0 | BHG78: 0 | BHH78: 0 | BHI78: 0 | BHJ78: 0 | BHK78: 0 | BHL78: 0 | BHM78: 0 | BHN78: 0 | BHO78: 0 | BHP78: 0 | BHQ78: 0 | BHR78: 0 | BHS78: 0 | BHT78: 0 | BHU78: 0 | BHV78: 0 | BHW78: 0 | BHX78: 0 | BHY78: 0 | BHZ78: 0 | BIA78: 0 | BIB78: 0 | BIC78: 0 | BID78: 0 | BIE78: 0 | BIF78: 0 | BIG78: 0 | BIH78: 0 | BII78: 0 | BIJ78: 0 | BIK78: 0 | BIL78: 0 | BIM78: 0 | BIN78: 0 | BIO78: 0 | BIP78: 0 | BIQ78: 0 | BIR78: =SUM(BIR76:BIR77) -> 0 | BIS78: 0 | BIT78: 0 | BIU78: 0 | BIV78: 0 | BIW78: 0 | BIX78: 0 | BIY78: 0 | BIZ78: 0 | BJA78: 0 | BJB78: 0 | BJC78: 0 | BJD78: 0 | BJE78: 0 | BJF78: 0 | BJG78: 0 | BJH78: 0 | BJI78: 0 | BJJ78: 0 | BJK78: 0 | BJL78: 0 | BJM78: 0 | BJN78: 0 | BJO78: 0 | BJP78: 0 | BJQ78: 0 | BJR78: 0 | BJS78: 0 | BJT78: 0 | BJU78: 0 | BJV78: 0 | BJW78: 0 | BJX78: 0 | BJY78: 0 | BJZ78: 0 | BKA78: 0 | BKB78: 0 | BKC78: 0 | BKD78: 0 | BKE78: 0 | BKF78: 0 | BKG78: 0 | BKH78: 0 | BKI78: 0 | BKJ78: 0 | BKK78: 0 | BKL78: 0 | BKM78: 0 | BKN78: 0 | BKO78: 0 | BKP78: 0 | BKQ78: 0 | BKR78: 0 | BKS78: 0 | BKT78: 0 | BKU78: 0 | BKV78: 0 | BKW78: 0 | BKX78: 0 | BKY78: 0 | BKZ78: 0 | BLA78: 0 | BLB78: 0 | BLC78: 0 | BLD78: =SUM(BLD76:BLD77) -> 0 | BLE78: 0 | BLF78: 0 | BLG78: 0 | BLH78: 0 | BLI78: 0 | BLJ78: 0 | BLK78: 0 | BLL78: 0 | BLM78: 0 | BLN78: 0 | BLO78: 0 | BLP78: 0 | BLQ78: 0 | BLR78: 0 | BLS78: 0 | BLT78: 0 | BLU78: 0 | BLV78: 0 | BLW78: 0 | BLX78: 0 | BLY78: 0 | BLZ78: 0 | BMA78: 0 | BMB78: 0 | BMC78: 0 | BMD78: 0 | BME78: 0 | BMF78: 0 | BMG78: 0 | BMH78: 0 | BMI78: 0 | BMJ78: 0 | BMK78: 0 | BML78: 0 | BMM78: 0 | BMN78: 0 | BMO78: 0 | BMP78: 0 | BMQ78: 0 | BMR78: 0 | BMS78: 0 | BMT78: 0 | BMU78: 0 | BMV78: 0 | BMW78: 0 | BMX78: 0 | BMY78: 0 | BMZ78: 0 | BNA78: 0 | BNB78: 0 | BNC78: 0 | BND78: 0 | BNE78: 0 | BNF78: 0 | BNG78: 0 | BNH78: 0 | BNI78: 0 | BNJ78: 0 | BNK78: 0 | BNL78: 0 | BNM78: 0 | BNN78: 0 | BNO78: 0 | BNP78: =SUM(BNP76:BNP77) -> 0 | BNQ78: 0 | BNR78: 0 | BNS78: 0 | BNT78: 0 | BNU78: 0 | BNV78: 0 | BNW78: 0 | BNX78: 0 | BNY78: 0 | BNZ78: 0 | BOA78: 0 | BOB78: 0 | BOC78: 0 | BOD78: 0 | BOE78: 0 | BOF78: 0 | BOG78: 0 | BOH78: 0 | BOI78: 0 | BOJ78: 0 | BOK78: 0 | BOL78: 0 | BOM78: 0 | BON78: 0 | BOO78: 0 | BOP78: 0 | BOQ78: 0 | BOR78: 0 | BOS78: 0 | BOT78: 0 | BOU78: 0 | BOV78: 0 | BOW78: 0 | BOX78: 0 | BOY78: 0 | BOZ78: 0 | BPA78: 0 | BPB78: 0 | BPC78: 0 | BPD78: 0 | BPE78: 0 | BPF78: 0 | BPG78: 0 | BPH78: 0 | BPI78: 0 | BPJ78: 0 | BPK78: 0 | BPL78: 0 | BPM78: 0 | BPN78: 0 | BPO78: 0 | BPP78: 0 | BPQ78: 0 | BPR78: 0 | BPS78: 0 | BPT78: 0 | BPU78: 0 | BPV78: 0 | BPW78: 0 | BPX78: 0 | BPY78: 0 | BPZ78: 0 | BQA78: 0 | BQB78: =SUM(BQB76:BQB77) -> 0 | BQC78: 0 | BQD78: 0 | BQE78: 0 | BQF78: 0 | BQG78: 0 | BQH78: 0 | BQI78: 0 | BQJ78: 0 | BQK78: 0 | BQL78: 0 | BQM78: 0 | BQN78: 0 | BQO78: 0 | BQP78: 0 | BQQ78: 0 | BQR78: 0 | BQS78: 0 | BQT78: 0 | BQU78: 0 | BQV78: 0 | BQW78: 0 | BQX78: 0 | BQY78: 0 | BQZ78: 0 | BRA78: 0 | BRB78: 0 | BRC78: 0 | BRD78: 0 | BRE78: 0 | BRF78: 0 | BRG78: 0 | BRH78: 0 | BRI78: 0 | BRJ78: 0 | BRK78: 0 | BRL78: 0 | BRM78: 0 | BRN78: 0 | BRO78: 0 | BRP78: 0 | BRQ78: 0 | BRR78: 0 | BRS78: 0 | BRT78: 0 | BRU78: 0 | BRV78: 0 | BRW78: 0 | BRX78: 0 | BRY78: 0 | BRZ78: 0 | BSA78: 0 | BSB78: 0 | BSC78: 0 | BSD78: 0 | BSE78: 0 | BSF78: 0 | BSG78: 0 | BSH78: 0 | BSI78: 0 | BSJ78: 0 | BSK78: 0 | BSL78: 0 | BSM78: 0 | BSN78: =SUM(BSN76:BSN77) -> 0 | BSO78: 0 | BSP78: 0 | BSQ78: 0 | BSR78: 0 | BSS78: 0 | BST78: 0 | BSU78: 0 | BSV78: 0 | BSW78: 0 | BSX78: 0 | BSY78: 0 | BSZ78: 0 | BTA78: 0 | BTB78: 0 | BTC78: 0 | BTD78: 0 | BTE78: 0 | BTF78: 0 | BTG78: 0 | BTH78: 0 | BTI78: 0 | BTJ78: 0 | BTK78: 0 | BTL78: 0 | BTM78: 0 | BTN78: 0 | BTO78: 0 | BTP78: 0 | BTQ78: 0 | BTR78: 0 | BTS78: 0 | BTT78: 0 | BTU78: 0 | BTV78: 0 | BTW78: 0 | BTX78: 0 | BTY78: 0 | BTZ78: 0 | BUA78: 0 | BUB78: 0 | BUC78: 0 | BUD78: 0 | BUE78: 0 | BUF78: 0 | BUG78: 0 | BUH78: 0 | BUI78: 0 | BUJ78: 0 | BUK78: 0 | BUL78: 0 | BUM78: 0 | BUN78: 0 | BUO78: 0 | BUP78: 0 | BUQ78: 0 | BUR78: 0 | BUS78: 0 | BUT78: 0 | BUU78: 0 | BUV78: 0 | BUW78: 0 | BUX78: 0 | BUY78: 0 | BUZ78: =SUM(BUZ76:BUZ77) -> 0 | BVA78: 0 | BVB78: 0 | BVC78: 0 | BVD78: 0 | BVE78: 0 | BVF78: 0 | BVG78: 0 | BVH78: 0 | BVI78: 0 | BVJ78: 0 | BVK78: 0 | BVL78: 0 | BVM78: 0 | BVN78: 0 | BVO78: 0 | BVP78: 0 | BVQ78: 0 | BVR78: 0 | BVS78: 0 | BVT78: 0 | BVU78: 0 | BVV78: 0 | BVW78: 0 | BVX78: 0 | BVY78: 0 | BVZ78: 0 | BWA78: 0 | BWB78: 0 | BWC78: 0 | BWD78: 0 | BWE78: 0 | BWF78: 0 | BWG78: 0 | BWH78: 0 | BWI78: 0 | BWJ78: 0 | BWK78: 0 | BWL78: 0 | BWM78: 0 | BWN78: 0 | BWO78: 0 | BWP78: 0 | BWQ78: 0 | BWR78: 0 | BWS78: 0 | BWT78: 0 | BWU78: 0 | BWV78: 0 | BWW78: 0 | BWX78: 0 | BWY78: 0 | BWZ78: 0 | BXA78: 0 | BXB78: 0 | BXC78: 0 | BXD78: 0 | BXE78: 0 | BXF78: 0 | BXG78: 0 | BXH78: 0 | BXI78: 0 | BXJ78: 0 | BXK78: 0 | BXL78: =SUM(BXL76:BXL77) -> 0 | BXM78: 0 | BXN78: 0 | BXO78: 0 | BXP78: 0 | BXQ78: 0 | BXR78: 0 | BXS78: 0 | BXT78: 0 | BXU78: 0 | BXV78: 0 | BXW78: 0 | BXX78: 0 | BXY78: 0 | BXZ78: 0 | BYA78: 0 | BYB78: 0 | BYC78: 0 | BYD78: 0 | BYE78: 0 | BYF78: 0 | BYG78: 0 | BYH78: 0 | BYI78: 0 | BYJ78: 0 | BYK78: 0 | BYL78: 0 | BYM78: 0 | BYN78: 0 | BYO78: 0 | BYP78: 0 | BYQ78: 0 | BYR78: 0 | BYS78: 0 | BYT78: 0 | BYU78: 0 | BYV78: 0 | BYW78: 0 | BYX78: 0 | BYY78: 0 | BYZ78: 0 | BZA78: 0 | BZB78: 0 | BZC78: 0 | BZD78: 0 | BZE78: 0 | BZF78: 0 | BZG78: 0 | BZH78: 0 | BZI78: 0 | BZJ78: 0 | BZK78: 0 | BZL78: 0 | BZM78: 0 | BZN78: 0 | BZO78: 0 | BZP78: 0 | BZQ78: 0 | BZR78: 0 | BZS78: 0 | BZT78: 0 | BZU78: 0 | BZV78: 0 | BZW78: 0 | BZX78: =SUM(BZX76:BZX77) -> 0 | BZY78: 0 | BZZ78: 0 | CAA78: 0 | CAB78: 0 | CAC78: 0 | CAD78: 0 | CAE78: 0 | CAF78: 0 | CAG78: 0 | CAH78: 0 | CAI78: 0 | CAJ78: 0 | CAK78: 0 | CAL78: 0 | CAM78: 0 | CAN78: 0 | CAO78: 0 | CAP78: 0 | CAQ78: 0 | CAR78: 0 | CAS78: 0 | CAT78: 0 | CAU78: 0 | CAV78: 0 | CAW78: 0 | CAX78: 0 | CAY78: 0 | CAZ78: 0 | CBA78: 0 | CBB78: 0 | CBC78: 0 | CBD78: 0 | CBE78: 0 | CBF78: 0 | CBG78: 0 | CBH78: 0 | CBI78: 0 | CBJ78: 0 | CBK78: 0 | CBL78: 0 | CBM78: 0 | CBN78: 0 | CBO78: 0 | CBP78: 0 | CBQ78: 0 | CBR78: 0 | CBS78: 0 | CBT78: 0 | CBU78: 0 | CBV78: 0 | CBW78: 0 | CBX78: 0 | CBY78: 0 | CBZ78: 0 | CCA78: 0 | CCB78: 0 | CCC78: 0 | CCD78: 0 | CCE78: 0 | CCF78: 0 | CCG78: 0 | CCH78: 0 | CCI78: 0 | CCJ78: =SUM(CCJ76:CCJ77) -> 0 | CCK78: 0 | CCL78: 0 | CCM78: 0 | CCN78: 0 | CCO78: 0 | CCP78: 0 | CCQ78: 0 | CCR78: 0 | CCS78: 0 | CCT78: 0 | CCU78: 0 | CCV78: 0 | CCW78: 0 | CCX78: 0 | CCY78: 0 | CCZ78: 0 | CDA78: 0 | CDB78: 0 | CDC78: 0 | CDD78: 0 | CDE78: 0 | CDF78: 0 | CDG78: 0 | CDH78: 0 | CDI78: 0 | CDJ78: 0 | CDK78: 0 | CDL78: 0 | CDM78: 0 | CDN78: 0 | CDO78: 0 | CDP78: 0 | CDQ78: 0 | CDR78: 0 | CDS78: 0 | CDT78: 0 | CDU78: 0 | CDV78: 0 | CDW78: 0 | CDX78: 0 | CDY78: 0 | CDZ78: 0 | CEA78: 0 | CEB78: 0 | CEC78: 0 | CED78: 0 | CEE78: 0 | CEF78: 0 | CEG78: 0 | CEH78: 0 | CEI78: 0 | CEJ78: 0 | CEK78: 0 | CEL78: 0 | CEM78: 0 | CEN78: 0 | CEO78: 0 | CEP78: 0 | CEQ78: 0 | CER78: 0 | CES78: 0 | CET78: 0 | CEU78: 0 | CEV78: =SUM(CEV76:CEV77) -> 0 | CEW78: 0 | CEX78: 0 | CEY78: 0 | CEZ78: 0 | CFA78: 0 | CFB78: 0 | CFC78: 0 | CFD78: 0 | CFE78: 0 | CFF78: 0 | CFG78: 0 | CFH78: 0 | CFI78: 0 | CFJ78: 0 | CFK78: 0 | CFL78: 0 | CFM78: 0 | CFN78: 0 | CFO78: 0 | CFP78: 0 | CFQ78: 0 | CFR78: 0 | CFS78: 0 | CFT78: 0 | CFU78: 0 | CFV78: 0 | CFW78: 0 | CFX78: 0 | CFY78: 0 | CFZ78: 0 | CGA78: 0 | CGB78: 0 | CGC78: 0 | CGD78: 0 | CGE78: 0 | CGF78: 0 | CGG78: 0 | CGH78: 0 | CGI78: 0 | CGJ78: 0 | CGK78: 0 | CGL78: 0 | CGM78: 0 | CGN78: 0 | CGO78: 0 | CGP78: 0 | CGQ78: 0 | CGR78: 0 | CGS78: 0 | CGT78: 0 | CGU78: 0 | CGV78: 0 | CGW78: 0 | CGX78: 0 | CGY78: 0 | CGZ78: 0 | CHA78: 0 | CHB78: 0 | CHC78: 0 | CHD78: 0 | CHE78: 0 | CHF78: 0 | CHG78: 0 | CHH78: =SUM(CHH76:CHH77) -> 0 | CHI78: 0 | CHJ78: 0 | CHK78: 0 | CHL78: 0 | CHM78: 0 | CHN78: 0 | CHO78: 0 | CHP78: 0 | CHQ78: 0 | CHR78: 0 | CHS78: 0 | CHT78: 0 | CHU78: 0 | CHV78: 0 | CHW78: 0 | CHX78: 0 | CHY78: 0 | CHZ78: 0 | CIA78: 0 | CIB78: 0 | CIC78: 0 | CID78: 0 | CIE78: 0 | CIF78: 0 | CIG78: 0 | CIH78: 0 | CII78: 0 | CIJ78: 0 | CIK78: 0 | CIL78: 0 | CIM78: 0 | CIN78: 0 | CIO78: 0 | CIP78: 0 | CIQ78: 0 | CIR78: 0 | CIS78: 0 | CIT78: 0 | CIU78: 0 | CIV78: 0 | CIW78: 0 | CIX78: 0 | CIY78: 0 | CIZ78: 0 | CJA78: 0 | CJB78: 0 | CJC78: 0 | CJD78: 0 | CJE78: 0 | CJF78: 0 | CJG78: 0 | CJH78: 0 | CJI78: 0 | CJJ78: 0 | CJK78: 0 | CJL78: 0 | CJM78: 0 | CJN78: 0 | CJO78: 0 | CJP78: 0 | CJQ78: 0 | CJR78: 0 | CJS78: 0 | CJT78: =SUM(CJT76:CJT77) -> 0 | CJU78: 0 | CJV78: 0 | CJW78: 0 | CJX78: 0 | CJY78: 0 | CJZ78: 0 | CKA78: 0 | CKB78: 0 | CKC78: 0 | CKD78: 0 | CKE78: 0 | CKF78: 0 | CKG78: 0 | CKH78: 0 | CKI78: 0 | CKJ78: 0 | CKK78: 0 | CKL78: 0 | CKM78: 0 | CKN78: 0 | CKO78: 0 | CKP78: 0 | CKQ78: 0 | CKR78: 0 | CKS78: 0 | CKT78: 0 | CKU78: 0 | CKV78: 0 | CKW78: 0 | CKX78: 0 | CKY78: 0 | CKZ78: 0 | CLA78: 0 | CLB78: 0 | CLC78: 0 | CLD78: 0 | CLE78: 0 | CLF78: 0 | CLG78: 0 | CLH78: 0 | CLI78: 0 | CLJ78: 0 | CLK78: 0 | CLL78: 0 | CLM78: 0 | CLN78: 0 | CLO78: 0 | CLP78: 0 | CLQ78: 0 | CLR78: 0 | CLS78: 0 | CLT78: 0 | CLU78: 0 | CLV78: 0 | CLW78: 0 | CLX78: 0 | CLY78: 0 | CLZ78: 0 | CMA78: 0 | CMB78: 0 | CMC78: 0 | CMD78: 0 | CME78: 0 | CMF78: =SUM(CMF76:CMF77) -> 0 | CMG78: 0 | CMH78: 0 | CMI78: 0 | CMJ78: 0 | CMK78: 0 | CML78: 0 | CMM78: 0 | CMN78: 0 | CMO78: 0 | CMP78: 0 | CMQ78: 0 | CMR78: 0 | CMS78: 0 | CMT78: 0 | CMU78: 0 | CMV78: 0 | CMW78: 0 | CMX78: 0 | CMY78: 0 | CMZ78: 0 | CNA78: 0 | CNB78: 0 | CNC78: 0 | CND78: 0 | CNE78: 0 | CNF78: 0 | CNG78: 0 | CNH78: 0 | CNI78: 0 | CNJ78: 0 | CNK78: 0 | CNL78: 0 | CNM78: 0 | CNN78: 0 | CNO78: 0 | CNP78: 0 | CNQ78: 0 | CNR78: 0 | CNS78: 0 | CNT78: 0 | CNU78: 0 | CNV78: 0 | CNW78: 0 | CNX78: 0 | CNY78: 0 | CNZ78: 0 | COA78: 0 | COB78: 0 | COC78: 0 | COD78: 0 | COE78: 0 | COF78: 0 | COG78: 0 | COH78: 0 | COI78: 0 | COJ78: 0 | COK78: 0 | COL78: 0 | COM78: 0 | CON78: 0 | COO78: 0 | COP78: 0 | COQ78: 0 | COR78: =SUM(COR76:COR77) -> 0 | COS78: 0 | COT78: 0 | COU78: 0 | COV78: 0 | COW78: 0 | COX78: 0 | COY78: 0 | COZ78: 0 | CPA78: 0 | CPB78: 0 | CPC78: 0 | CPD78: 0 | CPE78: 0 | CPF78: 0 | CPG78: 0 | CPH78: 0 | CPI78: 0 | CPJ78: 0 | CPK78: 0 | CPL78: 0 | CPM78: 0 | CPN78: 0 | CPO78: 0 | CPP78: 0 | CPQ78: 0 | CPR78: 0 | CPS78: 0 | CPT78: 0 | CPU78: 0 | CPV78: 0 | CPW78: 0 | CPX78: 0 | CPY78: 0 | CPZ78: 0 | CQA78: 0 | CQB78: 0 | CQC78: 0 | CQD78: 0 | CQE78: 0 | CQF78: 0 | CQG78: 0 | CQH78: 0 | CQI78: 0 | CQJ78: 0 | CQK78: 0 | CQL78: 0 | CQM78: 0 | CQN78: 0 | CQO78: 0 | CQP78: 0 | CQQ78: 0 | CQR78: 0 | CQS78: 0 | CQT78: 0 | CQU78: 0 | CQV78: 0 | CQW78: 0 | CQX78: 0 | CQY78: 0 | CQZ78: 0 | CRA78: 0 | CRB78: 0 | CRC78: 0 | CRD78: =SUM(CRD76:CRD77) -> 0 | CRE78: 0 | CRF78: 0 | CRG78: 0 | CRH78: 0 | CRI78: 0 | CRJ78: 0 | CRK78: 0 | CRL78: 0 | CRM78: 0 | CRN78: 0 | CRO78: 0 | CRP78: 0 | CRQ78: 0 | CRR78: 0 | CRS78: 0 | CRT78: 0 | CRU78: 0 | CRV78: 0 | CRW78: 0 | CRX78: 0 | CRY78: 0 | CRZ78: 0 | CSA78: 0 | CSB78: 0 | CSC78: 0 | CSD78: 0 | CSE78: 0 | CSF78: 0 | CSG78: 0 | CSH78: 0 | CSI78: 0 | CSJ78: 0 | CSK78: 0 | CSL78: 0 | CSM78: 0 | CSN78: 0 | CSO78: 0 | CSP78: 0 | CSQ78: 0 | CSR78: 0 | CSS78: 0 | CST78: 0 | CSU78: 0 | CSV78: 0 | CSW78: 0 | CSX78: 0 | CSY78: 0 | CSZ78: 0 | CTA78: 0 | CTB78: 0 | CTC78: 0 | CTD78: 0 | CTE78: 0 | CTF78: 0 | CTG78: 0 | CTH78: 0 | CTI78: 0 | CTJ78: 0 | CTK78: 0 | CTL78: 0 | CTM78: 0 | CTN78: 0 | CTO78: 0 | CTP78: =SUM(CTP76:CTP77) -> 0 | CTQ78: 0 | CTR78: 0 | CTS78: 0 | CTT78: 0 | CTU78: 0 | CTV78: 0 | CTW78: 0 | CTX78: 0 | CTY78: 0 | CTZ78: 0 | CUA78: 0 | CUB78: 0 | CUC78: 0 | CUD78: 0 | CUE78: 0 | CUF78: 0 | CUG78: 0 | CUH78: 0 | CUI78: 0 | CUJ78: 0 | CUK78: 0 | CUL78: 0 | CUM78: 0 | CUN78: 0 | CUO78: 0 | CUP78: 0 | CUQ78: 0 | CUR78: 0 | CUS78: 0 | CUT78: 0 | CUU78: 0 | CUV78: 0 | CUW78: 0 | CUX78: 0 | CUY78: 0 | CUZ78: 0 | CVA78: 0 | CVB78: 0 | CVC78: 0 | CVD78: 0 | CVE78: 0 | CVF78: 0 | CVG78: 0 | CVH78: 0 | CVI78: 0 | CVJ78: 0 | CVK78: 0 | CVL78: 0 | CVM78: 0 | CVN78: 0 | CVO78: 0 | CVP78: 0 | CVQ78: 0 | CVR78: 0 | CVS78: 0 | CVT78: 0 | CVU78: 0 | CVV78: 0 | CVW78: 0 | CVX78: 0 | CVY78: 0 | CVZ78: 0 | CWA78: 0 | CWB78: =SUM(CWB76:CWB77) -> 0 | CWC78: 0 | CWD78: 0 | CWE78: 0 | CWF78: 0 | CWG78: 0 | CWH78: 0 | CWI78: 0 | CWJ78: 0 | CWK78: 0 | CWL78: 0 | CWM78: 0 | CWN78: 0 | CWO78: 0 | CWP78: 0 | CWQ78: 0 | CWR78: 0 | CWS78: 0 | CWT78: 0 | CWU78: 0 | CWV78: 0 | CWW78: 0 | CWX78: 0 | CWY78: 0 | CWZ78: 0 | CXA78: 0 | CXB78: 0 | CXC78: 0 | CXD78: 0 | CXE78: 0 | CXF78: 0 | CXG78: 0 | CXH78: 0 | CXI78: 0 | CXJ78: 0 | CXK78: 0 | CXL78: 0 | CXM78: 0 | CXN78: 0 | CXO78: 0 | CXP78: 0 | CXQ78: 0 | CXR78: 0 | CXS78: 0 | CXT78: 0 | CXU78: 0 | CXV78: 0 | CXW78: 0 | CXX78: 0 | CXY78: 0 | CXZ78: 0 | CYA78: 0 | CYB78: 0 | CYC78: 0 | CYD78: 0 | CYE78: 0 | CYF78: 0 | CYG78: 0 | CYH78: 0 | CYI78: 0 | CYJ78: 0 | CYK78: 0 | CYL78: 0 | CYM78: 0 | CYN78: =SUM(CYN76:CYN77) -> 0 | CYO78: 0 | CYP78: 0 | CYQ78: 0 | CYR78: 0 | CYS78: 0 | CYT78: 0 | CYU78: 0 | CYV78: 0 | CYW78: 0 | CYX78: 0 | CYY78: 0 | CYZ78: 0 | CZA78: 0 | CZB78: 0 | CZC78: 0 | CZD78: 0 | CZE78: 0 | CZF78: 0 | CZG78: 0 | CZH78: 0 | CZI78: 0 | CZJ78: 0 | CZK78: 0 | CZL78: 0 | CZM78: 0 | CZN78: 0 | CZO78: 0 | CZP78: 0 | CZQ78: 0 | CZR78: 0 | CZS78: 0 | CZT78: 0 | CZU78: 0 | CZV78: 0 | CZW78: 0 | CZX78: 0 | CZY78: 0 | CZZ78: 0 | DAA78: 0 | DAB78: 0 | DAC78: 0 | DAD78: 0 | DAE78: 0 | DAF78: 0 | DAG78: 0 | DAH78: 0 | DAI78: 0 | DAJ78: 0 | DAK78: 0 | DAL78: 0 | DAM78: 0 | DAN78: 0 | DAO78: 0 | DAP78: 0 | DAQ78: 0 | DAR78: 0 | DAS78: 0 | DAT78: 0 | DAU78: 0 | DAV78: 0 | DAW78: 0 | DAX78: 0 | DAY78: 0 | DAZ78: =SUM(DAZ76:DAZ77) -> 0 | DBA78: 0 | DBB78: 0 | DBC78: 0 | DBD78: 0 | DBE78: 0 | DBF78: 0 | DBG78: 0 | DBH78: 0 | DBI78: 0 | DBJ78: 0 | DBK78: 0 | DBL78: 0 | DBM78: 0 | DBN78: 0 | DBO78: 0 | DBP78: 0 | DBQ78: 0 | DBR78: 0 | DBS78: 0 | DBT78: 0 | DBU78: 0 | DBV78: 0 | DBW78: 0 | DBX78: 0 | DBY78: 0 | DBZ78: 0 | DCA78: 0 | DCB78: 0 | DCC78: 0 | DCD78: 0 | DCE78: 0 | DCF78: 0 | DCG78: 0 | DCH78: 0 | DCI78: 0 | DCJ78: 0 | DCK78: 0 | DCL78: 0 | DCM78: 0 | DCN78: 0 | DCO78: 0 | DCP78: 0 | DCQ78: 0 | DCR78: 0 | DCS78: 0 | DCT78: 0 | DCU78: 0 | DCV78: 0 | DCW78: 0 | DCX78: 0 | DCY78: 0 | DCZ78: 0 | DDA78: 0 | DDB78: 0 | DDC78: 0 | DDD78: 0 | DDE78: 0 | DDF78: 0 | DDG78: 0 | DDH78: 0 | DDI78: 0 | DDJ78: 0 | DDK78: 0 | DDL78: =SUM(DDL76:DDL77) -> 0 | DDM78: 0 | DDN78: 0 | DDO78: 0 | DDP78: 0 | DDQ78: 0 | DDR78: 0 | DDS78: 0 | DDT78: 0 | DDU78: 0 | DDV78: 0 | DDW78: 0 | DDX78: 0 | DDY78: 0 | DDZ78: 0 | DEA78: 0 | DEB78: 0 | DEC78: 0 | DED78: 0 | DEE78: 0 | DEF78: 0 | DEG78: 0 | DEH78: 0 | DEI78: 0 | DEJ78: 0 | DEK78: 0 | DEL78: 0 | DEM78: 0 | DEN78: 0 | DEO78: 0 | DEP78: 0 | DEQ78: 0 | DER78: 0 | DES78: 0 | DET78: 0 | DEU78: 0 | DEV78: 0 | DEW78: 0 | DEX78: 0 | DEY78: 0 | DEZ78: 0 | DFA78: 0 | DFB78: 0 | DFC78: 0 | DFD78: 0 | DFE78: 0 | DFF78: 0 | DFG78: 0 | DFH78: 0 | DFI78: 0 | DFJ78: 0 | DFK78: 0 | DFL78: 0 | DFM78: 0 | DFN78: 0 | DFO78: 0 | DFP78: 0 | DFQ78: 0 | DFR78: 0 | DFS78: 0 | DFT78: 0 | DFU78: 0 | DFV78: 0 | DFW78: 0 | DFX78: =SUM(DFX76:DFX77) -> 0 | DFY78: 0 | DFZ78: 0 | DGA78: 0 | DGB78: 0 | DGC78: 0 | DGD78: 0 | DGE78: 0 | DGF78: 0 | DGG78: 0 | DGH78: 0 | DGI78: 0 | DGJ78: 0 | DGK78: 0 | DGL78: 0 | DGM78: 0 | DGN78: 0 | DGO78: 0 | DGP78: 0 | DGQ78: 0 | DGR78: 0 | DGS78: 0 | DGT78: 0 | DGU78: 0 | DGV78: 0 | DGW78: 0 | DGX78: 0 | DGY78: 0 | DGZ78: 0 | DHA78: 0 | DHB78: 0 | DHC78: 0 | DHD78: 0 | DHE78: 0 | DHF78: 0 | DHG78: 0 | DHH78: 0 | DHI78: 0 | DHJ78: 0 | DHK78: 0 | DHL78: 0 | DHM78: 0 | DHN78: 0 | DHO78: 0 | DHP78: 0 | DHQ78: 0 | DHR78: 0 | DHS78: 0 | DHT78: 0 | DHU78: 0 | DHV78: 0 | DHW78: 0 | DHX78: 0 | DHY78: 0 | DHZ78: 0 | DIA78: 0 | DIB78: 0 | DIC78: 0 | DID78: 0 | DIE78: 0 | DIF78: 0 | DIG78: 0 | DIH78: 0 | DII78: 0 | DIJ78: =SUM(DIJ76:DIJ77) -> 0 | DIK78: 0 | DIL78: 0 | DIM78: 0 | DIN78: 0 | DIO78: 0 | DIP78: 0 | DIQ78: 0 | DIR78: 0 | DIS78: 0 | DIT78: 0 | DIU78: 0 | DIV78: 0 | DIW78: 0 | DIX78: 0 | DIY78: 0 | DIZ78: 0 | DJA78: 0 | DJB78: 0 | DJC78: 0 | DJD78: 0 | DJE78: 0 | DJF78: 0 | DJG78: 0 | DJH78: 0 | DJI78: 0 | DJJ78: 0 | DJK78: 0 | DJL78: 0 | DJM78: 0 | DJN78: 0 | DJO78: 0 | DJP78: 0 | DJQ78: 0 | DJR78: 0 | DJS78: 0 | DJT78: 0 | DJU78: 0 | DJV78: 0 | DJW78: 0 | DJX78: 0 | DJY78: 0 | DJZ78: 0 | DKA78: 0 | DKB78: 0 | DKC78: 0 | DKD78: 0 | DKE78: 0 | DKF78: 0 | DKG78: 0 | DKH78: 0 | DKI78: 0 | DKJ78: 0 | DKK78: 0 | DKL78: 0 | DKM78: 0 | DKN78: 0 | DKO78: 0 | DKP78: 0 | DKQ78: 0 | DKR78: 0 | DKS78: 0 | DKT78: 0 | DKU78: 0 | DKV78: =SUM(DKV76:DKV77) -> 0 | DKW78: 0 | DKX78: 0 | DKY78: 0 | DKZ78: 0 | DLA78: 0 | DLB78: 0 | DLC78: 0 | DLD78: 0 | DLE78: 0 | DLF78: 0 | DLG78: 0 | DLH78: 0 | DLI78: 0 | DLJ78: 0 | DLK78: 0 | DLL78: 0 | DLM78: 0 | DLN78: 0 | DLO78: 0 | DLP78: 0 | DLQ78: 0 | DLR78: 0 | DLS78: 0 | DLT78: 0 | DLU78: 0 | DLV78: 0 | DLW78: 0 | DLX78: 0 | DLY78: 0 | DLZ78: 0 | DMA78: 0 | DMB78: 0 | DMC78: 0 | DMD78: 0 | DME78: 0 | DMF78: 0 | DMG78: 0 | DMH78: 0 | DMI78: 0 | DMJ78: 0 | DMK78: 0 | DML78: 0 | DMM78: 0 | DMN78: 0 | DMO78: 0 | DMP78: 0 | DMQ78: 0 | DMR78: 0 | DMS78: 0 | DMT78: 0 | DMU78: 0 | DMV78: 0 | DMW78: 0 | DMX78: 0 | DMY78: 0 | DMZ78: 0 | DNA78: 0 | DNB78: 0 | DNC78: 0 | DND78: 0 | DNE78: 0 | DNF78: 0 | DNG78: 0 | DNH78: =SUM(DNH76:DNH77) -> 0 | DNI78: 0 | DNJ78: 0 | DNK78: 0 | DNL78: 0 | DNM78: 0 | DNN78: 0 | DNO78: 0 | DNP78: 0 | DNQ78: 0 | DNR78: 0 | DNS78: 0 | DNT78: 0 | DNU78: 0 | DNV78: 0 | DNW78: 0 | DNX78: 0 | DNY78: 0 | DNZ78: 0 | DOA78: 0 | DOB78: 0 | DOC78: 0 | DOD78: 0 | DOE78: 0 | DOF78: 0 | DOG78: 0 | DOH78: 0 | DOI78: 0 | DOJ78: 0 | DOK78: 0 | DOL78: 0 | DOM78: 0 | DON78: 0 | DOO78: 0 | DOP78: 0 | DOQ78: 0 | DOR78: 0 | DOS78: 0 | DOT78: 0 | DOU78: 0 | DOV78: 0 | DOW78: 0 | DOX78: 0 | DOY78: 0 | DOZ78: 0 | DPA78: 0 | DPB78: 0 | DPC78: 0 | DPD78: 0 | DPE78: 0 | DPF78: 0 | DPG78: 0 | DPH78: 0 | DPI78: 0 | DPJ78: 0 | DPK78: 0 | DPL78: 0 | DPM78: 0 | DPN78: 0 | DPO78: 0 | DPP78: 0 | DPQ78: 0 | DPR78: 0 | DPS78: 0 | DPT78: =SUM(DPT76:DPT77) -> 0 | DPU78: 0 | DPV78: 0 | DPW78: 0 | DPX78: 0 | DPY78: 0 | DPZ78: 0 | DQA78: 0 | DQB78: 0 | DQC78: 0 | DQD78: 0 | DQE78: 0 | DQF78: 0 | DQG78: 0 | DQH78: 0 | DQI78: 0 | DQJ78: 0 | DQK78: 0 | DQL78: 0 | DQM78: 0 | DQN78: 0 | DQO78: 0 | DQP78: 0 | DQQ78: 0 | DQR78: 0 | DQS78: 0 | DQT78: 0 | DQU78: 0 | DQV78: 0 | DQW78: 0 | DQX78: 0 | DQY78: 0 | DQZ78: 0 | DRA78: 0 | DRB78: 0 | DRC78: 0 | DRD78: 0 | DRE78: 0 | DRF78: 0 | DRG78: 0 | DRH78: 0 | DRI78: 0 | DRJ78: 0 | DRK78: 0 | DRL78: 0 | DRM78: 0 | DRN78: 0 | DRO78: 0 | DRP78: 0 | DRQ78: 0 | DRR78: 0 | DRS78: 0 | DRT78: 0 | DRU78: 0 | DRV78: 0 | DRW78: 0 | DRX78: 0 | DRY78: 0 | DRZ78: 0 | DSA78: 0 | DSB78: 0 | DSC78: 0 | DSD78: 0 | DSE78: 0 | DSF78: =SUM(DSF76:DSF77) -> 0 | DSG78: 0 | DSH78: 0 | DSI78: 0 | DSJ78: 0 | DSK78: 0 | DSL78: 0 | DSM78: 0 | DSN78: 0 | DSO78: 0 | DSP78: 0 | DSQ78: 0 | DSR78: 0 | DSS78: 0 | DST78: 0 | DSU78: 0 | DSV78: 0 | DSW78: 0 | DSX78: 0 | DSY78: 0 | DSZ78: 0 | DTA78: 0 | DTB78: 0 | DTC78: 0 | DTD78: 0 | DTE78: 0 | DTF78: 0 | DTG78: 0 | DTH78: 0 | DTI78: 0 | DTJ78: 0 | DTK78: 0 | DTL78: 0 | DTM78: 0 | DTN78: 0 | DTO78: 0 | DTP78: 0 | DTQ78: 0 | DTR78: 0 | DTS78: 0 | DTT78: 0 | DTU78: 0 | DTV78: 0 | DTW78: 0 | DTX78: 0 | DTY78: 0 | DTZ78: 0 | DUA78: 0 | DUB78: 0 | DUC78: 0 | DUD78: 0 | DUE78: 0 | DUF78: 0 | DUG78: 0 | DUH78: 0 | DUI78: 0 | DUJ78: 0 | DUK78: 0 | DUL78: 0 | DUM78: 0 | DUN78: 0 | DUO78: 0 | DUP78: 0 | DUQ78: 0 | DUR78: =SUM(DUR76:DUR77) -> 0 | DUS78: 0 | DUT78: 0 | DUU78: 0 | DUV78: 0 | DUW78: 0 | DUX78: 0 | DUY78: 0 | DUZ78: 0 | DVA78: 0 | DVB78: 0 | DVC78: 0 | DVD78: 0 | DVE78: 0 | DVF78: 0 | DVG78: 0 | DVH78: 0 | DVI78: 0 | DVJ78: 0 | DVK78: 0 | DVL78: 0 | DVM78: 0 | DVN78: 0 | DVO78: 0 | DVP78: 0 | DVQ78: 0 | DVR78: 0 | DVS78: 0 | DVT78: 0 | DVU78: 0 | DVV78: 0 | DVW78: 0 | DVX78: 0 | DVY78: 0 | DVZ78: 0 | DWA78: 0 | DWB78: 0 | DWC78: 0 | DWD78: 0 | DWE78: 0 | DWF78: 0 | DWG78: 0 | DWH78: 0 | DWI78: 0 | DWJ78: 0 | DWK78: 0 | DWL78: 0 | DWM78: 0 | DWN78: 0 | DWO78: 0 | DWP78: 0 | DWQ78: 0 | DWR78: 0 | DWS78: 0 | DWT78: 0 | DWU78: 0 | DWV78: 0 | DWW78: 0 | DWX78: 0 | DWY78: 0 | DWZ78: 0 | DXA78: 0 | DXB78: 0 | DXC78: 0 | DXD78: =SUM(DXD76:DXD77) -> 0 | DXE78: 0 | DXF78: 0 | DXG78: 0 | DXH78: 0 | DXI78: 0 | DXJ78: 0 | DXK78: 0 | DXL78: 0 | DXM78: 0 | DXN78: 0 | DXO78: 0 | DXP78: 0 | DXQ78: 0 | DXR78: 0 | DXS78: 0 | DXT78: 0 | DXU78: 0 | DXV78: 0 | DXW78: 0 | DXX78: 0 | DXY78: 0 | DXZ78: 0 | DYA78: 0 | DYB78: 0 | DYC78: 0 | DYD78: 0 | DYE78: 0 | DYF78: 0 | DYG78: 0 | DYH78: 0 | DYI78: 0 | DYJ78: 0 | DYK78: 0 | DYL78: 0 | DYM78: 0 | DYN78: 0 | DYO78: 0 | DYP78: 0 | DYQ78: 0 | DYR78: 0 | DYS78: 0 | DYT78: 0 | DYU78: 0 | DYV78: 0 | DYW78: 0 | DYX78: 0 | DYY78: 0 | DYZ78: 0 | DZA78: 0 | DZB78: 0 | DZC78: 0 | DZD78: 0 | DZE78: 0 | DZF78: 0 | DZG78: 0 | DZH78: 0 | DZI78: 0 | DZJ78: 0 | DZK78: 0 | DZL78: 0 | DZM78: 0 | DZN78: 0 | DZO78: 0 | DZP78: =SUM(DZP76:DZP77) -> 0 | DZQ78: 0 | DZR78: 0 | DZS78: 0 | DZT78: 0 | DZU78: 0 | DZV78: 0 | DZW78: 0 | DZX78: 0 | DZY78: 0 | DZZ78: 0 | EAA78: 0 | EAB78: 0 | EAC78: 0 | EAD78: 0 | EAE78: 0 | EAF78: 0 | EAG78: 0 | EAH78: 0 | EAI78: 0 | EAJ78: 0 | EAK78: 0 | EAL78: 0 | EAM78: 0 | EAN78: 0 | EAO78: 0 | EAP78: 0 | EAQ78: 0 | EAR78: 0 | EAS78: 0 | EAT78: 0 | EAU78: 0 | EAV78: 0 | EAW78: 0 | EAX78: 0 | EAY78: 0 | EAZ78: 0 | EBA78: 0 | EBB78: 0 | EBC78: 0 | EBD78: 0 | EBE78: 0 | EBF78: 0 | EBG78: 0 | EBH78: 0 | EBI78: 0 | EBJ78: 0 | EBK78: 0 | EBL78: 0 | EBM78: 0 | EBN78: 0 | EBO78: 0 | EBP78: 0 | EBQ78: 0 | EBR78: 0 | EBS78: 0 | EBT78: 0 | EBU78: 0 | EBV78: 0 | EBW78: 0 | EBX78: 0 | EBY78: 0 | EBZ78: 0 | ECA78: 0 | ECB78: =SUM(ECB76:ECB77) -> 0 | ECC78: 0 | ECD78: 0 | ECE78: 0 | ECF78: 0 | ECG78: 0 | ECH78: 0 | ECI78: 0 | ECJ78: 0 | ECK78: 0 | ECL78: 0 | ECM78: 0 | ECN78: 0 | ECO78: 0 | ECP78: 0 | ECQ78: 0 | ECR78: 0 | ECS78: 0 | ECT78: 0 | ECU78: 0 | ECV78: 0 | ECW78: 0 | ECX78: 0 | ECY78: 0 | ECZ78: 0 | EDA78: 0 | EDB78: 0 | EDC78: 0 | EDD78: 0 | EDE78: 0 | EDF78: 0 | EDG78: 0 | EDH78: 0 | EDI78: 0 | EDJ78: 0 | EDK78: 0 | EDL78: 0 | EDM78: 0 | EDN78: 0 | EDO78: 0 | EDP78: 0 | EDQ78: 0 | EDR78: 0 | EDS78: 0 | EDT78: 0 | EDU78: 0 | EDV78: 0 | EDW78: 0 | EDX78: 0 | EDY78: 0 | EDZ78: 0 | EEA78: 0 | EEB78: 0 | EEC78: 0 | EED78: 0 | EEE78: 0 | EEF78: 0 | EEG78: 0 | EEH78: 0 | EEI78: 0 | EEJ78: 0 | EEK78: 0 | EEL78: 0 | EEM78: 0 | EEN78: =SUM(EEN76:EEN77) -> 0 | EEO78: 0 | EEP78: 0 | EEQ78: 0 | EER78: 0 | EES78: 0 | EET78: 0 | EEU78: 0 | EEV78: 0 | EEW78: 0 | EEX78: 0 | EEY78: 0 | EEZ78: 0 | EFA78: 0 | EFB78: 0 | EFC78: 0 | EFD78: 0 | EFE78: 0 | EFF78: 0 | EFG78: 0 | EFH78: 0 | EFI78: 0 | EFJ78: 0 | EFK78: 0 | EFL78: 0 | EFM78: 0 | EFN78: 0 | EFO78: 0 | EFP78: 0 | EFQ78: 0 | EFR78: 0 | EFS78: 0 | EFT78: 0 | EFU78: 0 | EFV78: 0 | EFW78: 0 | EFX78: 0 | EFY78: 0 | EFZ78: 0 | EGA78: 0 | EGB78: 0 | EGC78: 0 | EGD78: 0 | EGE78: 0 | EGF78: 0 | EGG78: 0 | EGH78: 0 | EGI78: 0 | EGJ78: 0 | EGK78: 0 | EGL78: 0 | EGM78: 0 | EGN78: 0 | EGO78: 0 | EGP78: 0 | EGQ78: 0 | EGR78: 0 | EGS78: 0 | EGT78: 0 | EGU78: 0 | EGV78: 0 | EGW78: 0 | EGX78: 0 | EGY78: 0 | EGZ78: =SUM(EGZ76:EGZ77) -> 0 | EHA78: 0 | EHB78: 0 | EHC78: 0 | EHD78: 0 | EHE78: 0 | EHF78: 0 | EHG78: 0 | EHH78: 0 | EHI78: 0 | EHJ78: 0 | EHK78: 0 | EHL78: 0 | EHM78: 0 | EHN78: 0 | EHO78: 0 | EHP78: 0 | EHQ78: 0 | EHR78: 0 | EHS78: 0 | EHT78: 0 | EHU78: 0 | EHV78: 0 | EHW78: 0 | EHX78: 0 | EHY78: 0 | EHZ78: 0 | EIA78: 0 | EIB78: 0 | EIC78: 0 | EID78: 0 | EIE78: 0 | EIF78: 0 | EIG78: 0 | EIH78: 0 | EII78: 0 | EIJ78: 0 | EIK78: 0 | EIL78: 0 | EIM78: 0 | EIN78: 0 | EIO78: 0 | EIP78: 0 | EIQ78: 0 | EIR78: 0 | EIS78: 0 | EIT78: 0 | EIU78: 0 | EIV78: 0 | EIW78: 0 | EIX78: 0 | EIY78: 0 | EIZ78: 0 | EJA78: 0 | EJB78: 0 | EJC78: 0 | EJD78: 0 | EJE78: 0 | EJF78: 0 | EJG78: 0 | EJH78: 0 | EJI78: 0 | EJJ78: 0 | EJK78: 0 | EJL78: =SUM(EJL76:EJL77) -> 0 | EJM78: 0 | EJN78: 0 | EJO78: 0 | EJP78: 0 | EJQ78: 0 | EJR78: 0 | EJS78: 0 | EJT78: 0 | EJU78: 0 | EJV78: 0 | EJW78: 0 | EJX78: 0 | EJY78: 0 | EJZ78: 0 | EKA78: 0 | EKB78: 0 | EKC78: 0 | EKD78: 0 | EKE78: 0 | EKF78: 0 | EKG78: 0 | EKH78: 0 | EKI78: 0 | EKJ78: 0 | EKK78: 0 | EKL78: 0 | EKM78: 0 | EKN78: 0 | EKO78: 0 | EKP78: 0 | EKQ78: 0 | EKR78: 0 | EKS78: 0 | EKT78: 0 | EKU78: 0 | EKV78: 0 | EKW78: 0 | EKX78: 0 | EKY78: 0 | EKZ78: 0 | ELA78: 0 | ELB78: 0 | ELC78: 0 | ELD78: 0 | ELE78: 0 | ELF78: 0 | ELG78: 0 | ELH78: 0 | ELI78: 0 | ELJ78: 0 | ELK78: 0 | ELL78: 0 | ELM78: 0 | ELN78: 0 | ELO78: 0 | ELP78: 0 | ELQ78: 0 | ELR78: 0 | ELS78: 0 | ELT78: 0 | ELU78: 0 | ELV78: 0 | ELW78: 0 | ELX78: =SUM(ELX76:ELX77) -> 0 | ELY78: 0 | ELZ78: 0 | EMA78: 0 | EMB78: 0 | EMC78: 0 | EMD78: 0 | EME78: 0 | EMF78: 0 | EMG78: 0 | EMH78: 0 | EMI78: 0 | EMJ78: 0 | EMK78: 0 | EML78: 0 | EMM78: 0 | EMN78: 0 | EMO78: 0 | EMP78: 0 | EMQ78: 0 | EMR78: 0 | EMS78: 0 | EMT78: 0 | EMU78: 0 | EMV78: 0 | EMW78: 0 | EMX78: 0 | EMY78: 0 | EMZ78: 0 | ENA78: 0 | ENB78: 0 | ENC78: 0 | END78: 0 | ENE78: 0 | ENF78: 0 | ENG78: 0 | ENH78: 0 | ENI78: 0 | ENJ78: 0 | ENK78: 0 | ENL78: 0 | ENM78: 0 | ENN78: 0 | ENO78: 0 | ENP78: 0 | ENQ78: 0 | ENR78: 0 | ENS78: 0 | ENT78: 0 | ENU78: 0 | ENV78: 0 | ENW78: 0 | ENX78: 0 | ENY78: 0 | ENZ78: 0 | EOA78: 0 | EOB78: 0 | EOC78: 0 | EOD78: 0 | EOE78: 0 | EOF78: 0 | EOG78: 0 | EOH78: 0 | EOI78: 0 | EOJ78: =SUM(EOJ76:EOJ77) -> 0 | EOK78: 0 | EOL78: 0 | EOM78: 0 | EON78: 0 | EOO78: 0 | EOP78: 0 | EOQ78: 0 | EOR78: 0 | EOS78: 0 | EOT78: 0 | EOU78: 0 | EOV78: 0 | EOW78: 0 | EOX78: 0 | EOY78: 0 | EOZ78: 0 | EPA78: 0 | EPB78: 0 | EPC78: 0 | EPD78: 0 | EPE78: 0 | EPF78: 0 | EPG78: 0 | EPH78: 0 | EPI78: 0 | EPJ78: 0 | EPK78: 0 | EPL78: 0 | EPM78: 0 | EPN78: 0 | EPO78: 0 | EPP78: 0 | EPQ78: 0 | EPR78: 0 | EPS78: 0 | EPT78: 0 | EPU78: 0 | EPV78: 0 | EPW78: 0 | EPX78: 0 | EPY78: 0 | EPZ78: 0 | EQA78: 0 | EQB78: 0 | EQC78: 0 | EQD78: 0 | EQE78: 0 | EQF78: 0 | EQG78: 0 | EQH78: 0 | EQI78: 0 | EQJ78: 0 | EQK78: 0 | EQL78: 0 | EQM78: 0 | EQN78: 0 | EQO78: 0 | EQP78: 0 | EQQ78: 0 | EQR78: 0 | EQS78: 0 | EQT78: 0 | EQU78: 0 | EQV78: =SUM(EQV76:EQV77) -> 0 | EQW78: 0 | EQX78: 0 | EQY78: 0 | EQZ78: 0 | ERA78: 0 | ERB78: 0 | ERC78: 0 | ERD78: 0 | ERE78: 0 | ERF78: 0 | ERG78: 0 | ERH78: 0 | ERI78: 0 | ERJ78: 0 | ERK78: 0 | ERL78: 0 | ERM78: 0 | ERN78: 0 | ERO78: 0 | ERP78: 0 | ERQ78: 0 | ERR78: 0 | ERS78: 0 | ERT78: 0 | ERU78: 0 | ERV78: 0 | ERW78: 0 | ERX78: 0 | ERY78: 0 | ERZ78: 0 | ESA78: 0 | ESB78: 0 | ESC78: 0 | ESD78: 0 | ESE78: 0 | ESF78: 0 | ESG78: 0 | ESH78: 0 | ESI78: 0 | ESJ78: 0 | ESK78: 0 | ESL78: 0 | ESM78: 0 | ESN78: 0 | ESO78: 0 | ESP78: 0 | ESQ78: 0 | ESR78: 0 | ESS78: 0 | EST78: 0 | ESU78: 0 | ESV78: 0 | ESW78: 0 | ESX78: 0 | ESY78: 0 | ESZ78: 0 | ETA78: 0 | ETB78: 0 | ETC78: 0 | ETD78: 0 | ETE78: 0 | ETF78: 0 | ETG78: 0 | ETH78: =SUM(ETH76:ETH77) -> 0 | ETI78: 0 | ETJ78: 0 | ETK78: 0 | ETL78: 0 | ETM78: 0 | ETN78: 0 | ETO78: 0 | ETP78: 0 | ETQ78: 0 | ETR78: 0 | ETS78: 0 | ETT78: 0 | ETU78: 0 | ETV78: 0 | ETW78: 0 | ETX78: 0 | ETY78: 0 | ETZ78: 0 | EUA78: 0 | EUB78: 0 | EUC78: 0 | EUD78: 0 | EUE78: 0 | EUF78: 0 | EUG78: 0 | EUH78: 0 | EUI78: 0 | EUJ78: 0 | EUK78: 0 | EUL78: 0 | EUM78: 0 | EUN78: 0 | EUO78: 0 | EUP78: 0 | EUQ78: 0 | EUR78: 0 | EUS78: 0 | EUT78: 0 | EUU78: 0 | EUV78: 0 | EUW78: 0 | EUX78: 0 | EUY78: 0 | EUZ78: 0 | EVA78: 0 | EVB78: 0 | EVC78: 0 | EVD78: 0 | EVE78: 0 | EVF78: 0 | EVG78: 0 | EVH78: 0 | EVI78: 0 | EVJ78: 0 | EVK78: 0 | EVL78: 0 | EVM78: 0 | EVN78: 0 | EVO78: 0 | EVP78: 0 | EVQ78: 0 | EVR78: 0 | EVS78: 0 | EVT78: =SUM(EVT76:EVT77) -> 0 | EVU78: 0 | EVV78: 0 | EVW78: 0 | EVX78: 0 | EVY78: 0 | EVZ78: 0 | EWA78: 0 | EWB78: 0 | EWC78: 0 | EWD78: 0 | EWE78: 0 | EWF78: 0 | EWG78: 0 | EWH78: 0 | EWI78: 0 | EWJ78: 0 | EWK78: 0 | EWL78: 0 | EWM78: 0 | EWN78: 0 | EWO78: 0 | EWP78: 0 | EWQ78: 0 | EWR78: 0 | EWS78: 0 | EWT78: 0 | EWU78: 0 | EWV78: 0 | EWW78: 0 | EWX78: 0 | EWY78: 0 | EWZ78: 0 | EXA78: 0 | EXB78: 0 | EXC78: 0 | EXD78: 0 | EXE78: 0 | EXF78: 0 | EXG78: 0 | EXH78: 0 | EXI78: 0 | EXJ78: 0 | EXK78: 0 | EXL78: 0 | EXM78: 0 | EXN78: 0 | EXO78: 0 | EXP78: 0 | EXQ78: 0 | EXR78: 0 | EXS78: 0 | EXT78: 0 | EXU78: 0 | EXV78: 0 | EXW78: 0 | EXX78: 0 | EXY78: 0 | EXZ78: 0 | EYA78: 0 | EYB78: 0 | EYC78: 0 | EYD78: 0 | EYE78: 0 | EYF78: =SUM(EYF76:EYF77) -> 0 | EYG78: 0 | EYH78: 0 | EYI78: 0 | EYJ78: 0 | EYK78: 0 | EYL78: 0 | EYM78: 0 | EYN78: 0 | EYO78: 0 | EYP78: 0 | EYQ78: 0 | EYR78: 0 | EYS78: 0 | EYT78: 0 | EYU78: 0 | EYV78: 0 | EYW78: 0 | EYX78: 0 | EYY78: 0 | EYZ78: 0 | EZA78: 0 | EZB78: 0 | EZC78: 0 | EZD78: 0 | EZE78: 0 | EZF78: 0 | EZG78: 0 | EZH78: 0 | EZI78: 0 | EZJ78: 0 | EZK78: 0 | EZL78: 0 | EZM78: 0 | EZN78: 0 | EZO78: 0 | EZP78: 0 | EZQ78: 0 | EZR78: 0 | EZS78: 0 | EZT78: 0 | EZU78: 0 | EZV78: 0 | EZW78: 0 | EZX78: 0 | EZY78: 0 | EZZ78: 0 | FAA78: 0 | FAB78: 0 | FAC78: 0 | FAD78: 0 | FAE78: 0 | FAF78: 0 | FAG78: 0 | FAH78: 0 | FAI78: 0 | FAJ78: 0 | FAK78: 0 | FAL78: 0 | FAM78: 0 | FAN78: 0 | FAO78: 0 | FAP78: 0 | FAQ78: 0 | FAR78: =SUM(FAR76:FAR77) -> 0 | FAS78: 0 | FAT78: 0 | FAU78: 0 | FAV78: 0 | FAW78: 0 | FAX78: 0 | FAY78: 0 | FAZ78: 0 | FBA78: 0 | FBB78: 0 | FBC78: 0 | FBD78: 0 | FBE78: 0 | FBF78: 0 | FBG78: 0 | FBH78: 0 | FBI78: 0 | FBJ78: 0 | FBK78: 0 | FBL78: 0 | FBM78: 0 | FBN78: 0 | FBO78: 0 | FBP78: 0 | FBQ78: 0 | FBR78: 0 | FBS78: 0 | FBT78: 0 | FBU78: 0 | FBV78: 0 | FBW78: 0 | FBX78: 0 | FBY78: 0 | FBZ78: 0 | FCA78: 0 | FCB78: 0 | FCC78: 0 | FCD78: 0 | FCE78: 0 | FCF78: 0 | FCG78: 0 | FCH78: 0 | FCI78: 0 | FCJ78: 0 | FCK78: 0 | FCL78: 0 | FCM78: 0 | FCN78: 0 | FCO78: 0 | FCP78: 0 | FCQ78: 0 | FCR78: 0 | FCS78: 0 | FCT78: 0 | FCU78: 0 | FCV78: 0 | FCW78: 0 | FCX78: 0 | FCY78: 0 | FCZ78: 0 | FDA78: 0 | FDB78: 0 | FDC78: 0 | FDD78: =SUM(FDD76:FDD77) -> 0 | FDE78: 0 | FDF78: 0 | FDG78: 0 | FDH78: 0 | FDI78: 0 | FDJ78: 0 | FDK78: 0 | FDL78: 0 | FDM78: 0 | FDN78: 0 | FDO78: 0 | FDP78: 0 | FDQ78: 0 | FDR78: 0 | FDS78: 0 | FDT78: 0 | FDU78: 0 | FDV78: 0 | FDW78: 0 | FDX78: 0 | FDY78: 0 | FDZ78: 0 | FEA78: 0 | FEB78: 0 | FEC78: 0 | FED78: 0 | FEE78: 0 | FEF78: 0 | FEG78: 0 | FEH78: 0 | FEI78: 0 | FEJ78: 0 | FEK78: 0 | FEL78: 0 | FEM78: 0 | FEN78: 0 | FEO78: 0 | FEP78: 0 | FEQ78: 0 | FER78: 0 | FES78: 0 | FET78: 0 | FEU78: 0 | FEV78: 0 | FEW78: 0 | FEX78: 0 | FEY78: 0 | FEZ78: 0 | FFA78: 0 | FFB78: 0 | FFC78: 0 | FFD78: 0 | FFE78: 0 | FFF78: 0 | FFG78: 0 | FFH78: 0 | FFI78: 0 | FFJ78: 0 | FFK78: 0 | FFL78: 0 | FFM78: 0 | FFN78: 0 | FFO78: 0 | FFP78: =SUM(FFP76:FFP77) -> 0 | FFQ78: 0 | FFR78: 0 | FFS78: 0 | FFT78: 0 | FFU78: 0 | FFV78: 0 | FFW78: 0 | FFX78: 0 | FFY78: 0 | FFZ78: 0 | FGA78: 0 | FGB78: 0 | FGC78: 0 | FGD78: 0 | FGE78: 0 | FGF78: 0 | FGG78: 0 | FGH78: 0 | FGI78: 0 | FGJ78: 0 | FGK78: 0 | FGL78: 0 | FGM78: 0 | FGN78: 0 | FGO78: 0 | FGP78: 0 | FGQ78: 0 | FGR78: 0 | FGS78: 0 | FGT78: 0 | FGU78: 0 | FGV78: 0 | FGW78: 0 | FGX78: 0 | FGY78: 0 | FGZ78: 0 | FHA78: 0 | FHB78: 0 | FHC78: 0 | FHD78: 0 | FHE78: 0 | FHF78: 0 | FHG78: 0 | FHH78: 0 | FHI78: 0 | FHJ78: 0 | FHK78: 0 | FHL78: 0 | FHM78: 0 | FHN78: 0 | FHO78: 0 | FHP78: 0 | FHQ78: 0 | FHR78: 0 | FHS78: 0 | FHT78: 0 | FHU78: 0 | FHV78: 0 | FHW78: 0 | FHX78: 0 | FHY78: 0 | FHZ78: 0 | FIA78: 0 | FIB78: =SUM(FIB76:FIB77) -> 0 | FIC78: 0 | FID78: 0 | FIE78: 0 | FIF78: 0 | FIG78: 0 | FIH78: 0 | FII78: 0 | FIJ78: 0 | FIK78: 0 | FIL78: 0 | FIM78: 0 | FIN78: 0 | FIO78: 0 | FIP78: 0 | FIQ78: 0 | FIR78: 0 | FIS78: 0 | FIT78: 0 | FIU78: 0 | FIV78: 0 | FIW78: 0 | FIX78: 0 | FIY78: 0 | FIZ78: 0 | FJA78: 0 | FJB78: 0 | FJC78: 0 | FJD78: 0 | FJE78: 0 | FJF78: 0 | FJG78: 0 | FJH78: 0 | FJI78: 0 | FJJ78: 0 | FJK78: 0 | FJL78: 0 | FJM78: 0 | FJN78: 0 | FJO78: 0 | FJP78: 0 | FJQ78: 0 | FJR78: 0 | FJS78: 0 | FJT78: 0 | FJU78: 0 | FJV78: 0 | FJW78: 0 | FJX78: 0 | FJY78: 0 | FJZ78: 0 | FKA78: 0 | FKB78: 0 | FKC78: 0 | FKD78: 0 | FKE78: 0 | FKF78: 0 | FKG78: 0 | FKH78: 0 | FKI78: 0 | FKJ78: 0 | FKK78: 0 | FKL78: 0 | FKM78: 0 | FKN78: =SUM(FKN76:FKN77) -> 0 | FKO78: 0 | FKP78: 0 | FKQ78: 0 | FKR78: 0 | FKS78: 0 | FKT78: 0 | FKU78: 0 | FKV78: 0 | FKW78: 0 | FKX78: 0 | FKY78: 0 | FKZ78: 0 | FLA78: 0 | FLB78: 0 | FLC78: 0 | FLD78: 0 | FLE78: 0 | FLF78: 0 | FLG78: 0 | FLH78: 0 | FLI78: 0 | FLJ78: 0 | FLK78: 0 | FLL78: 0 | FLM78: 0 | FLN78: 0 | FLO78: 0 | FLP78: 0 | FLQ78: 0 | FLR78: 0 | FLS78: 0 | FLT78: 0 | FLU78: 0 | FLV78: 0 | FLW78: 0 | FLX78: 0 | FLY78: 0 | FLZ78: 0 | FMA78: 0 | FMB78: 0 | FMC78: 0 | FMD78: 0 | FME78: 0 | FMF78: 0 | FMG78: 0 | FMH78: 0 | FMI78: 0 | FMJ78: 0 | FMK78: 0 | FML78: 0 | FMM78: 0 | FMN78: 0 | FMO78: 0 | FMP78: 0 | FMQ78: 0 | FMR78: 0 | FMS78: 0 | FMT78: 0 | FMU78: 0 | FMV78: 0 | FMW78: 0 | FMX78: 0 | FMY78: 0 | FMZ78: =SUM(FMZ76:FMZ77) -> 0 | FNA78: 0 | FNB78: 0 | FNC78: 0 | FND78: 0 | FNE78: 0 | FNF78: 0 | FNG78: 0 | FNH78: 0 | FNI78: 0 | FNJ78: 0 | FNK78: 0 | FNL78: 0 | FNM78: 0 | FNN78: 0 | FNO78: 0 | FNP78: 0 | FNQ78: 0 | FNR78: 0 | FNS78: 0 | FNT78: 0 | FNU78: 0 | FNV78: 0 | FNW78: 0 | FNX78: 0 | FNY78: 0 | FNZ78: 0 | FOA78: 0 | FOB78: 0 | FOC78: 0 | FOD78: 0 | FOE78: 0 | FOF78: 0 | FOG78: 0 | FOH78: 0 | FOI78: 0 | FOJ78: 0 | FOK78: 0 | FOL78: 0 | FOM78: 0 | FON78: 0 | FOO78: 0 | FOP78: 0 | FOQ78: 0 | FOR78: 0 | FOS78: 0 | FOT78: 0 | FOU78: 0 | FOV78: 0 | FOW78: 0 | FOX78: 0 | FOY78: 0 | FOZ78: 0 | FPA78: 0 | FPB78: 0 | FPC78: 0 | FPD78: 0 | FPE78: 0 | FPF78: 0 | FPG78: 0 | FPH78: 0 | FPI78: 0 | FPJ78: 0 | FPK78: 0 | FPL78: =SUM(FPL76:FPL77) -> 0 | FPM78: 0 | FPN78: 0 | FPO78: 0 | FPP78: 0 | FPQ78: 0 | FPR78: 0 | FPS78: 0 | FPT78: 0 | FPU78: 0 | FPV78: 0 | FPW78: 0 | FPX78: 0 | FPY78: 0 | FPZ78: 0 | FQA78: 0 | FQB78: 0 | FQC78: 0 | FQD78: 0 | FQE78: 0 | FQF78: 0 | FQG78: 0 | FQH78: 0 | FQI78: 0 | FQJ78: 0 | FQK78: 0 | FQL78: 0 | FQM78: 0 | FQN78: 0 | FQO78: 0 | FQP78: 0 | FQQ78: 0 | FQR78: 0 | FQS78: 0 | FQT78: 0 | FQU78: 0 | FQV78: 0 | FQW78: 0 | FQX78: 0 | FQY78: 0 | FQZ78: 0 | FRA78: 0 | FRB78: 0 | FRC78: 0 | FRD78: 0 | FRE78: 0 | FRF78: 0 | FRG78: 0 | FRH78: 0 | FRI78: 0 | FRJ78: 0 | FRK78: 0 | FRL78: 0 | FRM78: 0 | FRN78: 0 | FRO78: 0 | FRP78: 0 | FRQ78: 0 | FRR78: 0 | FRS78: 0 | FRT78: 0 | FRU78: 0 | FRV78: 0 | FRW78: 0 | FRX78: =SUM(FRX76:FRX77) -> 0 | FRY78: 0 | FRZ78: 0 | FSA78: 0 | FSB78: 0 | FSC78: 0 | FSD78: 0 | FSE78: 0 | FSF78: 0 | FSG78: 0 | FSH78: 0 | FSI78: 0 | FSJ78: 0 | FSK78: 0 | FSL78: 0 | FSM78: 0 | FSN78: 0 | FSO78: 0 | FSP78: 0 | FSQ78: 0 | FSR78: 0 | FSS78: 0 | FST78: 0 | FSU78: 0 | FSV78: 0 | FSW78: 0 | FSX78: 0 | FSY78: 0 | FSZ78: 0 | FTA78: 0 | FTB78: 0 | FTC78: 0 | FTD78: 0 | FTE78: 0 | FTF78: 0 | FTG78: 0 | FTH78: 0 | FTI78: 0 | FTJ78: 0 | FTK78: 0 | FTL78: 0 | FTM78: 0 | FTN78: 0 | FTO78: 0 | FTP78: 0 | FTQ78: 0 | FTR78: 0 | FTS78: 0 | FTT78: 0 | FTU78: 0 | FTV78: 0 | FTW78: 0 | FTX78: 0 | FTY78: 0 | FTZ78: 0 | FUA78: 0 | FUB78: 0 | FUC78: 0 | FUD78: 0 | FUE78: 0 | FUF78: 0 | FUG78: 0 | FUH78: 0 | FUI78: 0 | FUJ78: =SUM(FUJ76:FUJ77) -> 0 | FUK78: 0 | FUL78: 0 | FUM78: 0 | FUN78: 0 | FUO78: 0 | FUP78: 0 | FUQ78: 0 | FUR78: 0 | FUS78: 0 | FUT78: 0 | FUU78: 0 | FUV78: 0 | FUW78: 0 | FUX78: 0 | FUY78: 0 | FUZ78: 0 | FVA78: 0 | FVB78: 0 | FVC78: 0 | FVD78: 0 | FVE78: 0 | FVF78: 0 | FVG78: 0 | FVH78: 0 | FVI78: 0 | FVJ78: 0 | FVK78: 0 | FVL78: 0 | FVM78: 0 | FVN78: 0 | FVO78: 0 | FVP78: 0 | FVQ78: 0 | FVR78: 0 | FVS78: 0 | FVT78: 0 | FVU78: 0 | FVV78: 0 | FVW78: 0 | FVX78: 0 | FVY78: 0 | FVZ78: 0 | FWA78: 0 | FWB78: 0 | FWC78: 0 | FWD78: 0 | FWE78: 0 | FWF78: 0 | FWG78: 0 | FWH78: 0 | FWI78: 0 | FWJ78: 0 | FWK78: 0 | FWL78: 0 | FWM78: 0 | FWN78: 0 | FWO78: 0 | FWP78: 0 | FWQ78: 0 | FWR78: 0 | FWS78: 0 | FWT78: 0 | FWU78: 0 | FWV78: =SUM(FWV76:FWV77) -> 0 | FWW78: 0 | FWX78: 0 | FWY78: 0 | FWZ78: 0 | FXA78: 0 | FXB78: 0 | FXC78: 0 | FXD78: 0 | FXE78: 0 | FXF78: 0 | FXG78: 0 | FXH78: 0 | FXI78: 0 | FXJ78: 0 | FXK78: 0 | FXL78: 0 | FXM78: 0 | FXN78: 0 | FXO78: 0 | FXP78: 0 | FXQ78: 0 | FXR78: 0 | FXS78: 0 | FXT78: 0 | FXU78: 0 | FXV78: 0 | FXW78: 0 | FXX78: 0 | FXY78: 0 | FXZ78: 0 | FYA78: 0 | FYB78: 0 | FYC78: 0 | FYD78: 0 | FYE78: 0 | FYF78: 0 | FYG78: 0 | FYH78: 0 | FYI78: 0 | FYJ78: 0 | FYK78: 0 | FYL78: 0 | FYM78: 0 | FYN78: 0 | FYO78: 0 | FYP78: 0 | FYQ78: 0 | FYR78: 0 | FYS78: 0 | FYT78: 0 | FYU78: 0 | FYV78: 0 | FYW78: 0 | FYX78: 0 | FYY78: 0 | FYZ78: 0 | FZA78: 0 | FZB78: 0 | FZC78: 0 | FZD78: 0 | FZE78: 0 | FZF78: 0 | FZG78: 0 | FZH78: =SUM(FZH76:FZH77) -> 0 | FZI78: 0 | FZJ78: 0 | FZK78: 0 | FZL78: 0 | FZM78: 0 | FZN78: 0 | FZO78: 0 | FZP78: 0 | FZQ78: 0 | FZR78: 0 | FZS78: 0 | FZT78: 0 | FZU78: 0 | FZV78: 0 | FZW78: 0 | FZX78: 0 | FZY78: 0 | FZZ78: 0 | GAA78: 0 | GAB78: 0 | GAC78: 0 | GAD78: 0 | GAE78: 0 | GAF78: 0 | GAG78: 0 | GAH78: 0 | GAI78: 0 | GAJ78: 0 | GAK78: 0 | GAL78: 0 | GAM78: 0 | GAN78: 0 | GAO78: 0 | GAP78: 0 | GAQ78: 0 | GAR78: 0 | GAS78: 0 | GAT78: 0 | GAU78: 0 | GAV78: 0 | GAW78: 0 | GAX78: 0 | GAY78: 0 | GAZ78: 0 | GBA78: 0 | GBB78: 0 | GBC78: 0 | GBD78: 0 | GBE78: 0 | GBF78: 0 | GBG78: 0 | GBH78: 0 | GBI78: 0 | GBJ78: 0 | GBK78: 0 | GBL78: 0 | GBM78: 0 | GBN78: 0 | GBO78: 0 | GBP78: 0 | GBQ78: 0 | GBR78: 0 | GBS78: 0 | GBT78: =SUM(GBT76:GBT77) -> 0 | GBU78: 0 | GBV78: 0 | GBW78: 0 | GBX78: 0 | GBY78: 0 | GBZ78: 0 | GCA78: 0 | GCB78: 0 | GCC78: 0 | GCD78: 0 | GCE78: 0 | GCF78: 0 | GCG78: 0 | GCH78: 0 | GCI78: 0 | GCJ78: 0 | GCK78: 0 | GCL78: 0 | GCM78: 0 | GCN78: 0 | GCO78: 0 | GCP78: 0 | GCQ78: 0 | GCR78: 0 | GCS78: 0 | GCT78: 0 | GCU78: 0 | GCV78: 0 | GCW78: 0 | GCX78: 0 | GCY78: 0 | GCZ78: 0 | GDA78: 0 | GDB78: 0 | GDC78: 0 | GDD78: 0 | GDE78: 0 | GDF78: 0 | GDG78: 0 | GDH78: 0 | GDI78: 0 | GDJ78: 0 | GDK78: 0 | GDL78: 0 | GDM78: 0 | GDN78: 0 | GDO78: 0 | GDP78: 0 | GDQ78: 0 | GDR78: 0 | GDS78: 0 | GDT78: 0 | GDU78: 0 | GDV78: 0 | GDW78: 0 | GDX78: 0 | GDY78: 0 | GDZ78: 0 | GEA78: 0 | GEB78: 0 | GEC78: 0 | GED78: 0 | GEE78: 0 | GEF78: =SUM(GEF76:GEF77) -> 0 | GEG78: 0 | GEH78: 0 | GEI78: 0 | GEJ78: 0 | GEK78: 0 | GEL78: 0 | GEM78: 0 | GEN78: 0 | GEO78: 0 | GEP78: 0 | GEQ78: 0 | GER78: 0 | GES78: 0 | GET78: 0 | GEU78: 0 | GEV78: 0 | GEW78: 0 | GEX78: 0 | GEY78: 0 | GEZ78: 0 | GFA78: 0 | GFB78: 0 | GFC78: 0 | GFD78: 0 | GFE78: 0 | GFF78: 0 | GFG78: 0 | GFH78: 0 | GFI78: 0 | GFJ78: 0 | GFK78: 0 | GFL78: 0 | GFM78: 0 | GFN78: 0 | GFO78: 0 | GFP78: 0 | GFQ78: 0 | GFR78: 0 | GFS78: 0 | GFT78: 0 | GFU78: 0 | GFV78: 0 | GFW78: 0 | GFX78: 0 | GFY78: 0 | GFZ78: 0 | GGA78: 0 | GGB78: 0 | GGC78: 0 | GGD78: 0 | GGE78: 0 | GGF78: 0 | GGG78: 0 | GGH78: 0 | GGI78: 0 | GGJ78: 0 | GGK78: 0 | GGL78: 0 | GGM78: 0 | GGN78: 0 | GGO78: 0 | GGP78: 0 | GGQ78: 0 | GGR78: =SUM(GGR76:GGR77) -> 0 | GGS78: 0 | GGT78: 0 | GGU78: 0 | GGV78: 0 | GGW78: 0 | GGX78: 0 | GGY78: 0 | GGZ78: 0 | GHA78: 0 | GHB78: 0 | GHC78: 0 | GHD78: 0 | GHE78: 0 | GHF78: 0 | GHG78: 0 | GHH78: 0 | GHI78: 0 | GHJ78: 0 | GHK78: 0 | GHL78: 0 | GHM78: 0 | GHN78: 0 | GHO78: 0 | GHP78: 0 | GHQ78: 0 | GHR78: 0 | GHS78: 0 | GHT78: 0 | GHU78: 0 | GHV78: 0 | GHW78: 0 | GHX78: 0 | GHY78: 0 | GHZ78: 0 | GIA78: 0 | GIB78: 0 | GIC78: 0 | GID78: 0 | GIE78: 0 | GIF78: 0 | GIG78: 0 | GIH78: 0 | GII78: 0 | GIJ78: 0 | GIK78: 0 | GIL78: 0 | GIM78: 0 | GIN78: 0 | GIO78: 0 | GIP78: 0 | GIQ78: 0 | GIR78: 0 | GIS78: 0 | GIT78: 0 | GIU78: 0 | GIV78: 0 | GIW78: 0 | GIX78: 0 | GIY78: 0 | GIZ78: 0 | GJA78: 0 | GJB78: 0 | GJC78: 0 | GJD78: =SUM(GJD76:GJD77) -> 0 | GJE78: 0 | GJF78: 0 | GJG78: 0 | GJH78: 0 | GJI78: 0 | GJJ78: 0 | GJK78: 0 | GJL78: 0 | GJM78: 0 | GJN78: 0 | GJO78: 0 | GJP78: 0 | GJQ78: 0 | GJR78: 0 | GJS78: 0 | GJT78: 0 | GJU78: 0 | GJV78: 0 | GJW78: 0 | GJX78: 0 | GJY78: 0 | GJZ78: 0 | GKA78: 0 | GKB78: 0 | GKC78: 0 | GKD78: 0 | GKE78: 0 | GKF78: 0 | GKG78: 0 | GKH78: 0 | GKI78: 0 | GKJ78: 0 | GKK78: 0 | GKL78: 0 | GKM78: 0 | GKN78: 0 | GKO78: 0 | GKP78: 0 | GKQ78: 0 | GKR78: 0 | GKS78: 0 | GKT78: 0 | GKU78: 0 | GKV78: 0 | GKW78: 0 | GKX78: 0 | GKY78: 0 | GKZ78: 0 | GLA78: 0 | GLB78: 0 | GLC78: 0 | GLD78: 0 | GLE78: 0 | GLF78: 0 | GLG78: 0 | GLH78: 0 | GLI78: 0 | GLJ78: 0 | GLK78: 0 | GLL78: 0 | GLM78: 0 | GLN78: 0 | GLO78: 0 | GLP78: =SUM(GLP76:GLP77) -> 0 | GLQ78: 0 | GLR78: 0 | GLS78: 0 | GLT78: 0 | GLU78: 0 | GLV78: 0 | GLW78: 0 | GLX78: 0 | GLY78: 0 | GLZ78: 0 | GMA78: 0 | GMB78: 0 | GMC78: 0 | GMD78: 0 | GME78: 0 | GMF78: 0 | GMG78: 0 | GMH78: 0 | GMI78: 0 | GMJ78: 0 | GMK78: 0 | GML78: 0 | GMM78: 0 | GMN78: 0 | GMO78: 0 | GMP78: 0 | GMQ78: 0 | GMR78: 0 | GMS78: 0 | GMT78: 0 | GMU78: 0 | GMV78: 0 | GMW78: 0 | GMX78: 0 | GMY78: 0 | GMZ78: 0 | GNA78: 0 | GNB78: 0 | GNC78: 0 | GND78: 0 | GNE78: 0 | GNF78: 0 | GNG78: 0 | GNH78: 0 | GNI78: 0 | GNJ78: 0 | GNK78: 0 | GNL78: 0 | GNM78: 0 | GNN78: 0 | GNO78: 0 | GNP78: 0 | GNQ78: 0 | GNR78: 0 | GNS78: 0 | GNT78: 0 | GNU78: 0 | GNV78: 0 | GNW78: 0 | GNX78: 0 | GNY78: 0 | GNZ78: 0 | GOA78: 0 | GOB78: =SUM(GOB76:GOB77) -> 0 | GOC78: 0 | GOD78: 0 | GOE78: 0 | GOF78: 0 | GOG78: 0 | GOH78: 0 | GOI78: 0 | GOJ78: 0 | GOK78: 0 | GOL78: 0 | GOM78: 0 | GON78: 0 | GOO78: 0 | GOP78: 0 | GOQ78: 0 | GOR78: 0 | GOS78: 0 | GOT78: 0 | GOU78: 0 | GOV78: 0 | GOW78: 0 | GOX78: 0 | GOY78: 0 | GOZ78: 0 | GPA78: 0 | GPB78: 0 | GPC78: 0 | GPD78: 0 | GPE78: 0 | GPF78: 0 | GPG78: 0 | GPH78: 0 | GPI78: 0 | GPJ78: 0 | GPK78: 0 | GPL78: 0 | GPM78: 0 | GPN78: 0 | GPO78: 0 | GPP78: 0 | GPQ78: 0 | GPR78: 0 | GPS78: 0 | GPT78: 0 | GPU78: 0 | GPV78: 0 | GPW78: 0 | GPX78: 0 | GPY78: 0 | GPZ78: 0 | GQA78: 0 | GQB78: 0 | GQC78: 0 | GQD78: 0 | GQE78: 0 | GQF78: 0 | GQG78: 0 | GQH78: 0 | GQI78: 0 | GQJ78: 0 | GQK78: 0 | GQL78: 0 | GQM78: 0 | GQN78: =SUM(GQN76:GQN77) -> 0 | GQO78: 0 | GQP78: 0 | GQQ78: 0 | GQR78: 0 | GQS78: 0 | GQT78: 0 | GQU78: 0 | GQV78: 0 | GQW78: 0 | GQX78: 0 | GQY78: 0 | GQZ78: 0 | GRA78: 0 | GRB78: 0 | GRC78: 0 | GRD78: 0 | GRE78: 0 | GRF78: 0 | GRG78: 0 | GRH78: 0 | GRI78: 0 | GRJ78: 0 | GRK78: 0 | GRL78: 0 | GRM78: 0 | GRN78: 0 | GRO78: 0 | GRP78: 0 | GRQ78: 0 | GRR78: 0 | GRS78: 0 | GRT78: 0 | GRU78: 0 | GRV78: 0 | GRW78: 0 | GRX78: 0 | GRY78: 0 | GRZ78: 0 | GSA78: 0 | GSB78: 0 | GSC78: 0 | GSD78: 0 | GSE78: 0 | GSF78: 0 | GSG78: 0 | GSH78: 0 | GSI78: 0 | GSJ78: 0 | GSK78: 0 | GSL78: 0 | GSM78: 0 | GSN78: 0 | GSO78: 0 | GSP78: 0 | GSQ78: 0 | GSR78: 0 | GSS78: 0 | GST78: 0 | GSU78: 0 | GSV78: 0 | GSW78: 0 | GSX78: 0 | GSY78: 0 | GSZ78: =SUM(GSZ76:GSZ77) -> 0 | GTA78: 0 | GTB78: 0 | GTC78: 0 | GTD78: 0 | GTE78: 0 | GTF78: 0 | GTG78: 0 | GTH78: 0 | GTI78: 0 | GTJ78: 0 | GTK78: 0 | GTL78: 0 | GTM78: 0 | GTN78: 0 | GTO78: 0 | GTP78: 0 | GTQ78: 0 | GTR78: 0 | GTS78: 0 | GTT78: 0 | GTU78: 0 | GTV78: 0 | GTW78: 0 | GTX78: 0 | GTY78: 0 | GTZ78: 0 | GUA78: 0 | GUB78: 0 | GUC78: 0 | GUD78: 0 | GUE78: 0 | GUF78: 0 | GUG78: 0 | GUH78: 0 | GUI78: 0 | GUJ78: 0 | GUK78: 0 | GUL78: 0 | GUM78: 0 | GUN78: 0 | GUO78: 0 | GUP78: 0 | GUQ78: 0 | GUR78: 0 | GUS78: 0 | GUT78: 0 | GUU78: 0 | GUV78: 0 | GUW78: 0 | GUX78: 0 | GUY78: 0 | GUZ78: 0 | GVA78: 0 | GVB78: 0 | GVC78: 0 | GVD78: 0 | GVE78: 0 | GVF78: 0 | GVG78: 0 | GVH78: 0 | GVI78: 0 | GVJ78: 0 | GVK78: 0 | GVL78: =SUM(GVL76:GVL77) -> 0 | GVM78: 0 | GVN78: 0 | GVO78: 0 | GVP78: 0 | GVQ78: 0 | GVR78: 0 | GVS78: 0 | GVT78: 0 | GVU78: 0 | GVV78: 0 | GVW78: 0 | GVX78: 0 | GVY78: 0 | GVZ78: 0 | GWA78: 0 | GWB78: 0 | GWC78: 0 | GWD78: 0 | GWE78: 0 | GWF78: 0 | GWG78: 0 | GWH78: 0 | GWI78: 0 | GWJ78: 0 | GWK78: 0 | GWL78: 0 | GWM78: 0 | GWN78: 0 | GWO78: 0 | GWP78: 0 | GWQ78: 0 | GWR78: 0 | GWS78: 0 | GWT78: 0 | GWU78: 0 | GWV78: 0 | GWW78: 0 | GWX78: 0 | GWY78: 0 | GWZ78: 0 | GXA78: 0 | GXB78: 0 | GXC78: 0 | GXD78: 0 | GXE78: 0 | GXF78: 0 | GXG78: 0 | GXH78: 0 | GXI78: 0 | GXJ78: 0 | GXK78: 0 | GXL78: 0 | GXM78: 0 | GXN78: 0 | GXO78: 0 | GXP78: 0 | GXQ78: 0 | GXR78: 0 | GXS78: 0 | GXT78: 0 | GXU78: 0 | GXV78: 0 | GXW78: 0 | GXX78: =SUM(GXX76:GXX77) -> 0 | GXY78: 0 | GXZ78: 0 | GYA78: 0 | GYB78: 0 | GYC78: 0 | GYD78: 0 | GYE78: 0 | GYF78: 0 | GYG78: 0 | GYH78: 0 | GYI78: 0 | GYJ78: 0 | GYK78: 0 | GYL78: 0 | GYM78: 0 | GYN78: 0 | GYO78: 0 | GYP78: 0 | GYQ78: 0 | GYR78: 0 | GYS78: 0 | GYT78: 0 | GYU78: 0 | GYV78: 0 | GYW78: 0 | GYX78: 0 | GYY78: 0 | GYZ78: 0 | GZA78: 0 | GZB78: 0 | GZC78: 0 | GZD78: 0 | GZE78: 0 | GZF78: 0 | GZG78: 0 | GZH78: 0 | GZI78: 0 | GZJ78: 0 | GZK78: 0 | GZL78: 0 | GZM78: 0 | GZN78: 0 | GZO78: 0 | GZP78: 0 | GZQ78: 0 | GZR78: 0 | GZS78: 0 | GZT78: 0 | GZU78: 0 | GZV78: 0 | GZW78: 0 | GZX78: 0 | GZY78: 0 | GZZ78: 0 | HAA78: 0 | HAB78: 0 | HAC78: 0 | HAD78: 0 | HAE78: 0 | HAF78: 0 | HAG78: 0 | HAH78: 0 | HAI78: 0 | HAJ78: =SUM(HAJ76:HAJ77) -> 0 | HAK78: 0 | HAL78: 0 | HAM78: 0 | HAN78: 0 | HAO78: 0 | HAP78: 0 | HAQ78: 0 | HAR78: 0 | HAS78: 0 | HAT78: 0 | HAU78: 0 | HAV78: 0 | HAW78: 0 | HAX78: 0 | HAY78: 0 | HAZ78: 0 | HBA78: 0 | HBB78: 0 | HBC78: 0 | HBD78: 0 | HBE78: 0 | HBF78: 0 | HBG78: 0 | HBH78: 0 | HBI78: 0 | HBJ78: 0 | HBK78: 0 | HBL78: 0 | HBM78: 0 | HBN78: 0 | HBO78: 0 | HBP78: 0 | HBQ78: 0 | HBR78: 0 | HBS78: 0 | HBT78: 0 | HBU78: 0 | HBV78: 0 | HBW78: 0 | HBX78: 0 | HBY78: 0 | HBZ78: 0 | HCA78: 0 | HCB78: 0 | HCC78: 0 | HCD78: 0 | HCE78: 0 | HCF78: 0 | HCG78: 0 | HCH78: 0 | HCI78: 0 | HCJ78: 0 | HCK78: 0 | HCL78: 0 | HCM78: 0 | HCN78: 0 | HCO78: 0 | HCP78: 0 | HCQ78: 0 | HCR78: 0 | HCS78: 0 | HCT78: 0 | HCU78: 0 | HCV78: =SUM(HCV76:HCV77) -> 0 | HCW78: 0 | HCX78: 0 | HCY78: 0 | HCZ78: 0 | HDA78: 0 | HDB78: 0 | HDC78: 0 | HDD78: 0 | HDE78: 0 | HDF78: 0 | HDG78: 0 | HDH78: 0 | HDI78: 0 | HDJ78: 0 | HDK78: 0 | HDL78: 0 | HDM78: 0 | HDN78: 0 | HDO78: 0 | HDP78: 0 | HDQ78: 0 | HDR78: 0 | HDS78: 0 | HDT78: 0 | HDU78: 0 | HDV78: 0 | HDW78: 0 | HDX78: 0 | HDY78: 0 | HDZ78: 0 | HEA78: 0 | HEB78: 0 | HEC78: 0 | HED78: 0 | HEE78: 0 | HEF78: 0 | HEG78: 0 | HEH78: 0 | HEI78: 0 | HEJ78: 0 | HEK78: 0 | HEL78: 0 | HEM78: 0 | HEN78: 0 | HEO78: 0 | HEP78: 0 | HEQ78: 0 | HER78: 0 | HES78: 0 | HET78: 0 | HEU78: 0 | HEV78: 0 | HEW78: 0 | HEX78: 0 | HEY78: 0 | HEZ78: 0 | HFA78: 0 | HFB78: 0 | HFC78: 0 | HFD78: 0 | HFE78: 0 | HFF78: 0 | HFG78: 0 | HFH78: =SUM(HFH76:HFH77) -> 0 | HFI78: 0 | HFJ78: 0 | HFK78: 0 | HFL78: 0 | HFM78: 0 | HFN78: 0 | HFO78: 0 | HFP78: 0 | HFQ78: 0 | HFR78: 0 | HFS78: 0 | HFT78: 0 | HFU78: 0 | HFV78: 0 | HFW78: 0 | HFX78: 0 | HFY78: 0 | HFZ78: 0 | HGA78: 0 | HGB78: 0 | HGC78: 0 | HGD78: 0 | HGE78: 0 | HGF78: 0 | HGG78: 0 | HGH78: 0 | HGI78: 0 | HGJ78: 0 | HGK78: 0 | HGL78: 0 | HGM78: 0 | HGN78: 0 | HGO78: 0 | HGP78: 0 | HGQ78: 0 | HGR78: 0 | HGS78: 0 | HGT78: 0 | HGU78: 0 | HGV78: 0 | HGW78: 0 | HGX78: 0 | HGY78: 0 | HGZ78: 0 | HHA78: 0 | HHB78: 0 | HHC78: 0 | HHD78: 0 | HHE78: 0 | HHF78: 0 | HHG78: 0 | HHH78: 0 | HHI78: 0 | HHJ78: 0 | HHK78: 0 | HHL78: 0 | HHM78: 0 | HHN78: 0 | HHO78: 0 | HHP78: 0 | HHQ78: 0 | HHR78: 0 | HHS78: 0 | HHT78: =SUM(HHT76:HHT77) -> 0 | HHU78: 0 | HHV78: 0 | HHW78: 0 | HHX78: 0 | HHY78: 0 | HHZ78: 0 | HIA78: 0 | HIB78: 0 | HIC78: 0 | HID78: 0 | HIE78: 0 | HIF78: 0 | HIG78: 0 | HIH78: 0 | HII78: 0 | HIJ78: 0 | HIK78: 0 | HIL78: 0 | HIM78: 0 | HIN78: 0 | HIO78: 0 | HIP78: 0 | HIQ78: 0 | HIR78: 0 | HIS78: 0 | HIT78: 0 | HIU78: 0 | HIV78: 0 | HIW78: 0 | HIX78: 0 | HIY78: 0 | HIZ78: 0 | HJA78: 0 | HJB78: 0 | HJC78: 0 | HJD78: 0 | HJE78: 0 | HJF78: 0 | HJG78: 0 | HJH78: 0 | HJI78: 0 | HJJ78: 0 | HJK78: 0 | HJL78: 0 | HJM78: 0 | HJN78: 0 | HJO78: 0 | HJP78: 0 | HJQ78: 0 | HJR78: 0 | HJS78: 0 | HJT78: 0 | HJU78: 0 | HJV78: 0 | HJW78: 0 | HJX78: 0 | HJY78: 0 | HJZ78: 0 | HKA78: 0 | HKB78: 0 | HKC78: 0 | HKD78: 0 | HKE78: 0 | HKF78: =SUM(HKF76:HKF77) -> 0 | HKG78: 0 | HKH78: 0 | HKI78: 0 | HKJ78: 0 | HKK78: 0 | HKL78: 0 | HKM78: 0 | HKN78: 0 | HKO78: 0 | HKP78: 0 | HKQ78: 0 | HKR78: 0 | HKS78: 0 | HKT78: 0 | HKU78: 0 | HKV78: 0 | HKW78: 0 | HKX78: 0 | HKY78: 0 | HKZ78: 0 | HLA78: 0 | HLB78: 0 | HLC78: 0 | HLD78: 0 | HLE78: 0 | HLF78: 0 | HLG78: 0 | HLH78: 0 | HLI78: 0 | HLJ78: 0 | HLK78: 0 | HLL78: 0 | HLM78: 0 | HLN78: 0 | HLO78: 0 | HLP78: 0 | HLQ78: 0 | HLR78: 0 | HLS78: 0 | HLT78: 0 | HLU78: 0 | HLV78: 0 | HLW78: 0 | HLX78: 0 | HLY78: 0 | HLZ78: 0 | HMA78: 0 | HMB78: 0 | HMC78: 0 | HMD78: 0 | HME78: 0 | HMF78: 0 | HMG78: 0 | HMH78: 0 | HMI78: 0 | HMJ78: 0 | HMK78: 0 | HML78: 0 | HMM78: 0 | HMN78: 0 | HMO78: 0 | HMP78: 0 | HMQ78: 0 | HMR78: =SUM(HMR76:HMR77) -> 0 | HMS78: 0 | HMT78: 0 | HMU78: 0 | HMV78: 0 | HMW78: 0 | HMX78: 0 | HMY78: 0 | HMZ78: 0 | HNA78: 0 | HNB78: 0 | HNC78: 0 | HND78: 0 | HNE78: 0 | HNF78: 0 | HNG78: 0 | HNH78: 0 | HNI78: 0 | HNJ78: 0 | HNK78: 0 | HNL78: 0 | HNM78: 0 | HNN78: 0 | HNO78: 0 | HNP78: 0 | HNQ78: 0 | HNR78: 0 | HNS78: 0 | HNT78: 0 | HNU78: 0 | HNV78: 0 | HNW78: 0 | HNX78: 0 | HNY78: 0 | HNZ78: 0 | HOA78: 0 | HOB78: 0 | HOC78: 0 | HOD78: 0 | HOE78: 0 | HOF78: 0 | HOG78: 0 | HOH78: 0 | HOI78: 0 | HOJ78: 0 | HOK78: 0 | HOL78: 0 | HOM78: 0 | HON78: 0 | HOO78: 0 | HOP78: 0 | HOQ78: 0 | HOR78: 0 | HOS78: 0 | HOT78: 0 | HOU78: 0 | HOV78: 0 | HOW78: 0 | HOX78: 0 | HOY78: 0 | HOZ78: 0 | HPA78: 0 | HPB78: 0 | HPC78: 0 | HPD78: =SUM(HPD76:HPD77) -> 0 | HPE78: 0 | HPF78: 0 | HPG78: 0 | HPH78: 0 | HPI78: 0 | HPJ78: 0 | HPK78: 0 | HPL78: 0 | HPM78: 0 | HPN78: 0 | HPO78: 0 | HPP78: 0 | HPQ78: 0 | HPR78: 0 | HPS78: 0 | HPT78: 0 | HPU78: 0 | HPV78: 0 | HPW78: 0 | HPX78: 0 | HPY78: 0 | HPZ78: 0 | HQA78: 0 | HQB78: 0 | HQC78: 0 | HQD78: 0 | HQE78: 0 | HQF78: 0 | HQG78: 0 | HQH78: 0 | HQI78: 0 | HQJ78: 0 | HQK78: 0 | HQL78: 0 | HQM78: 0 | HQN78: 0 | HQO78: 0 | HQP78: 0 | HQQ78: 0 | HQR78: 0 | HQS78: 0 | HQT78: 0 | HQU78: 0 | HQV78: 0 | HQW78: 0 | HQX78: 0 | HQY78: 0 | HQZ78: 0 | HRA78: 0 | HRB78: 0 | HRC78: 0 | HRD78: 0 | HRE78: 0 | HRF78: 0 | HRG78: 0 | HRH78: 0 | HRI78: 0 | HRJ78: 0 | HRK78: 0 | HRL78: 0 | HRM78: 0 | HRN78: 0 | HRO78: 0 | HRP78: =SUM(HRP76:HRP77) -> 0 | HRQ78: 0 | HRR78: 0 | HRS78: 0 | HRT78: 0 | HRU78: 0 | HRV78: 0 | HRW78: 0 | HRX78: 0 | HRY78: 0 | HRZ78: 0 | HSA78: 0 | HSB78: 0 | HSC78: 0 | HSD78: 0 | HSE78: 0 | HSF78: 0 | HSG78: 0 | HSH78: 0 | HSI78: 0 | HSJ78: 0 | HSK78: 0 | HSL78: 0 | HSM78: 0 | HSN78: 0 | HSO78: 0 | HSP78: 0 | HSQ78: 0 | HSR78: 0 | HSS78: 0 | HST78: 0 | HSU78: 0 | HSV78: 0 | HSW78: 0 | HSX78: 0 | HSY78: 0 | HSZ78: 0 | HTA78: 0 | HTB78: 0 | HTC78: 0 | HTD78: 0 | HTE78: 0 | HTF78: 0 | HTG78: 0 | HTH78: 0 | HTI78: 0 | HTJ78: 0 | HTK78: 0 | HTL78: 0 | HTM78: 0 | HTN78: 0 | HTO78: 0 | HTP78: 0 | HTQ78: 0 | HTR78: 0 | HTS78: 0 | HTT78: 0 | HTU78: 0 | HTV78: 0 | HTW78: 0 | HTX78: 0 | HTY78: 0 | HTZ78: 0 | HUA78: 0 | HUB78: =SUM(HUB76:HUB77) -> 0 | HUC78: 0 | HUD78: 0 | HUE78: 0 | HUF78: 0 | HUG78: 0 | HUH78: 0 | HUI78: 0 | HUJ78: 0 | HUK78: 0 | HUL78: 0 | HUM78: 0 | HUN78: 0 | HUO78: 0 | HUP78: 0 | HUQ78: 0 | HUR78: 0 | HUS78: 0 | HUT78: 0 | HUU78: 0 | HUV78: 0 | HUW78: 0 | HUX78: 0 | HUY78: 0 | HUZ78: 0 | HVA78: 0 | HVB78: 0 | HVC78: 0 | HVD78: 0 | HVE78: 0 | HVF78: 0 | HVG78: 0 | HVH78: 0 | HVI78: 0 | HVJ78: 0 | HVK78: 0 | HVL78: 0 | HVM78: 0 | HVN78: 0 | HVO78: 0 | HVP78: 0 | HVQ78: 0 | HVR78: 0 | HVS78: 0 | HVT78: 0 | HVU78: 0 | HVV78: 0 | HVW78: 0 | HVX78: 0 | HVY78: 0 | HVZ78: 0 | HWA78: 0 | HWB78: 0 | HWC78: 0 | HWD78: 0 | HWE78: 0 | HWF78: 0 | HWG78: 0 | HWH78: 0 | HWI78: 0 | HWJ78: 0 | HWK78: 0 | HWL78: 0 | HWM78: 0 | HWN78: =SUM(HWN76:HWN77) -> 0 | HWO78: 0 | HWP78: 0 | HWQ78: 0 | HWR78: 0 | HWS78: 0 | HWT78: 0 | HWU78: 0 | HWV78: 0 | HWW78: 0 | HWX78: 0 | HWY78: 0 | HWZ78: 0 | HXA78: 0 | HXB78: 0 | HXC78: 0 | HXD78: 0 | HXE78: 0 | HXF78: 0 | HXG78: 0 | HXH78: 0 | HXI78: 0 | HXJ78: 0 | HXK78: 0 | HXL78: 0 | HXM78: 0 | HXN78: 0 | HXO78: 0 | HXP78: 0 | HXQ78: 0 | HXR78: 0 | HXS78: 0 | HXT78: 0 | HXU78: 0 | HXV78: 0 | HXW78: 0 | HXX78: 0 | HXY78: 0 | HXZ78: 0 | HYA78: 0 | HYB78: 0 | HYC78: 0 | HYD78: 0 | HYE78: 0 | HYF78: 0 | HYG78: 0 | HYH78: 0 | HYI78: 0 | HYJ78: 0 | HYK78: 0 | HYL78: 0 | HYM78: 0 | HYN78: 0 | HYO78: 0 | HYP78: 0 | HYQ78: 0 | HYR78: 0 | HYS78: 0 | HYT78: 0 | HYU78: 0 | HYV78: 0 | HYW78: 0 | HYX78: 0 | HYY78: 0 | HYZ78: =SUM(HYZ76:HYZ77) -> 0 | HZA78: 0 | HZB78: 0 | HZC78: 0 | HZD78: 0 | HZE78: 0 | HZF78: 0 | HZG78: 0 | HZH78: 0 | HZI78: 0 | HZJ78: 0 | HZK78: 0 | HZL78: 0 | HZM78: 0 | HZN78: 0 | HZO78: 0 | HZP78: 0 | HZQ78: 0 | HZR78: 0 | HZS78: 0 | HZT78: 0 | HZU78: 0 | HZV78: 0 | HZW78: 0 | HZX78: 0 | HZY78: 0 | HZZ78: 0 | IAA78: 0 | IAB78: 0 | IAC78: 0 | IAD78: 0 | IAE78: 0 | IAF78: 0 | IAG78: 0 | IAH78: 0 | IAI78: 0 | IAJ78: 0 | IAK78: 0 | IAL78: 0 | IAM78: 0 | IAN78: 0 | IAO78: 0 | IAP78: 0 | IAQ78: 0 | IAR78: 0 | IAS78: 0 | IAT78: 0 | IAU78: 0 | IAV78: 0 | IAW78: 0 | IAX78: 0 | IAY78: 0 | IAZ78: 0 | IBA78: 0 | IBB78: 0 | IBC78: 0 | IBD78: 0 | IBE78: 0 | IBF78: 0 | IBG78: 0 | IBH78: 0 | IBI78: 0 | IBJ78: 0 | IBK78: 0 | IBL78: =SUM(IBL76:IBL77) -> 0 | IBM78: 0 | IBN78: 0 | IBO78: 0 | IBP78: 0 | IBQ78: 0 | IBR78: 0 | IBS78: 0 | IBT78: 0 | IBU78: 0 | IBV78: 0 | IBW78: 0 | IBX78: 0 | IBY78: 0 | IBZ78: 0 | ICA78: 0 | ICB78: 0 | ICC78: 0 | ICD78: 0 | ICE78: 0 | ICF78: 0 | ICG78: 0 | ICH78: 0 | ICI78: 0 | ICJ78: 0 | ICK78: 0 | ICL78: 0 | ICM78: 0 | ICN78: 0 | ICO78: 0 | ICP78: 0 | ICQ78: 0 | ICR78: 0 | ICS78: 0 | ICT78: 0 | ICU78: 0 | ICV78: 0 | ICW78: 0 | ICX78: 0 | ICY78: 0 | ICZ78: 0 | IDA78: 0 | IDB78: 0 | IDC78: 0 | IDD78: 0 | IDE78: 0 | IDF78: 0 | IDG78: 0 | IDH78: 0 | IDI78: 0 | IDJ78: 0 | IDK78: 0 | IDL78: 0 | IDM78: 0 | IDN78: 0 | IDO78: 0 | IDP78: 0 | IDQ78: 0 | IDR78: 0 | IDS78: 0 | IDT78: 0 | IDU78: 0 | IDV78: 0 | IDW78: 0 | IDX78: =SUM(IDX76:IDX77) -> 0 | IDY78: 0 | IDZ78: 0 | IEA78: 0 | IEB78: 0 | IEC78: 0 | IED78: 0 | IEE78: 0 | IEF78: 0 | IEG78: 0 | IEH78: 0 | IEI78: 0 | IEJ78: 0 | IEK78: 0 | IEL78: 0 | IEM78: 0 | IEN78: 0 | IEO78: 0 | IEP78: 0 | IEQ78: 0 | IER78: 0 | IES78: 0 | IET78: 0 | IEU78: 0 | IEV78: 0 | IEW78: 0 | IEX78: 0 | IEY78: 0 | IEZ78: 0 | IFA78: 0 | IFB78: 0 | IFC78: 0 | IFD78: 0 | IFE78: 0 | IFF78: 0 | IFG78: 0 | IFH78: 0 | IFI78: 0 | IFJ78: 0 | IFK78: 0 | IFL78: 0 | IFM78: 0 | IFN78: 0 | IFO78: 0 | IFP78: 0 | IFQ78: 0 | IFR78: 0 | IFS78: 0 | IFT78: 0 | IFU78: 0 | IFV78: 0 | IFW78: 0 | IFX78: 0 | IFY78: 0 | IFZ78: 0 | IGA78: 0 | IGB78: 0 | IGC78: 0 | IGD78: 0 | IGE78: 0 | IGF78: 0 | IGG78: 0 | IGH78: 0 | IGI78: 0 | IGJ78: =SUM(IGJ76:IGJ77) -> 0 | IGK78: 0 | IGL78: 0 | IGM78: 0 | IGN78: 0 | IGO78: 0 | IGP78: 0 | IGQ78: 0 | IGR78: 0 | IGS78: 0 | IGT78: 0 | IGU78: 0 | IGV78: 0 | IGW78: 0 | IGX78: 0 | IGY78: 0 | IGZ78: 0 | IHA78: 0 | IHB78: 0 | IHC78: 0 | IHD78: 0 | IHE78: 0 | IHF78: 0 | IHG78: 0 | IHH78: 0 | IHI78: 0 | IHJ78: 0 | IHK78: 0 | IHL78: 0 | IHM78: 0 | IHN78: 0 | IHO78: 0 | IHP78: 0 | IHQ78: 0 | IHR78: 0 | IHS78: 0 | IHT78: 0 | IHU78: 0 | IHV78: 0 | IHW78: 0 | IHX78: 0 | IHY78: 0 | IHZ78: 0 | IIA78: 0 | IIB78: 0 | IIC78: 0 | IID78: 0 | IIE78: 0 | IIF78: 0 | IIG78: 0 | IIH78: 0 | III78: 0 | IIJ78: 0 | IIK78: 0 | IIL78: 0 | IIM78: 0 | IIN78: 0 | IIO78: 0 | IIP78: 0 | IIQ78: 0 | IIR78: 0 | IIS78: 0 | IIT78: 0 | IIU78: 0 | IIV78: =SUM(IIV76:IIV77) -> 0 | IIW78: 0 | IIX78: 0 | IIY78: 0 | IIZ78: 0 | IJA78: 0 | IJB78: 0 | IJC78: 0 | IJD78: 0 | IJE78: 0 | IJF78: 0 | IJG78: 0 | IJH78: 0 | IJI78: 0 | IJJ78: 0 | IJK78: 0 | IJL78: 0 | IJM78: 0 | IJN78: 0 | IJO78: 0 | IJP78: 0 | IJQ78: 0 | IJR78: 0 | IJS78: 0 | IJT78: 0 | IJU78: 0 | IJV78: 0 | IJW78: 0 | IJX78: 0 | IJY78: 0 | IJZ78: 0 | IKA78: 0 | IKB78: 0 | IKC78: 0 | IKD78: 0 | IKE78: 0 | IKF78: 0 | IKG78: 0 | IKH78: 0 | IKI78: 0 | IKJ78: 0 | IKK78: 0 | IKL78: 0 | IKM78: 0 | IKN78: 0 | IKO78: 0 | IKP78: 0 | IKQ78: 0 | IKR78: 0 | IKS78: 0 | IKT78: 0 | IKU78: 0 | IKV78: 0 | IKW78: 0 | IKX78: 0 | IKY78: 0 | IKZ78: 0 | ILA78: 0 | ILB78: 0 | ILC78: 0 | ILD78: 0 | ILE78: 0 | ILF78: 0 | ILG78: 0 | ILH78: =SUM(ILH76:ILH77) -> 0 | ILI78: 0 | ILJ78: 0 | ILK78: 0 | ILL78: 0 | ILM78: 0 | ILN78: 0 | ILO78: 0 | ILP78: 0 | ILQ78: 0 | ILR78: 0 | ILS78: 0 | ILT78: 0 | ILU78: 0 | ILV78: 0 | ILW78: 0 | ILX78: 0 | ILY78: 0 | ILZ78: 0 | IMA78: 0 | IMB78: 0 | IMC78: 0 | IMD78: 0 | IME78: 0 | IMF78: 0 | IMG78: 0 | IMH78: 0 | IMI78: 0 | IMJ78: 0 | IMK78: 0 | IML78: 0 | IMM78: 0 | IMN78: 0 | IMO78: 0 | IMP78: 0 | IMQ78: 0 | IMR78: 0 | IMS78: 0 | IMT78: 0 | IMU78: 0 | IMV78: 0 | IMW78: 0 | IMX78: 0 | IMY78: 0 | IMZ78: 0 | INA78: 0 | INB78: 0 | INC78: 0 | IND78: 0 | INE78: 0 | INF78: 0 | ING78: 0 | INH78: 0 | INI78: 0 | INJ78: 0 | INK78: 0 | INL78: 0 | INM78: 0 | INN78: 0 | INO78: 0 | INP78: 0 | INQ78: 0 | INR78: 0 | INS78: 0 | INT78: =SUM(INT76:INT77) -> 0 | INU78: 0 | INV78: 0 | INW78: 0 | INX78: 0 | INY78: 0 | INZ78: 0 | IOA78: 0 | IOB78: 0 | IOC78: 0 | IOD78: 0 | IOE78: 0 | IOF78: 0 | IOG78: 0 | IOH78: 0 | IOI78: 0 | IOJ78: 0 | IOK78: 0 | IOL78: 0 | IOM78: 0 | ION78: 0 | IOO78: 0 | IOP78: 0 | IOQ78: 0 | IOR78: 0 | IOS78: 0 | IOT78: 0 | IOU78: 0 | IOV78: 0 | IOW78: 0 | IOX78: 0 | IOY78: 0 | IOZ78: 0 | IPA78: 0 | IPB78: 0 | IPC78: 0 | IPD78: 0 | IPE78: 0 | IPF78: 0 | IPG78: 0 | IPH78: 0 | IPI78: 0 | IPJ78: 0 | IPK78: 0 | IPL78: 0 | IPM78: 0 | IPN78: 0 | IPO78: 0 | IPP78: 0 | IPQ78: 0 | IPR78: 0 | IPS78: 0 | IPT78: 0 | IPU78: 0 | IPV78: 0 | IPW78: 0 | IPX78: 0 | IPY78: 0 | IPZ78: 0 | IQA78: 0 | IQB78: 0 | IQC78: 0 | IQD78: 0 | IQE78: 0 | IQF78: =SUM(IQF76:IQF77) -> 0 | IQG78: 0 | IQH78: 0 | IQI78: 0 | IQJ78: 0 | IQK78: 0 | IQL78: 0 | IQM78: 0 | IQN78: 0 | IQO78: 0 | IQP78: 0 | IQQ78: 0 | IQR78: 0 | IQS78: 0 | IQT78: 0 | IQU78: 0 | IQV78: 0 | IQW78: 0 | IQX78: 0 | IQY78: 0 | IQZ78: 0 | IRA78: 0 | IRB78: 0 | IRC78: 0 | IRD78: 0 | IRE78: 0 | IRF78: 0 | IRG78: 0 | IRH78: 0 | IRI78: 0 | IRJ78: 0 | IRK78: 0 | IRL78: 0 | IRM78: 0 | IRN78: 0 | IRO78: 0 | IRP78: 0 | IRQ78: 0 | IRR78: 0 | IRS78: 0 | IRT78: 0 | IRU78: 0 | IRV78: 0 | IRW78: 0 | IRX78: 0 | IRY78: 0 | IRZ78: 0 | ISA78: 0 | ISB78: 0 | ISC78: 0 | ISD78: 0 | ISE78: 0 | ISF78: 0 | ISG78: 0 | ISH78: 0 | ISI78: 0 | ISJ78: 0 | ISK78: 0 | ISL78: 0 | ISM78: 0 | ISN78: 0 | ISO78: 0 | ISP78: 0 | ISQ78: 0 | ISR78: =SUM(ISR76:ISR77) -> 0 | ISS78: 0 | IST78: 0 | ISU78: 0 | ISV78: 0 | ISW78: 0 | ISX78: 0 | ISY78: 0 | ISZ78: 0 | ITA78: 0 | ITB78: 0 | ITC78: 0 | ITD78: 0 | ITE78: 0 | ITF78: 0 | ITG78: 0 | ITH78: 0 | ITI78: 0 | ITJ78: 0 | ITK78: 0 | ITL78: 0 | ITM78: 0 | ITN78: 0 | ITO78: 0 | ITP78: 0 | ITQ78: 0 | ITR78: 0 | ITS78: 0 | ITT78: 0 | ITU78: 0 | ITV78: 0 | ITW78: 0 | ITX78: 0 | ITY78: 0 | ITZ78: 0 | IUA78: 0 | IUB78: 0 | IUC78: 0 | IUD78: 0 | IUE78: 0 | IUF78: 0 | IUG78: 0 | IUH78: 0 | IUI78: 0 | IUJ78: 0 | IUK78: 0 | IUL78: 0 | IUM78: 0 | IUN78: 0 | IUO78: 0 | IUP78: 0 | IUQ78: 0 | IUR78: 0 | IUS78: 0 | IUT78: 0 | IUU78: 0 | IUV78: 0 | IUW78: 0 | IUX78: 0 | IUY78: 0 | IUZ78: 0 | IVA78: 0 | IVB78: 0 | IVC78: 0 | IVD78: =SUM(IVD76:IVD77) -> 0 | IVE78: 0 | IVF78: 0 | IVG78: 0 | IVH78: 0 | IVI78: 0 | IVJ78: 0 | IVK78: 0 | IVL78: 0 | IVM78: 0 | IVN78: 0 | IVO78: 0 | IVP78: 0 | IVQ78: 0 | IVR78: 0 | IVS78: 0 | IVT78: 0 | IVU78: 0 | IVV78: 0 | IVW78: 0 | IVX78: 0 | IVY78: 0 | IVZ78: 0 | IWA78: 0 | IWB78: 0 | IWC78: 0 | IWD78: 0 | IWE78: 0 | IWF78: 0 | IWG78: 0 | IWH78: 0 | IWI78: 0 | IWJ78: 0 | IWK78: 0 | IWL78: 0 | IWM78: 0 | IWN78: 0 | IWO78: 0 | IWP78: 0 | IWQ78: 0 | IWR78: 0 | IWS78: 0 | IWT78: 0 | IWU78: 0 | IWV78: 0 | IWW78: 0 | IWX78: 0 | IWY78: 0 | IWZ78: 0 | IXA78: 0 | IXB78: 0 | IXC78: 0 | IXD78: 0 | IXE78: 0 | IXF78: 0 | IXG78: 0 | IXH78: 0 | IXI78: 0 | IXJ78: 0 | IXK78: 0 | IXL78: 0 | IXM78: 0 | IXN78: 0 | IXO78: 0 | IXP78: =SUM(IXP76:IXP77) -> 0 | IXQ78: 0 | IXR78: 0 | IXS78: 0 | IXT78: 0 | IXU78: 0 | IXV78: 0 | IXW78: 0 | IXX78: 0 | IXY78: 0 | IXZ78: 0 | IYA78: 0 | IYB78: 0 | IYC78: 0 | IYD78: 0 | IYE78: 0 | IYF78: 0 | IYG78: 0 | IYH78: 0 | IYI78: 0 | IYJ78: 0 | IYK78: 0 | IYL78: 0 | IYM78: 0 | IYN78: 0 | IYO78: 0 | IYP78: 0 | IYQ78: 0 | IYR78: 0 | IYS78: 0 | IYT78: 0 | IYU78: 0 | IYV78: 0 | IYW78: 0 | IYX78: 0 | IYY78: 0 | IYZ78: 0 | IZA78: 0 | IZB78: 0 | IZC78: 0 | IZD78: 0 | IZE78: 0 | IZF78: 0 | IZG78: 0 | IZH78: 0 | IZI78: 0 | IZJ78: 0 | IZK78: 0 | IZL78: 0 | IZM78: 0 | IZN78: 0 | IZO78: 0 | IZP78: 0 | IZQ78: 0 | IZR78: 0 | IZS78: 0 | IZT78: 0 | IZU78: 0 | IZV78: 0 | IZW78: 0 | IZX78: 0 | IZY78: 0 | IZZ78: 0 | JAA78: 0 | JAB78: =SUM(JAB76:JAB77) -> 0 | JAC78: 0 | JAD78: 0 | JAE78: 0 | JAF78: 0 | JAG78: 0 | JAH78: 0 | JAI78: 0 | JAJ78: 0 | JAK78: 0 | JAL78: 0 | JAM78: 0 | JAN78: 0 | JAO78: 0 | JAP78: 0 | JAQ78: 0 | JAR78: 0 | JAS78: 0 | JAT78: 0 | JAU78: 0 | JAV78: 0 | JAW78: 0 | JAX78: 0 | JAY78: 0 | JAZ78: 0 | JBA78: 0 | JBB78: 0 | JBC78: 0 | JBD78: 0 | JBE78: 0 | JBF78: 0 | JBG78: 0 | JBH78: 0 | JBI78: 0 | JBJ78: 0 | JBK78: 0 | JBL78: 0 | JBM78: 0 | JBN78: 0 | JBO78: 0 | JBP78: 0 | JBQ78: 0 | JBR78: 0 | JBS78: 0 | JBT78: 0 | JBU78: 0 | JBV78: 0 | JBW78: 0 | JBX78: 0 | JBY78: 0 | JBZ78: 0 | JCA78: 0 | JCB78: 0 | JCC78: 0 | JCD78: 0 | JCE78: 0 | JCF78: 0 | JCG78: 0 | JCH78: 0 | JCI78: 0 | JCJ78: 0 | JCK78: 0 | JCL78: 0 | JCM78: 0 | JCN78: =SUM(JCN76:JCN77) -> 0 | JCO78: 0 | JCP78: 0 | JCQ78: 0 | JCR78: 0 | JCS78: 0 | JCT78: 0 | JCU78: 0 | JCV78: 0 | JCW78: 0 | JCX78: 0 | JCY78: 0 | JCZ78: 0 | JDA78: 0 | JDB78: 0 | JDC78: 0 | JDD78: 0 | JDE78: 0 | JDF78: 0 | JDG78: 0 | JDH78: 0 | JDI78: 0 | JDJ78: 0 | JDK78: 0 | JDL78: 0 | JDM78: 0 | JDN78: 0 | JDO78: 0 | JDP78: 0 | JDQ78: 0 | JDR78: 0 | JDS78: 0 | JDT78: 0 | JDU78: 0 | JDV78: 0 | JDW78: 0 | JDX78: 0 | JDY78: 0 | JDZ78: 0 | JEA78: 0 | JEB78: 0 | JEC78: 0 | JED78: 0 | JEE78: 0 | JEF78: 0 | JEG78: 0 | JEH78: 0 | JEI78: 0 | JEJ78: 0 | JEK78: 0 | JEL78: 0 | JEM78: 0 | JEN78: 0 | JEO78: 0 | JEP78: 0 | JEQ78: 0 | JER78: 0 | JES78: 0 | JET78: 0 | JEU78: 0 | JEV78: 0 | JEW78: 0 | JEX78: 0 | JEY78: 0 | JEZ78: =SUM(JEZ76:JEZ77) -> 0 | JFA78: 0 | JFB78: 0 | JFC78: 0 | JFD78: 0 | JFE78: 0 | JFF78: 0 | JFG78: 0 | JFH78: 0 | JFI78: 0 | JFJ78: 0 | JFK78: 0 | JFL78: 0 | JFM78: 0 | JFN78: 0 | JFO78: 0 | JFP78: 0 | JFQ78: 0 | JFR78: 0 | JFS78: 0 | JFT78: 0 | JFU78: 0 | JFV78: 0 | JFW78: 0 | JFX78: 0 | JFY78: 0 | JFZ78: 0 | JGA78: 0 | JGB78: 0 | JGC78: 0 | JGD78: 0 | JGE78: 0 | JGF78: 0 | JGG78: 0 | JGH78: 0 | JGI78: 0 | JGJ78: 0 | JGK78: 0 | JGL78: 0 | JGM78: 0 | JGN78: 0 | JGO78: 0 | JGP78: 0 | JGQ78: 0 | JGR78: 0 | JGS78: 0 | JGT78: 0 | JGU78: 0 | JGV78: 0 | JGW78: 0 | JGX78: 0 | JGY78: 0 | JGZ78: 0 | JHA78: 0 | JHB78: 0 | JHC78: 0 | JHD78: 0 | JHE78: 0 | JHF78: 0 | JHG78: 0 | JHH78: 0 | JHI78: 0 | JHJ78: 0 | JHK78: 0 | JHL78: =SUM(JHL76:JHL77) -> 0 | JHM78: 0 | JHN78: 0 | JHO78: 0 | JHP78: 0 | JHQ78: 0 | JHR78: 0 | JHS78: 0 | JHT78: 0 | JHU78: 0 | JHV78: 0 | JHW78: 0 | JHX78: 0 | JHY78: 0 | JHZ78: 0 | JIA78: 0 | JIB78: 0 | JIC78: 0 | JID78: 0 | JIE78: 0 | JIF78: 0 | JIG78: 0 | JIH78: 0 | JII78: 0 | JIJ78: 0 | JIK78: 0 | JIL78: 0 | JIM78: 0 | JIN78: 0 | JIO78: 0 | JIP78: 0 | JIQ78: 0 | JIR78: 0 | JIS78: 0 | JIT78: 0 | JIU78: 0 | JIV78: 0 | JIW78: 0 | JIX78: 0 | JIY78: 0 | JIZ78: 0 | JJA78: 0 | JJB78: 0 | JJC78: 0 | JJD78: 0 | JJE78: 0 | JJF78: 0 | JJG78: 0 | JJH78: 0 | JJI78: 0 | JJJ78: 0 | JJK78: 0 | JJL78: 0 | JJM78: 0 | JJN78: 0 | JJO78: 0 | JJP78: 0 | JJQ78: 0 | JJR78: 0 | JJS78: 0 | JJT78: 0 | JJU78: 0 | JJV78: 0 | JJW78: 0 | JJX78: =SUM(JJX76:JJX77) -> 0 | JJY78: 0 | JJZ78: 0 | JKA78: 0 | JKB78: 0 | JKC78: 0 | JKD78: 0 | JKE78: 0 | JKF78: 0 | JKG78: 0 | JKH78: 0 | JKI78: 0 | JKJ78: 0 | JKK78: 0 | JKL78: 0 | JKM78: 0 | JKN78: 0 | JKO78: 0 | JKP78: 0 | JKQ78: 0 | JKR78: 0 | JKS78: 0 | JKT78: 0 | JKU78: 0 | JKV78: 0 | JKW78: 0 | JKX78: 0 | JKY78: 0 | JKZ78: 0 | JLA78: 0 | JLB78: 0 | JLC78: 0 | JLD78: 0 | JLE78: 0 | JLF78: 0 | JLG78: 0 | JLH78: 0 | JLI78: 0 | JLJ78: 0 | JLK78: 0 | JLL78: 0 | JLM78: 0 | JLN78: 0 | JLO78: 0 | JLP78: 0 | JLQ78: 0 | JLR78: 0 | JLS78: 0 | JLT78: 0 | JLU78: 0 | JLV78: 0 | JLW78: 0 | JLX78: 0 | JLY78: 0 | JLZ78: 0 | JMA78: 0 | JMB78: 0 | JMC78: 0 | JMD78: 0 | JME78: 0 | JMF78: 0 | JMG78: 0 | JMH78: 0 | JMI78: 0 | JMJ78: =SUM(JMJ76:JMJ77) -> 0 | JMK78: 0 | JML78: 0 | JMM78: 0 | JMN78: 0 | JMO78: 0 | JMP78: 0 | JMQ78: 0 | JMR78: 0 | JMS78: 0 | JMT78: 0 | JMU78: 0 | JMV78: 0 | JMW78: 0 | JMX78: 0 | JMY78: 0 | JMZ78: 0 | JNA78: 0 | JNB78: 0 | JNC78: 0 | JND78: 0 | JNE78: 0 | JNF78: 0 | JNG78: 0 | JNH78: 0 | JNI78: 0 | JNJ78: 0 | JNK78: 0 | JNL78: 0 | JNM78: 0 | JNN78: 0 | JNO78: 0 | JNP78: 0 | JNQ78: 0 | JNR78: 0 | JNS78: 0 | JNT78: 0 | JNU78: 0 | JNV78: 0 | JNW78: 0 | JNX78: 0 | JNY78: 0 | JNZ78: 0 | JOA78: 0 | JOB78: 0 | JOC78: 0 | JOD78: 0 | JOE78: 0 | JOF78: 0 | JOG78: 0 | JOH78: 0 | JOI78: 0 | JOJ78: 0 | JOK78: 0 | JOL78: 0 | JOM78: 0 | JON78: 0 | JOO78: 0 | JOP78: 0 | JOQ78: 0 | JOR78: 0 | JOS78: 0 | JOT78: 0 | JOU78: 0 | JOV78: =SUM(JOV76:JOV77) -> 0 | JOW78: 0 | JOX78: 0 | JOY78: 0 | JOZ78: 0 | JPA78: 0 | JPB78: 0 | JPC78: 0 | JPD78: 0 | JPE78: 0 | JPF78: 0 | JPG78: 0 | JPH78: 0 | JPI78: 0 | JPJ78: 0 | JPK78: 0 | JPL78: 0 | JPM78: 0 | JPN78: 0 | JPO78: 0 | JPP78: 0 | JPQ78: 0 | JPR78: 0 | JPS78: 0 | JPT78: 0 | JPU78: 0 | JPV78: 0 | JPW78: 0 | JPX78: 0 | JPY78: 0 | JPZ78: 0 | JQA78: 0 | JQB78: 0 | JQC78: 0 | JQD78: 0 | JQE78: 0 | JQF78: 0 | JQG78: 0 | JQH78: 0 | JQI78: 0 | JQJ78: 0 | JQK78: 0 | JQL78: 0 | JQM78: 0 | JQN78: 0 | JQO78: 0 | JQP78: 0 | JQQ78: 0 | JQR78: 0 | JQS78: 0 | JQT78: 0 | JQU78: 0 | JQV78: 0 | JQW78: 0 | JQX78: 0 | JQY78: 0 | JQZ78: 0 | JRA78: 0 | JRB78: 0 | JRC78: 0 | JRD78: 0 | JRE78: 0 | JRF78: 0 | JRG78: 0 | JRH78: =SUM(JRH76:JRH77) -> 0 | JRI78: 0 | JRJ78: 0 | JRK78: 0 | JRL78: 0 | JRM78: 0 | JRN78: 0 | JRO78: 0 | JRP78: 0 | JRQ78: 0 | JRR78: 0 | JRS78: 0 | JRT78: 0 | JRU78: 0 | JRV78: 0 | JRW78: 0 | JRX78: 0 | JRY78: 0 | JRZ78: 0 | JSA78: 0 | JSB78: 0 | JSC78: 0 | JSD78: 0 | JSE78: 0 | JSF78: 0 | JSG78: 0 | JSH78: 0 | JSI78: 0 | JSJ78: 0 | JSK78: 0 | JSL78: 0 | JSM78: 0 | JSN78: 0 | JSO78: 0 | JSP78: 0 | JSQ78: 0 | JSR78: 0 | JSS78: 0 | JST78: 0 | JSU78: 0 | JSV78: 0 | JSW78: 0 | JSX78: 0 | JSY78: 0 | JSZ78: 0 | JTA78: 0 | JTB78: 0 | JTC78: 0 | JTD78: 0 | JTE78: 0 | JTF78: 0 | JTG78: 0 | JTH78: 0 | JTI78: 0 | JTJ78: 0 | JTK78: 0 | JTL78: 0 | JTM78: 0 | JTN78: 0 | JTO78: 0 | JTP78: 0 | JTQ78: 0 | JTR78: 0 | JTS78: 0 | JTT78: =SUM(JTT76:JTT77) -> 0 | JTU78: 0 | JTV78: 0 | JTW78: 0 | JTX78: 0 | JTY78: 0 | JTZ78: 0 | JUA78: 0 | JUB78: 0 | JUC78: 0 | JUD78: 0 | JUE78: 0 | JUF78: 0 | JUG78: 0 | JUH78: 0 | JUI78: 0 | JUJ78: 0 | JUK78: 0 | JUL78: 0 | JUM78: 0 | JUN78: 0 | JUO78: 0 | JUP78: 0 | JUQ78: 0 | JUR78: 0 | JUS78: 0 | JUT78: 0 | JUU78: 0 | JUV78: 0 | JUW78: 0 | JUX78: 0 | JUY78: 0 | JUZ78: 0 | JVA78: 0 | JVB78: 0 | JVC78: 0 | JVD78: 0 | JVE78: 0 | JVF78: 0 | JVG78: 0 | JVH78: 0 | JVI78: 0 | JVJ78: 0 | JVK78: 0 | JVL78: 0 | JVM78: 0 | JVN78: 0 | JVO78: 0 | JVP78: 0 | JVQ78: 0 | JVR78: 0 | JVS78: 0 | JVT78: 0 | JVU78: 0 | JVV78: 0 | JVW78: 0 | JVX78: 0 | JVY78: 0 | JVZ78: 0 | JWA78: 0 | JWB78: 0 | JWC78: 0 | JWD78: 0 | JWE78: 0 | JWF78: =SUM(JWF76:JWF77) -> 0 | JWG78: 0 | JWH78: 0 | JWI78: 0 | JWJ78: 0 | JWK78: 0 | JWL78: 0 | JWM78: 0 | JWN78: 0 | JWO78: 0 | JWP78: 0 | JWQ78: 0 | JWR78: 0 | JWS78: 0 | JWT78: 0 | JWU78: 0 | JWV78: 0 | JWW78: 0 | JWX78: 0 | JWY78: 0 | JWZ78: 0 | JXA78: 0 | JXB78: 0 | JXC78: 0 | JXD78: 0 | JXE78: 0 | JXF78: 0 | JXG78: 0 | JXH78: 0 | JXI78: 0 | JXJ78: 0 | JXK78: 0 | JXL78: 0 | JXM78: 0 | JXN78: 0 | JXO78: 0 | JXP78: 0 | JXQ78: 0 | JXR78: 0 | JXS78: 0 | JXT78: 0 | JXU78: 0 | JXV78: 0 | JXW78: 0 | JXX78: 0 | JXY78: 0 | JXZ78: 0 | JYA78: 0 | JYB78: 0 | JYC78: 0 | JYD78: 0 | JYE78: 0 | JYF78: 0 | JYG78: 0 | JYH78: 0 | JYI78: 0 | JYJ78: 0 | JYK78: 0 | JYL78: 0 | JYM78: 0 | JYN78: 0 | JYO78: 0 | JYP78: 0 | JYQ78: 0 | JYR78: =SUM(JYR76:JYR77) -> 0 | JYS78: 0 | JYT78: 0 | JYU78: 0 | JYV78: 0 | JYW78: 0 | JYX78: 0 | JYY78: 0 | JYZ78: 0 | JZA78: 0 | JZB78: 0 | JZC78: 0 | JZD78: 0 | JZE78: 0 | JZF78: 0 | JZG78: 0 | JZH78: 0 | JZI78: 0 | JZJ78: 0 | JZK78: 0 | JZL78: 0 | JZM78: 0 | JZN78: 0 | JZO78: 0 | JZP78: 0 | JZQ78: 0 | JZR78: 0 | JZS78: 0 | JZT78: 0 | JZU78: 0 | JZV78: 0 | JZW78: 0 | JZX78: 0 | JZY78: 0 | JZZ78: 0 | KAA78: 0 | KAB78: 0 | KAC78: 0 | KAD78: 0 | KAE78: 0 | KAF78: 0 | KAG78: 0 | KAH78: 0 | KAI78: 0 | KAJ78: 0 | KAK78: 0 | KAL78: 0 | KAM78: 0 | KAN78: 0 | KAO78: 0 | KAP78: 0 | KAQ78: 0 | KAR78: 0 | KAS78: 0 | KAT78: 0 | KAU78: 0 | KAV78: 0 | KAW78: 0 | KAX78: 0 | KAY78: 0 | KAZ78: 0 | KBA78: 0 | KBB78: 0 | KBC78: 0 | KBD78: =SUM(KBD76:KBD77) -> 0 | KBE78: 0 | KBF78: 0 | KBG78: 0 | KBH78: 0 | KBI78: 0 | KBJ78: 0 | KBK78: 0 | KBL78: 0 | KBM78: 0 | KBN78: 0 | KBO78: 0 | KBP78: 0 | KBQ78: 0 | KBR78: 0 | KBS78: 0 | KBT78: 0 | KBU78: 0 | KBV78: 0 | KBW78: 0 | KBX78: 0 | KBY78: 0 | KBZ78: 0 | KCA78: 0 | KCB78: 0 | KCC78: 0 | KCD78: 0 | KCE78: 0 | KCF78: 0 | KCG78: 0 | KCH78: 0 | KCI78: 0 | KCJ78: 0 | KCK78: 0 | KCL78: 0 | KCM78: 0 | KCN78: 0 | KCO78: 0 | KCP78: 0 | KCQ78: 0 | KCR78: 0 | KCS78: 0 | KCT78: 0 | KCU78: 0 | KCV78: 0 | KCW78: 0 | KCX78: 0 | KCY78: 0 | KCZ78: 0 | KDA78: 0 | KDB78: 0 | KDC78: 0 | KDD78: 0 | KDE78: 0 | KDF78: 0 | KDG78: 0 | KDH78: 0 | KDI78: 0 | KDJ78: 0 | KDK78: 0 | KDL78: 0 | KDM78: 0 | KDN78: 0 | KDO78: 0 | KDP78: =SUM(KDP76:KDP77) -> 0 | KDQ78: 0 | KDR78: 0 | KDS78: 0 | KDT78: 0 | KDU78: 0 | KDV78: 0 | KDW78: 0 | KDX78: 0 | KDY78: 0 | KDZ78: 0 | KEA78: 0 | KEB78: 0 | KEC78: 0 | KED78: 0 | KEE78: 0 | KEF78: 0 | KEG78: 0 | KEH78: 0 | KEI78: 0 | KEJ78: 0 | KEK78: 0 | KEL78: 0 | KEM78: 0 | KEN78: 0 | KEO78: 0 | KEP78: 0 | KEQ78: 0 | KER78: 0 | KES78: 0 | KET78: 0 | KEU78: 0 | KEV78: 0 | KEW78: 0 | KEX78: 0 | KEY78: 0 | KEZ78: 0 | KFA78: 0 | KFB78: 0 | KFC78: 0 | KFD78: 0 | KFE78: 0 | KFF78: 0 | KFG78: 0 | KFH78: 0 | KFI78: 0 | KFJ78: 0 | KFK78: 0 | KFL78: 0 | KFM78: 0 | KFN78: 0 | KFO78: 0 | KFP78: 0 | KFQ78: 0 | KFR78: 0 | KFS78: 0 | KFT78: 0 | KFU78: 0 | KFV78: 0 | KFW78: 0 | KFX78: 0 | KFY78: 0 | KFZ78: 0 | KGA78: 0 | KGB78: =SUM(KGB76:KGB77) -> 0 | KGC78: 0 | KGD78: 0 | KGE78: 0 | KGF78: 0 | KGG78: 0 | KGH78: 0 | KGI78: 0 | KGJ78: 0 | KGK78: 0 | KGL78: 0 | KGM78: 0 | KGN78: 0 | KGO78: 0 | KGP78: 0 | KGQ78: 0 | KGR78: 0 | KGS78: 0 | KGT78: 0 | KGU78: 0 | KGV78: 0 | KGW78: 0 | KGX78: 0 | KGY78: 0 | KGZ78: 0 | KHA78: 0 | KHB78: 0 | KHC78: 0 | KHD78: 0 | KHE78: 0 | KHF78: 0 | KHG78: 0 | KHH78: 0 | KHI78: 0 | KHJ78: 0 | KHK78: 0 | KHL78: 0 | KHM78: 0 | KHN78: 0 | KHO78: 0 | KHP78: 0 | KHQ78: 0 | KHR78: 0 | KHS78: 0 | KHT78: 0 | KHU78: 0 | KHV78: 0 | KHW78: 0 | KHX78: 0 | KHY78: 0 | KHZ78: 0 | KIA78: 0 | KIB78: 0 | KIC78: 0 | KID78: 0 | KIE78: 0 | KIF78: 0 | KIG78: 0 | KIH78: 0 | KII78: 0 | KIJ78: 0 | KIK78: 0 | KIL78: 0 | KIM78: 0 | KIN78: =SUM(KIN76:KIN77) -> 0 | KIO78: 0 | KIP78: 0 | KIQ78: 0 | KIR78: 0 | KIS78: 0 | KIT78: 0 | KIU78: 0 | KIV78: 0 | KIW78: 0 | KIX78: 0 | KIY78: 0 | KIZ78: 0 | KJA78: 0 | KJB78: 0 | KJC78: 0 | KJD78: 0 | KJE78: 0 | KJF78: 0 | KJG78: 0 | KJH78: 0 | KJI78: 0 | KJJ78: 0 | KJK78: 0 | KJL78: 0 | KJM78: 0 | KJN78: 0 | KJO78: 0 | KJP78: 0 | KJQ78: 0 | KJR78: 0 | KJS78: 0 | KJT78: 0 | KJU78: 0 | KJV78: 0 | KJW78: 0 | KJX78: 0 | KJY78: 0 | KJZ78: 0 | KKA78: 0 | KKB78: 0 | KKC78: 0 | KKD78: 0 | KKE78: 0 | KKF78: 0 | KKG78: 0 | KKH78: 0 | KKI78: 0 | KKJ78: 0 | KKK78: 0 | KKL78: 0 | KKM78: 0 | KKN78: 0 | KKO78: 0 | KKP78: 0 | KKQ78: 0 | KKR78: 0 | KKS78: 0 | KKT78: 0 | KKU78: 0 | KKV78: 0 | KKW78: 0 | KKX78: 0 | KKY78: 0 | KKZ78: =SUM(KKZ76:KKZ77) -> 0 | KLA78: 0 | KLB78: 0 | KLC78: 0 | KLD78: 0 | KLE78: 0 | KLF78: 0 | KLG78: 0 | KLH78: 0 | KLI78: 0 | KLJ78: 0 | KLK78: 0 | KLL78: 0 | KLM78: 0 | KLN78: 0 | KLO78: 0 | KLP78: 0 | KLQ78: 0 | KLR78: 0 | KLS78: 0 | KLT78: 0 | KLU78: 0 | KLV78: 0 | KLW78: 0 | KLX78: 0 | KLY78: 0 | KLZ78: 0 | KMA78: 0 | KMB78: 0 | KMC78: 0 | KMD78: 0 | KME78: 0 | KMF78: 0 | KMG78: 0 | KMH78: 0 | KMI78: 0 | KMJ78: 0 | KMK78: 0 | KML78: 0 | KMM78: 0 | KMN78: 0 | KMO78: 0 | KMP78: 0 | KMQ78: 0 | KMR78: 0 | KMS78: 0 | KMT78: 0 | KMU78: 0 | KMV78: 0 | KMW78: 0 | KMX78: 0 | KMY78: 0 | KMZ78: 0 | KNA78: 0 | KNB78: 0 | KNC78: 0 | KND78: 0 | KNE78: 0 | KNF78: 0 | KNG78: 0 | KNH78: 0 | KNI78: 0 | KNJ78: 0 | KNK78: 0 | KNL78: =SUM(KNL76:KNL77) -> 0 | KNM78: 0 | KNN78: 0 | KNO78: 0 | KNP78: 0 | KNQ78: 0 | KNR78: 0 | KNS78: 0 | KNT78: 0 | KNU78: 0 | KNV78: 0 | KNW78: 0 | KNX78: 0 | KNY78: 0 | KNZ78: 0 | KOA78: 0 | KOB78: 0 | KOC78: 0 | KOD78: 0 | KOE78: 0 | KOF78: 0 | KOG78: 0 | KOH78: 0 | KOI78: 0 | KOJ78: 0 | KOK78: 0 | KOL78: 0 | KOM78: 0 | KON78: 0 | KOO78: 0 | KOP78: 0 | KOQ78: 0 | KOR78: 0 | KOS78: 0 | KOT78: 0 | KOU78: 0 | KOV78: 0 | KOW78: 0 | KOX78: 0 | KOY78: 0 | KOZ78: 0 | KPA78: 0 | KPB78: 0 | KPC78: 0 | KPD78: 0 | KPE78: 0 | KPF78: 0 | KPG78: 0 | KPH78: 0 | KPI78: 0 | KPJ78: 0 | KPK78: 0 | KPL78: 0 | KPM78: 0 | KPN78: 0 | KPO78: 0 | KPP78: 0 | KPQ78: 0 | KPR78: 0 | KPS78: 0 | KPT78: 0 | KPU78: 0 | KPV78: 0 | KPW78: 0 | KPX78: =SUM(KPX76:KPX77) -> 0 | KPY78: 0 | KPZ78: 0 | KQA78: 0 | KQB78: 0 | KQC78: 0 | KQD78: 0 | KQE78: 0 | KQF78: 0 | KQG78: 0 | KQH78: 0 | KQI78: 0 | KQJ78: 0 | KQK78: 0 | KQL78: 0 | KQM78: 0 | KQN78: 0 | KQO78: 0 | KQP78: 0 | KQQ78: 0 | KQR78: 0 | KQS78: 0 | KQT78: 0 | KQU78: 0 | KQV78: 0 | KQW78: 0 | KQX78: 0 | KQY78: 0 | KQZ78: 0 | KRA78: 0 | KRB78: 0 | KRC78: 0 | KRD78: 0 | KRE78: 0 | KRF78: 0 | KRG78: 0 | KRH78: 0 | KRI78: 0 | KRJ78: 0 | KRK78: 0 | KRL78: 0 | KRM78: 0 | KRN78: 0 | KRO78: 0 | KRP78: 0 | KRQ78: 0 | KRR78: 0 | KRS78: 0 | KRT78: 0 | KRU78: 0 | KRV78: 0 | KRW78: 0 | KRX78: 0 | KRY78: 0 | KRZ78: 0 | KSA78: 0 | KSB78: 0 | KSC78: 0 | KSD78: 0 | KSE78: 0 | KSF78: 0 | KSG78: 0 | KSH78: 0 | KSI78: 0 | KSJ78: =SUM(KSJ76:KSJ77) -> 0 | KSK78: 0 | KSL78: 0 | KSM78: 0 | KSN78: 0 | KSO78: 0 | KSP78: 0 | KSQ78: 0 | KSR78: 0 | KSS78: 0 | KST78: 0 | KSU78: 0 | KSV78: 0 | KSW78: 0 | KSX78: 0 | KSY78: 0 | KSZ78: 0 | KTA78: 0 | KTB78: 0 | KTC78: 0 | KTD78: 0 | KTE78: 0 | KTF78: 0 | KTG78: 0 | KTH78: 0 | KTI78: 0 | KTJ78: 0 | KTK78: 0 | KTL78: 0 | KTM78: 0 | KTN78: 0 | KTO78: 0 | KTP78: 0 | KTQ78: 0 | KTR78: 0 | KTS78: 0 | KTT78: 0 | KTU78: 0 | KTV78: 0 | KTW78: 0 | KTX78: 0 | KTY78: 0 | KTZ78: 0 | KUA78: 0 | KUB78: 0 | KUC78: 0 | KUD78: 0 | KUE78: 0 | KUF78: 0 | KUG78: 0 | KUH78: 0 | KUI78: 0 | KUJ78: 0 | KUK78: 0 | KUL78: 0 | KUM78: 0 | KUN78: 0 | KUO78: 0 | KUP78: 0 | KUQ78: 0 | KUR78: 0 | KUS78: 0 | KUT78: 0 | KUU78: 0 | KUV78: =SUM(KUV76:KUV77) -> 0 | KUW78: 0 | KUX78: 0 | KUY78: 0 | KUZ78: 0 | KVA78: 0 | KVB78: 0 | KVC78: 0 | KVD78: 0 | KVE78: 0 | KVF78: 0 | KVG78: 0 | KVH78: 0 | KVI78: 0 | KVJ78: 0 | KVK78: 0 | KVL78: 0 | KVM78: 0 | KVN78: 0 | KVO78: 0 | KVP78: 0 | KVQ78: 0 | KVR78: 0 | KVS78: 0 | KVT78: 0 | KVU78: 0 | KVV78: 0 | KVW78: 0 | KVX78: 0 | KVY78: 0 | KVZ78: 0 | KWA78: 0 | KWB78: 0 | KWC78: 0 | KWD78: 0 | KWE78: 0 | KWF78: 0 | KWG78: 0 | KWH78: 0 | KWI78: 0 | KWJ78: 0 | KWK78: 0 | KWL78: 0 | KWM78: 0 | KWN78: 0 | KWO78: 0 | KWP78: 0 | KWQ78: 0 | KWR78: 0 | KWS78: 0 | KWT78: 0 | KWU78: 0 | KWV78: 0 | KWW78: 0 | KWX78: 0 | KWY78: 0 | KWZ78: 0 | KXA78: 0 | KXB78: 0 | KXC78: 0 | KXD78: 0 | KXE78: 0 | KXF78: 0 | KXG78: 0 | KXH78: =SUM(KXH76:KXH77) -> 0 | KXI78: 0 | KXJ78: 0 | KXK78: 0 | KXL78: 0 | KXM78: 0 | KXN78: 0 | KXO78: 0 | KXP78: 0 | KXQ78: 0 | KXR78: 0 | KXS78: 0 | KXT78: 0 | KXU78: 0 | KXV78: 0 | KXW78: 0 | KXX78: 0 | KXY78: 0 | KXZ78: 0 | KYA78: 0 | KYB78: 0 | KYC78: 0 | KYD78: 0 | KYE78: 0 | KYF78: 0 | KYG78: 0 | KYH78: 0 | KYI78: 0 | KYJ78: 0 | KYK78: 0 | KYL78: 0 | KYM78: 0 | KYN78: 0 | KYO78: 0 | KYP78: 0 | KYQ78: 0 | KYR78: 0 | KYS78: 0 | KYT78: 0 | KYU78: 0 | KYV78: 0 | KYW78: 0 | KYX78: 0 | KYY78: 0 | KYZ78: 0 | KZA78: 0 | KZB78: 0 | KZC78: 0 | KZD78: 0 | KZE78: 0 | KZF78: 0 | KZG78: 0 | KZH78: 0 | KZI78: 0 | KZJ78: 0 | KZK78: 0 | KZL78: 0 | KZM78: 0 | KZN78: 0 | KZO78: 0 | KZP78: 0 | KZQ78: 0 | KZR78: 0 | KZS78: 0 | KZT78: =SUM(KZT76:KZT77) -> 0 | KZU78: 0 | KZV78: 0 | KZW78: 0 | KZX78: 0 | KZY78: 0 | KZZ78: 0 | LAA78: 0 | LAB78: 0 | LAC78: 0 | LAD78: 0 | LAE78: 0 | LAF78: 0 | LAG78: 0 | LAH78: 0 | LAI78: 0 | LAJ78: 0 | LAK78: 0 | LAL78: 0 | LAM78: 0 | LAN78: 0 | LAO78: 0 | LAP78: 0 | LAQ78: 0 | LAR78: 0 | LAS78: 0 | LAT78: 0 | LAU78: 0 | LAV78: 0 | LAW78: 0 | LAX78: 0 | LAY78: 0 | LAZ78: 0 | LBA78: 0 | LBB78: 0 | LBC78: 0 | LBD78: 0 | LBE78: 0 | LBF78: 0 | LBG78: 0 | LBH78: 0 | LBI78: 0 | LBJ78: 0 | LBK78: 0 | LBL78: 0 | LBM78: 0 | LBN78: 0 | LBO78: 0 | LBP78: 0 | LBQ78: 0 | LBR78: 0 | LBS78: 0 | LBT78: 0 | LBU78: 0 | LBV78: 0 | LBW78: 0 | LBX78: 0 | LBY78: 0 | LBZ78: 0 | LCA78: 0 | LCB78: 0 | LCC78: 0 | LCD78: 0 | LCE78: 0 | LCF78: =SUM(LCF76:LCF77) -> 0 | LCG78: 0 | LCH78: 0 | LCI78: 0 | LCJ78: 0 | LCK78: 0 | LCL78: 0 | LCM78: 0 | LCN78: 0 | LCO78: 0 | LCP78: 0 | LCQ78: 0 | LCR78: 0 | LCS78: 0 | LCT78: 0 | LCU78: 0 | LCV78: 0 | LCW78: 0 | LCX78: 0 | LCY78: 0 | LCZ78: 0 | LDA78: 0 | LDB78: 0 | LDC78: 0 | LDD78: 0 | LDE78: 0 | LDF78: 0 | LDG78: 0 | LDH78: 0 | LDI78: 0 | LDJ78: 0 | LDK78: 0 | LDL78: 0 | LDM78: 0 | LDN78: 0 | LDO78: 0 | LDP78: 0 | LDQ78: 0 | LDR78: 0 | LDS78: 0 | LDT78: 0 | LDU78: 0 | LDV78: 0 | LDW78: 0 | LDX78: 0 | LDY78: 0 | LDZ78: 0 | LEA78: 0 | LEB78: 0 | LEC78: 0 | LED78: 0 | LEE78: 0 | LEF78: 0 | LEG78: 0 | LEH78: 0 | LEI78: 0 | LEJ78: 0 | LEK78: 0 | LEL78: 0 | LEM78: 0 | LEN78: 0 | LEO78: 0 | LEP78: 0 | LEQ78: 0 | LER78: =SUM(LER76:LER77) -> 0 | LES78: 0 | LET78: 0 | LEU78: 0 | LEV78: 0 | LEW78: 0 | LEX78: 0 | LEY78: 0 | LEZ78: 0 | LFA78: 0 | LFB78: 0 | LFC78: 0 | LFD78: 0 | LFE78: 0 | LFF78: 0 | LFG78: 0 | LFH78: 0 | LFI78: 0 | LFJ78: 0 | LFK78: 0 | LFL78: 0 | LFM78: 0 | LFN78: 0 | LFO78: 0 | LFP78: 0 | LFQ78: 0 | LFR78: 0 | LFS78: 0 | LFT78: 0 | LFU78: 0 | LFV78: 0 | LFW78: 0 | LFX78: 0 | LFY78: 0 | LFZ78: 0 | LGA78: 0 | LGB78: 0 | LGC78: 0 | LGD78: 0 | LGE78: 0 | LGF78: 0 | LGG78: 0 | LGH78: 0 | LGI78: 0 | LGJ78: 0 | LGK78: 0 | LGL78: 0 | LGM78: 0 | LGN78: 0 | LGO78: 0 | LGP78: 0 | LGQ78: 0 | LGR78: 0 | LGS78: 0 | LGT78: 0 | LGU78: 0 | LGV78: 0 | LGW78: 0 | LGX78: 0 | LGY78: 0 | LGZ78: 0 | LHA78: 0 | LHB78: 0 | LHC78: 0 | LHD78: =SUM(LHD76:LHD77) -> 0 | LHE78: 0 | LHF78: 0 | LHG78: 0 | LHH78: 0 | LHI78: 0 | LHJ78: 0 | LHK78: 0 | LHL78: 0 | LHM78: 0 | LHN78: 0 | LHO78: 0 | LHP78: 0 | LHQ78: 0 | LHR78: 0 | LHS78: 0 | LHT78: 0 | LHU78: 0 | LHV78: 0 | LHW78: 0 | LHX78: 0 | LHY78: 0 | LHZ78: 0 | LIA78: 0 | LIB78: 0 | LIC78: 0 | LID78: 0 | LIE78: 0 | LIF78: 0 | LIG78: 0 | LIH78: 0 | LII78: 0 | LIJ78: 0 | LIK78: 0 | LIL78: 0 | LIM78: 0 | LIN78: 0 | LIO78: 0 | LIP78: 0 | LIQ78: 0 | LIR78: 0 | LIS78: 0 | LIT78: 0 | LIU78: 0 | LIV78: 0 | LIW78: 0 | LIX78: 0 | LIY78: 0 | LIZ78: 0 | LJA78: 0 | LJB78: 0 | LJC78: 0 | LJD78: 0 | LJE78: 0 | LJF78: 0 | LJG78: 0 | LJH78: 0 | LJI78: 0 | LJJ78: 0 | LJK78: 0 | LJL78: 0 | LJM78: 0 | LJN78: 0 | LJO78: 0 | LJP78: =SUM(LJP76:LJP77) -> 0 | LJQ78: 0 | LJR78: 0 | LJS78: 0 | LJT78: 0 | LJU78: 0 | LJV78: 0 | LJW78: 0 | LJX78: 0 | LJY78: 0 | LJZ78: 0 | LKA78: 0 | LKB78: 0 | LKC78: 0 | LKD78: 0 | LKE78: 0 | LKF78: 0 | LKG78: 0 | LKH78: 0 | LKI78: 0 | LKJ78: 0 | LKK78: 0 | LKL78: 0 | LKM78: 0 | LKN78: 0 | LKO78: 0 | LKP78: 0 | LKQ78: 0 | LKR78: 0 | LKS78: 0 | LKT78: 0 | LKU78: 0 | LKV78: 0 | LKW78: 0 | LKX78: 0 | LKY78: 0 | LKZ78: 0 | LLA78: 0 | LLB78: 0 | LLC78: 0 | LLD78: 0 | LLE78: 0 | LLF78: 0 | LLG78: 0 | LLH78: 0 | LLI78: 0 | LLJ78: 0 | LLK78: 0 | LLL78: 0 | LLM78: 0 | LLN78: 0 | LLO78: 0 | LLP78: 0 | LLQ78: 0 | LLR78: 0 | LLS78: 0 | LLT78: 0 | LLU78: 0 | LLV78: 0 | LLW78: 0 | LLX78: 0 | LLY78: 0 | LLZ78: 0 | LMA78: 0 | LMB78: =SUM(LMB76:LMB77) -> 0 | LMC78: 0 | LMD78: 0 | LME78: 0 | LMF78: 0 | LMG78: 0 | LMH78: 0 | LMI78: 0 | LMJ78: 0 | LMK78: 0 | LML78: 0 | LMM78: 0 | LMN78: 0 | LMO78: 0 | LMP78: 0 | LMQ78: 0 | LMR78: 0 | LMS78: 0 | LMT78: 0 | LMU78: 0 | LMV78: 0 | LMW78: 0 | LMX78: 0 | LMY78: 0 | LMZ78: 0 | LNA78: 0 | LNB78: 0 | LNC78: 0 | LND78: 0 | LNE78: 0 | LNF78: 0 | LNG78: 0 | LNH78: 0 | LNI78: 0 | LNJ78: 0 | LNK78: 0 | LNL78: 0 | LNM78: 0 | LNN78: 0 | LNO78: 0 | LNP78: 0 | LNQ78: 0 | LNR78: 0 | LNS78: 0 | LNT78: 0 | LNU78: 0 | LNV78: 0 | LNW78: 0 | LNX78: 0 | LNY78: 0 | LNZ78: 0 | LOA78: 0 | LOB78: 0 | LOC78: 0 | LOD78: 0 | LOE78: 0 | LOF78: 0 | LOG78: 0 | LOH78: 0 | LOI78: 0 | LOJ78: 0 | LOK78: 0 | LOL78: 0 | LOM78: 0 | LON78: =SUM(LON76:LON77) -> 0 | LOO78: 0 | LOP78: 0 | LOQ78: 0 | LOR78: 0 | LOS78: 0 | LOT78: 0 | LOU78: 0 | LOV78: 0 | LOW78: 0 | LOX78: 0 | LOY78: 0 | LOZ78: 0 | LPA78: 0 | LPB78: 0 | LPC78: 0 | LPD78: 0 | LPE78: 0 | LPF78: 0 | LPG78: 0 | LPH78: 0 | LPI78: 0 | LPJ78: 0 | LPK78: 0 | LPL78: 0 | LPM78: 0 | LPN78: 0 | LPO78: 0 | LPP78: 0 | LPQ78: 0 | LPR78: 0 | LPS78: 0 | LPT78: 0 | LPU78: 0 | LPV78: 0 | LPW78: 0 | LPX78: 0 | LPY78: 0 | LPZ78: 0 | LQA78: 0 | LQB78: 0 | LQC78: 0 | LQD78: 0 | LQE78: 0 | LQF78: 0 | LQG78: 0 | LQH78: 0 | LQI78: 0 | LQJ78: 0 | LQK78: 0 | LQL78: 0 | LQM78: 0 | LQN78: 0 | LQO78: 0 | LQP78: 0 | LQQ78: 0 | LQR78: 0 | LQS78: 0 | LQT78: 0 | LQU78: 0 | LQV78: 0 | LQW78: 0 | LQX78: 0 | LQY78: 0 | LQZ78: =SUM(LQZ76:LQZ77) -> 0 | LRA78: 0 | LRB78: 0 | LRC78: 0 | LRD78: 0 | LRE78: 0 | LRF78: 0 | LRG78: 0 | LRH78: 0 | LRI78: 0 | LRJ78: 0 | LRK78: 0 | LRL78: 0 | LRM78: 0 | LRN78: 0 | LRO78: 0 | LRP78: 0 | LRQ78: 0 | LRR78: 0 | LRS78: 0 | LRT78: 0 | LRU78: 0 | LRV78: 0 | LRW78: 0 | LRX78: 0 | LRY78: 0 | LRZ78: 0 | LSA78: 0 | LSB78: 0 | LSC78: 0 | LSD78: 0 | LSE78: 0 | LSF78: 0 | LSG78: 0 | LSH78: 0 | LSI78: 0 | LSJ78: 0 | LSK78: 0 | LSL78: 0 | LSM78: 0 | LSN78: 0 | LSO78: 0 | LSP78: 0 | LSQ78: 0 | LSR78: 0 | LSS78: 0 | LST78: 0 | LSU78: 0 | LSV78: 0 | LSW78: 0 | LSX78: 0 | LSY78: 0 | LSZ78: 0 | LTA78: 0 | LTB78: 0 | LTC78: 0 | LTD78: 0 | LTE78: 0 | LTF78: 0 | LTG78: 0 | LTH78: 0 | LTI78: 0 | LTJ78: 0 | LTK78: 0 | LTL78: =SUM(LTL76:LTL77) -> 0 | LTM78: 0 | LTN78: 0 | LTO78: 0 | LTP78: 0 | LTQ78: 0 | LTR78: 0 | LTS78: 0 | LTT78: 0 | LTU78: 0 | LTV78: 0 | LTW78: 0 | LTX78: 0 | LTY78: 0 | LTZ78: 0 | LUA78: 0 | LUB78: 0 | LUC78: 0 | LUD78: 0 | LUE78: 0 | LUF78: 0 | LUG78: 0 | LUH78: 0 | LUI78: 0 | LUJ78: 0 | LUK78: 0 | LUL78: 0 | LUM78: 0 | LUN78: 0 | LUO78: 0 | LUP78: 0 | LUQ78: 0 | LUR78: 0 | LUS78: 0 | LUT78: 0 | LUU78: 0 | LUV78: 0 | LUW78: 0 | LUX78: 0 | LUY78: 0 | LUZ78: 0 | LVA78: 0 | LVB78: 0 | LVC78: 0 | LVD78: 0 | LVE78: 0 | LVF78: 0 | LVG78: 0 | LVH78: 0 | LVI78: 0 | LVJ78: 0 | LVK78: 0 | LVL78: 0 | LVM78: 0 | LVN78: 0 | LVO78: 0 | LVP78: 0 | LVQ78: 0 | LVR78: 0 | LVS78: 0 | LVT78: 0 | LVU78: 0 | LVV78: 0 | LVW78: 0 | LVX78: =SUM(LVX76:LVX77) -> 0 | LVY78: 0 | LVZ78: 0 | LWA78: 0 | LWB78: 0 | LWC78: 0 | LWD78: 0 | LWE78: 0 | LWF78: 0 | LWG78: 0 | LWH78: 0 | LWI78: 0 | LWJ78: 0 | LWK78: 0 | LWL78: 0 | LWM78: 0 | LWN78: 0 | LWO78: 0 | LWP78: 0 | LWQ78: 0 | LWR78: 0 | LWS78: 0 | LWT78: 0 | LWU78: 0 | LWV78: 0 | LWW78: 0 | LWX78: 0 | LWY78: 0 | LWZ78: 0 | LXA78: 0 | LXB78: 0 | LXC78: 0 | LXD78: 0 | LXE78: 0 | LXF78: 0 | LXG78: 0 | LXH78: 0 | LXI78: 0 | LXJ78: 0 | LXK78: 0 | LXL78: 0 | LXM78: 0 | LXN78: 0 | LXO78: 0 | LXP78: 0 | LXQ78: 0 | LXR78: 0 | LXS78: 0 | LXT78: 0 | LXU78: 0 | LXV78: 0 | LXW78: 0 | LXX78: 0 | LXY78: 0 | LXZ78: 0 | LYA78: 0 | LYB78: 0 | LYC78: 0 | LYD78: 0 | LYE78: 0 | LYF78: 0 | LYG78: 0 | LYH78: 0 | LYI78: 0 | LYJ78: =SUM(LYJ76:LYJ77) -> 0 | LYK78: 0 | LYL78: 0 | LYM78: 0 | LYN78: 0 | LYO78: 0 | LYP78: 0 | LYQ78: 0 | LYR78: 0 | LYS78: 0 | LYT78: 0 | LYU78: 0 | LYV78: 0 | LYW78: 0 | LYX78: 0 | LYY78: 0 | LYZ78: 0 | LZA78: 0 | LZB78: 0 | LZC78: 0 | LZD78: 0 | LZE78: 0 | LZF78: 0 | LZG78: 0 | LZH78: 0 | LZI78: 0 | LZJ78: 0 | LZK78: 0 | LZL78: 0 | LZM78: 0 | LZN78: 0 | LZO78: 0 | LZP78: 0 | LZQ78: 0 | LZR78: 0 | LZS78: 0 | LZT78: 0 | LZU78: 0 | LZV78: 0 | LZW78: 0 | LZX78: 0 | LZY78: 0 | LZZ78: 0 | MAA78: 0 | MAB78: 0 | MAC78: 0 | MAD78: 0 | MAE78: 0 | MAF78: 0 | MAG78: 0 | MAH78: 0 | MAI78: 0 | MAJ78: 0 | MAK78: 0 | MAL78: 0 | MAM78: 0 | MAN78: 0 | MAO78: 0 | MAP78: 0 | MAQ78: 0 | MAR78: 0 | MAS78: 0 | MAT78: 0 | MAU78: 0 | MAV78: =SUM(MAV76:MAV77) -> 0 | MAW78: 0 | MAX78: 0 | MAY78: 0 | MAZ78: 0 | MBA78: 0 | MBB78: 0 | MBC78: 0 | MBD78: 0 | MBE78: 0 | MBF78: 0 | MBG78: 0 | MBH78: 0 | MBI78: 0 | MBJ78: 0 | MBK78: 0 | MBL78: 0 | MBM78: 0 | MBN78: 0 | MBO78: 0 | MBP78: 0 | MBQ78: 0 | MBR78: 0 | MBS78: 0 | MBT78: 0 | MBU78: 0 | MBV78: 0 | MBW78: 0 | MBX78: 0 | MBY78: 0 | MBZ78: 0 | MCA78: 0 | MCB78: 0 | MCC78: 0 | MCD78: 0 | MCE78: 0 | MCF78: 0 | MCG78: 0 | MCH78: 0 | MCI78: 0 | MCJ78: 0 | MCK78: 0 | MCL78: 0 | MCM78: 0 | MCN78: 0 | MCO78: 0 | MCP78: 0 | MCQ78: 0 | MCR78: 0 | MCS78: 0 | MCT78: 0 | MCU78: 0 | MCV78: 0 | MCW78: 0 | MCX78: 0 | MCY78: 0 | MCZ78: 0 | MDA78: 0 | MDB78: 0 | MDC78: 0 | MDD78: 0 | MDE78: 0 | MDF78: 0 | MDG78: 0 | MDH78: =SUM(MDH76:MDH77) -> 0 | MDI78: 0 | MDJ78: 0 | MDK78: 0 | MDL78: 0 | MDM78: 0 | MDN78: 0 | MDO78: 0 | MDP78: 0 | MDQ78: 0 | MDR78: 0 | MDS78: 0 | MDT78: 0 | MDU78: 0 | MDV78: 0 | MDW78: 0 | MDX78: 0 | MDY78: 0 | MDZ78: 0 | MEA78: 0 | MEB78: 0 | MEC78: 0 | MED78: 0 | MEE78: 0 | MEF78: 0 | MEG78: 0 | MEH78: 0 | MEI78: 0 | MEJ78: 0 | MEK78: 0 | MEL78: 0 | MEM78: 0 | MEN78: 0 | MEO78: 0 | MEP78: 0 | MEQ78: 0 | MER78: 0 | MES78: 0 | MET78: 0 | MEU78: 0 | MEV78: 0 | MEW78: 0 | MEX78: 0 | MEY78: 0 | MEZ78: 0 | MFA78: 0 | MFB78: 0 | MFC78: 0 | MFD78: 0 | MFE78: 0 | MFF78: 0 | MFG78: 0 | MFH78: 0 | MFI78: 0 | MFJ78: 0 | MFK78: 0 | MFL78: 0 | MFM78: 0 | MFN78: 0 | MFO78: 0 | MFP78: 0 | MFQ78: 0 | MFR78: 0 | MFS78: 0 | MFT78: =SUM(MFT76:MFT77) -> 0 | MFU78: 0 | MFV78: 0 | MFW78: 0 | MFX78: 0 | MFY78: 0 | MFZ78: 0 | MGA78: 0 | MGB78: 0 | MGC78: 0 | MGD78: 0 | MGE78: 0 | MGF78: 0 | MGG78: 0 | MGH78: 0 | MGI78: 0 | MGJ78: 0 | MGK78: 0 | MGL78: 0 | MGM78: 0 | MGN78: 0 | MGO78: 0 | MGP78: 0 | MGQ78: 0 | MGR78: 0 | MGS78: 0 | MGT78: 0 | MGU78: 0 | MGV78: 0 | MGW78: 0 | MGX78: 0 | MGY78: 0 | MGZ78: 0 | MHA78: 0 | MHB78: 0 | MHC78: 0 | MHD78: 0 | MHE78: 0 | MHF78: 0 | MHG78: 0 | MHH78: 0 | MHI78: 0 | MHJ78: 0 | MHK78: 0 | MHL78: 0 | MHM78: 0 | MHN78: 0 | MHO78: 0 | MHP78: 0 | MHQ78: 0 | MHR78: 0 | MHS78: 0 | MHT78: 0 | MHU78: 0 | MHV78: 0 | MHW78: 0 | MHX78: 0 | MHY78: 0 | MHZ78: 0 | MIA78: 0 | MIB78: 0 | MIC78: 0 | MID78: 0 | MIE78: 0 | MIF78: =SUM(MIF76:MIF77) -> 0 | MIG78: 0 | MIH78: 0 | MII78: 0 | MIJ78: 0 | MIK78: 0 | MIL78: 0 | MIM78: 0 | MIN78: 0 | MIO78: 0 | MIP78: 0 | MIQ78: 0 | MIR78: 0 | MIS78: 0 | MIT78: 0 | MIU78: 0 | MIV78: 0 | MIW78: 0 | MIX78: 0 | MIY78: 0 | MIZ78: 0 | MJA78: 0 | MJB78: 0 | MJC78: 0 | MJD78: 0 | MJE78: 0 | MJF78: 0 | MJG78: 0 | MJH78: 0 | MJI78: 0 | MJJ78: 0 | MJK78: 0 | MJL78: 0 | MJM78: 0 | MJN78: 0 | MJO78: 0 | MJP78: 0 | MJQ78: 0 | MJR78: 0 | MJS78: 0 | MJT78: 0 | MJU78: 0 | MJV78: 0 | MJW78: 0 | MJX78: 0 | MJY78: 0 | MJZ78: 0 | MKA78: 0 | MKB78: 0 | MKC78: 0 | MKD78: 0 | MKE78: 0 | MKF78: 0 | MKG78: 0 | MKH78: 0 | MKI78: 0 | MKJ78: 0 | MKK78: 0 | MKL78: 0 | MKM78: 0 | MKN78: 0 | MKO78: 0 | MKP78: 0 | MKQ78: 0 | MKR78: =SUM(MKR76:MKR77) -> 0 | MKS78: 0 | MKT78: 0 | MKU78: 0 | MKV78: 0 | MKW78: 0 | MKX78: 0 | MKY78: 0 | MKZ78: 0 | MLA78: 0 | MLB78: 0 | MLC78: 0 | MLD78: 0 | MLE78: 0 | MLF78: 0 | MLG78: 0 | MLH78: 0 | MLI78: 0 | MLJ78: 0 | MLK78: 0 | MLL78: 0 | MLM78: 0 | MLN78: 0 | MLO78: 0 | MLP78: 0 | MLQ78: 0 | MLR78: 0 | MLS78: 0 | MLT78: 0 | MLU78: 0 | MLV78: 0 | MLW78: 0 | MLX78: 0 | MLY78: 0 | MLZ78: 0 | MMA78: 0 | MMB78: 0 | MMC78: 0 | MMD78: 0 | MME78: 0 | MMF78: 0 | MMG78: 0 | MMH78: 0 | MMI78: 0 | MMJ78: 0 | MMK78: 0 | MML78: 0 | MMM78: 0 | MMN78: 0 | MMO78: 0 | MMP78: 0 | MMQ78: 0 | MMR78: 0 | MMS78: 0 | MMT78: 0 | MMU78: 0 | MMV78: 0 | MMW78: 0 | MMX78: 0 | MMY78: 0 | MMZ78: 0 | MNA78: 0 | MNB78: 0 | MNC78: 0 | MND78: =SUM(MND76:MND77) -> 0 | MNE78: 0 | MNF78: 0 | MNG78: 0 | MNH78: 0 | MNI78: 0 | MNJ78: 0 | MNK78: 0 | MNL78: 0 | MNM78: 0 | MNN78: 0 | MNO78: 0 | MNP78: 0 | MNQ78: 0 | MNR78: 0 | MNS78: 0 | MNT78: 0 | MNU78: 0 | MNV78: 0 | MNW78: 0 | MNX78: 0 | MNY78: 0 | MNZ78: 0 | MOA78: 0 | MOB78: 0 | MOC78: 0 | MOD78: 0 | MOE78: 0 | MOF78: 0 | MOG78: 0 | MOH78: 0 | MOI78: 0 | MOJ78: 0 | MOK78: 0 | MOL78: 0 | MOM78: 0 | MON78: 0 | MOO78: 0 | MOP78: 0 | MOQ78: 0 | MOR78: 0 | MOS78: 0 | MOT78: 0 | MOU78: 0 | MOV78: 0 | MOW78: 0 | MOX78: 0 | MOY78: 0 | MOZ78: 0 | MPA78: 0 | MPB78: 0 | MPC78: 0 | MPD78: 0 | MPE78: 0 | MPF78: 0 | MPG78: 0 | MPH78: 0 | MPI78: 0 | MPJ78: 0 | MPK78: 0 | MPL78: 0 | MPM78: 0 | MPN78: 0 | MPO78: 0 | MPP78: =SUM(MPP76:MPP77) -> 0 | MPQ78: 0 | MPR78: 0 | MPS78: 0 | MPT78: 0 | MPU78: 0 | MPV78: 0 | MPW78: 0 | MPX78: 0 | MPY78: 0 | MPZ78: 0 | MQA78: 0 | MQB78: 0 | MQC78: 0 | MQD78: 0 | MQE78: 0 | MQF78: 0 | MQG78: 0 | MQH78: 0 | MQI78: 0 | MQJ78: 0 | MQK78: 0 | MQL78: 0 | MQM78: 0 | MQN78: 0 | MQO78: 0 | MQP78: 0 | MQQ78: 0 | MQR78: 0 | MQS78: 0 | MQT78: 0 | MQU78: 0 | MQV78: 0 | MQW78: 0 | MQX78: 0 | MQY78: 0 | MQZ78: 0 | MRA78: 0 | MRB78: 0 | MRC78: 0 | MRD78: 0 | MRE78: 0 | MRF78: 0 | MRG78: 0 | MRH78: 0 | MRI78: 0 | MRJ78: 0 | MRK78: 0 | MRL78: 0 | MRM78: 0 | MRN78: 0 | MRO78: 0 | MRP78: 0 | MRQ78: 0 | MRR78: 0 | MRS78: 0 | MRT78: 0 | MRU78: 0 | MRV78: 0 | MRW78: 0 | MRX78: 0 | MRY78: 0 | MRZ78: 0 | MSA78: 0 | MSB78: =SUM(MSB76:MSB77) -> 0 | MSC78: 0 | MSD78: 0 | MSE78: 0 | MSF78: 0 | MSG78: 0 | MSH78: 0 | MSI78: 0 | MSJ78: 0 | MSK78: 0 | MSL78: 0 | MSM78: 0 | MSN78: 0 | MSO78: 0 | MSP78: 0 | MSQ78: 0 | MSR78: 0 | MSS78: 0 | MST78: 0 | MSU78: 0 | MSV78: 0 | MSW78: 0 | MSX78: 0 | MSY78: 0 | MSZ78: 0 | MTA78: 0 | MTB78: 0 | MTC78: 0 | MTD78: 0 | MTE78: 0 | MTF78: 0 | MTG78: 0 | MTH78: 0 | MTI78: 0 | MTJ78: 0 | MTK78: 0 | MTL78: 0 | MTM78: 0 | MTN78: 0 | MTO78: 0 | MTP78: 0 | MTQ78: 0 | MTR78: 0 | MTS78: 0 | MTT78: 0 | MTU78: 0 | MTV78: 0 | MTW78: 0 | MTX78: 0 | MTY78: 0 | MTZ78: 0 | MUA78: 0 | MUB78: 0 | MUC78: 0 | MUD78: 0 | MUE78: 0 | MUF78: 0 | MUG78: 0 | MUH78: 0 | MUI78: 0 | MUJ78: 0 | MUK78: 0 | MUL78: 0 | MUM78: 0 | MUN78: =SUM(MUN76:MUN77) -> 0 | MUO78: 0 | MUP78: 0 | MUQ78: 0 | MUR78: 0 | MUS78: 0 | MUT78: 0 | MUU78: 0 | MUV78: 0 | MUW78: 0 | MUX78: 0 | MUY78: 0 | MUZ78: 0 | MVA78: 0 | MVB78: 0 | MVC78: 0 | MVD78: 0 | MVE78: 0 | MVF78: 0 | MVG78: 0 | MVH78: 0 | MVI78: 0 | MVJ78: 0 | MVK78: 0 | MVL78: 0 | MVM78: 0 | MVN78: 0 | MVO78: 0 | MVP78: 0 | MVQ78: 0 | MVR78: 0 | MVS78: 0 | MVT78: 0 | MVU78: 0 | MVV78: 0 | MVW78: 0 | MVX78: 0 | MVY78: 0 | MVZ78: 0 | MWA78: 0 | MWB78: 0 | MWC78: 0 | MWD78: 0 | MWE78: 0 | MWF78: 0 | MWG78: 0 | MWH78: 0 | MWI78: 0 | MWJ78: 0 | MWK78: 0 | MWL78: 0 | MWM78: 0 | MWN78: 0 | MWO78: 0 | MWP78: 0 | MWQ78: 0 | MWR78: 0 | MWS78: 0 | MWT78: 0 | MWU78: 0 | MWV78: 0 | MWW78: 0 | MWX78: 0 | MWY78: 0 | MWZ78: =SUM(MWZ76:MWZ77) -> 0 | MXA78: 0 | MXB78: 0 | MXC78: 0 | MXD78: 0 | MXE78: 0 | MXF78: 0 | MXG78: 0 | MXH78: 0 | MXI78: 0 | MXJ78: 0 | MXK78: 0 | MXL78: 0 | MXM78: 0 | MXN78: 0 | MXO78: 0 | MXP78: 0 | MXQ78: 0 | MXR78: 0 | MXS78: 0 | MXT78: 0 | MXU78: 0 | MXV78: 0 | MXW78: 0 | MXX78: 0 | MXY78: 0 | MXZ78: 0 | MYA78: 0 | MYB78: 0 | MYC78: 0 | MYD78: 0 | MYE78: 0 | MYF78: 0 | MYG78: 0 | MYH78: 0 | MYI78: 0 | MYJ78: 0 | MYK78: 0 | MYL78: 0 | MYM78: 0 | MYN78: 0 | MYO78: 0 | MYP78: 0 | MYQ78: 0 | MYR78: 0 | MYS78: 0 | MYT78: 0 | MYU78: 0 | MYV78: 0 | MYW78: 0 | MYX78: 0 | MYY78: 0 | MYZ78: 0 | MZA78: 0 | MZB78: 0 | MZC78: 0 | MZD78: 0 | MZE78: 0 | MZF78: 0 | MZG78: 0 | MZH78: 0 | MZI78: 0 | MZJ78: 0 | MZK78: 0 | MZL78: =SUM(MZL76:MZL77) -> 0 | MZM78: 0 | MZN78: 0 | MZO78: 0 | MZP78: 0 | MZQ78: 0 | MZR78: 0 | MZS78: 0 | MZT78: 0 | MZU78: 0 | MZV78: 0 | MZW78: 0 | MZX78: 0 | MZY78: 0 | MZZ78: 0 | NAA78: 0 | NAB78: 0 | NAC78: 0 | NAD78: 0 | NAE78: 0 | NAF78: 0 | NAG78: 0 | NAH78: 0 | NAI78: 0 | NAJ78: 0 | NAK78: 0 | NAL78: 0 | NAM78: 0 | NAN78: 0 | NAO78: 0 | NAP78: 0 | NAQ78: 0 | NAR78: 0 | NAS78: 0 | NAT78: 0 | NAU78: 0 | NAV78: 0 | NAW78: 0 | NAX78: 0 | NAY78: 0 | NAZ78: 0 | NBA78: 0 | NBB78: 0 | NBC78: 0 | NBD78: 0 | NBE78: 0 | NBF78: 0 | NBG78: 0 | NBH78: 0 | NBI78: 0 | NBJ78: 0 | NBK78: 0 | NBL78: 0 | NBM78: 0 | NBN78: 0 | NBO78: 0 | NBP78: 0 | NBQ78: 0 | NBR78: 0 | NBS78: 0 | NBT78: 0 | NBU78: 0 | NBV78: 0 | NBW78: 0 | NBX78: =SUM(NBX76:NBX77) -> 0 | NBY78: 0 | NBZ78: 0 | NCA78: 0 | NCB78: 0 | NCC78: 0 | NCD78: 0 | NCE78: 0 | NCF78: 0 | NCG78: 0 | NCH78: 0 | NCI78: 0 | NCJ78: 0 | NCK78: 0 | NCL78: 0 | NCM78: 0 | NCN78: 0 | NCO78: 0 | NCP78: 0 | NCQ78: 0 | NCR78: 0 | NCS78: 0 | NCT78: 0 | NCU78: 0 | NCV78: 0 | NCW78: 0 | NCX78: 0 | NCY78: 0 | NCZ78: 0 | NDA78: 0 | NDB78: 0 | NDC78: 0 | NDD78: 0 | NDE78: 0 | NDF78: 0 | NDG78: 0 | NDH78: 0 | NDI78: 0 | NDJ78: 0 | NDK78: 0 | NDL78: 0 | NDM78: 0 | NDN78: 0 | NDO78: 0 | NDP78: 0 | NDQ78: 0 | NDR78: 0 | NDS78: 0 | NDT78: 0 | NDU78: 0 | NDV78: 0 | NDW78: 0 | NDX78: 0 | NDY78: 0 | NDZ78: 0 | NEA78: 0 | NEB78: 0 | NEC78: 0 | NED78: 0 | NEE78: 0 | NEF78: 0 | NEG78: 0 | NEH78: 0 | NEI78: 0 | NEJ78: =SUM(NEJ76:NEJ77) -> 0 | NEK78: 0 | NEL78: 0 | NEM78: 0 | NEN78: 0 | NEO78: 0 | NEP78: 0 | NEQ78: 0 | NER78: 0 | NES78: 0 | NET78: 0 | NEU78: 0 | NEV78: 0 | NEW78: 0 | NEX78: 0 | NEY78: 0 | NEZ78: 0 | NFA78: 0 | NFB78: 0 | NFC78: 0 | NFD78: 0 | NFE78: 0 | NFF78: 0 | NFG78: 0 | NFH78: 0 | NFI78: 0 | NFJ78: 0 | NFK78: 0 | NFL78: 0 | NFM78: 0 | NFN78: 0 | NFO78: 0 | NFP78: 0 | NFQ78: 0 | NFR78: 0 | NFS78: 0 | NFT78: 0 | NFU78: 0 | NFV78: 0 | NFW78: 0 | NFX78: 0 | NFY78: 0 | NFZ78: 0 | NGA78: 0 | NGB78: 0 | NGC78: 0 | NGD78: 0 | NGE78: 0 | NGF78: 0 | NGG78: 0 | NGH78: 0 | NGI78: 0 | NGJ78: 0 | NGK78: 0 | NGL78: 0 | NGM78: 0 | NGN78: 0 | NGO78: 0 | NGP78: 0 | NGQ78: 0 | NGR78: 0 | NGS78: 0 | NGT78: 0 | NGU78: 0 | NGV78: =SUM(NGV76:NGV77) -> 0 | NGW78: 0 | NGX78: 0 | NGY78: 0 | NGZ78: 0 | NHA78: 0 | NHB78: 0 | NHC78: 0 | NHD78: 0 | NHE78: 0 | NHF78: 0 | NHG78: 0 | NHH78: 0 | NHI78: 0 | NHJ78: 0 | NHK78: 0 | NHL78: 0 | NHM78: 0 | NHN78: 0 | NHO78: 0 | NHP78: 0 | NHQ78: 0 | NHR78: 0 | NHS78: 0 | NHT78: 0 | NHU78: 0 | NHV78: 0 | NHW78: 0 | NHX78: 0 | NHY78: 0 | NHZ78: 0 | NIA78: 0 | NIB78: 0 | NIC78: 0 | NID78: 0 | NIE78: 0 | NIF78: 0 | NIG78: 0 | NIH78: 0 | NII78: 0 | NIJ78: 0 | NIK78: 0 | NIL78: 0 | NIM78: 0 | NIN78: 0 | NIO78: 0 | NIP78: 0 | NIQ78: 0 | NIR78: 0 | NIS78: 0 | NIT78: 0 | NIU78: 0 | NIV78: 0 | NIW78: 0 | NIX78: 0 | NIY78: 0 | NIZ78: 0 | NJA78: 0 | NJB78: 0 | NJC78: 0 | NJD78: 0 | NJE78: 0 | NJF78: 0 | NJG78: 0 | NJH78: =SUM(NJH76:NJH77) -> 0 | NJI78: 0 | NJJ78: 0 | NJK78: 0 | NJL78: 0 | NJM78: 0 | NJN78: 0 | NJO78: 0 | NJP78: 0 | NJQ78: 0 | NJR78: 0 | NJS78: 0 | NJT78: 0 | NJU78: 0 | NJV78: 0 | NJW78: 0 | NJX78: 0 | NJY78: 0 | NJZ78: 0 | NKA78: 0 | NKB78: 0 | NKC78: 0 | NKD78: 0 | NKE78: 0 | NKF78: 0 | NKG78: 0 | NKH78: 0 | NKI78: 0 | NKJ78: 0 | NKK78: 0 | NKL78: 0 | NKM78: 0 | NKN78: 0 | NKO78: 0 | NKP78: 0 | NKQ78: 0 | NKR78: 0 | NKS78: 0 | NKT78: 0 | NKU78: 0 | NKV78: 0 | NKW78: 0 | NKX78: 0 | NKY78: 0 | NKZ78: 0 | NLA78: 0 | NLB78: 0 | NLC78: 0 | NLD78: 0 | NLE78: 0 | NLF78: 0 | NLG78: 0 | NLH78: 0 | NLI78: 0 | NLJ78: 0 | NLK78: 0 | NLL78: 0 | NLM78: 0 | NLN78: 0 | NLO78: 0 | NLP78: 0 | NLQ78: 0 | NLR78: 0 | NLS78: 0 | NLT78: =SUM(NLT76:NLT77) -> 0 | NLU78: 0 | NLV78: 0 | NLW78: 0 | NLX78: 0 | NLY78: 0 | NLZ78: 0 | NMA78: 0 | NMB78: 0 | NMC78: 0 | NMD78: 0 | NME78: 0 | NMF78: 0 | NMG78: 0 | NMH78: 0 | NMI78: 0 | NMJ78: 0 | NMK78: 0 | NML78: 0 | NMM78: 0 | NMN78: 0 | NMO78: 0 | NMP78: 0 | NMQ78: 0 | NMR78: 0 | NMS78: 0 | NMT78: 0 | NMU78: 0 | NMV78: 0 | NMW78: 0 | NMX78: 0 | NMY78: 0 | NMZ78: 0 | NNA78: 0 | NNB78: 0 | NNC78: 0 | NND78: 0 | NNE78: 0 | NNF78: 0 | NNG78: 0 | NNH78: 0 | NNI78: 0 | NNJ78: 0 | NNK78: 0 | NNL78: 0 | NNM78: 0 | NNN78: 0 | NNO78: 0 | NNP78: 0 | NNQ78: 0 | NNR78: 0 | NNS78: 0 | NNT78: 0 | NNU78: 0 | NNV78: 0 | NNW78: 0 | NNX78: 0 | NNY78: 0 | NNZ78: 0 | NOA78: 0 | NOB78: 0 | NOC78: 0 | NOD78: 0 | NOE78: 0 | NOF78: =SUM(NOF76:NOF77) -> 0 | NOG78: 0 | NOH78: 0 | NOI78: 0 | NOJ78: 0 | NOK78: 0 | NOL78: 0 | NOM78: 0 | NON78: 0 | NOO78: 0 | NOP78: 0 | NOQ78: 0 | NOR78: 0 | NOS78: 0 | NOT78: 0 | NOU78: 0 | NOV78: 0 | NOW78: 0 | NOX78: 0 | NOY78: 0 | NOZ78: 0 | NPA78: 0 | NPB78: 0 | NPC78: 0 | NPD78: 0 | NPE78: 0 | NPF78: 0 | NPG78: 0 | NPH78: 0 | NPI78: 0 | NPJ78: 0 | NPK78: 0 | NPL78: 0 | NPM78: 0 | NPN78: 0 | NPO78: 0 | NPP78: 0 | NPQ78: 0 | NPR78: 0 | NPS78: 0 | NPT78: 0 | NPU78: 0 | NPV78: 0 | NPW78: 0 | NPX78: 0 | NPY78: 0 | NPZ78: 0 | NQA78: 0 | NQB78: 0 | NQC78: 0 | NQD78: 0 | NQE78: 0 | NQF78: 0 | NQG78: 0 | NQH78: 0 | NQI78: 0 | NQJ78: 0 | NQK78: 0 | NQL78: 0 | NQM78: 0 | NQN78: 0 | NQO78: 0 | NQP78: 0 | NQQ78: 0 | NQR78: =SUM(NQR76:NQR77) -> 0 | NQS78: 0 | NQT78: 0 | NQU78: 0 | NQV78: 0 | NQW78: 0 | NQX78: 0 | NQY78: 0 | NQZ78: 0 | NRA78: 0 | NRB78: 0 | NRC78: 0 | NRD78: 0 | NRE78: 0 | NRF78: 0 | NRG78: 0 | NRH78: 0 | NRI78: 0 | NRJ78: 0 | NRK78: 0 | NRL78: 0 | NRM78: 0 | NRN78: 0 | NRO78: 0 | NRP78: 0 | NRQ78: 0 | NRR78: 0 | NRS78: 0 | NRT78: 0 | NRU78: 0 | NRV78: 0 | NRW78: 0 | NRX78: 0 | NRY78: 0 | NRZ78: 0 | NSA78: 0 | NSB78: 0 | NSC78: 0 | NSD78: 0 | NSE78: 0 | NSF78: 0 | NSG78: 0 | NSH78: 0 | NSI78: 0 | NSJ78: 0 | NSK78: 0 | NSL78: 0 | NSM78: 0 | NSN78: 0 | NSO78: 0 | NSP78: 0 | NSQ78: 0 | NSR78: 0 | NSS78: 0 | NST78: 0 | NSU78: 0 | NSV78: 0 | NSW78: 0 | NSX78: 0 | NSY78: 0 | NSZ78: 0 | NTA78: 0 | NTB78: 0 | NTC78: 0 | NTD78: =SUM(NTD76:NTD77) -> 0 | NTE78: 0 | NTF78: 0 | NTG78: 0 | NTH78: 0 | NTI78: 0 | NTJ78: 0 | NTK78: 0 | NTL78: 0 | NTM78: 0 | NTN78: 0 | NTO78: 0 | NTP78: 0 | NTQ78: 0 | NTR78: 0 | NTS78: 0 | NTT78: 0 | NTU78: 0 | NTV78: 0 | NTW78: 0 | NTX78: 0 | NTY78: 0 | NTZ78: 0 | NUA78: 0 | NUB78: 0 | NUC78: 0 | NUD78: 0 | NUE78: 0 | NUF78: 0 | NUG78: 0 | NUH78: 0 | NUI78: 0 | NUJ78: 0 | NUK78: 0 | NUL78: 0 | NUM78: 0 | NUN78: 0 | NUO78: 0 | NUP78: 0 | NUQ78: 0 | NUR78: 0 | NUS78: 0 | NUT78: 0 | NUU78: 0 | NUV78: 0 | NUW78: 0 | NUX78: 0 | NUY78: 0 | NUZ78: 0 | NVA78: 0 | NVB78: 0 | NVC78: 0 | NVD78: 0 | NVE78: 0 | NVF78: 0 | NVG78: 0 | NVH78: 0 | NVI78: 0 | NVJ78: 0 | NVK78: 0 | NVL78: 0 | NVM78: 0 | NVN78: 0 | NVO78: 0 | NVP78: =SUM(NVP76:NVP77) -> 0 | NVQ78: 0 | NVR78: 0 | NVS78: 0 | NVT78: 0 | NVU78: 0 | NVV78: 0 | NVW78: 0 | NVX78: 0 | NVY78: 0 | NVZ78: 0 | NWA78: 0 | NWB78: 0 | NWC78: 0 | NWD78: 0 | NWE78: 0 | NWF78: 0 | NWG78: 0 | NWH78: 0 | NWI78: 0 | NWJ78: 0 | NWK78: 0 | NWL78: 0 | NWM78: 0 | NWN78: 0 | NWO78: 0 | NWP78: 0 | NWQ78: 0 | NWR78: 0 | NWS78: 0 | NWT78: 0 | NWU78: 0 | NWV78: 0 | NWW78: 0 | NWX78: 0 | NWY78: 0 | NWZ78: 0 | NXA78: 0 | NXB78: 0 | NXC78: 0 | NXD78: 0 | NXE78: 0 | NXF78: 0 | NXG78: 0 | NXH78: 0 | NXI78: 0 | NXJ78: 0 | NXK78: 0 | NXL78: 0 | NXM78: 0 | NXN78: 0 | NXO78: 0 | NXP78: 0 | NXQ78: 0 | NXR78: 0 | NXS78: 0 | NXT78: 0 | NXU78: 0 | NXV78: 0 | NXW78: 0 | NXX78: 0 | NXY78: 0 | NXZ78: 0 | NYA78: 0 | NYB78: =SUM(NYB76:NYB77) -> 0 | NYC78: 0 | NYD78: 0 | NYE78: 0 | NYF78: 0 | NYG78: 0 | NYH78: 0 | NYI78: 0 | NYJ78: 0 | NYK78: 0 | NYL78: 0 | NYM78: 0 | NYN78: 0 | NYO78: 0 | NYP78: 0 | NYQ78: 0 | NYR78: 0 | NYS78: 0 | NYT78: 0 | NYU78: 0 | NYV78: 0 | NYW78: 0 | NYX78: 0 | NYY78: 0 | NYZ78: 0 | NZA78: 0 | NZB78: 0 | NZC78: 0 | NZD78: 0 | NZE78: 0 | NZF78: 0 | NZG78: 0 | NZH78: 0 | NZI78: 0 | NZJ78: 0 | NZK78: 0 | NZL78: 0 | NZM78: 0 | NZN78: 0 | NZO78: 0 | NZP78: 0 | NZQ78: 0 | NZR78: 0 | NZS78: 0 | NZT78: 0 | NZU78: 0 | NZV78: 0 | NZW78: 0 | NZX78: 0 | NZY78: 0 | NZZ78: 0 | OAA78: 0 | OAB78: 0 | OAC78: 0 | OAD78: 0 | OAE78: 0 | OAF78: 0 | OAG78: 0 | OAH78: 0 | OAI78: 0 | OAJ78: 0 | OAK78: 0 | OAL78: 0 | OAM78: 0 | OAN78: =SUM(OAN76:OAN77) -> 0 | OAO78: 0 | OAP78: 0 | OAQ78: 0 | OAR78: 0 | OAS78: 0 | OAT78: 0 | OAU78: 0 | OAV78: 0 | OAW78: 0 | OAX78: 0 | OAY78: 0 | OAZ78: 0 | OBA78: 0 | OBB78: 0 | OBC78: 0 | OBD78: 0 | OBE78: 0 | OBF78: 0 | OBG78: 0 | OBH78: 0 | OBI78: 0 | OBJ78: 0 | OBK78: 0 | OBL78: 0 | OBM78: 0 | OBN78: 0 | OBO78: 0 | OBP78: 0 | OBQ78: 0 | OBR78: 0 | OBS78: 0 | OBT78: 0 | OBU78: 0 | OBV78: 0 | OBW78: 0 | OBX78: 0 | OBY78: 0 | OBZ78: 0 | OCA78: 0 | OCB78: 0 | OCC78: 0 | OCD78: 0 | OCE78: 0 | OCF78: 0 | OCG78: 0 | OCH78: 0 | OCI78: 0 | OCJ78: 0 | OCK78: 0 | OCL78: 0 | OCM78: 0 | OCN78: 0 | OCO78: 0 | OCP78: 0 | OCQ78: 0 | OCR78: 0 | OCS78: 0 | OCT78: 0 | OCU78: 0 | OCV78: 0 | OCW78: 0 | OCX78: 0 | OCY78: 0 | OCZ78: =SUM(OCZ76:OCZ77) -> 0 | ODA78: 0 | ODB78: 0 | ODC78: 0 | ODD78: 0 | ODE78: 0 | ODF78: 0 | ODG78: 0 | ODH78: 0 | ODI78: 0 | ODJ78: 0 | ODK78: 0 | ODL78: 0 | ODM78: 0 | ODN78: 0 | ODO78: 0 | ODP78: 0 | ODQ78: 0 | ODR78: 0 | ODS78: 0 | ODT78: 0 | ODU78: 0 | ODV78: 0 | ODW78: 0 | ODX78: 0 | ODY78: 0 | ODZ78: 0 | OEA78: 0 | OEB78: 0 | OEC78: 0 | OED78: 0 | OEE78: 0 | OEF78: 0 | OEG78: 0 | OEH78: 0 | OEI78: 0 | OEJ78: 0 | OEK78: 0 | OEL78: 0 | OEM78: 0 | OEN78: 0 | OEO78: 0 | OEP78: 0 | OEQ78: 0 | OER78: 0 | OES78: 0 | OET78: 0 | OEU78: 0 | OEV78: 0 | OEW78: 0 | OEX78: 0 | OEY78: 0 | OEZ78: 0 | OFA78: 0 | OFB78: 0 | OFC78: 0 | OFD78: 0 | OFE78: 0 | OFF78: 0 | OFG78: 0 | OFH78: 0 | OFI78: 0 | OFJ78: 0 | OFK78: 0 | OFL78: =SUM(OFL76:OFL77) -> 0 | OFM78: 0 | OFN78: 0 | OFO78: 0 | OFP78: 0 | OFQ78: 0 | OFR78: 0 | OFS78: 0 | OFT78: 0 | OFU78: 0 | OFV78: 0 | OFW78: 0 | OFX78: 0 | OFY78: 0 | OFZ78: 0 | OGA78: 0 | OGB78: 0 | OGC78: 0 | OGD78: 0 | OGE78: 0 | OGF78: 0 | OGG78: 0 | OGH78: 0 | OGI78: 0 | OGJ78: 0 | OGK78: 0 | OGL78: 0 | OGM78: 0 | OGN78: 0 | OGO78: 0 | OGP78: 0 | OGQ78: 0 | OGR78: 0 | OGS78: 0 | OGT78: 0 | OGU78: 0 | OGV78: 0 | OGW78: 0 | OGX78: 0 | OGY78: 0 | OGZ78: 0 | OHA78: 0 | OHB78: 0 | OHC78: 0 | OHD78: 0 | OHE78: 0 | OHF78: 0 | OHG78: 0 | OHH78: 0 | OHI78: 0 | OHJ78: 0 | OHK78: 0 | OHL78: 0 | OHM78: 0 | OHN78: 0 | OHO78: 0 | OHP78: 0 | OHQ78: 0 | OHR78: 0 | OHS78: 0 | OHT78: 0 | OHU78: 0 | OHV78: 0 | OHW78: 0 | OHX78: =SUM(OHX76:OHX77) -> 0 | OHY78: 0 | OHZ78: 0 | OIA78: 0 | OIB78: 0 | OIC78: 0 | OID78: 0 | OIE78: 0 | OIF78: 0 | OIG78: 0 | OIH78: 0 | OII78: 0 | OIJ78: 0 | OIK78: 0 | OIL78: 0 | OIM78: 0 | OIN78: 0 | OIO78: 0 | OIP78: 0 | OIQ78: 0 | OIR78: 0 | OIS78: 0 | OIT78: 0 | OIU78: 0 | OIV78: 0 | OIW78: 0 | OIX78: 0 | OIY78: 0 | OIZ78: 0 | OJA78: 0 | OJB78: 0 | OJC78: 0 | OJD78: 0 | OJE78: 0 | OJF78: 0 | OJG78: 0 | OJH78: 0 | OJI78: 0 | OJJ78: 0 | OJK78: 0 | OJL78: 0 | OJM78: 0 | OJN78: 0 | OJO78: 0 | OJP78: 0 | OJQ78: 0 | OJR78: 0 | OJS78: 0 | OJT78: 0 | OJU78: 0 | OJV78: 0 | OJW78: 0 | OJX78: 0 | OJY78: 0 | OJZ78: 0 | OKA78: 0 | OKB78: 0 | OKC78: 0 | OKD78: 0 | OKE78: 0 | OKF78: 0 | OKG78: 0 | OKH78: 0 | OKI78: 0 | OKJ78: =SUM(OKJ76:OKJ77) -> 0 | OKK78: 0 | OKL78: 0 | OKM78: 0 | OKN78: 0 | OKO78: 0 | OKP78: 0 | OKQ78: 0 | OKR78: 0 | OKS78: 0 | OKT78: 0 | OKU78: 0 | OKV78: 0 | OKW78: 0 | OKX78: 0 | OKY78: 0 | OKZ78: 0 | OLA78: 0 | OLB78: 0 | OLC78: 0 | OLD78: 0 | OLE78: 0 | OLF78: 0 | OLG78: 0 | OLH78: 0 | OLI78: 0 | OLJ78: 0 | OLK78: 0 | OLL78: 0 | OLM78: 0 | OLN78: 0 | OLO78: 0 | OLP78: 0 | OLQ78: 0 | OLR78: 0 | OLS78: 0 | OLT78: 0 | OLU78: 0 | OLV78: 0 | OLW78: 0 | OLX78: 0 | OLY78: 0 | OLZ78: 0 | OMA78: 0 | OMB78: 0 | OMC78: 0 | OMD78: 0 | OME78: 0 | OMF78: 0 | OMG78: 0 | OMH78: 0 | OMI78: 0 | OMJ78: 0 | OMK78: 0 | OML78: 0 | OMM78: 0 | OMN78: 0 | OMO78: 0 | OMP78: 0 | OMQ78: 0 | OMR78: 0 | OMS78: 0 | OMT78: 0 | OMU78: 0 | OMV78: =SUM(OMV76:OMV77) -> 0 | OMW78: 0 | OMX78: 0 | OMY78: 0 | OMZ78: 0 | ONA78: 0 | ONB78: 0 | ONC78: 0 | OND78: 0 | ONE78: 0 | ONF78: 0 | ONG78: 0 | ONH78: 0 | ONI78: 0 | ONJ78: 0 | ONK78: 0 | ONL78: 0 | ONM78: 0 | ONN78: 0 | ONO78: 0 | ONP78: 0 | ONQ78: 0 | ONR78: 0 | ONS78: 0 | ONT78: 0 | ONU78: 0 | ONV78: 0 | ONW78: 0 | ONX78: 0 | ONY78: 0 | ONZ78: 0 | OOA78: 0 | OOB78: 0 | OOC78: 0 | OOD78: 0 | OOE78: 0 | OOF78: 0 | OOG78: 0 | OOH78: 0 | OOI78: 0 | OOJ78: 0 | OOK78: 0 | OOL78: 0 | OOM78: 0 | OON78: 0 | OOO78: 0 | OOP78: 0 | OOQ78: 0 | OOR78: 0 | OOS78: 0 | OOT78: 0 | OOU78: 0 | OOV78: 0 | OOW78: 0 | OOX78: 0 | OOY78: 0 | OOZ78: 0 | OPA78: 0 | OPB78: 0 | OPC78: 0 | OPD78: 0 | OPE78: 0 | OPF78: 0 | OPG78: 0 | OPH78: =SUM(OPH76:OPH77) -> 0 | OPI78: 0 | OPJ78: 0 | OPK78: 0 | OPL78: 0 | OPM78: 0 | OPN78: 0 | OPO78: 0 | OPP78: 0 | OPQ78: 0 | OPR78: 0 | OPS78: 0 | OPT78: 0 | OPU78: 0 | OPV78: 0 | OPW78: 0 | OPX78: 0 | OPY78: 0 | OPZ78: 0 | OQA78: 0 | OQB78: 0 | OQC78: 0 | OQD78: 0 | OQE78: 0 | OQF78: 0 | OQG78: 0 | OQH78: 0 | OQI78: 0 | OQJ78: 0 | OQK78: 0 | OQL78: 0 | OQM78: 0 | OQN78: 0 | OQO78: 0 | OQP78: 0 | OQQ78: 0 | OQR78: 0 | OQS78: 0 | OQT78: 0 | OQU78: 0 | OQV78: 0 | OQW78: 0 | OQX78: 0 | OQY78: 0 | OQZ78: 0 | ORA78: 0 | ORB78: 0 | ORC78: 0 | ORD78: 0 | ORE78: 0 | ORF78: 0 | ORG78: 0 | ORH78: 0 | ORI78: 0 | ORJ78: 0 | ORK78: 0 | ORL78: 0 | ORM78: 0 | ORN78: 0 | ORO78: 0 | ORP78: 0 | ORQ78: 0 | ORR78: 0 | ORS78: 0 | ORT78: =SUM(ORT76:ORT77) -> 0 | ORU78: 0 | ORV78: 0 | ORW78: 0 | ORX78: 0 | ORY78: 0 | ORZ78: 0 | OSA78: 0 | OSB78: 0 | OSC78: 0 | OSD78: 0 | OSE78: 0 | OSF78: 0 | OSG78: 0 | OSH78: 0 | OSI78: 0 | OSJ78: 0 | OSK78: 0 | OSL78: 0 | OSM78: 0 | OSN78: 0 | OSO78: 0 | OSP78: 0 | OSQ78: 0 | OSR78: 0 | OSS78: 0 | OST78: 0 | OSU78: 0 | OSV78: 0 | OSW78: 0 | OSX78: 0 | OSY78: 0 | OSZ78: 0 | OTA78: 0 | OTB78: 0 | OTC78: 0 | OTD78: 0 | OTE78: 0 | OTF78: 0 | OTG78: 0 | OTH78: 0 | OTI78: 0 | OTJ78: 0 | OTK78: 0 | OTL78: 0 | OTM78: 0 | OTN78: 0 | OTO78: 0 | OTP78: 0 | OTQ78: 0 | OTR78: 0 | OTS78: 0 | OTT78: 0 | OTU78: 0 | OTV78: 0 | OTW78: 0 | OTX78: 0 | OTY78: 0 | OTZ78: 0 | OUA78: 0 | OUB78: 0 | OUC78: 0 | OUD78: 0 | OUE78: 0 | OUF78: =SUM(OUF76:OUF77) -> 0 | OUG78: 0 | OUH78: 0 | OUI78: 0 | OUJ78: 0 | OUK78: 0 | OUL78: 0 | OUM78: 0 | OUN78: 0 | OUO78: 0 | OUP78: 0 | OUQ78: 0 | OUR78: 0 | OUS78: 0 | OUT78: 0 | OUU78: 0 | OUV78: 0 | OUW78: 0 | OUX78: 0 | OUY78: 0 | OUZ78: 0 | OVA78: 0 | OVB78: 0 | OVC78: 0 | OVD78: 0 | OVE78: 0 | OVF78: 0 | OVG78: 0 | OVH78: 0 | OVI78: 0 | OVJ78: 0 | OVK78: 0 | OVL78: 0 | OVM78: 0 | OVN78: 0 | OVO78: 0 | OVP78: 0 | OVQ78: 0 | OVR78: 0 | OVS78: 0 | OVT78: 0 | OVU78: 0 | OVV78: 0 | OVW78: 0 | OVX78: 0 | OVY78: 0 | OVZ78: 0 | OWA78: 0 | OWB78: 0 | OWC78: 0 | OWD78: 0 | OWE78: 0 | OWF78: 0 | OWG78: 0 | OWH78: 0 | OWI78: 0 | OWJ78: 0 | OWK78: 0 | OWL78: 0 | OWM78: 0 | OWN78: 0 | OWO78: 0 | OWP78: 0 | OWQ78: 0 | OWR78: =SUM(OWR76:OWR77) -> 0 | OWS78: 0 | OWT78: 0 | OWU78: 0 | OWV78: 0 | OWW78: 0 | OWX78: 0 | OWY78: 0 | OWZ78: 0 | OXA78: 0 | OXB78: 0 | OXC78: 0 | OXD78: 0 | OXE78: 0 | OXF78: 0 | OXG78: 0 | OXH78: 0 | OXI78: 0 | OXJ78: 0 | OXK78: 0 | OXL78: 0 | OXM78: 0 | OXN78: 0 | OXO78: 0 | OXP78: 0 | OXQ78: 0 | OXR78: 0 | OXS78: 0 | OXT78: 0 | OXU78: 0 | OXV78: 0 | OXW78: 0 | OXX78: 0 | OXY78: 0 | OXZ78: 0 | OYA78: 0 | OYB78: 0 | OYC78: 0 | OYD78: 0 | OYE78: 0 | OYF78: 0 | OYG78: 0 | OYH78: 0 | OYI78: 0 | OYJ78: 0 | OYK78: 0 | OYL78: 0 | OYM78: 0 | OYN78: 0 | OYO78: 0 | OYP78: 0 | OYQ78: 0 | OYR78: 0 | OYS78: 0 | OYT78: 0 | OYU78: 0 | OYV78: 0 | OYW78: 0 | OYX78: 0 | OYY78: 0 | OYZ78: 0 | OZA78: 0 | OZB78: 0 | OZC78: 0 | OZD78: =SUM(OZD76:OZD77) -> 0 | OZE78: 0 | OZF78: 0 | OZG78: 0 | OZH78: 0 | OZI78: 0 | OZJ78: 0 | OZK78: 0 | OZL78: 0 | OZM78: 0 | OZN78: 0 | OZO78: 0 | OZP78: 0 | OZQ78: 0 | OZR78: 0 | OZS78: 0 | OZT78: 0 | OZU78: 0 | OZV78: 0 | OZW78: 0 | OZX78: 0 | OZY78: 0 | OZZ78: 0 | PAA78: 0 | PAB78: 0 | PAC78: 0 | PAD78: 0 | PAE78: 0 | PAF78: 0 | PAG78: 0 | PAH78: 0 | PAI78: 0 | PAJ78: 0 | PAK78: 0 | PAL78: 0 | PAM78: 0 | PAN78: 0 | PAO78: 0 | PAP78: 0 | PAQ78: 0 | PAR78: 0 | PAS78: 0 | PAT78: 0 | PAU78: 0 | PAV78: 0 | PAW78: 0 | PAX78: 0 | PAY78: 0 | PAZ78: 0 | PBA78: 0 | PBB78: 0 | PBC78: 0 | PBD78: 0 | PBE78: 0 | PBF78: 0 | PBG78: 0 | PBH78: 0 | PBI78: 0 | PBJ78: 0 | PBK78: 0 | PBL78: 0 | PBM78: 0 | PBN78: 0 | PBO78: 0 | PBP78: =SUM(PBP76:PBP77) -> 0 | PBQ78: 0 | PBR78: 0 | PBS78: 0 | PBT78: 0 | PBU78: 0 | PBV78: 0 | PBW78: 0 | PBX78: 0 | PBY78: 0 | PBZ78: 0 | PCA78: 0 | PCB78: 0 | PCC78: 0 | PCD78: 0 | PCE78: 0 | PCF78: 0 | PCG78: 0 | PCH78: 0 | PCI78: 0 | PCJ78: 0 | PCK78: 0 | PCL78: 0 | PCM78: 0 | PCN78: 0 | PCO78: 0 | PCP78: 0 | PCQ78: 0 | PCR78: 0 | PCS78: 0 | PCT78: 0 | PCU78: 0 | PCV78: 0 | PCW78: 0 | PCX78: 0 | PCY78: 0 | PCZ78: 0 | PDA78: 0 | PDB78: 0 | PDC78: 0 | PDD78: 0 | PDE78: 0 | PDF78: 0 | PDG78: 0 | PDH78: 0 | PDI78: 0 | PDJ78: 0 | PDK78: 0 | PDL78: 0 | PDM78: 0 | PDN78: 0 | PDO78: 0 | PDP78: 0 | PDQ78: 0 | PDR78: 0 | PDS78: 0 | PDT78: 0 | PDU78: 0 | PDV78: 0 | PDW78: 0 | PDX78: 0 | PDY78: 0 | PDZ78: 0 | PEA78: 0 | PEB78: =SUM(PEB76:PEB77) -> 0 | PEC78: 0 | PED78: 0 | PEE78: 0 | PEF78: 0 | PEG78: 0 | PEH78: 0 | PEI78: 0 | PEJ78: 0 | PEK78: 0 | PEL78: 0 | PEM78: 0 | PEN78: 0 | PEO78: 0 | PEP78: 0 | PEQ78: 0 | PER78: 0 | PES78: 0 | PET78: 0 | PEU78: 0 | PEV78: 0 | PEW78: 0 | PEX78: 0 | PEY78: 0 | PEZ78: 0 | PFA78: 0 | PFB78: 0 | PFC78: 0 | PFD78: 0 | PFE78: 0 | PFF78: 0 | PFG78: 0 | PFH78: 0 | PFI78: 0 | PFJ78: 0 | PFK78: 0 | PFL78: 0 | PFM78: 0 | PFN78: 0 | PFO78: 0 | PFP78: 0 | PFQ78: 0 | PFR78: 0 | PFS78: 0 | PFT78: 0 | PFU78: 0 | PFV78: 0 | PFW78: 0 | PFX78: 0 | PFY78: 0 | PFZ78: 0 | PGA78: 0 | PGB78: 0 | PGC78: 0 | PGD78: 0 | PGE78: 0 | PGF78: 0 | PGG78: 0 | PGH78: 0 | PGI78: 0 | PGJ78: 0 | PGK78: 0 | PGL78: 0 | PGM78: 0 | PGN78: =SUM(PGN76:PGN77) -> 0 | PGO78: 0 | PGP78: 0 | PGQ78: 0 | PGR78: 0 | PGS78: 0 | PGT78: 0 | PGU78: 0 | PGV78: 0 | PGW78: 0 | PGX78: 0 | PGY78: 0 | PGZ78: 0 | PHA78: 0 | PHB78: 0 | PHC78: 0 | PHD78: 0 | PHE78: 0 | PHF78: 0 | PHG78: 0 | PHH78: 0 | PHI78: 0 | PHJ78: 0 | PHK78: 0 | PHL78: 0 | PHM78: 0 | PHN78: 0 | PHO78: 0 | PHP78: 0 | PHQ78: 0 | PHR78: 0 | PHS78: 0 | PHT78: 0 | PHU78: 0 | PHV78: 0 | PHW78: 0 | PHX78: 0 | PHY78: 0 | PHZ78: 0 | PIA78: 0 | PIB78: 0 | PIC78: 0 | PID78: 0 | PIE78: 0 | PIF78: 0 | PIG78: 0 | PIH78: 0 | PII78: 0 | PIJ78: 0 | PIK78: 0 | PIL78: 0 | PIM78: 0 | PIN78: 0 | PIO78: 0 | PIP78: 0 | PIQ78: 0 | PIR78: 0 | PIS78: 0 | PIT78: 0 | PIU78: 0 | PIV78: 0 | PIW78: 0 | PIX78: 0 | PIY78: 0 | PIZ78: =SUM(PIZ76:PIZ77) -> 0 | PJA78: 0 | PJB78: 0 | PJC78: 0 | PJD78: 0 | PJE78: 0 | PJF78: 0 | PJG78: 0 | PJH78: 0 | PJI78: 0 | PJJ78: 0 | PJK78: 0 | PJL78: 0 | PJM78: 0 | PJN78: 0 | PJO78: 0 | PJP78: 0 | PJQ78: 0 | PJR78: 0 | PJS78: 0 | PJT78: 0 | PJU78: 0 | PJV78: 0 | PJW78: 0 | PJX78: 0 | PJY78: 0 | PJZ78: 0 | PKA78: 0 | PKB78: 0 | PKC78: 0 | PKD78: 0 | PKE78: 0 | PKF78: 0 | PKG78: 0 | PKH78: 0 | PKI78: 0 | PKJ78: 0 | PKK78: 0 | PKL78: 0 | PKM78: 0 | PKN78: 0 | PKO78: 0 | PKP78: 0 | PKQ78: 0 | PKR78: 0 | PKS78: 0 | PKT78: 0 | PKU78: 0 | PKV78: 0 | PKW78: 0 | PKX78: 0 | PKY78: 0 | PKZ78: 0 | PLA78: 0 | PLB78: 0 | PLC78: 0 | PLD78: 0 | PLE78: 0 | PLF78: 0 | PLG78: 0 | PLH78: 0 | PLI78: 0 | PLJ78: 0 | PLK78: 0 | PLL78: =SUM(PLL76:PLL77) -> 0 | PLM78: 0 | PLN78: 0 | PLO78: 0 | PLP78: 0 | PLQ78: 0 | PLR78: 0 | PLS78: 0 | PLT78: 0 | PLU78: 0 | PLV78: 0 | PLW78: 0 | PLX78: 0 | PLY78: 0 | PLZ78: 0 | PMA78: 0 | PMB78: 0 | PMC78: 0 | PMD78: 0 | PME78: 0 | PMF78: 0 | PMG78: 0 | PMH78: 0 | PMI78: 0 | PMJ78: 0 | PMK78: 0 | PML78: 0 | PMM78: 0 | PMN78: 0 | PMO78: 0 | PMP78: 0 | PMQ78: 0 | PMR78: 0 | PMS78: 0 | PMT78: 0 | PMU78: 0 | PMV78: 0 | PMW78: 0 | PMX78: 0 | PMY78: 0 | PMZ78: 0 | PNA78: 0 | PNB78: 0 | PNC78: 0 | PND78: 0 | PNE78: 0 | PNF78: 0 | PNG78: 0 | PNH78: 0 | PNI78: 0 | PNJ78: 0 | PNK78: 0 | PNL78: 0 | PNM78: 0 | PNN78: 0 | PNO78: 0 | PNP78: 0 | PNQ78: 0 | PNR78: 0 | PNS78: 0 | PNT78: 0 | PNU78: 0 | PNV78: 0 | PNW78: 0 | PNX78: =SUM(PNX76:PNX77) -> 0 | PNY78: 0 | PNZ78: 0 | POA78: 0 | POB78: 0 | POC78: 0 | POD78: 0 | POE78: 0 | POF78: 0 | POG78: 0 | POH78: 0 | POI78: 0 | POJ78: 0 | POK78: 0 | POL78: 0 | POM78: 0 | PON78: 0 | POO78: 0 | POP78: 0 | POQ78: 0 | POR78: 0 | POS78: 0 | POT78: 0 | POU78: 0 | POV78: 0 | POW78: 0 | POX78: 0 | POY78: 0 | POZ78: 0 | PPA78: 0 | PPB78: 0 | PPC78: 0 | PPD78: 0 | PPE78: 0 | PPF78: 0 | PPG78: 0 | PPH78: 0 | PPI78: 0 | PPJ78: 0 | PPK78: 0 | PPL78: 0 | PPM78: 0 | PPN78: 0 | PPO78: 0 | PPP78: 0 | PPQ78: 0 | PPR78: 0 | PPS78: 0 | PPT78: 0 | PPU78: 0 | PPV78: 0 | PPW78: 0 | PPX78: 0 | PPY78: 0 | PPZ78: 0 | PQA78: 0 | PQB78: 0 | PQC78: 0 | PQD78: 0 | PQE78: 0 | PQF78: 0 | PQG78: 0 | PQH78: 0 | PQI78: 0 | PQJ78: =SUM(PQJ76:PQJ77) -> 0 | PQK78: 0 | PQL78: 0 | PQM78: 0 | PQN78: 0 | PQO78: 0 | PQP78: 0 | PQQ78: 0 | PQR78: 0 | PQS78: 0 | PQT78: 0 | PQU78: 0 | PQV78: 0 | PQW78: 0 | PQX78: 0 | PQY78: 0 | PQZ78: 0 | PRA78: 0 | PRB78: 0 | PRC78: 0 | PRD78: 0 | PRE78: 0 | PRF78: 0 | PRG78: 0 | PRH78: 0 | PRI78: 0 | PRJ78: 0 | PRK78: 0 | PRL78: 0 | PRM78: 0 | PRN78: 0 | PRO78: 0 | PRP78: 0 | PRQ78: 0 | PRR78: 0 | PRS78: 0 | PRT78: 0 | PRU78: 0 | PRV78: 0 | PRW78: 0 | PRX78: 0 | PRY78: 0 | PRZ78: 0 | PSA78: 0 | PSB78: 0 | PSC78: 0 | PSD78: 0 | PSE78: 0 | PSF78: 0 | PSG78: 0 | PSH78: 0 | PSI78: 0 | PSJ78: 0 | PSK78: 0 | PSL78: 0 | PSM78: 0 | PSN78: 0 | PSO78: 0 | PSP78: 0 | PSQ78: 0 | PSR78: 0 | PSS78: 0 | PST78: 0 | PSU78: 0 | PSV78: =SUM(PSV76:PSV77) -> 0 | PSW78: 0 | PSX78: 0 | PSY78: 0 | PSZ78: 0 | PTA78: 0 | PTB78: 0 | PTC78: 0 | PTD78: 0 | PTE78: 0 | PTF78: 0 | PTG78: 0 | PTH78: 0 | PTI78: 0 | PTJ78: 0 | PTK78: 0 | PTL78: 0 | PTM78: 0 | PTN78: 0 | PTO78: 0 | PTP78: 0 | PTQ78: 0 | PTR78: 0 | PTS78: 0 | PTT78: 0 | PTU78: 0 | PTV78: 0 | PTW78: 0 | PTX78: 0 | PTY78: 0 | PTZ78: 0 | PUA78: 0 | PUB78: 0 | PUC78: 0 | PUD78: 0 | PUE78: 0 | PUF78: 0 | PUG78: 0 | PUH78: 0 | PUI78: 0 | PUJ78: 0 | PUK78: 0 | PUL78: 0 | PUM78: 0 | PUN78: 0 | PUO78: 0 | PUP78: 0 | PUQ78: 0 | PUR78: 0 | PUS78: 0 | PUT78: 0 | PUU78: 0 | PUV78: 0 | PUW78: 0 | PUX78: 0 | PUY78: 0 | PUZ78: 0 | PVA78: 0 | PVB78: 0 | PVC78: 0 | PVD78: 0 | PVE78: 0 | PVF78: 0 | PVG78: 0 | PVH78: =SUM(PVH76:PVH77) -> 0 | PVI78: 0 | PVJ78: 0 | PVK78: 0 | PVL78: 0 | PVM78: 0 | PVN78: 0 | PVO78: 0 | PVP78: 0 | PVQ78: 0 | PVR78: 0 | PVS78: 0 | PVT78: 0 | PVU78: 0 | PVV78: 0 | PVW78: 0 | PVX78: 0 | PVY78: 0 | PVZ78: 0 | PWA78: 0 | PWB78: 0 | PWC78: 0 | PWD78: 0 | PWE78: 0 | PWF78: 0 | PWG78: 0 | PWH78: 0 | PWI78: 0 | PWJ78: 0 | PWK78: 0 | PWL78: 0 | PWM78: 0 | PWN78: 0 | PWO78: 0 | PWP78: 0 | PWQ78: 0 | PWR78: 0 | PWS78: 0 | PWT78: 0 | PWU78: 0 | PWV78: 0 | PWW78: 0 | PWX78: 0 | PWY78: 0 | PWZ78: 0 | PXA78: 0 | PXB78: 0 | PXC78: 0 | PXD78: 0 | PXE78: 0 | PXF78: 0 | PXG78: 0 | PXH78: 0 | PXI78: 0 | PXJ78: 0 | PXK78: 0 | PXL78: 0 | PXM78: 0 | PXN78: 0 | PXO78: 0 | PXP78: 0 | PXQ78: 0 | PXR78: 0 | PXS78: 0 | PXT78: =SUM(PXT76:PXT77) -> 0 | PXU78: 0 | PXV78: 0 | PXW78: 0 | PXX78: 0 | PXY78: 0 | PXZ78: 0 | PYA78: 0 | PYB78: 0 | PYC78: 0 | PYD78: 0 | PYE78: 0 | PYF78: 0 | PYG78: 0 | PYH78: 0 | PYI78: 0 | PYJ78: 0 | PYK78: 0 | PYL78: 0 | PYM78: 0 | PYN78: 0 | PYO78: 0 | PYP78: 0 | PYQ78: 0 | PYR78: 0 | PYS78: 0 | PYT78: 0 | PYU78: 0 | PYV78: 0 | PYW78: 0 | PYX78: 0 | PYY78: 0 | PYZ78: 0 | PZA78: 0 | PZB78: 0 | PZC78: 0 | PZD78: 0 | PZE78: 0 | PZF78: 0 | PZG78: 0 | PZH78: 0 | PZI78: 0 | PZJ78: 0 | PZK78: 0 | PZL78: 0 | PZM78: 0 | PZN78: 0 | PZO78: 0 | PZP78: 0 | PZQ78: 0 | PZR78: 0 | PZS78: 0 | PZT78: 0 | PZU78: 0 | PZV78: 0 | PZW78: 0 | PZX78: 0 | PZY78: 0 | PZZ78: 0 | QAA78: 0 | QAB78: 0 | QAC78: 0 | QAD78: 0 | QAE78: 0 | QAF78: =SUM(QAF76:QAF77) -> 0 | QAG78: 0 | QAH78: 0 | QAI78: 0 | QAJ78: 0 | QAK78: 0 | QAL78: 0 | QAM78: 0 | QAN78: 0 | QAO78: 0 | QAP78: 0 | QAQ78: 0 | QAR78: 0 | QAS78: 0 | QAT78: 0 | QAU78: 0 | QAV78: 0 | QAW78: 0 | QAX78: 0 | QAY78: 0 | QAZ78: 0 | QBA78: 0 | QBB78: 0 | QBC78: 0 | QBD78: 0 | QBE78: 0 | QBF78: 0 | QBG78: 0 | QBH78: 0 | QBI78: 0 | QBJ78: 0 | QBK78: 0 | QBL78: 0 | QBM78: 0 | QBN78: 0 | QBO78: 0 | QBP78: 0 | QBQ78: 0 | QBR78: 0 | QBS78: 0 | QBT78: 0 | QBU78: 0 | QBV78: 0 | QBW78: 0 | QBX78: 0 | QBY78: 0 | QBZ78: 0 | QCA78: 0 | QCB78: 0 | QCC78: 0 | QCD78: 0 | QCE78: 0 | QCF78: 0 | QCG78: 0 | QCH78: 0 | QCI78: 0 | QCJ78: 0 | QCK78: 0 | QCL78: 0 | QCM78: 0 | QCN78: 0 | QCO78: 0 | QCP78: 0 | QCQ78: 0 | QCR78: =SUM(QCR76:QCR77) -> 0 | QCS78: 0 | QCT78: 0 | QCU78: 0 | QCV78: 0 | QCW78: 0 | QCX78: 0 | QCY78: 0 | QCZ78: 0 | QDA78: 0 | QDB78: 0 | QDC78: 0 | QDD78: 0 | QDE78: 0 | QDF78: 0 | QDG78: 0 | QDH78: 0 | QDI78: 0 | QDJ78: 0 | QDK78: 0 | QDL78: 0 | QDM78: 0 | QDN78: 0 | QDO78: 0 | QDP78: 0 | QDQ78: 0 | QDR78: 0 | QDS78: 0 | QDT78: 0 | QDU78: 0 | QDV78: 0 | QDW78: 0 | QDX78: 0 | QDY78: 0 | QDZ78: 0 | QEA78: 0 | QEB78: 0 | QEC78: 0 | QED78: 0 | QEE78: 0 | QEF78: 0 | QEG78: 0 | QEH78: 0 | QEI78: 0 | QEJ78: 0 | QEK78: 0 | QEL78: 0 | QEM78: 0 | QEN78: 0 | QEO78: 0 | QEP78: 0 | QEQ78: 0 | QER78: 0 | QES78: 0 | QET78: 0 | QEU78: 0 | QEV78: 0 | QEW78: 0 | QEX78: 0 | QEY78: 0 | QEZ78: 0 | QFA78: 0 | QFB78: 0 | QFC78: 0 | QFD78: =SUM(QFD76:QFD77) -> 0 | QFE78: 0 | QFF78: 0 | QFG78: 0 | QFH78: 0 | QFI78: 0 | QFJ78: 0 | QFK78: 0 | QFL78: 0 | QFM78: 0 | QFN78: 0 | QFO78: 0 | QFP78: 0 | QFQ78: 0 | QFR78: 0 | QFS78: 0 | QFT78: 0 | QFU78: 0 | QFV78: 0 | QFW78: 0 | QFX78: 0 | QFY78: 0 | QFZ78: 0 | QGA78: 0 | QGB78: 0 | QGC78: 0 | QGD78: 0 | QGE78: 0 | QGF78: 0 | QGG78: 0 | QGH78: 0 | QGI78: 0 | QGJ78: 0 | QGK78: 0 | QGL78: 0 | QGM78: 0 | QGN78: 0 | QGO78: 0 | QGP78: 0 | QGQ78: 0 | QGR78: 0 | QGS78: 0 | QGT78: 0 | QGU78: 0 | QGV78: 0 | QGW78: 0 | QGX78: 0 | QGY78: 0 | QGZ78: 0 | QHA78: 0 | QHB78: 0 | QHC78: 0 | QHD78: 0 | QHE78: 0 | QHF78: 0 | QHG78: 0 | QHH78: 0 | QHI78: 0 | QHJ78: 0 | QHK78: 0 | QHL78: 0 | QHM78: 0 | QHN78: 0 | QHO78: 0 | QHP78: =SUM(QHP76:QHP77) -> 0 | QHQ78: 0 | QHR78: 0 | QHS78: 0 | QHT78: 0 | QHU78: 0 | QHV78: 0 | QHW78: 0 | QHX78: 0 | QHY78: 0 | QHZ78: 0 | QIA78: 0 | QIB78: 0 | QIC78: 0 | QID78: 0 | QIE78: 0 | QIF78: 0 | QIG78: 0 | QIH78: 0 | QII78: 0 | QIJ78: 0 | QIK78: 0 | QIL78: 0 | QIM78: 0 | QIN78: 0 | QIO78: 0 | QIP78: 0 | QIQ78: 0 | QIR78: 0 | QIS78: 0 | QIT78: 0 | QIU78: 0 | QIV78: 0 | QIW78: 0 | QIX78: 0 | QIY78: 0 | QIZ78: 0 | QJA78: 0 | QJB78: 0 | QJC78: 0 | QJD78: 0 | QJE78: 0 | QJF78: 0 | QJG78: 0 | QJH78: 0 | QJI78: 0 | QJJ78: 0 | QJK78: 0 | QJL78: 0 | QJM78: 0 | QJN78: 0 | QJO78: 0 | QJP78: 0 | QJQ78: 0 | QJR78: 0 | QJS78: 0 | QJT78: 0 | QJU78: 0 | QJV78: 0 | QJW78: 0 | QJX78: 0 | QJY78: 0 | QJZ78: 0 | QKA78: 0 | QKB78: =SUM(QKB76:QKB77) -> 0 | QKC78: 0 | QKD78: 0 | QKE78: 0 | QKF78: 0 | QKG78: 0 | QKH78: 0 | QKI78: 0 | QKJ78: 0 | QKK78: 0 | QKL78: 0 | QKM78: 0 | QKN78: 0 | QKO78: 0 | QKP78: 0 | QKQ78: 0 | QKR78: 0 | QKS78: 0 | QKT78: 0 | QKU78: 0 | QKV78: 0 | QKW78: 0 | QKX78: 0 | QKY78: 0 | QKZ78: 0 | QLA78: 0 | QLB78: 0 | QLC78: 0 | QLD78: 0 | QLE78: 0 | QLF78: 0 | QLG78: 0 | QLH78: 0 | QLI78: 0 | QLJ78: 0 | QLK78: 0 | QLL78: 0 | QLM78: 0 | QLN78: 0 | QLO78: 0 | QLP78: 0 | QLQ78: 0 | QLR78: 0 | QLS78: 0 | QLT78: 0 | QLU78: 0 | QLV78: 0 | QLW78: 0 | QLX78: 0 | QLY78: 0 | QLZ78: 0 | QMA78: 0 | QMB78: 0 | QMC78: 0 | QMD78: 0 | QME78: 0 | QMF78: 0 | QMG78: 0 | QMH78: 0 | QMI78: 0 | QMJ78: 0 | QMK78: 0 | QML78: 0 | QMM78: 0 | QMN78: =SUM(QMN76:QMN77) -> 0 | QMO78: 0 | QMP78: 0 | QMQ78: 0 | QMR78: 0 | QMS78: 0 | QMT78: 0 | QMU78: 0 | QMV78: 0 | QMW78: 0 | QMX78: 0 | QMY78: 0 | QMZ78: 0 | QNA78: 0 | QNB78: 0 | QNC78: 0 | QND78: 0 | QNE78: 0 | QNF78: 0 | QNG78: 0 | QNH78: 0 | QNI78: 0 | QNJ78: 0 | QNK78: 0 | QNL78: 0 | QNM78: 0 | QNN78: 0 | QNO78: 0 | QNP78: 0 | QNQ78: 0 | QNR78: 0 | QNS78: 0 | QNT78: 0 | QNU78: 0 | QNV78: 0 | QNW78: 0 | QNX78: 0 | QNY78: 0 | QNZ78: 0 | QOA78: 0 | QOB78: 0 | QOC78: 0 | QOD78: 0 | QOE78: 0 | QOF78: 0 | QOG78: 0 | QOH78: 0 | QOI78: 0 | QOJ78: 0 | QOK78: 0 | QOL78: 0 | QOM78: 0 | QON78: 0 | QOO78: 0 | QOP78: 0 | QOQ78: 0 | QOR78: 0 | QOS78: 0 | QOT78: 0 | QOU78: 0 | QOV78: 0 | QOW78: 0 | QOX78: 0 | QOY78: 0 | QOZ78: =SUM(QOZ76:QOZ77) -> 0 | QPA78: 0 | QPB78: 0 | QPC78: 0 | QPD78: 0 | QPE78: 0 | QPF78: 0 | QPG78: 0 | QPH78: 0 | QPI78: 0 | QPJ78: 0 | QPK78: 0 | QPL78: 0 | QPM78: 0 | QPN78: 0 | QPO78: 0 | QPP78: 0 | QPQ78: 0 | QPR78: 0 | QPS78: 0 | QPT78: 0 | QPU78: 0 | QPV78: 0 | QPW78: 0 | QPX78: 0 | QPY78: 0 | QPZ78: 0 | QQA78: 0 | QQB78: 0 | QQC78: 0 | QQD78: 0 | QQE78: 0 | QQF78: 0 | QQG78: 0 | QQH78: 0 | QQI78: 0 | QQJ78: 0 | QQK78: 0 | QQL78: 0 | QQM78: 0 | QQN78: 0 | QQO78: 0 | QQP78: 0 | QQQ78: 0 | QQR78: 0 | QQS78: 0 | QQT78: 0 | QQU78: 0 | QQV78: 0 | QQW78: 0 | QQX78: 0 | QQY78: 0 | QQZ78: 0 | QRA78: 0 | QRB78: 0 | QRC78: 0 | QRD78: 0 | QRE78: 0 | QRF78: 0 | QRG78: 0 | QRH78: 0 | QRI78: 0 | QRJ78: 0 | QRK78: 0 | QRL78: =SUM(QRL76:QRL77) -> 0 | QRM78: 0 | QRN78: 0 | QRO78: 0 | QRP78: 0 | QRQ78: 0 | QRR78: 0 | QRS78: 0 | QRT78: 0 | QRU78: 0 | QRV78: 0 | QRW78: 0 | QRX78: 0 | QRY78: 0 | QRZ78: 0 | QSA78: 0 | QSB78: 0 | QSC78: 0 | QSD78: 0 | QSE78: 0 | QSF78: 0 | QSG78: 0 | QSH78: 0 | QSI78: 0 | QSJ78: 0 | QSK78: 0 | QSL78: 0 | QSM78: 0 | QSN78: 0 | QSO78: 0 | QSP78: 0 | QSQ78: 0 | QSR78: 0 | QSS78: 0 | QST78: 0 | QSU78: 0 | QSV78: 0 | QSW78: 0 | QSX78: 0 | QSY78: 0 | QSZ78: 0 | QTA78: 0 | QTB78: 0 | QTC78: 0 | QTD78: 0 | QTE78: 0 | QTF78: 0 | QTG78: 0 | QTH78: 0 | QTI78: 0 | QTJ78: 0 | QTK78: 0 | QTL78: 0 | QTM78: 0 | QTN78: 0 | QTO78: 0 | QTP78: 0 | QTQ78: 0 | QTR78: 0 | QTS78: 0 | QTT78: 0 | QTU78: 0 | QTV78: 0 | QTW78: 0 | QTX78: =SUM(QTX76:QTX77) -> 0 | QTY78: 0 | QTZ78: 0 | QUA78: 0 | QUB78: 0 | QUC78: 0 | QUD78: 0 | QUE78: 0 | QUF78: 0 | QUG78: 0 | QUH78: 0 | QUI78: 0 | QUJ78: 0 | QUK78: 0 | QUL78: 0 | QUM78: 0 | QUN78: 0 | QUO78: 0 | QUP78: 0 | QUQ78: 0 | QUR78: 0 | QUS78: 0 | QUT78: 0 | QUU78: 0 | QUV78: 0 | QUW78: 0 | QUX78: 0 | QUY78: 0 | QUZ78: 0 | QVA78: 0 | QVB78: 0 | QVC78: 0 | QVD78: 0 | QVE78: 0 | QVF78: 0 | QVG78: 0 | QVH78: 0 | QVI78: 0 | QVJ78: 0 | QVK78: 0 | QVL78: 0 | QVM78: 0 | QVN78: 0 | QVO78: 0 | QVP78: 0 | QVQ78: 0 | QVR78: 0 | QVS78: 0 | QVT78: 0 | QVU78: 0 | QVV78: 0 | QVW78: 0 | QVX78: 0 | QVY78: 0 | QVZ78: 0 | QWA78: 0 | QWB78: 0 | QWC78: 0 | QWD78: 0 | QWE78: 0 | QWF78: 0 | QWG78: 0 | QWH78: 0 | QWI78: 0 | QWJ78: =SUM(QWJ76:QWJ77) -> 0 | QWK78: 0 | QWL78: 0 | QWM78: 0 | QWN78: 0 | QWO78: 0 | QWP78: 0 | QWQ78: 0 | QWR78: 0 | QWS78: 0 | QWT78: 0 | QWU78: 0 | QWV78: 0 | QWW78: 0 | QWX78: 0 | QWY78: 0 | QWZ78: 0 | QXA78: 0 | QXB78: 0 | QXC78: 0 | QXD78: 0 | QXE78: 0 | QXF78: 0 | QXG78: 0 | QXH78: 0 | QXI78: 0 | QXJ78: 0 | QXK78: 0 | QXL78: 0 | QXM78: 0 | QXN78: 0 | QXO78: 0 | QXP78: 0 | QXQ78: 0 | QXR78: 0 | QXS78: 0 | QXT78: 0 | QXU78: 0 | QXV78: 0 | QXW78: 0 | QXX78: 0 | QXY78: 0 | QXZ78: 0 | QYA78: 0 | QYB78: 0 | QYC78: 0 | QYD78: 0 | QYE78: 0 | QYF78: 0 | QYG78: 0 | QYH78: 0 | QYI78: 0 | QYJ78: 0 | QYK78: 0 | QYL78: 0 | QYM78: 0 | QYN78: 0 | QYO78: 0 | QYP78: 0 | QYQ78: 0 | QYR78: 0 | QYS78: 0 | QYT78: 0 | QYU78: 0 | QYV78: =SUM(QYV76:QYV77) -> 0 | QYW78: 0 | QYX78: 0 | QYY78: 0 | QYZ78: 0 | QZA78: 0 | QZB78: 0 | QZC78: 0 | QZD78: 0 | QZE78: 0 | QZF78: 0 | QZG78: 0 | QZH78: 0 | QZI78: 0 | QZJ78: 0 | QZK78: 0 | QZL78: 0 | QZM78: 0 | QZN78: 0 | QZO78: 0 | QZP78: 0 | QZQ78: 0 | QZR78: 0 | QZS78: 0 | QZT78: 0 | QZU78: 0 | QZV78: 0 | QZW78: 0 | QZX78: 0 | QZY78: 0 | QZZ78: 0 | RAA78: 0 | RAB78: 0 | RAC78: 0 | RAD78: 0 | RAE78: 0 | RAF78: 0 | RAG78: 0 | RAH78: 0 | RAI78: 0 | RAJ78: 0 | RAK78: 0 | RAL78: 0 | RAM78: 0 | RAN78: 0 | RAO78: 0 | RAP78: 0 | RAQ78: 0 | RAR78: 0 | RAS78: 0 | RAT78: 0 | RAU78: 0 | RAV78: 0 | RAW78: 0 | RAX78: 0 | RAY78: 0 | RAZ78: 0 | RBA78: 0 | RBB78: 0 | RBC78: 0 | RBD78: 0 | RBE78: 0 | RBF78: 0 | RBG78: 0 | RBH78: =SUM(RBH76:RBH77) -> 0 | RBI78: 0 | RBJ78: 0 | RBK78: 0 | RBL78: 0 | RBM78: 0 | RBN78: 0 | RBO78: 0 | RBP78: 0 | RBQ78: 0 | RBR78: 0 | RBS78: 0 | RBT78: 0 | RBU78: 0 | RBV78: 0 | RBW78: 0 | RBX78: 0 | RBY78: 0 | RBZ78: 0 | RCA78: 0 | RCB78: 0 | RCC78: 0 | RCD78: 0 | RCE78: 0 | RCF78: 0 | RCG78: 0 | RCH78: 0 | RCI78: 0 | RCJ78: 0 | RCK78: 0 | RCL78: 0 | RCM78: 0 | RCN78: 0 | RCO78: 0 | RCP78: 0 | RCQ78: 0 | RCR78: 0 | RCS78: 0 | RCT78: 0 | RCU78: 0 | RCV78: 0 | RCW78: 0 | RCX78: 0 | RCY78: 0 | RCZ78: 0 | RDA78: 0 | RDB78: 0 | RDC78: 0 | RDD78: 0 | RDE78: 0 | RDF78: 0 | RDG78: 0 | RDH78: 0 | RDI78: 0 | RDJ78: 0 | RDK78: 0 | RDL78: 0 | RDM78: 0 | RDN78: 0 | RDO78: 0 | RDP78: 0 | RDQ78: 0 | RDR78: 0 | RDS78: 0 | RDT78: =SUM(RDT76:RDT77) -> 0 | RDU78: 0 | RDV78: 0 | RDW78: 0 | RDX78: 0 | RDY78: 0 | RDZ78: 0 | REA78: 0 | REB78: 0 | REC78: 0 | RED78: 0 | REE78: 0 | REF78: 0 | REG78: 0 | REH78: 0 | REI78: 0 | REJ78: 0 | REK78: 0 | REL78: 0 | REM78: 0 | REN78: 0 | REO78: 0 | REP78: 0 | REQ78: 0 | RER78: 0 | RES78: 0 | RET78: 0 | REU78: 0 | REV78: 0 | REW78: 0 | REX78: 0 | REY78: 0 | REZ78: 0 | RFA78: 0 | RFB78: 0 | RFC78: 0 | RFD78: 0 | RFE78: 0 | RFF78: 0 | RFG78: 0 | RFH78: 0 | RFI78: 0 | RFJ78: 0 | RFK78: 0 | RFL78: 0 | RFM78: 0 | RFN78: 0 | RFO78: 0 | RFP78: 0 | RFQ78: 0 | RFR78: 0 | RFS78: 0 | RFT78: 0 | RFU78: 0 | RFV78: 0 | RFW78: 0 | RFX78: 0 | RFY78: 0 | RFZ78: 0 | RGA78: 0 | RGB78: 0 | RGC78: 0 | RGD78: 0 | RGE78: 0 | RGF78: =SUM(RGF76:RGF77) -> 0 | RGG78: 0 | RGH78: 0 | RGI78: 0 | RGJ78: 0 | RGK78: 0 | RGL78: 0 | RGM78: 0 | RGN78: 0 | RGO78: 0 | RGP78: 0 | RGQ78: 0 | RGR78: 0 | RGS78: 0 | RGT78: 0 | RGU78: 0 | RGV78: 0 | RGW78: 0 | RGX78: 0 | RGY78: 0 | RGZ78: 0 | RHA78: 0 | RHB78: 0 | RHC78: 0 | RHD78: 0 | RHE78: 0 | RHF78: 0 | RHG78: 0 | RHH78: 0 | RHI78: 0 | RHJ78: 0 | RHK78: 0 | RHL78: 0 | RHM78: 0 | RHN78: 0 | RHO78: 0 | RHP78: 0 | RHQ78: 0 | RHR78: 0 | RHS78: 0 | RHT78: 0 | RHU78: 0 | RHV78: 0 | RHW78: 0 | RHX78: 0 | RHY78: 0 | RHZ78: 0 | RIA78: 0 | RIB78: 0 | RIC78: 0 | RID78: 0 | RIE78: 0 | RIF78: 0 | RIG78: 0 | RIH78: 0 | RII78: 0 | RIJ78: 0 | RIK78: 0 | RIL78: 0 | RIM78: 0 | RIN78: 0 | RIO78: 0 | RIP78: 0 | RIQ78: 0 | RIR78: =SUM(RIR76:RIR77) -> 0 | RIS78: 0 | RIT78: 0 | RIU78: 0 | RIV78: 0 | RIW78: 0 | RIX78: 0 | RIY78: 0 | RIZ78: 0 | RJA78: 0 | RJB78: 0 | RJC78: 0 | RJD78: 0 | RJE78: 0 | RJF78: 0 | RJG78: 0 | RJH78: 0 | RJI78: 0 | RJJ78: 0 | RJK78: 0 | RJL78: 0 | RJM78: 0 | RJN78: 0 | RJO78: 0 | RJP78: 0 | RJQ78: 0 | RJR78: 0 | RJS78: 0 | RJT78: 0 | RJU78: 0 | RJV78: 0 | RJW78: 0 | RJX78: 0 | RJY78: 0 | RJZ78: 0 | RKA78: 0 | RKB78: 0 | RKC78: 0 | RKD78: 0 | RKE78: 0 | RKF78: 0 | RKG78: 0 | RKH78: 0 | RKI78: 0 | RKJ78: 0 | RKK78: 0 | RKL78: 0 | RKM78: 0 | RKN78: 0 | RKO78: 0 | RKP78: 0 | RKQ78: 0 | RKR78: 0 | RKS78: 0 | RKT78: 0 | RKU78: 0 | RKV78: 0 | RKW78: 0 | RKX78: 0 | RKY78: 0 | RKZ78: 0 | RLA78: 0 | RLB78: 0 | RLC78: 0 | RLD78: =SUM(RLD76:RLD77) -> 0 | RLE78: 0 | RLF78: 0 | RLG78: 0 | RLH78: 0 | RLI78: 0 | RLJ78: 0 | RLK78: 0 | RLL78: 0 | RLM78: 0 | RLN78: 0 | RLO78: 0 | RLP78: 0 | RLQ78: 0 | RLR78: 0 | RLS78: 0 | RLT78: 0 | RLU78: 0 | RLV78: 0 | RLW78: 0 | RLX78: 0 | RLY78: 0 | RLZ78: 0 | RMA78: 0 | RMB78: 0 | RMC78: 0 | RMD78: 0 | RME78: 0 | RMF78: 0 | RMG78: 0 | RMH78: 0 | RMI78: 0 | RMJ78: 0 | RMK78: 0 | RML78: 0 | RMM78: 0 | RMN78: 0 | RMO78: 0 | RMP78: 0 | RMQ78: 0 | RMR78: 0 | RMS78: 0 | RMT78: 0 | RMU78: 0 | RMV78: 0 | RMW78: 0 | RMX78: 0 | RMY78: 0 | RMZ78: 0 | RNA78: 0 | RNB78: 0 | RNC78: 0 | RND78: 0 | RNE78: 0 | RNF78: 0 | RNG78: 0 | RNH78: 0 | RNI78: 0 | RNJ78: 0 | RNK78: 0 | RNL78: 0 | RNM78: 0 | RNN78: 0 | RNO78: 0 | RNP78: =SUM(RNP76:RNP77) -> 0 | RNQ78: 0 | RNR78: 0 | RNS78: 0 | RNT78: 0 | RNU78: 0 | RNV78: 0 | RNW78: 0 | RNX78: 0 | RNY78: 0 | RNZ78: 0 | ROA78: 0 | ROB78: 0 | ROC78: 0 | ROD78: 0 | ROE78: 0 | ROF78: 0 | ROG78: 0 | ROH78: 0 | ROI78: 0 | ROJ78: 0 | ROK78: 0 | ROL78: 0 | ROM78: 0 | RON78: 0 | ROO78: 0 | ROP78: 0 | ROQ78: 0 | ROR78: 0 | ROS78: 0 | ROT78: 0 | ROU78: 0 | ROV78: 0 | ROW78: 0 | ROX78: 0 | ROY78: 0 | ROZ78: 0 | RPA78: 0 | RPB78: 0 | RPC78: 0 | RPD78: 0 | RPE78: 0 | RPF78: 0 | RPG78: 0 | RPH78: 0 | RPI78: 0 | RPJ78: 0 | RPK78: 0 | RPL78: 0 | RPM78: 0 | RPN78: 0 | RPO78: 0 | RPP78: 0 | RPQ78: 0 | RPR78: 0 | RPS78: 0 | RPT78: 0 | RPU78: 0 | RPV78: 0 | RPW78: 0 | RPX78: 0 | RPY78: 0 | RPZ78: 0 | RQA78: 0 | RQB78: =SUM(RQB76:RQB77) -> 0 | RQC78: 0 | RQD78: 0 | RQE78: 0 | RQF78: 0 | RQG78: 0 | RQH78: 0 | RQI78: 0 | RQJ78: 0 | RQK78: 0 | RQL78: 0 | RQM78: 0 | RQN78: 0 | RQO78: 0 | RQP78: 0 | RQQ78: 0 | RQR78: 0 | RQS78: 0 | RQT78: 0 | RQU78: 0 | RQV78: 0 | RQW78: 0 | RQX78: 0 | RQY78: 0 | RQZ78: 0 | RRA78: 0 | RRB78: 0 | RRC78: 0 | RRD78: 0 | RRE78: 0 | RRF78: 0 | RRG78: 0 | RRH78: 0 | RRI78: 0 | RRJ78: 0 | RRK78: 0 | RRL78: 0 | RRM78: 0 | RRN78: 0 | RRO78: 0 | RRP78: 0 | RRQ78: 0 | RRR78: 0 | RRS78: 0 | RRT78: 0 | RRU78: 0 | RRV78: 0 | RRW78: 0 | RRX78: 0 | RRY78: 0 | RRZ78: 0 | RSA78: 0 | RSB78: 0 | RSC78: 0 | RSD78: 0 | RSE78: 0 | RSF78: 0 | RSG78: 0 | RSH78: 0 | RSI78: 0 | RSJ78: 0 | RSK78: 0 | RSL78: 0 | RSM78: 0 | RSN78: =SUM(RSN76:RSN77) -> 0 | RSO78: 0 | RSP78: 0 | RSQ78: 0 | RSR78: 0 | RSS78: 0 | RST78: 0 | RSU78: 0 | RSV78: 0 | RSW78: 0 | RSX78: 0 | RSY78: 0 | RSZ78: 0 | RTA78: 0 | RTB78: 0 | RTC78: 0 | RTD78: 0 | RTE78: 0 | RTF78: 0 | RTG78: 0 | RTH78: 0 | RTI78: 0 | RTJ78: 0 | RTK78: 0 | RTL78: 0 | RTM78: 0 | RTN78: 0 | RTO78: 0 | RTP78: 0 | RTQ78: 0 | RTR78: 0 | RTS78: 0 | RTT78: 0 | RTU78: 0 | RTV78: 0 | RTW78: 0 | RTX78: 0 | RTY78: 0 | RTZ78: 0 | RUA78: 0 | RUB78: 0 | RUC78: 0 | RUD78: 0 | RUE78: 0 | RUF78: 0 | RUG78: 0 | RUH78: 0 | RUI78: 0 | RUJ78: 0 | RUK78: 0 | RUL78: 0 | RUM78: 0 | RUN78: 0 | RUO78: 0 | RUP78: 0 | RUQ78: 0 | RUR78: 0 | RUS78: 0 | RUT78: 0 | RUU78: 0 | RUV78: 0 | RUW78: 0 | RUX78: 0 | RUY78: 0 | RUZ78: =SUM(RUZ76:RUZ77) -> 0 | RVA78: 0 | RVB78: 0 | RVC78: 0 | RVD78: 0 | RVE78: 0 | RVF78: 0 | RVG78: 0 | RVH78: 0 | RVI78: 0 | RVJ78: 0 | RVK78: 0 | RVL78: 0 | RVM78: 0 | RVN78: 0 | RVO78: 0 | RVP78: 0 | RVQ78: 0 | RVR78: 0 | RVS78: 0 | RVT78: 0 | RVU78: 0 | RVV78: 0 | RVW78: 0 | RVX78: 0 | RVY78: 0 | RVZ78: 0 | RWA78: 0 | RWB78: 0 | RWC78: 0 | RWD78: 0 | RWE78: 0 | RWF78: 0 | RWG78: 0 | RWH78: 0 | RWI78: 0 | RWJ78: 0 | RWK78: 0 | RWL78: 0 | RWM78: 0 | RWN78: 0 | RWO78: 0 | RWP78: 0 | RWQ78: 0 | RWR78: 0 | RWS78: 0 | RWT78: 0 | RWU78: 0 | RWV78: 0 | RWW78: 0 | RWX78: 0 | RWY78: 0 | RWZ78: 0 | RXA78: 0 | RXB78: 0 | RXC78: 0 | RXD78: 0 | RXE78: 0 | RXF78: 0 | RXG78: 0 | RXH78: 0 | RXI78: 0 | RXJ78: 0 | RXK78: 0 | RXL78: =SUM(RXL76:RXL77) -> 0 | RXM78: 0 | RXN78: 0 | RXO78: 0 | RXP78: 0 | RXQ78: 0 | RXR78: 0 | RXS78: 0 | RXT78: 0 | RXU78: 0 | RXV78: 0 | RXW78: 0 | RXX78: 0 | RXY78: 0 | RXZ78: 0 | RYA78: 0 | RYB78: 0 | RYC78: 0 | RYD78: 0 | RYE78: 0 | RYF78: 0 | RYG78: 0 | RYH78: 0 | RYI78: 0 | RYJ78: 0 | RYK78: 0 | RYL78: 0 | RYM78: 0 | RYN78: 0 | RYO78: 0 | RYP78: 0 | RYQ78: 0 | RYR78: 0 | RYS78: 0 | RYT78: 0 | RYU78: 0 | RYV78: 0 | RYW78: 0 | RYX78: 0 | RYY78: 0 | RYZ78: 0 | RZA78: 0 | RZB78: 0 | RZC78: 0 | RZD78: 0 | RZE78: 0 | RZF78: 0 | RZG78: 0 | RZH78: 0 | RZI78: 0 | RZJ78: 0 | RZK78: 0 | RZL78: 0 | RZM78: 0 | RZN78: 0 | RZO78: 0 | RZP78: 0 | RZQ78: 0 | RZR78: 0 | RZS78: 0 | RZT78: 0 | RZU78: 0 | RZV78: 0 | RZW78: 0 | RZX78: =SUM(RZX76:RZX77) -> 0 | RZY78: 0 | RZZ78: 0 | SAA78: 0 | SAB78: 0 | SAC78: 0 | SAD78: 0 | SAE78: 0 | SAF78: 0 | SAG78: 0 | SAH78: 0 | SAI78: 0 | SAJ78: 0 | SAK78: 0 | SAL78: 0 | SAM78: 0 | SAN78: 0 | SAO78: 0 | SAP78: 0 | SAQ78: 0 | SAR78: 0 | SAS78: 0 | SAT78: 0 | SAU78: 0 | SAV78: 0 | SAW78: 0 | SAX78: 0 | SAY78: 0 | SAZ78: 0 | SBA78: 0 | SBB78: 0 | SBC78: 0 | SBD78: 0 | SBE78: 0 | SBF78: 0 | SBG78: 0 | SBH78: 0 | SBI78: 0 | SBJ78: 0 | SBK78: 0 | SBL78: 0 | SBM78: 0 | SBN78: 0 | SBO78: 0 | SBP78: 0 | SBQ78: 0 | SBR78: 0 | SBS78: 0 | SBT78: 0 | SBU78: 0 | SBV78: 0 | SBW78: 0 | SBX78: 0 | SBY78: 0 | SBZ78: 0 | SCA78: 0 | SCB78: 0 | SCC78: 0 | SCD78: 0 | SCE78: 0 | SCF78: 0 | SCG78: 0 | SCH78: 0 | SCI78: 0 | SCJ78: =SUM(SCJ76:SCJ77) -> 0 | SCK78: 0 | SCL78: 0 | SCM78: 0 | SCN78: 0 | SCO78: 0 | SCP78: 0 | SCQ78: 0 | SCR78: 0 | SCS78: 0 | SCT78: 0 | SCU78: 0 | SCV78: 0 | SCW78: 0 | SCX78: 0 | SCY78: 0 | SCZ78: 0 | SDA78: 0 | SDB78: 0 | SDC78: 0 | SDD78: 0 | SDE78: 0 | SDF78: 0 | SDG78: 0 | SDH78: 0 | SDI78: 0 | SDJ78: 0 | SDK78: 0 | SDL78: 0 | SDM78: 0 | SDN78: 0 | SDO78: 0 | SDP78: 0 | SDQ78: 0 | SDR78: 0 | SDS78: 0 | SDT78: 0 | SDU78: 0 | SDV78: 0 | SDW78: 0 | SDX78: 0 | SDY78: 0 | SDZ78: 0 | SEA78: 0 | SEB78: 0 | SEC78: 0 | SED78: 0 | SEE78: 0 | SEF78: 0 | SEG78: 0 | SEH78: 0 | SEI78: 0 | SEJ78: 0 | SEK78: 0 | SEL78: 0 | SEM78: 0 | SEN78: 0 | SEO78: 0 | SEP78: 0 | SEQ78: 0 | SER78: 0 | SES78: 0 | SET78: 0 | SEU78: 0 | SEV78: =SUM(SEV76:SEV77) -> 0 | SEW78: 0 | SEX78: 0 | SEY78: 0 | SEZ78: 0 | SFA78: 0 | SFB78: 0 | SFC78: 0 | SFD78: 0 | SFE78: 0 | SFF78: 0 | SFG78: 0 | SFH78: 0 | SFI78: 0 | SFJ78: 0 | SFK78: 0 | SFL78: 0 | SFM78: 0 | SFN78: 0 | SFO78: 0 | SFP78: 0 | SFQ78: 0 | SFR78: 0 | SFS78: 0 | SFT78: 0 | SFU78: 0 | SFV78: 0 | SFW78: 0 | SFX78: 0 | SFY78: 0 | SFZ78: 0 | SGA78: 0 | SGB78: 0 | SGC78: 0 | SGD78: 0 | SGE78: 0 | SGF78: 0 | SGG78: 0 | SGH78: 0 | SGI78: 0 | SGJ78: 0 | SGK78: 0 | SGL78: 0 | SGM78: 0 | SGN78: 0 | SGO78: 0 | SGP78: 0 | SGQ78: 0 | SGR78: 0 | SGS78: 0 | SGT78: 0 | SGU78: 0 | SGV78: 0 | SGW78: 0 | SGX78: 0 | SGY78: 0 | SGZ78: 0 | SHA78: 0 | SHB78: 0 | SHC78: 0 | SHD78: 0 | SHE78: 0 | SHF78: 0 | SHG78: 0 | SHH78: =SUM(SHH76:SHH77) -> 0 | SHI78: 0 | SHJ78: 0 | SHK78: 0 | SHL78: 0 | SHM78: 0 | SHN78: 0 | SHO78: 0 | SHP78: 0 | SHQ78: 0 | SHR78: 0 | SHS78: 0 | SHT78: 0 | SHU78: 0 | SHV78: 0 | SHW78: 0 | SHX78: 0 | SHY78: 0 | SHZ78: 0 | SIA78: 0 | SIB78: 0 | SIC78: 0 | SID78: 0 | SIE78: 0 | SIF78: 0 | SIG78: 0 | SIH78: 0 | SII78: 0 | SIJ78: 0 | SIK78: 0 | SIL78: 0 | SIM78: 0 | SIN78: 0 | SIO78: 0 | SIP78: 0 | SIQ78: 0 | SIR78: 0 | SIS78: 0 | SIT78: 0 | SIU78: 0 | SIV78: 0 | SIW78: 0 | SIX78: 0 | SIY78: 0 | SIZ78: 0 | SJA78: 0 | SJB78: 0 | SJC78: 0 | SJD78: 0 | SJE78: 0 | SJF78: 0 | SJG78: 0 | SJH78: 0 | SJI78: 0 | SJJ78: 0 | SJK78: 0 | SJL78: 0 | SJM78: 0 | SJN78: 0 | SJO78: 0 | SJP78: 0 | SJQ78: 0 | SJR78: 0 | SJS78: 0 | SJT78: =SUM(SJT76:SJT77) -> 0 | SJU78: 0 | SJV78: 0 | SJW78: 0 | SJX78: 0 | SJY78: 0 | SJZ78: 0 | SKA78: 0 | SKB78: 0 | SKC78: 0 | SKD78: 0 | SKE78: 0 | SKF78: 0 | SKG78: 0 | SKH78: 0 | SKI78: 0 | SKJ78: 0 | SKK78: 0 | SKL78: 0 | SKM78: 0 | SKN78: 0 | SKO78: 0 | SKP78: 0 | SKQ78: 0 | SKR78: 0 | SKS78: 0 | SKT78: 0 | SKU78: 0 | SKV78: 0 | SKW78: 0 | SKX78: 0 | SKY78: 0 | SKZ78: 0 | SLA78: 0 | SLB78: 0 | SLC78: 0 | SLD78: 0 | SLE78: 0 | SLF78: 0 | SLG78: 0 | SLH78: 0 | SLI78: 0 | SLJ78: 0 | SLK78: 0 | SLL78: 0 | SLM78: 0 | SLN78: 0 | SLO78: 0 | SLP78: 0 | SLQ78: 0 | SLR78: 0 | SLS78: 0 | SLT78: 0 | SLU78: 0 | SLV78: 0 | SLW78: 0 | SLX78: 0 | SLY78: 0 | SLZ78: 0 | SMA78: 0 | SMB78: 0 | SMC78: 0 | SMD78: 0 | SME78: 0 | SMF78: =SUM(SMF76:SMF77) -> 0 | SMG78: 0 | SMH78: 0 | SMI78: 0 | SMJ78: 0 | SMK78: 0 | SML78: 0 | SMM78: 0 | SMN78: 0 | SMO78: 0 | SMP78: 0 | SMQ78: 0 | SMR78: 0 | SMS78: 0 | SMT78: 0 | SMU78: 0 | SMV78: 0 | SMW78: 0 | SMX78: 0 | SMY78: 0 | SMZ78: 0 | SNA78: 0 | SNB78: 0 | SNC78: 0 | SND78: 0 | SNE78: 0 | SNF78: 0 | SNG78: 0 | SNH78: 0 | SNI78: 0 | SNJ78: 0 | SNK78: 0 | SNL78: 0 | SNM78: 0 | SNN78: 0 | SNO78: 0 | SNP78: 0 | SNQ78: 0 | SNR78: 0 | SNS78: 0 | SNT78: 0 | SNU78: 0 | SNV78: 0 | SNW78: 0 | SNX78: 0 | SNY78: 0 | SNZ78: 0 | SOA78: 0 | SOB78: 0 | SOC78: 0 | SOD78: 0 | SOE78: 0 | SOF78: 0 | SOG78: 0 | SOH78: 0 | SOI78: 0 | SOJ78: 0 | SOK78: 0 | SOL78: 0 | SOM78: 0 | SON78: 0 | SOO78: 0 | SOP78: 0 | SOQ78: 0 | SOR78: =SUM(SOR76:SOR77) -> 0 | SOS78: 0 | SOT78: 0 | SOU78: 0 | SOV78: 0 | SOW78: 0 | SOX78: 0 | SOY78: 0 | SOZ78: 0 | SPA78: 0 | SPB78: 0 | SPC78: 0 | SPD78: 0 | SPE78: 0 | SPF78: 0 | SPG78: 0 | SPH78: 0 | SPI78: 0 | SPJ78: 0 | SPK78: 0 | SPL78: 0 | SPM78: 0 | SPN78: 0 | SPO78: 0 | SPP78: 0 | SPQ78: 0 | SPR78: 0 | SPS78: 0 | SPT78: 0 | SPU78: 0 | SPV78: 0 | SPW78: 0 | SPX78: 0 | SPY78: 0 | SPZ78: 0 | SQA78: 0 | SQB78: 0 | SQC78: 0 | SQD78: 0 | SQE78: 0 | SQF78: 0 | SQG78: 0 | SQH78: 0 | SQI78: 0 | SQJ78: 0 | SQK78: 0 | SQL78: 0 | SQM78: 0 | SQN78: 0 | SQO78: 0 | SQP78: 0 | SQQ78: 0 | SQR78: 0 | SQS78: 0 | SQT78: 0 | SQU78: 0 | SQV78: 0 | SQW78: 0 | SQX78: 0 | SQY78: 0 | SQZ78: 0 | SRA78: 0 | SRB78: 0 | SRC78: 0 | SRD78: =SUM(SRD76:SRD77) -> 0 | SRE78: 0 | SRF78: 0 | SRG78: 0 | SRH78: 0 | SRI78: 0 | SRJ78: 0 | SRK78: 0 | SRL78: 0 | SRM78: 0 | SRN78: 0 | SRO78: 0 | SRP78: 0 | SRQ78: 0 | SRR78: 0 | SRS78: 0 | SRT78: 0 | SRU78: 0 | SRV78: 0 | SRW78: 0 | SRX78: 0 | SRY78: 0 | SRZ78: 0 | SSA78: 0 | SSB78: 0 | SSC78: 0 | SSD78: 0 | SSE78: 0 | SSF78: 0 | SSG78: 0 | SSH78: 0 | SSI78: 0 | SSJ78: 0 | SSK78: 0 | SSL78: 0 | SSM78: 0 | SSN78: 0 | SSO78: 0 | SSP78: 0 | SSQ78: 0 | SSR78: 0 | SSS78: 0 | SST78: 0 | SSU78: 0 | SSV78: 0 | SSW78: 0 | SSX78: 0 | SSY78: 0 | SSZ78: 0 | STA78: 0 | STB78: 0 | STC78: 0 | STD78: 0 | STE78: 0 | STF78: 0 | STG78: 0 | STH78: 0 | STI78: 0 | STJ78: 0 | STK78: 0 | STL78: 0 | STM78: 0 | STN78: 0 | STO78: 0 | STP78: =SUM(STP76:STP77) -> 0 | STQ78: 0 | STR78: 0 | STS78: 0 | STT78: 0 | STU78: 0 | STV78: 0 | STW78: 0 | STX78: 0 | STY78: 0 | STZ78: 0 | SUA78: 0 | SUB78: 0 | SUC78: 0 | SUD78: 0 | SUE78: 0 | SUF78: 0 | SUG78: 0 | SUH78: 0 | SUI78: 0 | SUJ78: 0 | SUK78: 0 | SUL78: 0 | SUM78: 0 | SUN78: 0 | SUO78: 0 | SUP78: 0 | SUQ78: 0 | SUR78: 0 | SUS78: 0 | SUT78: 0 | SUU78: 0 | SUV78: 0 | SUW78: 0 | SUX78: 0 | SUY78: 0 | SUZ78: 0 | SVA78: 0 | SVB78: 0 | SVC78: 0 | SVD78: 0 | SVE78: 0 | SVF78: 0 | SVG78: 0 | SVH78: 0 | SVI78: 0 | SVJ78: 0 | SVK78: 0 | SVL78: 0 | SVM78: 0 | SVN78: 0 | SVO78: 0 | SVP78: 0 | SVQ78: 0 | SVR78: 0 | SVS78: 0 | SVT78: 0 | SVU78: 0 | SVV78: 0 | SVW78: 0 | SVX78: 0 | SVY78: 0 | SVZ78: 0 | SWA78: 0 | SWB78: =SUM(SWB76:SWB77) -> 0 | SWC78: 0 | SWD78: 0 | SWE78: 0 | SWF78: 0 | SWG78: 0 | SWH78: 0 | SWI78: 0 | SWJ78: 0 | SWK78: 0 | SWL78: 0 | SWM78: 0 | SWN78: 0 | SWO78: 0 | SWP78: 0 | SWQ78: 0 | SWR78: 0 | SWS78: 0 | SWT78: 0 | SWU78: 0 | SWV78: 0 | SWW78: 0 | SWX78: 0 | SWY78: 0 | SWZ78: 0 | SXA78: 0 | SXB78: 0 | SXC78: 0 | SXD78: 0 | SXE78: 0 | SXF78: 0 | SXG78: 0 | SXH78: 0 | SXI78: 0 | SXJ78: 0 | SXK78: 0 | SXL78: 0 | SXM78: 0 | SXN78: 0 | SXO78: 0 | SXP78: 0 | SXQ78: 0 | SXR78: 0 | SXS78: 0 | SXT78: 0 | SXU78: 0 | SXV78: 0 | SXW78: 0 | SXX78: 0 | SXY78: 0 | SXZ78: 0 | SYA78: 0 | SYB78: 0 | SYC78: 0 | SYD78: 0 | SYE78: 0 | SYF78: 0 | SYG78: 0 | SYH78: 0 | SYI78: 0 | SYJ78: 0 | SYK78: 0 | SYL78: 0 | SYM78: 0 | SYN78: =SUM(SYN76:SYN77) -> 0 | SYO78: 0 | SYP78: 0 | SYQ78: 0 | SYR78: 0 | SYS78: 0 | SYT78: 0 | SYU78: 0 | SYV78: 0 | SYW78: 0 | SYX78: 0 | SYY78: 0 | SYZ78: 0 | SZA78: 0 | SZB78: 0 | SZC78: 0 | SZD78: 0 | SZE78: 0 | SZF78: 0 | SZG78: 0 | SZH78: 0 | SZI78: 0 | SZJ78: 0 | SZK78: 0 | SZL78: 0 | SZM78: 0 | SZN78: 0 | SZO78: 0 | SZP78: 0 | SZQ78: 0 | SZR78: 0 | SZS78: 0 | SZT78: 0 | SZU78: 0 | SZV78: 0 | SZW78: 0 | SZX78: 0 | SZY78: 0 | SZZ78: 0 | TAA78: 0 | TAB78: 0 | TAC78: 0 | TAD78: 0 | TAE78: 0 | TAF78: 0 | TAG78: 0 | TAH78: 0 | TAI78: 0 | TAJ78: 0 | TAK78: 0 | TAL78: 0 | TAM78: 0 | TAN78: 0 | TAO78: 0 | TAP78: 0 | TAQ78: 0 | TAR78: 0 | TAS78: 0 | TAT78: 0 | TAU78: 0 | TAV78: 0 | TAW78: 0 | TAX78: 0 | TAY78: 0 | TAZ78: =SUM(TAZ76:TAZ77) -> 0 | TBA78: 0 | TBB78: 0 | TBC78: 0 | TBD78: 0 | TBE78: 0 | TBF78: 0 | TBG78: 0 | TBH78: 0 | TBI78: 0 | TBJ78: 0 | TBK78: 0 | TBL78: 0 | TBM78: 0 | TBN78: 0 | TBO78: 0 | TBP78: 0 | TBQ78: 0 | TBR78: 0 | TBS78: 0 | TBT78: 0 | TBU78: 0 | TBV78: 0 | TBW78: 0 | TBX78: 0 | TBY78: 0 | TBZ78: 0 | TCA78: 0 | TCB78: 0 | TCC78: 0 | TCD78: 0 | TCE78: 0 | TCF78: 0 | TCG78: 0 | TCH78: 0 | TCI78: 0 | TCJ78: 0 | TCK78: 0 | TCL78: 0 | TCM78: 0 | TCN78: 0 | TCO78: 0 | TCP78: 0 | TCQ78: 0 | TCR78: 0 | TCS78: 0 | TCT78: 0 | TCU78: 0 | TCV78: 0 | TCW78: 0 | TCX78: 0 | TCY78: 0 | TCZ78: 0 | TDA78: 0 | TDB78: 0 | TDC78: 0 | TDD78: 0 | TDE78: 0 | TDF78: 0 | TDG78: 0 | TDH78: 0 | TDI78: 0 | TDJ78: 0 | TDK78: 0 | TDL78: =SUM(TDL76:TDL77) -> 0 | TDM78: 0 | TDN78: 0 | TDO78: 0 | TDP78: 0 | TDQ78: 0 | TDR78: 0 | TDS78: 0 | TDT78: 0 | TDU78: 0 | TDV78: 0 | TDW78: 0 | TDX78: 0 | TDY78: 0 | TDZ78: 0 | TEA78: 0 | TEB78: 0 | TEC78: 0 | TED78: 0 | TEE78: 0 | TEF78: 0 | TEG78: 0 | TEH78: 0 | TEI78: 0 | TEJ78: 0 | TEK78: 0 | TEL78: 0 | TEM78: 0 | TEN78: 0 | TEO78: 0 | TEP78: 0 | TEQ78: 0 | TER78: 0 | TES78: 0 | TET78: 0 | TEU78: 0 | TEV78: 0 | TEW78: 0 | TEX78: 0 | TEY78: 0 | TEZ78: 0 | TFA78: 0 | TFB78: 0 | TFC78: 0 | TFD78: 0 | TFE78: 0 | TFF78: 0 | TFG78: 0 | TFH78: 0 | TFI78: 0 | TFJ78: 0 | TFK78: 0 | TFL78: 0 | TFM78: 0 | TFN78: 0 | TFO78: 0 | TFP78: 0 | TFQ78: 0 | TFR78: 0 | TFS78: 0 | TFT78: 0 | TFU78: 0 | TFV78: 0 | TFW78: 0 | TFX78: =SUM(TFX76:TFX77) -> 0 | TFY78: 0 | TFZ78: 0 | TGA78: 0 | TGB78: 0 | TGC78: 0 | TGD78: 0 | TGE78: 0 | TGF78: 0 | TGG78: 0 | TGH78: 0 | TGI78: 0 | TGJ78: 0 | TGK78: 0 | TGL78: 0 | TGM78: 0 | TGN78: 0 | TGO78: 0 | TGP78: 0 | TGQ78: 0 | TGR78: 0 | TGS78: 0 | TGT78: 0 | TGU78: 0 | TGV78: 0 | TGW78: 0 | TGX78: 0 | TGY78: 0 | TGZ78: 0 | THA78: 0 | THB78: 0 | THC78: 0 | THD78: 0 | THE78: 0 | THF78: 0 | THG78: 0 | THH78: 0 | THI78: 0 | THJ78: 0 | THK78: 0 | THL78: 0 | THM78: 0 | THN78: 0 | THO78: 0 | THP78: 0 | THQ78: 0 | THR78: 0 | THS78: 0 | THT78: 0 | THU78: 0 | THV78: 0 | THW78: 0 | THX78: 0 | THY78: 0 | THZ78: 0 | TIA78: 0 | TIB78: 0 | TIC78: 0 | TID78: 0 | TIE78: 0 | TIF78: 0 | TIG78: 0 | TIH78: 0 | TII78: 0 | TIJ78: =SUM(TIJ76:TIJ77) -> 0 | TIK78: 0 | TIL78: 0 | TIM78: 0 | TIN78: 0 | TIO78: 0 | TIP78: 0 | TIQ78: 0 | TIR78: 0 | TIS78: 0 | TIT78: 0 | TIU78: 0 | TIV78: 0 | TIW78: 0 | TIX78: 0 | TIY78: 0 | TIZ78: 0 | TJA78: 0 | TJB78: 0 | TJC78: 0 | TJD78: 0 | TJE78: 0 | TJF78: 0 | TJG78: 0 | TJH78: 0 | TJI78: 0 | TJJ78: 0 | TJK78: 0 | TJL78: 0 | TJM78: 0 | TJN78: 0 | TJO78: 0 | TJP78: 0 | TJQ78: 0 | TJR78: 0 | TJS78: 0 | TJT78: 0 | TJU78: 0 | TJV78: 0 | TJW78: 0 | TJX78: 0 | TJY78: 0 | TJZ78: 0 | TKA78: 0 | TKB78: 0 | TKC78: 0 | TKD78: 0 | TKE78: 0 | TKF78: 0 | TKG78: 0 | TKH78: 0 | TKI78: 0 | TKJ78: 0 | TKK78: 0 | TKL78: 0 | TKM78: 0 | TKN78: 0 | TKO78: 0 | TKP78: 0 | TKQ78: 0 | TKR78: 0 | TKS78: 0 | TKT78: 0 | TKU78: 0 | TKV78: =SUM(TKV76:TKV77) -> 0 | TKW78: 0 | TKX78: 0 | TKY78: 0 | TKZ78: 0 | TLA78: 0 | TLB78: 0 | TLC78: 0 | TLD78: 0 | TLE78: 0 | TLF78: 0 | TLG78: 0 | TLH78: 0 | TLI78: 0 | TLJ78: 0 | TLK78: 0 | TLL78: 0 | TLM78: 0 | TLN78: 0 | TLO78: 0 | TLP78: 0 | TLQ78: 0 | TLR78: 0 | TLS78: 0 | TLT78: 0 | TLU78: 0 | TLV78: 0 | TLW78: 0 | TLX78: 0 | TLY78: 0 | TLZ78: 0 | TMA78: 0 | TMB78: 0 | TMC78: 0 | TMD78: 0 | TME78: 0 | TMF78: 0 | TMG78: 0 | TMH78: 0 | TMI78: 0 | TMJ78: 0 | TMK78: 0 | TML78: 0 | TMM78: 0 | TMN78: 0 | TMO78: 0 | TMP78: 0 | TMQ78: 0 | TMR78: 0 | TMS78: 0 | TMT78: 0 | TMU78: 0 | TMV78: 0 | TMW78: 0 | TMX78: 0 | TMY78: 0 | TMZ78: 0 | TNA78: 0 | TNB78: 0 | TNC78: 0 | TND78: 0 | TNE78: 0 | TNF78: 0 | TNG78: 0 | TNH78: =SUM(TNH76:TNH77) -> 0 | TNI78: 0 | TNJ78: 0 | TNK78: 0 | TNL78: 0 | TNM78: 0 | TNN78: 0 | TNO78: 0 | TNP78: 0 | TNQ78: 0 | TNR78: 0 | TNS78: 0 | TNT78: 0 | TNU78: 0 | TNV78: 0 | TNW78: 0 | TNX78: 0 | TNY78: 0 | TNZ78: 0 | TOA78: 0 | TOB78: 0 | TOC78: 0 | TOD78: 0 | TOE78: 0 | TOF78: 0 | TOG78: 0 | TOH78: 0 | TOI78: 0 | TOJ78: 0 | TOK78: 0 | TOL78: 0 | TOM78: 0 | TON78: 0 | TOO78: 0 | TOP78: 0 | TOQ78: 0 | TOR78: 0 | TOS78: 0 | TOT78: 0 | TOU78: 0 | TOV78: 0 | TOW78: 0 | TOX78: 0 | TOY78: 0 | TOZ78: 0 | TPA78: 0 | TPB78: 0 | TPC78: 0 | TPD78: 0 | TPE78: 0 | TPF78: 0 | TPG78: 0 | TPH78: 0 | TPI78: 0 | TPJ78: 0 | TPK78: 0 | TPL78: 0 | TPM78: 0 | TPN78: 0 | TPO78: 0 | TPP78: 0 | TPQ78: 0 | TPR78: 0 | TPS78: 0 | TPT78: =SUM(TPT76:TPT77) -> 0 | TPU78: 0 | TPV78: 0 | TPW78: 0 | TPX78: 0 | TPY78: 0 | TPZ78: 0 | TQA78: 0 | TQB78: 0 | TQC78: 0 | TQD78: 0 | TQE78: 0 | TQF78: 0 | TQG78: 0 | TQH78: 0 | TQI78: 0 | TQJ78: 0 | TQK78: 0 | TQL78: 0 | TQM78: 0 | TQN78: 0 | TQO78: 0 | TQP78: 0 | TQQ78: 0 | TQR78: 0 | TQS78: 0 | TQT78: 0 | TQU78: 0 | TQV78: 0 | TQW78: 0 | TQX78: 0 | TQY78: 0 | TQZ78: 0 | TRA78: 0 | TRB78: 0 | TRC78: 0 | TRD78: 0 | TRE78: 0 | TRF78: 0 | TRG78: 0 | TRH78: 0 | TRI78: 0 | TRJ78: 0 | TRK78: 0 | TRL78: 0 | TRM78: 0 | TRN78: 0 | TRO78: 0 | TRP78: 0 | TRQ78: 0 | TRR78: 0 | TRS78: 0 | TRT78: 0 | TRU78: 0 | TRV78: 0 | TRW78: 0 | TRX78: 0 | TRY78: 0 | TRZ78: 0 | TSA78: 0 | TSB78: 0 | TSC78: 0 | TSD78: 0 | TSE78: 0 | TSF78: =SUM(TSF76:TSF77) -> 0 | TSG78: 0 | TSH78: 0 | TSI78: 0 | TSJ78: 0 | TSK78: 0 | TSL78: 0 | TSM78: 0 | TSN78: 0 | TSO78: 0 | TSP78: 0 | TSQ78: 0 | TSR78: 0 | TSS78: 0 | TST78: 0 | TSU78: 0 | TSV78: 0 | TSW78: 0 | TSX78: 0 | TSY78: 0 | TSZ78: 0 | TTA78: 0 | TTB78: 0 | TTC78: 0 | TTD78: 0 | TTE78: 0 | TTF78: 0 | TTG78: 0 | TTH78: 0 | TTI78: 0 | TTJ78: 0 | TTK78: 0 | TTL78: 0 | TTM78: 0 | TTN78: 0 | TTO78: 0 | TTP78: 0 | TTQ78: 0 | TTR78: 0 | TTS78: 0 | TTT78: 0 | TTU78: 0 | TTV78: 0 | TTW78: 0 | TTX78: 0 | TTY78: 0 | TTZ78: 0 | TUA78: 0 | TUB78: 0 | TUC78: 0 | TUD78: 0 | TUE78: 0 | TUF78: 0 | TUG78: 0 | TUH78: 0 | TUI78: 0 | TUJ78: 0 | TUK78: 0 | TUL78: 0 | TUM78: 0 | TUN78: 0 | TUO78: 0 | TUP78: 0 | TUQ78: 0 | TUR78: =SUM(TUR76:TUR77) -> 0 | TUS78: 0 | TUT78: 0 | TUU78: 0 | TUV78: 0 | TUW78: 0 | TUX78: 0 | TUY78: 0 | TUZ78: 0 | TVA78: 0 | TVB78: 0 | TVC78: 0 | TVD78: 0 | TVE78: 0 | TVF78: 0 | TVG78: 0 | TVH78: 0 | TVI78: 0 | TVJ78: 0 | TVK78: 0 | TVL78: 0 | TVM78: 0 | TVN78: 0 | TVO78: 0 | TVP78: 0 | TVQ78: 0 | TVR78: 0 | TVS78: 0 | TVT78: 0 | TVU78: 0 | TVV78: 0 | TVW78: 0 | TVX78: 0 | TVY78: 0 | TVZ78: 0 | TWA78: 0 | TWB78: 0 | TWC78: 0 | TWD78: 0 | TWE78: 0 | TWF78: 0 | TWG78: 0 | TWH78: 0 | TWI78: 0 | TWJ78: 0 | TWK78: 0 | TWL78: 0 | TWM78: 0 | TWN78: 0 | TWO78: 0 | TWP78: 0 | TWQ78: 0 | TWR78: 0 | TWS78: 0 | TWT78: 0 | TWU78: 0 | TWV78: 0 | TWW78: 0 | TWX78: 0 | TWY78: 0 | TWZ78: 0 | TXA78: 0 | TXB78: 0 | TXC78: 0 | TXD78: =SUM(TXD76:TXD77) -> 0 | TXE78: 0 | TXF78: 0 | TXG78: 0 | TXH78: 0 | TXI78: 0 | TXJ78: 0 | TXK78: 0 | TXL78: 0 | TXM78: 0 | TXN78: 0 | TXO78: 0 | TXP78: 0 | TXQ78: 0 | TXR78: 0 | TXS78: 0 | TXT78: 0 | TXU78: 0 | TXV78: 0 | TXW78: 0 | TXX78: 0 | TXY78: 0 | TXZ78: 0 | TYA78: 0 | TYB78: 0 | TYC78: 0 | TYD78: 0 | TYE78: 0 | TYF78: 0 | TYG78: 0 | TYH78: 0 | TYI78: 0 | TYJ78: 0 | TYK78: 0 | TYL78: 0 | TYM78: 0 | TYN78: 0 | TYO78: 0 | TYP78: 0 | TYQ78: 0 | TYR78: 0 | TYS78: 0 | TYT78: 0 | TYU78: 0 | TYV78: 0 | TYW78: 0 | TYX78: 0 | TYY78: 0 | TYZ78: 0 | TZA78: 0 | TZB78: 0 | TZC78: 0 | TZD78: 0 | TZE78: 0 | TZF78: 0 | TZG78: 0 | TZH78: 0 | TZI78: 0 | TZJ78: 0 | TZK78: 0 | TZL78: 0 | TZM78: 0 | TZN78: 0 | TZO78: 0 | TZP78: =SUM(TZP76:TZP77) -> 0 | TZQ78: 0 | TZR78: 0 | TZS78: 0 | TZT78: 0 | TZU78: 0 | TZV78: 0 | TZW78: 0 | TZX78: 0 | TZY78: 0 | TZZ78: 0 | UAA78: 0 | UAB78: 0 | UAC78: 0 | UAD78: 0 | UAE78: 0 | UAF78: 0 | UAG78: 0 | UAH78: 0 | UAI78: 0 | UAJ78: 0 | UAK78: 0 | UAL78: 0 | UAM78: 0 | UAN78: 0 | UAO78: 0 | UAP78: 0 | UAQ78: 0 | UAR78: 0 | UAS78: 0 | UAT78: 0 | UAU78: 0 | UAV78: 0 | UAW78: 0 | UAX78: 0 | UAY78: 0 | UAZ78: 0 | UBA78: 0 | UBB78: 0 | UBC78: 0 | UBD78: 0 | UBE78: 0 | UBF78: 0 | UBG78: 0 | UBH78: 0 | UBI78: 0 | UBJ78: 0 | UBK78: 0 | UBL78: 0 | UBM78: 0 | UBN78: 0 | UBO78: 0 | UBP78: 0 | UBQ78: 0 | UBR78: 0 | UBS78: 0 | UBT78: 0 | UBU78: 0 | UBV78: 0 | UBW78: 0 | UBX78: 0 | UBY78: 0 | UBZ78: 0 | UCA78: 0 | UCB78: =SUM(UCB76:UCB77) -> 0 | UCC78: 0 | UCD78: 0 | UCE78: 0 | UCF78: 0 | UCG78: 0 | UCH78: 0 | UCI78: 0 | UCJ78: 0 | UCK78: 0 | UCL78: 0 | UCM78: 0 | UCN78: 0 | UCO78: 0 | UCP78: 0 | UCQ78: 0 | UCR78: 0 | UCS78: 0 | UCT78: 0 | UCU78: 0 | UCV78: 0 | UCW78: 0 | UCX78: 0 | UCY78: 0 | UCZ78: 0 | UDA78: 0 | UDB78: 0 | UDC78: 0 | UDD78: 0 | UDE78: 0 | UDF78: 0 | UDG78: 0 | UDH78: 0 | UDI78: 0 | UDJ78: 0 | UDK78: 0 | UDL78: 0 | UDM78: 0 | UDN78: 0 | UDO78: 0 | UDP78: 0 | UDQ78: 0 | UDR78: 0 | UDS78: 0 | UDT78: 0 | UDU78: 0 | UDV78: 0 | UDW78: 0 | UDX78: 0 | UDY78: 0 | UDZ78: 0 | UEA78: 0 | UEB78: 0 | UEC78: 0 | UED78: 0 | UEE78: 0 | UEF78: 0 | UEG78: 0 | UEH78: 0 | UEI78: 0 | UEJ78: 0 | UEK78: 0 | UEL78: 0 | UEM78: 0 | UEN78: =SUM(UEN76:UEN77) -> 0 | UEO78: 0 | UEP78: 0 | UEQ78: 0 | UER78: 0 | UES78: 0 | UET78: 0 | UEU78: 0 | UEV78: 0 | UEW78: 0 | UEX78: 0 | UEY78: 0 | UEZ78: 0 | UFA78: 0 | UFB78: 0 | UFC78: 0 | UFD78: 0 | UFE78: 0 | UFF78: 0 | UFG78: 0 | UFH78: 0 | UFI78: 0 | UFJ78: 0 | UFK78: 0 | UFL78: 0 | UFM78: 0 | UFN78: 0 | UFO78: 0 | UFP78: 0 | UFQ78: 0 | UFR78: 0 | UFS78: 0 | UFT78: 0 | UFU78: 0 | UFV78: 0 | UFW78: 0 | UFX78: 0 | UFY78: 0 | UFZ78: 0 | UGA78: 0 | UGB78: 0 | UGC78: 0 | UGD78: 0 | UGE78: 0 | UGF78: 0 | UGG78: 0 | UGH78: 0 | UGI78: 0 | UGJ78: 0 | UGK78: 0 | UGL78: 0 | UGM78: 0 | UGN78: 0 | UGO78: 0 | UGP78: 0 | UGQ78: 0 | UGR78: 0 | UGS78: 0 | UGT78: 0 | UGU78: 0 | UGV78: 0 | UGW78: 0 | UGX78: 0 | UGY78: 0 | UGZ78: =SUM(UGZ76:UGZ77) -> 0 | UHA78: 0 | UHB78: 0 | UHC78: 0 | UHD78: 0 | UHE78: 0 | UHF78: 0 | UHG78: 0 | UHH78: 0 | UHI78: 0 | UHJ78: 0 | UHK78: 0 | UHL78: 0 | UHM78: 0 | UHN78: 0 | UHO78: 0 | UHP78: 0 | UHQ78: 0 | UHR78: 0 | UHS78: 0 | UHT78: 0 | UHU78: 0 | UHV78: 0 | UHW78: 0 | UHX78: 0 | UHY78: 0 | UHZ78: 0 | UIA78: 0 | UIB78: 0 | UIC78: 0 | UID78: 0 | UIE78: 0 | UIF78: 0 | UIG78: 0 | UIH78: 0 | UII78: 0 | UIJ78: 0 | UIK78: 0 | UIL78: 0 | UIM78: 0 | UIN78: 0 | UIO78: 0 | UIP78: 0 | UIQ78: 0 | UIR78: 0 | UIS78: 0 | UIT78: 0 | UIU78: 0 | UIV78: 0 | UIW78: 0 | UIX78: 0 | UIY78: 0 | UIZ78: 0 | UJA78: 0 | UJB78: 0 | UJC78: 0 | UJD78: 0 | UJE78: 0 | UJF78: 0 | UJG78: 0 | UJH78: 0 | UJI78: 0 | UJJ78: 0 | UJK78: 0 | UJL78: =SUM(UJL76:UJL77) -> 0 | UJM78: 0 | UJN78: 0 | UJO78: 0 | UJP78: 0 | UJQ78: 0 | UJR78: 0 | UJS78: 0 | UJT78: 0 | UJU78: 0 | UJV78: 0 | UJW78: 0 | UJX78: 0 | UJY78: 0 | UJZ78: 0 | UKA78: 0 | UKB78: 0 | UKC78: 0 | UKD78: 0 | UKE78: 0 | UKF78: 0 | UKG78: 0 | UKH78: 0 | UKI78: 0 | UKJ78: 0 | UKK78: 0 | UKL78: 0 | UKM78: 0 | UKN78: 0 | UKO78: 0 | UKP78: 0 | UKQ78: 0 | UKR78: 0 | UKS78: 0 | UKT78: 0 | UKU78: 0 | UKV78: 0 | UKW78: 0 | UKX78: 0 | UKY78: 0 | UKZ78: 0 | ULA78: 0 | ULB78: 0 | ULC78: 0 | ULD78: 0 | ULE78: 0 | ULF78: 0 | ULG78: 0 | ULH78: 0 | ULI78: 0 | ULJ78: 0 | ULK78: 0 | ULL78: 0 | ULM78: 0 | ULN78: 0 | ULO78: 0 | ULP78: 0 | ULQ78: 0 | ULR78: 0 | ULS78: 0 | ULT78: 0 | ULU78: 0 | ULV78: 0 | ULW78: 0 | ULX78: =SUM(ULX76:ULX77) -> 0 | ULY78: 0 | ULZ78: 0 | UMA78: 0 | UMB78: 0 | UMC78: 0 | UMD78: 0 | UME78: 0 | UMF78: 0 | UMG78: 0 | UMH78: 0 | UMI78: 0 | UMJ78: 0 | UMK78: 0 | UML78: 0 | UMM78: 0 | UMN78: 0 | UMO78: 0 | UMP78: 0 | UMQ78: 0 | UMR78: 0 | UMS78: 0 | UMT78: 0 | UMU78: 0 | UMV78: 0 | UMW78: 0 | UMX78: 0 | UMY78: 0 | UMZ78: 0 | UNA78: 0 | UNB78: 0 | UNC78: 0 | UND78: 0 | UNE78: 0 | UNF78: 0 | UNG78: 0 | UNH78: 0 | UNI78: 0 | UNJ78: 0 | UNK78: 0 | UNL78: 0 | UNM78: 0 | UNN78: 0 | UNO78: 0 | UNP78: 0 | UNQ78: 0 | UNR78: 0 | UNS78: 0 | UNT78: 0 | UNU78: 0 | UNV78: 0 | UNW78: 0 | UNX78: 0 | UNY78: 0 | UNZ78: 0 | UOA78: 0 | UOB78: 0 | UOC78: 0 | UOD78: 0 | UOE78: 0 | UOF78: 0 | UOG78: 0 | UOH78: 0 | UOI78: 0 | UOJ78: =SUM(UOJ76:UOJ77) -> 0 | UOK78: 0 | UOL78: 0 | UOM78: 0 | UON78: 0 | UOO78: 0 | UOP78: 0 | UOQ78: 0 | UOR78: 0 | UOS78: 0 | UOT78: 0 | UOU78: 0 | UOV78: 0 | UOW78: 0 | UOX78: 0 | UOY78: 0 | UOZ78: 0 | UPA78: 0 | UPB78: 0 | UPC78: 0 | UPD78: 0 | UPE78: 0 | UPF78: 0 | UPG78: 0 | UPH78: 0 | UPI78: 0 | UPJ78: 0 | UPK78: 0 | UPL78: 0 | UPM78: 0 | UPN78: 0 | UPO78: 0 | UPP78: 0 | UPQ78: 0 | UPR78: 0 | UPS78: 0 | UPT78: 0 | UPU78: 0 | UPV78: 0 | UPW78: 0 | UPX78: 0 | UPY78: 0 | UPZ78: 0 | UQA78: 0 | UQB78: 0 | UQC78: 0 | UQD78: 0 | UQE78: 0 | UQF78: 0 | UQG78: 0 | UQH78: 0 | UQI78: 0 | UQJ78: 0 | UQK78: 0 | UQL78: 0 | UQM78: 0 | UQN78: 0 | UQO78: 0 | UQP78: 0 | UQQ78: 0 | UQR78: 0 | UQS78: 0 | UQT78: 0 | UQU78: 0 | UQV78: =SUM(UQV76:UQV77) -> 0 | UQW78: 0 | UQX78: 0 | UQY78: 0 | UQZ78: 0 | URA78: 0 | URB78: 0 | URC78: 0 | URD78: 0 | URE78: 0 | URF78: 0 | URG78: 0 | URH78: 0 | URI78: 0 | URJ78: 0 | URK78: 0 | URL78: 0 | URM78: 0 | URN78: 0 | URO78: 0 | URP78: 0 | URQ78: 0 | URR78: 0 | URS78: 0 | URT78: 0 | URU78: 0 | URV78: 0 | URW78: 0 | URX78: 0 | URY78: 0 | URZ78: 0 | USA78: 0 | USB78: 0 | USC78: 0 | USD78: 0 | USE78: 0 | USF78: 0 | USG78: 0 | USH78: 0 | USI78: 0 | USJ78: 0 | USK78: 0 | USL78: 0 | USM78: 0 | USN78: 0 | USO78: 0 | USP78: 0 | USQ78: 0 | USR78: 0 | USS78: 0 | UST78: 0 | USU78: 0 | USV78: 0 | USW78: 0 | USX78: 0 | USY78: 0 | USZ78: 0 | UTA78: 0 | UTB78: 0 | UTC78: 0 | UTD78: 0 | UTE78: 0 | UTF78: 0 | UTG78: 0 | UTH78: =SUM(UTH76:UTH77) -> 0 | UTI78: 0 | UTJ78: 0 | UTK78: 0 | UTL78: 0 | UTM78: 0 | UTN78: 0 | UTO78: 0 | UTP78: 0 | UTQ78: 0 | UTR78: 0 | UTS78: 0 | UTT78: 0 | UTU78: 0 | UTV78: 0 | UTW78: 0 | UTX78: 0 | UTY78: 0 | UTZ78: 0 | UUA78: 0 | UUB78: 0 | UUC78: 0 | UUD78: 0 | UUE78: 0 | UUF78: 0 | UUG78: 0 | UUH78: 0 | UUI78: 0 | UUJ78: 0 | UUK78: 0 | UUL78: 0 | UUM78: 0 | UUN78: 0 | UUO78: 0 | UUP78: 0 | UUQ78: 0 | UUR78: 0 | UUS78: 0 | UUT78: 0 | UUU78: 0 | UUV78: 0 | UUW78: 0 | UUX78: 0 | UUY78: 0 | UUZ78: 0 | UVA78: 0 | UVB78: 0 | UVC78: 0 | UVD78: 0 | UVE78: 0 | UVF78: 0 | UVG78: 0 | UVH78: 0 | UVI78: 0 | UVJ78: 0 | UVK78: 0 | UVL78: 0 | UVM78: 0 | UVN78: 0 | UVO78: 0 | UVP78: 0 | UVQ78: 0 | UVR78: 0 | UVS78: 0 | UVT78: =SUM(UVT76:UVT77) -> 0 | UVU78: 0 | UVV78: 0 | UVW78: 0 | UVX78: 0 | UVY78: 0 | UVZ78: 0 | UWA78: 0 | UWB78: 0 | UWC78: 0 | UWD78: 0 | UWE78: 0 | UWF78: 0 | UWG78: 0 | UWH78: 0 | UWI78: 0 | UWJ78: 0 | UWK78: 0 | UWL78: 0 | UWM78: 0 | UWN78: 0 | UWO78: 0 | UWP78: 0 | UWQ78: 0 | UWR78: 0 | UWS78: 0 | UWT78: 0 | UWU78: 0 | UWV78: 0 | UWW78: 0 | UWX78: 0 | UWY78: 0 | UWZ78: 0 | UXA78: 0 | UXB78: 0 | UXC78: 0 | UXD78: 0 | UXE78: 0 | UXF78: 0 | UXG78: 0 | UXH78: 0 | UXI78: 0 | UXJ78: 0 | UXK78: 0 | UXL78: 0 | UXM78: 0 | UXN78: 0 | UXO78: 0 | UXP78: 0 | UXQ78: 0 | UXR78: 0 | UXS78: 0 | UXT78: 0 | UXU78: 0 | UXV78: 0 | UXW78: 0 | UXX78: 0 | UXY78: 0 | UXZ78: 0 | UYA78: 0 | UYB78: 0 | UYC78: 0 | UYD78: 0 | UYE78: 0 | UYF78: =SUM(UYF76:UYF77) -> 0 | UYG78: 0 | UYH78: 0 | UYI78: 0 | UYJ78: 0 | UYK78: 0 | UYL78: 0 | UYM78: 0 | UYN78: 0 | UYO78: 0 | UYP78: 0 | UYQ78: 0 | UYR78: 0 | UYS78: 0 | UYT78: 0 | UYU78: 0 | UYV78: 0 | UYW78: 0 | UYX78: 0 | UYY78: 0 | UYZ78: 0 | UZA78: 0 | UZB78: 0 | UZC78: 0 | UZD78: 0 | UZE78: 0 | UZF78: 0 | UZG78: 0 | UZH78: 0 | UZI78: 0 | UZJ78: 0 | UZK78: 0 | UZL78: 0 | UZM78: 0 | UZN78: 0 | UZO78: 0 | UZP78: 0 | UZQ78: 0 | UZR78: 0 | UZS78: 0 | UZT78: 0 | UZU78: 0 | UZV78: 0 | UZW78: 0 | UZX78: 0 | UZY78: 0 | UZZ78: 0 | VAA78: 0 | VAB78: 0 | VAC78: 0 | VAD78: 0 | VAE78: 0 | VAF78: 0 | VAG78: 0 | VAH78: 0 | VAI78: 0 | VAJ78: 0 | VAK78: 0 | VAL78: 0 | VAM78: 0 | VAN78: 0 | VAO78: 0 | VAP78: 0 | VAQ78: 0 | VAR78: =SUM(VAR76:VAR77) -> 0 | VAS78: 0 | VAT78: 0 | VAU78: 0 | VAV78: 0 | VAW78: 0 | VAX78: 0 | VAY78: 0 | VAZ78: 0 | VBA78: 0 | VBB78: 0 | VBC78: 0 | VBD78: 0 | VBE78: 0 | VBF78: 0 | VBG78: 0 | VBH78: 0 | VBI78: 0 | VBJ78: 0 | VBK78: 0 | VBL78: 0 | VBM78: 0 | VBN78: 0 | VBO78: 0 | VBP78: 0 | VBQ78: 0 | VBR78: 0 | VBS78: 0 | VBT78: 0 | VBU78: 0 | VBV78: 0 | VBW78: 0 | VBX78: 0 | VBY78: 0 | VBZ78: 0 | VCA78: 0 | VCB78: 0 | VCC78: 0 | VCD78: 0 | VCE78: 0 | VCF78: 0 | VCG78: 0 | VCH78: 0 | VCI78: 0 | VCJ78: 0 | VCK78: 0 | VCL78: 0 | VCM78: 0 | VCN78: 0 | VCO78: 0 | VCP78: 0 | VCQ78: 0 | VCR78: 0 | VCS78: 0 | VCT78: 0 | VCU78: 0 | VCV78: 0 | VCW78: 0 | VCX78: 0 | VCY78: 0 | VCZ78: 0 | VDA78: 0 | VDB78: 0 | VDC78: 0 | VDD78: =SUM(VDD76:VDD77) -> 0 | VDE78: 0 | VDF78: 0 | VDG78: 0 | VDH78: 0 | VDI78: 0 | VDJ78: 0 | VDK78: 0 | VDL78: 0 | VDM78: 0 | VDN78: 0 | VDO78: 0 | VDP78: 0 | VDQ78: 0 | VDR78: 0 | VDS78: 0 | VDT78: 0 | VDU78: 0 | VDV78: 0 | VDW78: 0 | VDX78: 0 | VDY78: 0 | VDZ78: 0 | VEA78: 0 | VEB78: 0 | VEC78: 0 | VED78: 0 | VEE78: 0 | VEF78: 0 | VEG78: 0 | VEH78: 0 | VEI78: 0 | VEJ78: 0 | VEK78: 0 | VEL78: 0 | VEM78: 0 | VEN78: 0 | VEO78: 0 | VEP78: 0 | VEQ78: 0 | VER78: 0 | VES78: 0 | VET78: 0 | VEU78: 0 | VEV78: 0 | VEW78: 0 | VEX78: 0 | VEY78: 0 | VEZ78: 0 | VFA78: 0 | VFB78: 0 | VFC78: 0 | VFD78: 0 | VFE78: 0 | VFF78: 0 | VFG78: 0 | VFH78: 0 | VFI78: 0 | VFJ78: 0 | VFK78: 0 | VFL78: 0 | VFM78: 0 | VFN78: 0 | VFO78: 0 | VFP78: =SUM(VFP76:VFP77) -> 0 | VFQ78: 0 | VFR78: 0 | VFS78: 0 | VFT78: 0 | VFU78: 0 | VFV78: 0 | VFW78: 0 | VFX78: 0 | VFY78: 0 | VFZ78: 0 | VGA78: 0 | VGB78: 0 | VGC78: 0 | VGD78: 0 | VGE78: 0 | VGF78: 0 | VGG78: 0 | VGH78: 0 | VGI78: 0 | VGJ78: 0 | VGK78: 0 | VGL78: 0 | VGM78: 0 | VGN78: 0 | VGO78: 0 | VGP78: 0 | VGQ78: 0 | VGR78: 0 | VGS78: 0 | VGT78: 0 | VGU78: 0 | VGV78: 0 | VGW78: 0 | VGX78: 0 | VGY78: 0 | VGZ78: 0 | VHA78: 0 | VHB78: 0 | VHC78: 0 | VHD78: 0 | VHE78: 0 | VHF78: 0 | VHG78: 0 | VHH78: 0 | VHI78: 0 | VHJ78: 0 | VHK78: 0 | VHL78: 0 | VHM78: 0 | VHN78: 0 | VHO78: 0 | VHP78: 0 | VHQ78: 0 | VHR78: 0 | VHS78: 0 | VHT78: 0 | VHU78: 0 | VHV78: 0 | VHW78: 0 | VHX78: 0 | VHY78: 0 | VHZ78: 0 | VIA78: 0 | VIB78: =SUM(VIB76:VIB77) -> 0 | VIC78: 0 | VID78: 0 | VIE78: 0 | VIF78: 0 | VIG78: 0 | VIH78: 0 | VII78: 0 | VIJ78: 0 | VIK78: 0 | VIL78: 0 | VIM78: 0 | VIN78: 0 | VIO78: 0 | VIP78: 0 | VIQ78: 0 | VIR78: 0 | VIS78: 0 | VIT78: 0 | VIU78: 0 | VIV78: 0 | VIW78: 0 | VIX78: 0 | VIY78: 0 | VIZ78: 0 | VJA78: 0 | VJB78: 0 | VJC78: 0 | VJD78: 0 | VJE78: 0 | VJF78: 0 | VJG78: 0 | VJH78: 0 | VJI78: 0 | VJJ78: 0 | VJK78: 0 | VJL78: 0 | VJM78: 0 | VJN78: 0 | VJO78: 0 | VJP78: 0 | VJQ78: 0 | VJR78: 0 | VJS78: 0 | VJT78: 0 | VJU78: 0 | VJV78: 0 | VJW78: 0 | VJX78: 0 | VJY78: 0 | VJZ78: 0 | VKA78: 0 | VKB78: 0 | VKC78: 0 | VKD78: 0 | VKE78: 0 | VKF78: 0 | VKG78: 0 | VKH78: 0 | VKI78: 0 | VKJ78: 0 | VKK78: 0 | VKL78: 0 | VKM78: 0 | VKN78: =SUM(VKN76:VKN77) -> 0 | VKO78: 0 | VKP78: 0 | VKQ78: 0 | VKR78: 0 | VKS78: 0 | VKT78: 0 | VKU78: 0 | VKV78: 0 | VKW78: 0 | VKX78: 0 | VKY78: 0 | VKZ78: 0 | VLA78: 0 | VLB78: 0 | VLC78: 0 | VLD78: 0 | VLE78: 0 | VLF78: 0 | VLG78: 0 | VLH78: 0 | VLI78: 0 | VLJ78: 0 | VLK78: 0 | VLL78: 0 | VLM78: 0 | VLN78: 0 | VLO78: 0 | VLP78: 0 | VLQ78: 0 | VLR78: 0 | VLS78: 0 | VLT78: 0 | VLU78: 0 | VLV78: 0 | VLW78: 0 | VLX78: 0 | VLY78: 0 | VLZ78: 0 | VMA78: 0 | VMB78: 0 | VMC78: 0 | VMD78: 0 | VME78: 0 | VMF78: 0 | VMG78: 0 | VMH78: 0 | VMI78: 0 | VMJ78: 0 | VMK78: 0 | VML78: 0 | VMM78: 0 | VMN78: 0 | VMO78: 0 | VMP78: 0 | VMQ78: 0 | VMR78: 0 | VMS78: 0 | VMT78: 0 | VMU78: 0 | VMV78: 0 | VMW78: 0 | VMX78: 0 | VMY78: 0 | VMZ78: =SUM(VMZ76:VMZ77) -> 0 | VNA78: 0 | VNB78: 0 | VNC78: 0 | VND78: 0 | VNE78: 0 | VNF78: 0 | VNG78: 0 | VNH78: 0 | VNI78: 0 | VNJ78: 0 | VNK78: 0 | VNL78: 0 | VNM78: 0 | VNN78: 0 | VNO78: 0 | VNP78: 0 | VNQ78: 0 | VNR78: 0 | VNS78: 0 | VNT78: 0 | VNU78: 0 | VNV78: 0 | VNW78: 0 | VNX78: 0 | VNY78: 0 | VNZ78: 0 | VOA78: 0 | VOB78: 0 | VOC78: 0 | VOD78: 0 | VOE78: 0 | VOF78: 0 | VOG78: 0 | VOH78: 0 | VOI78: 0 | VOJ78: 0 | VOK78: 0 | VOL78: 0 | VOM78: 0 | VON78: 0 | VOO78: 0 | VOP78: 0 | VOQ78: 0 | VOR78: 0 | VOS78: 0 | VOT78: 0 | VOU78: 0 | VOV78: 0 | VOW78: 0 | VOX78: 0 | VOY78: 0 | VOZ78: 0 | VPA78: 0 | VPB78: 0 | VPC78: 0 | VPD78: 0 | VPE78: 0 | VPF78: 0 | VPG78: 0 | VPH78: 0 | VPI78: 0 | VPJ78: 0 | VPK78: 0 | VPL78: =SUM(VPL76:VPL77) -> 0 | VPM78: 0 | VPN78: 0 | VPO78: 0 | VPP78: 0 | VPQ78: 0 | VPR78: 0 | VPS78: 0 | VPT78: 0 | VPU78: 0 | VPV78: 0 | VPW78: 0 | VPX78: 0 | VPY78: 0 | VPZ78: 0 | VQA78: 0 | VQB78: 0 | VQC78: 0 | VQD78: 0 | VQE78: 0 | VQF78: 0 | VQG78: 0 | VQH78: 0 | VQI78: 0 | VQJ78: 0 | VQK78: 0 | VQL78: 0 | VQM78: 0 | VQN78: 0 | VQO78: 0 | VQP78: 0 | VQQ78: 0 | VQR78: 0 | VQS78: 0 | VQT78: 0 | VQU78: 0 | VQV78: 0 | VQW78: 0 | VQX78: 0 | VQY78: 0 | VQZ78: 0 | VRA78: 0 | VRB78: 0 | VRC78: 0 | VRD78: 0 | VRE78: 0 | VRF78: 0 | VRG78: 0 | VRH78: 0 | VRI78: 0 | VRJ78: 0 | VRK78: 0 | VRL78: 0 | VRM78: 0 | VRN78: 0 | VRO78: 0 | VRP78: 0 | VRQ78: 0 | VRR78: 0 | VRS78: 0 | VRT78: 0 | VRU78: 0 | VRV78: 0 | VRW78: 0 | VRX78: =SUM(VRX76:VRX77) -> 0 | VRY78: 0 | VRZ78: 0 | VSA78: 0 | VSB78: 0 | VSC78: 0 | VSD78: 0 | VSE78: 0 | VSF78: 0 | VSG78: 0 | VSH78: 0 | VSI78: 0 | VSJ78: 0 | VSK78: 0 | VSL78: 0 | VSM78: 0 | VSN78: 0 | VSO78: 0 | VSP78: 0 | VSQ78: 0 | VSR78: 0 | VSS78: 0 | VST78: 0 | VSU78: 0 | VSV78: 0 | VSW78: 0 | VSX78: 0 | VSY78: 0 | VSZ78: 0 | VTA78: 0 | VTB78: 0 | VTC78: 0 | VTD78: 0 | VTE78: 0 | VTF78: 0 | VTG78: 0 | VTH78: 0 | VTI78: 0 | VTJ78: 0 | VTK78: 0 | VTL78: 0 | VTM78: 0 | VTN78: 0 | VTO78: 0 | VTP78: 0 | VTQ78: 0 | VTR78: 0 | VTS78: 0 | VTT78: 0 | VTU78: 0 | VTV78: 0 | VTW78: 0 | VTX78: 0 | VTY78: 0 | VTZ78: 0 | VUA78: 0 | VUB78: 0 | VUC78: 0 | VUD78: 0 | VUE78: 0 | VUF78: 0 | VUG78: 0 | VUH78: 0 | VUI78: 0 | VUJ78: =SUM(VUJ76:VUJ77) -> 0 | VUK78: 0 | VUL78: 0 | VUM78: 0 | VUN78: 0 | VUO78: 0 | VUP78: 0 | VUQ78: 0 | VUR78: 0 | VUS78: 0 | VUT78: 0 | VUU78: 0 | VUV78: 0 | VUW78: 0 | VUX78: 0 | VUY78: 0 | VUZ78: 0 | VVA78: 0 | VVB78: 0 | VVC78: 0 | VVD78: 0 | VVE78: 0 | VVF78: 0 | VVG78: 0 | VVH78: 0 | VVI78: 0 | VVJ78: 0 | VVK78: 0 | VVL78: 0 | VVM78: 0 | VVN78: 0 | VVO78: 0 | VVP78: 0 | VVQ78: 0 | VVR78: 0 | VVS78: 0 | VVT78: 0 | VVU78: 0 | VVV78: 0 | VVW78: 0 | VVX78: 0 | VVY78: 0 | VVZ78: 0 | VWA78: 0 | VWB78: 0 | VWC78: 0 | VWD78: 0 | VWE78: 0 | VWF78: 0 | VWG78: 0 | VWH78: 0 | VWI78: 0 | VWJ78: 0 | VWK78: 0 | VWL78: 0 | VWM78: 0 | VWN78: 0 | VWO78: 0 | VWP78: 0 | VWQ78: 0 | VWR78: 0 | VWS78: 0 | VWT78: 0 | VWU78: 0 | VWV78: =SUM(VWV76:VWV77) -> 0 | VWW78: 0 | VWX78: 0 | VWY78: 0 | VWZ78: 0 | VXA78: 0 | VXB78: 0 | VXC78: 0 | VXD78: 0 | VXE78: 0 | VXF78: 0 | VXG78: 0 | VXH78: 0 | VXI78: 0 | VXJ78: 0 | VXK78: 0 | VXL78: 0 | VXM78: 0 | VXN78: 0 | VXO78: 0 | VXP78: 0 | VXQ78: 0 | VXR78: 0 | VXS78: 0 | VXT78: 0 | VXU78: 0 | VXV78: 0 | VXW78: 0 | VXX78: 0 | VXY78: 0 | VXZ78: 0 | VYA78: 0 | VYB78: 0 | VYC78: 0 | VYD78: 0 | VYE78: 0 | VYF78: 0 | VYG78: 0 | VYH78: 0 | VYI78: 0 | VYJ78: 0 | VYK78: 0 | VYL78: 0 | VYM78: 0 | VYN78: 0 | VYO78: 0 | VYP78: 0 | VYQ78: 0 | VYR78: 0 | VYS78: 0 | VYT78: 0 | VYU78: 0 | VYV78: 0 | VYW78: 0 | VYX78: 0 | VYY78: 0 | VYZ78: 0 | VZA78: 0 | VZB78: 0 | VZC78: 0 | VZD78: 0 | VZE78: 0 | VZF78: 0 | VZG78: 0 | VZH78: =SUM(VZH76:VZH77) -> 0 | VZI78: 0 | VZJ78: 0 | VZK78: 0 | VZL78: 0 | VZM78: 0 | VZN78: 0 | VZO78: 0 | VZP78: 0 | VZQ78: 0 | VZR78: 0 | VZS78: 0 | VZT78: 0 | VZU78: 0 | VZV78: 0 | VZW78: 0 | VZX78: 0 | VZY78: 0 | VZZ78: 0 | WAA78: 0 | WAB78: 0 | WAC78: 0 | WAD78: 0 | WAE78: 0 | WAF78: 0 | WAG78: 0 | WAH78: 0 | WAI78: 0 | WAJ78: 0 | WAK78: 0 | WAL78: 0 | WAM78: 0 | WAN78: 0 | WAO78: 0 | WAP78: 0 | WAQ78: 0 | WAR78: 0 | WAS78: 0 | WAT78: 0 | WAU78: 0 | WAV78: 0 | WAW78: 0 | WAX78: 0 | WAY78: 0 | WAZ78: 0 | WBA78: 0 | WBB78: 0 | WBC78: 0 | WBD78: 0 | WBE78: 0 | WBF78: 0 | WBG78: 0 | WBH78: 0 | WBI78: 0 | WBJ78: 0 | WBK78: 0 | WBL78: 0 | WBM78: 0 | WBN78: 0 | WBO78: 0 | WBP78: 0 | WBQ78: 0 | WBR78: 0 | WBS78: 0 | WBT78: =SUM(WBT76:WBT77) -> 0 | WBU78: 0 | WBV78: 0 | WBW78: 0 | WBX78: 0 | WBY78: 0 | WBZ78: 0 | WCA78: 0 | WCB78: 0 | WCC78: 0 | WCD78: 0 | WCE78: 0 | WCF78: 0 | WCG78: 0 | WCH78: 0 | WCI78: 0 | WCJ78: 0 | WCK78: 0 | WCL78: 0 | WCM78: 0 | WCN78: 0 | WCO78: 0 | WCP78: 0 | WCQ78: 0 | WCR78: 0 | WCS78: 0 | WCT78: 0 | WCU78: 0 | WCV78: 0 | WCW78: 0 | WCX78: 0 | WCY78: 0 | WCZ78: 0 | WDA78: 0 | WDB78: 0 | WDC78: 0 | WDD78: 0 | WDE78: 0 | WDF78: 0 | WDG78: 0 | WDH78: 0 | WDI78: 0 | WDJ78: 0 | WDK78: 0 | WDL78: 0 | WDM78: 0 | WDN78: 0 | WDO78: 0 | WDP78: 0 | WDQ78: 0 | WDR78: 0 | WDS78: 0 | WDT78: 0 | WDU78: 0 | WDV78: 0 | WDW78: 0 | WDX78: 0 | WDY78: 0 | WDZ78: 0 | WEA78: 0 | WEB78: 0 | WEC78: 0 | WED78: 0 | WEE78: 0 | WEF78: =SUM(WEF76:WEF77) -> 0 | WEG78: 0 | WEH78: 0 | WEI78: 0 | WEJ78: 0 | WEK78: 0 | WEL78: 0 | WEM78: 0 | WEN78: 0 | WEO78: 0 | WEP78: 0 | WEQ78: 0 | WER78: 0 | WES78: 0 | WET78: 0 | WEU78: 0 | WEV78: 0 | WEW78: 0 | WEX78: 0 | WEY78: 0 | WEZ78: 0 | WFA78: 0 | WFB78: 0 | WFC78: 0 | WFD78: 0 | WFE78: 0 | WFF78: 0 | WFG78: 0 | WFH78: 0 | WFI78: 0 | WFJ78: 0 | WFK78: 0 | WFL78: 0 | WFM78: 0 | WFN78: 0 | WFO78: 0 | WFP78: 0 | WFQ78: 0 | WFR78: 0 | WFS78: 0 | WFT78: 0 | WFU78: 0 | WFV78: 0 | WFW78: 0 | WFX78: 0 | WFY78: 0 | WFZ78: 0 | WGA78: 0 | WGB78: 0 | WGC78: 0 | WGD78: 0 | WGE78: 0 | WGF78: 0 | WGG78: 0 | WGH78: 0 | WGI78: 0 | WGJ78: 0 | WGK78: 0 | WGL78: 0 | WGM78: 0 | WGN78: 0 | WGO78: 0 | WGP78: 0 | WGQ78: 0 | WGR78: =SUM(WGR76:WGR77) -> 0 | WGS78: 0 | WGT78: 0 | WGU78: 0 | WGV78: 0 | WGW78: 0 | WGX78: 0 | WGY78: 0 | WGZ78: 0 | WHA78: 0 | WHB78: 0 | WHC78: 0 | WHD78: 0 | WHE78: 0 | WHF78: 0 | WHG78: 0 | WHH78: 0 | WHI78: 0 | WHJ78: 0 | WHK78: 0 | WHL78: 0 | WHM78: 0 | WHN78: 0 | WHO78: 0 | WHP78: 0 | WHQ78: 0 | WHR78: 0 | WHS78: 0 | WHT78: 0 | WHU78: 0 | WHV78: 0 | WHW78: 0 | WHX78: 0 | WHY78: 0 | WHZ78: 0 | WIA78: 0 | WIB78: 0 | WIC78: 0 | WID78: 0 | WIE78: 0 | WIF78: 0 | WIG78: 0 | WIH78: 0 | WII78: 0 | WIJ78: 0 | WIK78: 0 | WIL78: 0 | WIM78: 0 | WIN78: 0 | WIO78: 0 | WIP78: 0 | WIQ78: 0 | WIR78: 0 | WIS78: 0 | WIT78: 0 | WIU78: 0 | WIV78: 0 | WIW78: 0 | WIX78: 0 | WIY78: 0 | WIZ78: 0 | WJA78: 0 | WJB78: 0 | WJC78: 0 | WJD78: =SUM(WJD76:WJD77) -> 0 | WJE78: 0 | WJF78: 0 | WJG78: 0 | WJH78: 0 | WJI78: 0 | WJJ78: 0 | WJK78: 0 | WJL78: 0 | WJM78: 0 | WJN78: 0 | WJO78: 0 | WJP78: 0 | WJQ78: 0 | WJR78: 0 | WJS78: 0 | WJT78: 0 | WJU78: 0 | WJV78: 0 | WJW78: 0 | WJX78: 0 | WJY78: 0 | WJZ78: 0 | WKA78: 0 | WKB78: 0 | WKC78: 0 | WKD78: 0 | WKE78: 0 | WKF78: 0 | WKG78: 0 | WKH78: 0 | WKI78: 0 | WKJ78: 0 | WKK78: 0 | WKL78: 0 | WKM78: 0 | WKN78: 0 | WKO78: 0 | WKP78: 0 | WKQ78: 0 | WKR78: 0 | WKS78: 0 | WKT78: 0 | WKU78: 0 | WKV78: 0 | WKW78: 0 | WKX78: 0 | WKY78: 0 | WKZ78: 0 | WLA78: 0 | WLB78: 0 | WLC78: 0 | WLD78: 0 | WLE78: 0 | WLF78: 0 | WLG78: 0 | WLH78: 0 | WLI78: 0 | WLJ78: 0 | WLK78: 0 | WLL78: 0 | WLM78: 0 | WLN78: 0 | WLO78: 0 | WLP78: =SUM(WLP76:WLP77) -> 0 | WLQ78: 0 | WLR78: 0 | WLS78: 0 | WLT78: 0 | WLU78: 0 | WLV78: 0 | WLW78: 0 | WLX78: 0 | WLY78: 0 | WLZ78: 0 | WMA78: 0 | WMB78: 0 | WMC78: 0 | WMD78: 0 | WME78: 0 | WMF78: 0 | WMG78: 0 | WMH78: 0 | WMI78: 0 | WMJ78: 0 | WMK78: 0 | WML78: 0 | WMM78: 0 | WMN78: 0 | WMO78: 0 | WMP78: 0 | WMQ78: 0 | WMR78: 0 | WMS78: 0 | WMT78: 0 | WMU78: 0 | WMV78: 0 | WMW78: 0 | WMX78: 0 | WMY78: 0 | WMZ78: 0 | WNA78: 0 | WNB78: 0 | WNC78: 0 | WND78: 0 | WNE78: 0 | WNF78: 0 | WNG78: 0 | WNH78: 0 | WNI78: 0 | WNJ78: 0 | WNK78: 0 | WNL78: 0 | WNM78: 0 | WNN78: 0 | WNO78: 0 | WNP78: 0 | WNQ78: 0 | WNR78: 0 | WNS78: 0 | WNT78: 0 | WNU78: 0 | WNV78: 0 | WNW78: 0 | WNX78: 0 | WNY78: 0 | WNZ78: 0 | WOA78: 0 | WOB78: =SUM(WOB76:WOB77) -> 0 | WOC78: 0 | WOD78: 0 | WOE78: 0 | WOF78: 0 | WOG78: 0 | WOH78: 0 | WOI78: 0 | WOJ78: 0 | WOK78: 0 | WOL78: 0 | WOM78: 0 | WON78: 0 | WOO78: 0 | WOP78: 0 | WOQ78: 0 | WOR78: 0 | WOS78: 0 | WOT78: 0 | WOU78: 0 | WOV78: 0 | WOW78: 0 | WOX78: 0 | WOY78: 0 | WOZ78: 0 | WPA78: 0 | WPB78: 0 | WPC78: 0 | WPD78: 0 | WPE78: 0 | WPF78: 0 | WPG78: 0 | WPH78: 0 | WPI78: 0 | WPJ78: 0 | WPK78: 0 | WPL78: 0 | WPM78: 0 | WPN78: 0 | WPO78: 0 | WPP78: 0 | WPQ78: 0 | WPR78: 0 | WPS78: 0 | WPT78: 0 | WPU78: 0 | WPV78: 0 | WPW78: 0 | WPX78: 0 | WPY78: 0 | WPZ78: 0 | WQA78: 0 | WQB78: 0 | WQC78: 0 | WQD78: 0 | WQE78: 0 | WQF78: 0 | WQG78: 0 | WQH78: 0 | WQI78: 0 | WQJ78: 0 | WQK78: 0 | WQL78: 0 | WQM78: 0 | WQN78: =SUM(WQN76:WQN77) -> 0 | WQO78: 0 | WQP78: 0 | WQQ78: 0 | WQR78: 0 | WQS78: 0 | WQT78: 0 | WQU78: 0 | WQV78: 0 | WQW78: 0 | WQX78: 0 | WQY78: 0 | WQZ78: 0 | WRA78: 0 | WRB78: 0 | WRC78: 0 | WRD78: 0 | WRE78: 0 | WRF78: 0 | WRG78: 0 | WRH78: 0 | WRI78: 0 | WRJ78: 0 | WRK78: 0 | WRL78: 0 | WRM78: 0 | WRN78: 0 | WRO78: 0 | WRP78: 0 | WRQ78: 0 | WRR78: 0 | WRS78: 0 | WRT78: 0 | WRU78: 0 | WRV78: 0 | WRW78: 0 | WRX78: 0 | WRY78: 0 | WRZ78: 0 | WSA78: 0 | WSB78: 0 | WSC78: 0 | WSD78: 0 | WSE78: 0 | WSF78: 0 | WSG78: 0 | WSH78: 0 | WSI78: 0 | WSJ78: 0 | WSK78: 0 | WSL78: 0 | WSM78: 0 | WSN78: 0 | WSO78: 0 | WSP78: 0 | WSQ78: 0 | WSR78: 0 | WSS78: 0 | WST78: 0 | WSU78: 0 | WSV78: 0 | WSW78: 0 | WSX78: 0 | WSY78: 0 | WSZ78: =SUM(WSZ76:WSZ77) -> 0 | WTA78: 0 | WTB78: 0 | WTC78: 0 | WTD78: 0 | WTE78: 0 | WTF78: 0 | WTG78: 0 | WTH78: 0 | WTI78: 0 | WTJ78: 0 | WTK78: 0 | WTL78: 0 | WTM78: 0 | WTN78: 0 | WTO78: 0 | WTP78: 0 | WTQ78: 0 | WTR78: 0 | WTS78: 0 | WTT78: 0 | WTU78: 0 | WTV78: 0 | WTW78: 0 | WTX78: 0 | WTY78: 0 | WTZ78: 0 | WUA78: 0 | WUB78: 0 | WUC78: 0 | WUD78: 0 | WUE78: 0 | WUF78: 0 | WUG78: 0 | WUH78: 0 | WUI78: 0 | WUJ78: 0 | WUK78: 0 | WUL78: 0 | WUM78: 0 | WUN78: 0 | WUO78: 0 | WUP78: 0 | WUQ78: 0 | WUR78: 0 | WUS78: 0 | WUT78: 0 | WUU78: 0 | WUV78: 0 | WUW78: 0 | WUX78: 0 | WUY78: 0 | WUZ78: 0 | WVA78: 0 | WVB78: 0 | WVC78: 0 | WVD78: 0 | WVE78: 0 | WVF78: 0 | WVG78: 0 | WVH78: 0 | WVI78: 0 | WVJ78: 0 | WVK78: 0 | WVL78: =SUM(WVL76:WVL77) -> 0 | WVM78: 0 | WVN78: 0 | WVO78: 0 | WVP78: 0 | WVQ78: 0 | WVR78: 0 | WVS78: 0 | WVT78: 0 | WVU78: 0 | WVV78: 0 | WVW78: 0 | WVX78: 0 | WVY78: 0 | WVZ78: 0 | WWA78: 0 | WWB78: 0 | WWC78: 0 | WWD78: 0 | WWE78: 0 | WWF78: 0 | WWG78: 0 | WWH78: 0 | WWI78: 0 | WWJ78: 0 | WWK78: 0 | WWL78: 0 | WWM78: 0 | WWN78: 0 | WWO78: 0 | WWP78: 0 | WWQ78: 0 | WWR78: 0 | WWS78: 0 | WWT78: 0 | WWU78: 0 | WWV78: 0 | WWW78: 0 | WWX78: 0 | WWY78: 0 | WWZ78: 0 | WXA78: 0 | WXB78: 0 | WXC78: 0 | WXD78: 0 | WXE78: 0 | WXF78: 0 | WXG78: 0 | WXH78: 0 | WXI78: 0 | WXJ78: 0 | WXK78: 0 | WXL78: 0 | WXM78: 0 | WXN78: 0 | WXO78: 0 | WXP78: 0 | WXQ78: 0 | WXR78: 0 | WXS78: 0 | WXT78: 0 | WXU78: 0 | WXV78: 0 | WXW78: 0 | WXX78: =SUM(WXX76:WXX77) -> 0 | WXY78: 0 | WXZ78: 0 | WYA78: 0 | WYB78: 0 | WYC78: 0 | WYD78: 0 | WYE78: 0 | WYF78: 0 | WYG78: 0 | WYH78: 0 | WYI78: 0 | WYJ78: 0 | WYK78: 0 | WYL78: 0 | WYM78: 0 | WYN78: 0 | WYO78: 0 | WYP78: 0 | WYQ78: 0 | WYR78: 0 | WYS78: 0 | WYT78: 0 | WYU78: 0 | WYV78: 0 | WYW78: 0 | WYX78: 0 | WYY78: 0 | WYZ78: 0 | WZA78: 0 | WZB78: 0 | WZC78: 0 | WZD78: 0 | WZE78: 0 | WZF78: 0 | WZG78: 0 | WZH78: 0 | WZI78: 0 | WZJ78: 0 | WZK78: 0 | WZL78: 0 | WZM78: 0 | WZN78: 0 | WZO78: 0 | WZP78: 0 | WZQ78: 0 | WZR78: 0 | WZS78: 0 | WZT78: 0 | WZU78: 0 | WZV78: 0 | WZW78: 0 | WZX78: 0 | WZY78: 0 | WZZ78: 0 | XAA78: 0 | XAB78: 0 | XAC78: 0 | XAD78: 0 | XAE78: 0 | XAF78: 0 | XAG78: 0 | XAH78: 0 | XAI78: 0 | XAJ78: =SUM(XAJ76:XAJ77) -> 0 | XAK78: 0 | XAL78: 0 | XAM78: 0 | XAN78: 0 | XAO78: 0 | XAP78: 0 | XAQ78: 0 | XAR78: 0 | XAS78: 0 | XAT78: 0 | XAU78: 0 | XAV78: 0 | XAW78: 0 | XAX78: 0 | XAY78: 0 | XAZ78: 0 | XBA78: 0 | XBB78: 0 | XBC78: 0 | XBD78: 0 | XBE78: 0 | XBF78: 0 | XBG78: 0 | XBH78: 0 | XBI78: 0 | XBJ78: 0 | XBK78: 0 | XBL78: 0 | XBM78: 0 | XBN78: 0 | XBO78: 0 | XBP78: 0 | XBQ78: 0 | XBR78: 0 | XBS78: 0 | XBT78: 0 | XBU78: 0 | XBV78: 0 | XBW78: 0 | XBX78: 0 | XBY78: 0 | XBZ78: 0 | XCA78: 0 | XCB78: 0 | XCC78: 0 | XCD78: 0 | XCE78: 0 | XCF78: 0 | XCG78: 0 | XCH78: 0 | XCI78: 0 | XCJ78: 0 | XCK78: 0 | XCL78: 0 | XCM78: 0 | XCN78: 0 | XCO78: 0 | XCP78: 0 | XCQ78: 0 | XCR78: 0 | XCS78: 0 | XCT78: 0 | XCU78: 0 | XCV78: =SUM(XCV76:XCV77) -> 0 | XCW78: 0 | XCX78: 0 | XCY78: 0 | XCZ78: 0 | XDA78: 0 | XDB78: 0 | XDC78: 0 | XDD78: 0 | XDE78: 0 | XDF78: 0 | XDG78: 0 | XDH78: 0 | XDI78: 0 | XDJ78: 0 | XDK78: 0 | XDL78: 0 | XDM78: 0 | XDN78: 0 | XDO78: 0 | XDP78: 0 | XDQ78: 0 | XDR78: 0 | XDS78: 0 | XDT78: 0 | XDU78: 0 | XDV78: 0 | XDW78: 0 | XDX78: 0 | XDY78: 0 | XDZ78: 0 | XEA78: 0 | XEB78: 0 | XEC78: 0 | XED78: 0 | XEE78: 0 | XEF78: 0 | XEG78: 0 | XEH78: 0 | XEI78: 0 | XEJ78: 0 | XEK78: 0 | XEL78: 0 | XEM78: 0 | XEN78: 0 | XEO78: 0 | XEP78: 0 | XEQ78: 0 | XER78: 0 | XES78: 0 | XET78: 0 | XEU78: 0 | XEV78: 0 | XEW78: 0 | XEX78: 0 | XEY78: 0 | XEZ78: 0 | XFA78: 0 | XFB78: 0 | XFC78: 0 | XFD78: 0
A79: OTHER PROJECT COSTS
A80: TCAC App/Allocation/Monitoring Fees | B80: =SUM(C80+D80) -> 127965 | C80: 127965 | E80: =+C80-SUM(F80:Q80) -> 127965 | R80: =SUM(E80:Q80) -> 127965
A81: Environmental Audit | B81: 15000 | C81: 15000 | E81: 15000 | R81: 15000 | S81: =R81 -> 15000
A82: Local Development Impact Fees | B82: 604469 | C82: 604469 | E82: 604469 | R82: 604469 | S82: 604469
A83: Permit Processing Fees | B83: 358471 | C83: =962940-604469 -> 358471 | E83: 358471 | R83: 358471 | S83: =R83 -> 358471
A84: Capital Fees | B84: 201000 | C84: 201000 | E84: 201000 | R84: 201000 | S84: =R84 -> 201000
A85: Marketing | B85: 50000 | C85: 50000 | E85: 50000 | R85: 50000
A86: Furnishings | B86: 409800 | C86: 409800 | E86: 409800 | R86: 409800 | S86: =R86 -> 409800
A87: Market Study | B87: 10000 | C87: 10000 | E87: 10000 | R87: 10000
A88: Accounting/Reimbursable | B88: 0 | E88: 0 | R88: 0
A89: Appraisal Costs | B89: 10000 | C89: 10000 | E89: 10000 | R89: 10000 | S89: =R89 -> 10000
A90: LEED/CASp/ADA | B90: 83200 | C90: 83200 | E90: 83200 | R90: 83200 | S90: =R90 -> 83200
A91: Permanent Reclocation (Commercial) | B91: 40000 | C91: 40000 | E91: 40000 | R91: 40000
A92: Third-Party Construction Management | B92: 125000 | C92: 125000 | E92: 125000 | R92: 125000 | S92: 125000
A93: Local Impact Fees (Waived) | B93: 333323 | C93: 333323 | E93: 0 | L93: 333323 | R93: =SUM(E93:Q93) -> 333323
A94: Lease Up | B94: 110000 | C94: 110000 | E94: 110000 | R94: 110000
A95: Total Other Costs | B95: =SUM(C95:D95) -> 2478228 | C95: =SUM(C80:C94) -> 2478228 | D95: 0 | E95: 2144905 | F95: 0 | G95: 0 | H95: 0 | I95: 0 | J95: 0 | K95: 0 | L95: 333323 | M95: 0 | N95: 0 | O95: =SUM(O80:O94) -> 0 | P95: 0 | Q95: 0 | R95: 2478228 | S95: =SUM(S81:S84,S86:S94) -> 1806940 | T95: =SUM(T81:T84,T86:T94) -> 0
A96: SUBTOTAL PROJECT COST | B96: =SUM(C96:D96) -> 67937011 | C96: =SUM(C63+C67+C74+C78+C95) -> 67937011 | D96: =SUM(D63+D67+D74+D78+D95) -> 0 | E96: 22891688 | F96: 10712000 | G96: 14000000 | H96: 20000000 | I96: 0 | J96: 0 | K96: 0 | L96: 333323 | M96: 0 | N96: 0 | O96: 0 | P96: 0 | Q96: 0 | R96: =SUM(R63+R67+R74+R78+R95) -> 67937011 | S96: =SUM(S63+S67+S78+S95) -> 54694261 | T96: =SUM(T63+T67+T78+T95) -> 0
A97: DEVELOPER COSTS
A98: Developer Overhead/Profit | B98: =SUM(C98+D98) -> 7384769 | C98: 7384769 | E98: =+C98-SUM(F98:Q98) -> 2499900 | I98: 1000000 | J98: =Application!AG636 -> 3884769 | K98: 100 | R98: =SUM(E98:Q98) -> 7384769 | S98: =R98 -> 7384769
A99: Consultant/Processing Agent | B99: 0 | R99: 0
A100: Project Administration | B100: 0 | R100: 0
A101: Broker Fees Paid to a Related Party | B101: 0 | R101: 0
A102: Construction Oversight by Developer | B102: 0 | R102: 0
A103: Other: (Specify) | B103: 0 | R103: 0
A104: Total Developer Costs | B104: =SUM(C104:D104) -> 7384769 | C104: =SUM(C98:C103) -> 7384769 | D104: 0 | E104: 2499900 | F104: 0 | G104: 0 | H104: 0 | I104: 1000000 | J104: 3884769 | K104: 100 | L104: 0 | M104: 0 | N104: 0 | O104: =SUM(O98:O103) -> 0 | P104: 0 | Q104: 0 | R104: 7384769 | S104: 7384769 | T104: 0
A105: TOTAL PROJECT COST | B105: =SUM(C105:D105) -> 75321780 | C105: =SUM(C96+C104) -> 75321780 | D105: 0 | E105: 25391588 | F105: 10712000 | G105: 14000000 | H105: 20000000 | I105: 1000000 | J105: 3884769 | K105: 100 | L105: 333323 | M105: 0 | N105: 0 | O105: 0 | P105: 0 | Q105: 0 | R105: 75321780 | S105: =S96+S104 -> 62079030 | T105: =T96+T104 -> 0
A106: Note: Syndication Costs shall NOT be included as a project cost. | R106: Bridge Loan Expense During Construction:
A107: Calculate Maximum Developer Fee using the eligible basis subtotals. | R107: Total Eligible Basis: | S107: =S105+S106 -> 62079030 | T107: =T105+T106 -> 0
A108: DOUBLE CHECK AGAINST PERMANENT FINANCING TOTALS: | E108: =Application!AG645 -> 25391588 | F108: =Application!AG632 -> 10712000 | G108: =Application!AG633 -> 14000000 | H108: =Application!AG634 -> 20000000 | I108: =Application!AG635 -> 1000000 | J108: =Application!AG636 -> 3884769 | K108: =Application!AG637 -> 100 | L108: =Application!AG638 -> 333323 | M108: =Application!AG639 -> 0 | N108: =Application!AG640 -> 0 | O108: =Application!AG641 -> 0 | P108: =Application!AG642 -> 0 | Q108: =Application!AG643 -> 0
A110: Funding sources and costs should be aligned appropriately. For example, public funding sources for land purchase or construction costs should be shown as paying for these costs.
A111: Do not randomly select funding sources for line item costs if they have a dedicated source of payment.
A113: 1 Required: evidence of land value (see Tab 1). Land value must be included in Total Project Cost and Sources and Uses Budget (includes donated or leased land).
A114: Except for non-competitive projects with donated land, TCAC will not accept a budget with a nominal land value. Please refer to the TCAC website for additional information and guidance.
A115: 2 Required: include a detailed explanation of Demolition and Offsite Improvements requirements as well as a cost breakdown in Attachment 12, Construction and Design Description.
A117: Note: The conditional formatting embedded in this Sources and Uses Budget workbook tests only for mathematical errors, i.e. whether sum total of Sources (Column R) matches Total Project Cost (Column B)
A118: and whether each source listed in the Sources and Uses Budget workbook (Row 105) matches that of Permanent Financing in the Application workbook (Row 108).
A119: The conditional formatting does NOT test for any regulatory threshold or feasibility requirements.
A120: Applicants are advised to conduct their own due diligence and not rely upon the conditional formatting in this workbook.
A122: FOR PLACED IN SERVICE APPLICATION SUBMISSIONS:
A123: SYNDICATION (Investor & General Partner) | D123: CERTIFICATION BY OWNER:
A124: Organizational Fee | D124: As owner(s) of the above-referenced low-income housing project, I certify under penalty of perjury, that the project costs contained herein are, to the best of my knowledge, accurate and actual costs associated with the construction, acquisition and/or rehabilitation of this project and that the sources of funds shown are the only funds received by the Partnership for the development of the project. I authorize the California Tax Credit Allocation Committee to utilize this information to calculate the low-income housing tax credit.
A125: Bridge Loan Fees/Exp.
A126: Legal Fees | B126: 55000
A127: Consultant Fees | B127: 65000
A128: Accountant Fees | B128: 50000
A129: Tax Opinion
A130: Other | D130: Signature of Owner/General Partner | J130: Date
A132: Total Syndication Costs | B132: =SUM(B124:B130) -> 170000 | D132: Lois Starr | J132: Acting Executive Director
D133: Printed Name of Signatory | J133: Title of Signatory
A135: CERTIFICATION OF CPA/TAX PROFESSIONAL:
A136: As the tax professional for the above-referenced low-income housing project, I certify under penalty of perjury, that the percentage of aggregate basis financed by tax-exempt bonds is:
A140: Signature of Project CPA/Tax Professional | E140: Date
AV1017: ='Sources and Uses Budget'!A103 -> Other: (Specify)

Sheet Sources and Basis Breakdown
A1: IV. SOURCES AND USES BUDGET - SECTION 2: SOURCES AND BASIS BREAKDOWN BY DDA/QCT AND NON-DDA/NON-QCT
B2: TOTAL RESIDENTIAL COST | C2: DDA/QCT Building(s) COST | D2: NON-DDA/ NON-QCT Building(s) COST | E2: TOTAL 30% PVC for New Const/ Rehabilitation | F2: 30% PVC for New Const/ Rehabilitation DDA/QCT Building(s) | G2: 30% PVC for New Const/ Rehabilitation NON-DDA/ NON-QCT Building(s) | H2: TOTAL 30% PVC for Acquisition | I2: 30% PVC for Acquisition DDA/QCT Building(s) | J2: 30% PVC for Acquisition NON-DDA/ NON-QCT Building(s)
A3: LAND COST/ACQUISITION
A4: 1Land Cost or Value | B4: ='Sources and Uses Budget'!C4 -> 7420000
A5: 2Demolition | B5: ='Sources and Uses Budget'!C5 -> 168182
A6: Legal | B6: ='Sources and Uses Budget'!C6 -> 22000
A7: Land Lease Rent Prepayment | B7: ='Sources and Uses Budget'!C7 -> 0
A8: 1Total Land Cost or Value | B8: ='Sources and Uses Budget'!C8 -> 7610182 | C8: =SUM(C4:C7) -> 0 | D8: =SUM(D4:D7) -> 0
A9: Existing Improvements Cost or Value | B9: ='Sources and Uses Budget'!C9 -> 0 | H9: ='Sources and Uses Budget'!T9 -> 0
A10: 2Off-Site Improvements | B10: ='Sources and Uses Budget'!C10 -> 108300 | E10: ='Sources and Uses Budget'!S10 -> 108300 | F10: 0 | G10: =E10-F10 -> 108300 | H10: ='Sources and Uses Budget'!T10 -> 0
A11: Total Acquisition Cost | B11: ='Sources and Uses Budget'!C11 -> 108300 | C11: =SUM(C9:C10) -> 0 | D11: =SUM(D9:D10) -> 0 | H11: ='Sources and Uses Budget'!T11 -> 0 | I11: =SUM(I9:I10) -> 0 | J11: =SUM(J9:J10) -> 0
A12: Total Land Cost / Acquisition Cost | B12: ='Sources and Uses Budget'!C12 -> 7718482 | C12: =SUM(C8+C11) -> 0 | D12: =SUM(D8+D11) -> 0
A13: Predevelopment Interest/Holding Cost | B13: ='Sources and Uses Budget'!C13 -> 1588487 | E13: ='Sources and Uses Budget'!S13 -> 371802 | G13: =E13 -> 371802 | H13: ='Sources and Uses Budget'!T13 -> 0
A14: Assumed, Accrued Interest on Existing Debt (Rehab/Acq) | B14: ='Sources and Uses Budget'!C14 -> 0 | E14: ='Sources and Uses Budget'!S14 -> 0 | H14: ='Sources and Uses Budget'!T14 -> 0
A15: Excess Purchase Price Over Appraisal | B15: ='Sources and Uses Budget'!C15 -> 0 | E15: ='Sources and Uses Budget'!S15 -> 0 | H15: ='Sources and Uses Budget'!T15 -> 0
A16: REHABILITATION
A17: Site Work | B17: ='Sources and Uses Budget'!C17 -> 0 | E17: ='Sources and Uses Budget'!S17 -> 0 | H17: ='Sources and Uses Budget'!T17 -> 0
A18: Structures | B18: ='Sources and Uses Budget'!C18 -> 0 | E18: ='Sources and Uses Budget'!S18 -> 0 | H18: ='Sources and Uses Budget'!T18 -> 0
A19: General Requirements | B19: ='Sources and Uses Budget'!C19 -> 0 | E19: ='Sources and Uses Budget'!S19 -> 0 | H19: ='Sources and Uses Budget'!T19 -> 0
A20: Contractor Overhead | B20: ='Sources and Uses Budget'!C20 -> 0 | E20: ='Sources and Uses Budget'!S20 -> 0 | H20: ='Sources and Uses Budget'!T20 -> 0
A21: Contractor Profit | B21: ='Sources and Uses Budget'!C21 -> 0 | E21: ='Sources and Uses Budget'!S21 -> 0 | H21: ='Sources and Uses Budget'!T21 -> 0
A22: Prevailing Wages | B22: ='Sources and Uses Budget'!C22 -> 0 | E22: ='Sources and Uses Budget'!S22 -> 0 | H22: ='Sources and Uses Budget'!T22 -> 0
A23: General Liability Insurance | B23: ='Sources and Uses Budget'!C23 -> 0 | E23: ='Sources and Uses Budget'!S23 -> 0 | H23: ='Sources and Uses Budget'!T23 -> 0
A24: ='Sources and Uses Budget'!$A24 -> Other: (Specify) | B24: ='Sources and Uses Budget'!C24 -> 0 | E24: ='Sources and Uses Budget'!S24 -> 0 | H24: ='Sources and Uses Budget'!T24 -> 0
A25: Total Rehabilitation Costs | B25: ='Sources and Uses Budget'!C25 -> 0 | C25: =SUM(C17:C24) -> 0 | D25: =SUM(D17:D24) -> 0 | E25: ='Sources and Uses Budget'!S25 -> 0 | F25: =SUM(F17:F24) -> 0 | G25: =SUM(G17:G24) -> 0 | H25: ='Sources and Uses Budget'!T25 -> 0 | I25: =SUM(I17:I24) -> 0 | J25: =SUM(J17:J24) -> 0
A26: Total Relocation Expenses | B26: ='Sources and Uses Budget'!C26 -> 0 | E26: ='Sources and Uses Budget'!S26 -> 0 | H26: ='Sources and Uses Budget'!T26 -> 0
A27: NEW CONSTRUCTION
A28: Site Work | B28: ='Sources and Uses Budget'!C28 -> 385905 | E28: ='Sources and Uses Budget'!S28 -> 385905 | G28: =E28 -> 385905 | H28: ='Sources and Uses Budget'!T28 -> 0
A29: Structures | B29: ='Sources and Uses Budget'!C29 -> 37009434 | E29: ='Sources and Uses Budget'!S29 -> 37009434 | G29: 37009434 | H29: ='Sources and Uses Budget'!T29 -> 0
A30: General Requirements | B30: ='Sources and Uses Budget'!C30 -> 3403964 | E30: ='Sources and Uses Budget'!S30 -> 3403964 | G30: 3403964 | H30: ='Sources and Uses Budget'!T30 -> 0
A31: Contractor Overhead | B31: ='Sources and Uses Budget'!C31 -> 1891091 | E31: ='Sources and Uses Budget'!S31 -> 1891091 | G31: 1891091 | H31: ='Sources and Uses Budget'!T31 -> 0
A32: Contractor Profit | B32: ='Sources and Uses Budget'!C32 -> 0 | E32: ='Sources and Uses Budget'!S32 -> 0 | G32: 0 | H32: ='Sources and Uses Budget'!T32 -> 0
A33: Prevailing Wages | B33: ='Sources and Uses Budget'!C33 -> 0 | E33: ='Sources and Uses Budget'!S33 -> 0 | G33: 0 | H33: ='Sources and Uses Budget'!T33 -> 0
A34: General Liability Insurance | B34: ='Sources and Uses Budget'!C34 -> 1074912 | E34: ='Sources and Uses Budget'!S34 -> 1074912 | G34: 1074912 | H34: ='Sources and Uses Budget'!T34 -> 0
A35: ='Sources and Uses Budget'!$A35 -> Other: (Specify) | B35: ='Sources and Uses Budget'!C35 -> 150000 | E35: ='Sources and Uses Budget'!S35 -> 150000 | G35: 150000 | H35: ='Sources and Uses Budget'!T35 -> 0
A36: Total New Construction Costs | B36: ='Sources and Uses Budget'!C36 -> 43915306 | C36: =SUM(C28:C35) -> 0 | D36: =SUM(D28:D35) -> 0 | E36: ='Sources and Uses Budget'!S36 -> 43915306 | F36: =SUM(F28:F35) -> 0 | G36: =SUM(G28:G35) -> 43915306 | H36: ='Sources and Uses Budget'!T36 -> 0 | I36: =SUM(I28:I35) -> 0 | J36: =SUM(J28:J35) -> 0
A37: ARCHITECTURAL FEES
A38: Design | B38: ='Sources and Uses Budget'!C38 -> 1557450 | E38: ='Sources and Uses Budget'!S38 -> 1557450 | G38: =E38 -> 1557450 | H38: ='Sources and Uses Budget'!T38 -> 0
A39: Supervision | B39: ='Sources and Uses Budget'!C39 -> 240000 | E39: ='Sources and Uses Budget'!S39 -> 240000 | G39: 240000 | H39: ='Sources and Uses Budget'!T39 -> 0
A40: Total Architectural Costs | B40: ='Sources and Uses Budget'!C40 -> 1797450 | C40: =SUM(C37:C39) -> 0 | D40: =SUM(D37:D39) -> 0 | E40: ='Sources and Uses Budget'!S40 -> 1797450 | F40: =SUM(F38:F39) -> 0 | G40: =SUM(G38:G39) -> 1797450 | H40: ='Sources and Uses Budget'!T40 -> 0 | I40: =SUM(I38:I39) -> 0 | J40: =SUM(J38:J39) -> 0
A41: Total Survey & Engineering | B41: ='Sources and Uses Budget'!C41 -> 517500 | E41: ='Sources and Uses Budget'!S41 -> 517500 | G41: =E41 -> 517500 | H41: ='Sources and Uses Budget'!T41 -> 0
A42: CONSTRUCTION INTEREST & FEES
A43: Construction Loan Interest | B43: ='Sources and Uses Budget'!C43 -> 3344841 | E43: ='Sources and Uses Budget'!S43 -> 1809694 | G43: =E43 -> 1809694 | H43: ='Sources and Uses Budget'!T43 -> 0
A44: Origination Fee | B44: ='Sources and Uses Budget'!C44 -> 421840 | E44: ='Sources and Uses Budget'!S44 -> 56125 | G44: 56125 | H44: ='Sources and Uses Budget'!T44 -> 0
A45: Credit Enhancement/Application Fee | B45: ='Sources and Uses Budget'!C45 -> 0 | E45: ='Sources and Uses Budget'!S45 -> 0 | G45: 0 | H45: ='Sources and Uses Budget'!T45 -> 0
A46: Bond Premium | B46: ='Sources and Uses Budget'!C46 -> 0 | E46: ='Sources and Uses Budget'!S46 -> 0 | G46: 0 | H46: ='Sources and Uses Budget'!T46 -> 0
A47: Cost of Issuance | B47: ='Sources and Uses Budget'!C47 -> 261885 | E47: ='Sources and Uses Budget'!S47 -> 0 | G47: 0 | H47: ='Sources and Uses Budget'!T47 -> 0
A48: Title & Recording | B48: ='Sources and Uses Budget'!C48 -> 80000 | E48: ='Sources and Uses Budget'!S48 -> 80000 | G48: 80000 | H48: ='Sources and Uses Budget'!T48 -> 0
A49: Taxes | B49: ='Sources and Uses Budget'!C49 -> 166500 | E49: ='Sources and Uses Budget'!S49 -> 113921 | G49: 113921 | H49: ='Sources and Uses Budget'!T49 -> 0
A50: Insurance | B50: ='Sources and Uses Budget'!C50 -> 290000 | E50: ='Sources and Uses Budget'!S50 -> 290000 | G50: 290000 | H50: ='Sources and Uses Budget'!T50 -> 0
A51: ='Sources and Uses Budget'!$A51 -> Bond Counsel | B51: ='Sources and Uses Budget'!C51 -> 55000 | E51: ='Sources and Uses Budget'!S51 -> 0 | G51: 0 | H51: ='Sources and Uses Budget'!T51 -> 0
A52: ='Sources and Uses Budget'!$A52 -> Lender Expenses | B52: ='Sources and Uses Budget'!C52 -> 34500 | E52: ='Sources and Uses Budget'!S52 -> 4590 | G52: 4590 | H52: ='Sources and Uses Budget'!T52 -> 0
A53: Total Construction Interest & Fees | B53: ='Sources and Uses Budget'!C53 -> 4654566 | C53: =SUM(C43:C52) -> 0 | D53: =SUM(D43:D52) -> 0 | E53: ='Sources and Uses Budget'!S53 -> 2354330 | F53: =SUM(F43:F52) -> 0 | G53: =SUM(G43:G52) -> 2354330 | H53: ='Sources and Uses Budget'!T53 -> 0 | I53: =SUM(I43:I52) -> 0 | J53: =SUM(J43:J52) -> 0
A54: PERMANENT FINANCING
A55: Loan Origination Fee | B55: ='Sources and Uses Budget'!C55 -> 74984
A56: Credit Enhancement/Application Fee | B56: ='Sources and Uses Budget'!C56 -> 0
A57: Title & Recording | B57: ='Sources and Uses Budget'!C57 -> 10000
A58: Taxes | B58: ='Sources and Uses Budget'!C58 -> 0
A59: Insurance | B59: ='Sources and Uses Budget'!C59 -> 0
A60: ='Sources and Uses Budget'!$A60 -> LACDA Compliance Monitoring | B60: ='Sources and Uses Budget'!C60 -> 96100
A61: ='Sources and Uses Budget'!$A61 -> Lender Expenses | B61: ='Sources and Uses Budget'!C61 -> 10000
A62: Total Permanent Financing Costs | B62: ='Sources and Uses Budget'!C62 -> 191084 | C62: =SUM(C55:C61) -> 0 | D62: =SUM(D55:D61) -> 0
A63: Subtotals Forward | B63: ='Sources and Uses Budget'!C63 -> 60382875 | C63: =SUM(C8+C11+C13+C14+C15+C25+C26+C36+C40+C41+C53+C62) -> 0 | D63: =SUM(D8+D11+D13+D14+D15+D25+D26+D36+D40+D41+D53+D62) -> 0 | E63: ='Sources and Uses Budget'!S63 -> 49064688 | F63: =SUM(F10+F13+F14+F15+F25+F26+F36+F40+F41+F53) -> 0 | G63: =SUM(G10+G13+G14+G15+G25+G26+G36+G40+G41+G53) -> 49064688 | H63: ='Sources and Uses Budget'!T63 -> 0 | I63: =SUM(I11+I13+I14+I15+I25+I26+I36+I40+I41+I53) -> 0 | J63: =SUM(J11+J13+J14+J15+J25+J26+J36+J40+J41+J53) -> 0
A64: LEGAL FEES
A65: Lender Legal Paid by Applicant | B65: ='Sources and Uses Budget'!C65 -> 93000 | E65: ='Sources and Uses Budget'!S65 -> 10378 | G65: =E65 -> 10378 | H65: ='Sources and Uses Budget'!T65 -> 0
A66: ='Sources and Uses Budget'!$A66 -> Borrower Legal | B66: ='Sources and Uses Budget'!C66 -> 100000 | E66: ='Sources and Uses Budget'!S66 -> 100000 | G66: 100000 | H66: ='Sources and Uses Budget'!T66 -> 0
A67: Total Attorney Costs | B67: ='Sources and Uses Budget'!C67 -> 193000 | C67: =SUM(C64:C66) -> 0 | D67: =SUM(D64:D66) -> 0 | E67: ='Sources and Uses Budget'!S67 -> 110378 | F67: =SUM(F65:F66) -> 0 | G67: =SUM(G65:G66) -> 110378 | H67: ='Sources and Uses Budget'!T67 -> 0 | I67: =SUM(I65:I66) -> 0 | J67: =SUM(J65:J66) -> 0
A68: RESERVES
A69: Rent Reserves | B69: ='Sources and Uses Budget'!C69 -> 0
A70: Capitalized Rent Reserves | B70: ='Sources and Uses Budget'!C70 -> 0
A71: Required Capitalized Replacement Reserve | B71: ='Sources and Uses Budget'!C71 -> 0
A72: 3-Month Operating Reserve | B72: ='Sources and Uses Budget'!C72 -> 441000
A73: ='Sources and Uses Budget'!$A73 -> Transition Reserve | B73: ='Sources and Uses Budget'!C73 -> 729653
A74: Total Reserve Costs | B74: ='Sources and Uses Budget'!C74 -> 1170653 | C74: =SUM(C69:C73) -> 0 | D74: =SUM(D69:D73) -> 0
A75: CONTINGENCY COSTS
A76: Construction Hard Cost Contingency | B76: ='Sources and Uses Budget'!C76 -> 3500908 | E76: ='Sources and Uses Budget'!S76 -> 3500908 | G76: =E76 -> 3500908 | H76: ='Sources and Uses Budget'!T76 -> 0
A77: Soft Cost Contingency | B77: ='Sources and Uses Budget'!C77 -> 211347 | E77: ='Sources and Uses Budget'!S77 -> 211347 | G77: 211347 | H77: ='Sources and Uses Budget'!T77 -> 0
A78: Total Contingency Cost | B78: ='Sources and Uses Budget'!C78 -> 3712255 | C78: =SUM(C76:C77) -> 0 | D78: =SUM(D76:D77) -> 0 | E78: ='Sources and Uses Budget'!S78 -> 3712255 | F78: =SUM(F76:F77) -> 0 | G78: =SUM(G76:G77) -> 3712255 | H78: ='Sources and Uses Budget'!T78 -> 0 | I78: =SUM(I76:I77) -> 0 | J78: =SUM(J76:J77) -> 0
A79: OTHER PROJECT COSTS
A80: TCAC App/Allocation/Monitoring Fees | B80: ='Sources and Uses Budget'!C80 -> 127965
A81: Environmental Audit | B81: ='Sources and Uses Budget'!C81 -> 15000 | E81: ='Sources and Uses Budget'!S81 -> 15000 | G81: =E81 -> 15000 | H81: ='Sources and Uses Budget'!T81 -> 0
A82: Local Development Impact Fees | B82: ='Sources and Uses Budget'!C82 -> 604469 | E82: ='Sources and Uses Budget'!S82 -> 604469 | G82: 604469 | H82: ='Sources and Uses Budget'!T82 -> 0
A83: Permit Processing Fees | B83: ='Sources and Uses Budget'!C83 -> 358471 | E83: ='Sources and Uses Budget'!S83 -> 358471 | G83: 358471 | H83: ='Sources and Uses Budget'!T83 -> 0
A84: Capital Fees | B84: ='Sources and Uses Budget'!C84 -> 201000 | E84: ='Sources and Uses Budget'!S84 -> 201000 | G84: 201000 | H84: ='Sources and Uses Budget'!T84 -> 0
A85: Marketing | B85: ='Sources and Uses Budget'!C85 -> 50000
A86: Furnishings | B86: ='Sources and Uses Budget'!C86 -> 409800 | E86: ='Sources and Uses Budget'!S86 -> 409800 | G86: =E86 -> 409800 | H86: ='Sources and Uses Budget'!T86 -> 0
A87: Market Study | B87: ='Sources and Uses Budget'!C87 -> 10000 | E87: ='Sources and Uses Budget'!S87 -> 0 | G87: 0 | H87: ='Sources and Uses Budget'!T87 -> 0
A88: Accounting/Reimbursable | B88: ='Sources and Uses Budget'!C88 -> 0 | E88: ='Sources and Uses Budget'!S88 -> 0 | G88: 0 | H88: ='Sources and Uses Budget'!T88 -> 0
A89: Appraisal Costs | B89: ='Sources and Uses Budget'!C89 -> 10000 | E89: ='Sources and Uses Budget'!S89 -> 10000 | G89: 10000 | H89: ='Sources and Uses Budget'!T89 -> 0
A90: ='Sources and Uses Budget'!$A90 -> LEED/CASp/ADA | B90: ='Sources and Uses Budget'!C90 -> 83200 | E90: ='Sources and Uses Budget'!S90 -> 83200 | G90: 83200 | H90: ='Sources and Uses Budget'!T90 -> 0
A91: ='Sources and Uses Budget'!$A91 -> Permanent Reclocation (Commercial) | B91: ='Sources and Uses Budget'!C91 -> 40000 | E91: ='Sources and Uses Budget'!S91 -> 0 | G91: 0 | H91: ='Sources and Uses Budget'!T91 -> 0
A92: ='Sources and Uses Budget'!$A92 -> Third-Party Construction Management | B92: ='Sources and Uses Budget'!C92 -> 125000 | E92: ='Sources and Uses Budget'!S92 -> 125000 | G92: 125000 | H92: ='Sources and Uses Budget'!T92 -> 0
A93: ='Sources and Uses Budget'!$A93 -> Local Impact Fees (Waived) | B93: ='Sources and Uses Budget'!C93 -> 333323 | E93: ='Sources and Uses Budget'!S93 -> 0 | G93: 0 | H93: ='Sources and Uses Budget'!T93 -> 0
A94: ='Sources and Uses Budget'!$A94 -> Lease Up | B94: ='Sources and Uses Budget'!C94 -> 110000 | E94: ='Sources and Uses Budget'!S94 -> 0 | G94: 0 | H94: ='Sources and Uses Budget'!T94 -> 0
A95: Total Other Costs | B95: ='Sources and Uses Budget'!C95 -> 2478228 | C95: =SUM(C80:C94) -> 0 | D95: =SUM(D80:D94) -> 0 | E95: ='Sources and Uses Budget'!S95 -> 1806940 | F95: =SUM(F81:F84,F86:F94) -> 0 | G95: =SUM(G81:G84,G86:G94) -> 1806940 | H95: ='Sources and Uses Budget'!T95 -> 0 | I95: =SUM(I81:I84,I86:I94) -> 0 | J95: =SUM(J81:J84,J86:J94) -> 0
A96: SUBTOTAL RESIDENTIAL COST | B96: ='Sources and Uses Budget'!C96 -> 67937011 | C96: =SUM(C63+C67+C74+C78+C95) -> 0 | D96: =SUM(D63+D67+D74+D78+D95) -> 0 | E96: ='Sources and Uses Budget'!S96 -> 54694261 | F96: =SUM(F63+F67+F78+F95) -> 0 | G96: =SUM(G63+G67+G78+G95) -> 54694261 | H96: ='Sources and Uses Budget'!T96 -> 0 | I96: =SUM(I63+I67+I78+I95) -> 0 | J96: =SUM(J63+J67+J78+J95) -> 0
A97: DEVELOPER COSTS
A98: Developer Overhead/Profit | B98: ='Sources and Uses Budget'!C98 -> 7384769 | E98: ='Sources and Uses Budget'!S98 -> 7384769 | G98: =E98 -> 7384769 | H98: ='Sources and Uses Budget'!T98 -> 0
A99: Consultant/Processing Agent | B99: ='Sources and Uses Budget'!C99 -> 0 | E99: ='Sources and Uses Budget'!S99 -> 0 | G99: 0 | H99: ='Sources and Uses Budget'!T99 -> 0
A100: Project Administration | B100: ='Sources and Uses Budget'!C100 -> 0 | E100: ='Sources and Uses Budget'!S100 -> 0 | G100: 0 | H100: ='Sources and Uses Budget'!T100 -> 0
A101: Broker Fees Paid to a Related Party | B101: ='Sources and Uses Budget'!C101 -> 0 | E101: ='Sources and Uses Budget'!S101 -> 0 | G101: 0 | H101: ='Sources and Uses Budget'!T101 -> 0
A102: Construction Oversight by Developer | B102: ='Sources and Uses Budget'!C102 -> 0 | E102: ='Sources and Uses Budget'!S102 -> 0 | G102: 0 | H102: ='Sources and Uses Budget'!T102 -> 0
A103: ='Sources and Uses Budget'!$A103 -> Other: (Specify) | B103: ='Sources and Uses Budget'!C103 -> 0 | E103: ='Sources and Uses Budget'!S103 -> 0 | G103: 0 | H103: ='Sources and Uses Budget'!T103 -> 0
A104: Total Developer Costs | B104: ='Sources and Uses Budget'!C104 -> 7384769 | C104: =SUM(C98:C103) -> 0 | D104: =SUM(D98:D103) -> 0 | E104: ='Sources and Uses Budget'!S104 -> 7384769 | F104: =SUM(F98:F103) -> 0 | G104: =SUM(G98:G103) -> 7384769 | H104: ='Sources and Uses Budget'!T104 -> 0 | I104: =SUM(I98:I103) -> 0 | J104: =SUM(J98:J103) -> 0
A105: TOTAL RESIDENTIAL COST | B105: ='Sources and Uses Budget'!C105 -> 75321780 | C105: =SUM(C96+C104) -> 0 | D105: =SUM(D96+D104) -> 0 | E105: ='Sources and Uses Budget'!S105 -> 62079030 | F105: =F96+F104 -> 0 | G105: =G96+G104 -> 62079030 | H105: ='Sources and Uses Budget'!T105 -> 0 | I105: =I96+I104 -> 0 | J105: =J96+J104 -> 0
E106: ='Sources and Uses Budget'!S106 -> 0 | H106: ='Sources and Uses Budget'!T106 -> 0
E107: ='Sources and Uses Budget'!S107 -> 62079030 | F107: =F105+F106 -> 0 | G107: =G105+G106 -> 62079030 | H107: ='Sources and Uses Budget'!T107 -> 0 | I107: =I105+I106 -> 0 | J107: =J105+J106 -> 0

Sheet Basis & Credits
A1: V. BASIS AND CREDITS
A5: A. Determination of Eligible and Qualified Basis
B6: Projects w/ building(s) located in DDA/QCT areas & Non-DDA/Non-QCT areas, bifurcate accordingly.
T7: =IF(T25=100%,'Sources and Basis Breakdown'!G2,'Sources and Basis Breakdown'!F2) -> 30% PVC for New Const/ Rehabilitation NON-DDA/ NON-QCT Building(s) | Y7: =IF(T25=100%," ",'Sources and Basis Breakdown'!G2) ->  | AD7: =IF(T25=100%, 'Sources and Basis Breakdown'!J2,'Sources and Basis Breakdown'!I2) -> 30% PVC for Acquisition NON-DDA/ NON-QCT Building(s) | AI7: =IF(T25=100%," ",'Sources and Basis Breakdown'!J2) -> 
B11: Total Eligible Basis: | T11: =IF('Sources and Basis Breakdown'!F107=0,'Sources and Basis Breakdown'!E107,'Sources and Basis Breakdown'!F107) -> 62079030 | Y11: =IF(Y7=" ",0,IF('Sources and Basis Breakdown'!G107+'Sources and Basis Breakdown'!F107='Sources and Basis Breakdown'!E107,'Sources and Basis Breakdown'!G107,0)) -> 0 | AD11: =IF('Sources and Basis Breakdown'!I107=0,'Sources and Basis Breakdown'!H107,'Sources and Basis Breakdown'!I107) -> 0 | AI11: =IF(AI7=" ",0,IF('Sources and Basis Breakdown'!I107+'Sources and Basis Breakdown'!J107='Sources and Basis Breakdown'!H107,'Sources and Basis Breakdown'!J107,0)) -> 0
B12: Ineligible Amounts
C13: Subtract All Grant Proceeds Used to Finance Costs in Eligible Basis:
C14: Subtract Non-Qualified Non-Recourse Financing:
C15: Subtract Non-Qualifying Portion of Higher Quality Units:
C16: Subtract Photovoltaic Credit (as applicable):
C17: Subtract Historic Credit (residential portion only):
C18: Subtract (specify other ineligible amounts):
C19: Subtract (specify other ineligible amounts):
B20: Total Ineligible Amounts: | T20: =SUM(T13:X19) -> 0 | Y20: =SUM(Y13:AC19) -> 0 | AD20: =SUM(AD13:AH19) -> 0 | AI20: =SUM(AI13:AM19) -> 0
B21: Total Eligible Basis Amount Voluntarily Excluded:
B22: Total Basis Reduction: | T22: =(T20+T21)*-1 -> 0 | Y22: =(Y20+Y21)*-1 -> 0 | AD22: =(AD20+AD21)*-1 -> 0 | AI22: =(AI20+AI21)*-1 -> 0
B23: *Total Requested Unadjusted Eligible Basis: | T23: =T11+T22 -> 62079030 | Y23: =Y11+Y22 -> 0 | AD23: =IF(AD11=AD21,0,AD11) -> 0 | AI23: =IF(AI11=AI21,0,AI11) -> 0
B24: Total Adjusted Threshold Basis Limit: | T24: =Application!AD1014 -> 113825705.2
B25: **130% Adjustment for DDA, QCT, or Reg. §10317(d) | T25: =IF(OR(Application!X206="yes",Application!X207="yes"),1.3,1) -> 1 | Y25: 1 | AD25: 1 | AI25: 1
B26: Total Adjusted Eligible Basis: | T26: =T23*T25 -> 62079030 | Y26: =Y23*Y25 -> 0 | AD26: =AD23*AD25 -> 0 | AI26: =AI23*AI25 -> 0
B27: Applicable Fraction: | T27: =Application!$AG$445 -> 1 | Y27: =Application!$AG$445 -> 1 | AD27: =Application!$AG$445 -> 1 | AI27: =Application!$AG$445 -> 1
B28: Qualified Basis: | T28: =IF(ISERROR((T26*T27)),0,(T26*T27)) -> 62079030 | Y28: =IF(ISERROR((Y26*Y27)),0,(Y26*Y27)) -> 0 | AD28: =IF(ISERROR((AD26*AD27)),0,(AD26*AD27)) -> 0 | AI28: =IF(ISERROR((AI26*AI27)),0,(AI26*AI27)) -> 0
B29: Total Qualified Basis: | T29: =T28+Y28+AD28+AI28 -> 62079030
C30: *Voluntary exclusion of eligible basis from acquisition eligible basis shall be the entire amount of acquisition total eligible basis or Zero.
C31: **Boost is auto calculated from your selection in: II. APPLICATION - SECTION 2: GENERAL AND SUMMARY INFORMATION - B
A33: B. | C33: Determination of Federal Credit
Y35: New Const/ Rehab | AD35: Acquisition
B38: Qualified Basis: | Y38: =IF(T24>=(T23+Y23+AD23+AI23),T28+Y28,0) -> 62079030 | AD38: =IF(T24>=(T23+Y23+AD23+AI23),AD28+AI28,0) -> 0
B39: **Applicable Percentage: | Y39: 0.0324 | AD39: 0.0324
B40: Subtotal Annual Federal Credit: | Y40: =ROUND(Y38*Y39,0) -> 2011361 | AD40: =ROUND(AD38*AD39,0) -> 0
B41: Total Combined Annual Federal Credit: | Y41: =Y40+AD40 -> 2011361
B42: ** Applicants are required to use these percentages in calculating credit at the application stage.
A45: C. | C45: Determination of Minimum Federal Credit Necessary For Feasibility
D46: Total Project Cost | AB46: ='Sources and Uses Budget'!B105-'Sources and Uses Budget'!B15 -> 75321780
D47: Permanent Financing | AB47: =Application!AG644-MIN('Sources and Uses Budget'!B15,Application!AG404) -> 49930192
D48: Funding Gap | AB48: =AB46-AB47 -> 25391588
D49: Federal Tax Credit Factor | AB49: 0.941431
E50: Federal tax credit factor must be at least $1.00 for self-syndication projects or at least $0.85 for all other projects.
D53: Total Credits Necessary for Feasibility | AB53: =ROUND(IF(ISERROR((AB48/AB49)),0,(AB48/AB49)),0) -> 26971268
D54: Annual Federal Credit Necessary for Feasibility | AB54: =(AB53/10) -> 2697126.8
D55: Maximum Annual Federal Credits | AB55: =(IF((Y41<AB54),Y41,AB54)) -> 2011361
D56: Equity Raised From Federal Credit | AB56: =ROUND((10*AB55*AB49),0) -> 18935576
D58: Remaining Funding Gap | AB58: =AB48-AB56 -> 6456012
A60: D. | C60: Determination of State Credit | Y60: NC/Rehab | AD60: Acquisition
D61: State Credit Basis | Y61: =IF(AND(Application!$X$206="No",Application!$X$207="No",T25=1),T28,IF(OR(AND(OR(Application!X206="Yes",Application!X207="Yes"),Application!$D$226="Special Needs"),T25=1),(T23+Y28)*T27,Y28)) -> 62079030 | AD61: =IF(AND(T25=1.3,Application!$D$226 ="At-Risk"), AI28,IF(Application!D226<>"At-Risk",0,AD28)) -> 0
E62: New construction or rehabilitation basis only; No acquisition basis except for At-Risk projects eligible for State Credit on the acquisition basis at the 0.13 factor when no 130% basis increase is used
D64: Factor Amount | Y64: =IF(Application!X208="Yes",95%, 13%) -> 0.13 | AD64: =IF(Application!X208="Yes",95%, 13%) -> 0.13
D65: Maximum Total State Credit | Y65: =ROUND(Y61*Y64,0) -> 8070274 | AD65: =IF(Application!D226="At-Risk",ROUND(AD61*AD64,0),"$0") -> $0
A67: E. | C67: Determination of Minimum State Credit Necessary for Feasibility
D68: State Tax Credit Factor | AB68: 0.8
